{"text_format":"1","workbook":"xlsx","n_sheets":2,"sheets":["EOOTB - D.S.A.T (01)","Digital Assessment Tool"],"not_rendered":{"charts":52,"images":38,"macros":1,"external_links":0,"defined_names":4,"comments":0,"pivot_tables":0},"unopened":[],"bounds":{"document_bytes":16777216,"sheet_cells":100000,"rows_first":2000,"rows_last":500,"rows_between":2000,"halvings":0,"cell_chars":16384,"cell_head_chars":4096},"cells_cut":0,"cells_raw":0,"read":"whole","date_system":"1900"}

{"sheet":"EOOTB - D.S.A.T (01)","index":0,"n_rows":2019,"n_cols":655,"rows_kept":2019,"cut":false,"hidden":false,"merged":[[2,648,2,652],[2,654,2,657],[0,15,0,16],[1,15,1,16],[4,309,4,310],[83,4,83,5],[5,304,7,304],[1,11,1,12],[2,10,2,13],[2,4,2,8],[2,35,2,39],[2,41,2,44],[68,1,68,2],[75,1,75,2],[82,1,82,2],[5,302,7,302],[5,303,7,303],[55,4,55,5],[55,7,55,8],[55,1,55,2],[60,1,61,2],[60,3,61,3],[82,4,82,5],[5,300,7,300],[34,1,34,2],[29,1,29,2],[82,7,82,8],[3,0,3,2],[3,4,3,11],[3,12,3,16],[4,11,4,14],[6,10,7,10],[6,0,6,8],[5,0,5,8],[53,637,53,644],[7,1,7,8],[50,637,50,644],[51,637,51,644],[52,637,52,644],[29,4,29,5],[29,7,29,8],[30,4,30,5],[8,1,8,2],[15,1,15,2],[22,1,22,2],[48,1,48,2],[41,1,41,2],[5,305,7,305],[5,301,7,301],[5,299,7,299],[86,0,86,13],[102,298,108,299],[111,296,111,303],[111,304,111,312],[112,296,112,302],[112,304,112,312],[89,286,89,287],[97,286,97,287],[95,286,95,287],[93,286,93,287],[91,286,91,287]]}
[null,null,null,null,null,null,null,null,null,null,null,null,null,null,"User            \nFirst Name: \n(Before START)","First Name",null,null,null,null,null,null,null,null,null,null,null,null,null,null,null,null,null,null,null,null,null,null,null,null,null,null,null,null,null,null,null,null,null,null,null,null,null,null,null,null,null,null,null,null,null,null,null,null,null,null,null,null,null,null,null,null,null,null,null,null,null,null,null,null,null,null,null,null,null,null,null,null,null,null,null,null,null,null,null,null,null,null,null,null,null,null,null,null,null,null,null,null,null,null,null,null,null,null,null,null,null,null,null,null,null,null,null,null,null,null,null,null,null,null,null,null,null,null,null,null,null,null,null,null,null,null,null,null,null,null,null,null,null,null,null,null,null,null,null,null,null,null,null,null,null,null,null,null,null,null,null,null,null,null,null,null,null,null,null,null,null,null,null,null,null,null,null,null,null,null,null,null,null,null,null,null,null,null,null,null,null,null,null,null,null,null,null,null,null,null,null,null,null,null,null,null,null,null,null,null,null,null,null,null,null,null,null,null,null,null,null,null,null,null,null,null,null,null,null,null,null,null,null,null,null,null,null,null,null,null,null,null,null,null,null,null,null,null,null,null,null,null,null,null,null,null,null,null,null,null,null,null,null,null,null,null,null,null,null,null,null,null,null,null,null,null,null,null,null,null,null,null,null,null,null,null,null,null,null,null,null,null,null,null,null,"","📣","","","",null,null,null,null,null,null,null,null,null,null,null,null,null,null,null,null,null,null,null,null,null,null,null,null,null,null,null,null,null,null,null,null,null,null,null,null,null,null,null,null,null,null,null,null,null,null,null,null,null,null,null,null,null,null,null,null,null,null,null,null,null,null,null,null,null,null,null,null,null,null,null," ."]
[null,null,null,null,null,null,null,null,null,null,null,null,null,null,"User            \nLast Name: \n(Before START)","Last Name",null,null,null,null,null,null,null,null,null,null,null,null,null,null,null,null,null,null,null,null,null,null,null,null,null,null,null,null,null,null,null,null,null,null,null,null,null,null,null,null,null,null,null,null,null,null,null,null,null,null,null,null,null,null,null,null,null,null,null,null,null,null,null,null,null,null,null,null,null,null,null,null,null,null,null,null,null,null,null,null,null,null,null,null,null,null,null,null,null,null,null,null,null,null,null,null,null,null,null,null,null,null,null,null,null,null,null,null,null,null,null,null,null,null,null,null,null,null,null,null,null,null,null,null,null,null,null,null,null,null,null,null,null,null,null,null,null,null,null,null,null,null,null,null,null,null,null,null,null,null,null,null,null,null,null,null,null,null,null,null,null,null,null,null,null,null,null,null,null,null,null,null,null,null,null,null,null,null,null,null,null,null,null,null,null,null,null,null,null,null,null,null,null,null,null,null,null,null,null,null,null,null,null,null,null,null,null,null,null,null,null,null,null,null,null,null,null,null,null,null,null,null,null,null,null,null,null,null,null,null,null,null,null,null,null,null,null,null,null,null,null,null,null,null,null,null,null,null,null,null,null,null,null,null,null,null,null,null,null,null,null,null,null,null,null,null,null,null,null,null,null,null,null,null,null,null,null,null,null,null,null,null,null,null,null,{"$f":"1-KP3","v":1},{"$f":"1-KQ3","v":1},{"$f":"1-KR3","v":1},{"$f":"1-KS3","v":1},{"$f":"1-KT3","v":1},null,null,null,null,null,null,null,null,null,null,null,null,null,null,null,null,null,null,null,null,null,null,null,null,null,null,null,null,null,null,null,null,null,null,null,null,null,null,null,null,null,null,null,null,null,null,null,null,null,null,null,null,null,null,null,null,null,null,null,null,null,null,null,null,null,null,null,null,null,null,null,"."]
[null,null,null,null,"Push SCORE\nfor Self-Assessment\nR E S U L T S",null,null,null,null,null,"      Push   S T A R T",null,null,null,null,null,null,null,null,null,null,null,null,null,null,null,null,null,null,null,null,null,null,null,null,"Push SCORE\nfor Self-Assessment\nR E S U L T S",null,null,null,null,null,"      Push   S T A R T",null,null,null,null,null,null,null,null,null,null,null,null,null,null,null,null,null,null,null,null,null,null,null,null,null,null,null,null,null,null,null,null,null,null,null,null,null,null,null,null,null,null,null,null,null,null,null,null,null,null,null,null,null,null,null,null,null,null,null,null,null,null,null,null,null,null,null,null,null,null,null,null,null,null,null,null,null,null,null,null,null,null,null,null,null,null,null,null,null,null,null,null,null,null,null,null,null,null,null,null,null,null,null,null,null,null,null,null,null,null,null,null,null,null,null,null,null,null,null,null,null,null,null,null,null,null,null,null,null,null,null,null,null,null,null,null,null,null,null,null,null,null,null,null,null,null,null,null,null,null,null,null,null,null,null,null,null,null,null,null,null,null,null,null,null,null,null,null,null,null,null,null,null,null,null,null,null,null,null,null,null,null,null,null,null,null,null,null,null,null,null,null,null,null,null,null,null,null,null,null,null,null,null,null,null,null,null,null,null,null,null,null,null,null,null,null,null,null,null,null,null,null,null,null,null,null,null,null,null,null,null,null,null,null,null,null,null,null,null,null,null,null,null,null,null,null,"Push SCORE for Self-Assessment Results",null,null,null,null,null,null,null,null,null,null,null,null,{"$f":"AVERAGE(KP10:KP86)","v":0},{"$f":"AVERAGE(KQ10:KQ86)","v":0},{"$f":"AVERAGE(KR10:KR86)","v":0},{"$f":"AVERAGE(KS10:KS86)","v":0},{"$f":"AVERAGE(KT10:KT86)","v":0},null,null,null,null,null,null,null,null,null,null,null,null,null,null,null,null,null,null,null,null,null,null,null,null,null,null,null,null,null,null,null,null,null,null,null,null,null,null,null,null,null,null,null,null,null,null,null,null,null,null,null,null,null,null,null,null,null,null,null,null,null,null,null,null,null,null,null,null,null,null,null,null,null,null,null,null,null,null,null,null,null,null,null,null,null,null,null,null,null,null,null,null,null,null,null,null,null,null,null,null,null,null,null,null,null,null,null,null,null,null,null,null,null,null,null,null,null,null,null,null,null,null,null,null,null,null,null,null,null,null,null,null,null,null,null,null,null,null,null,null,null,null,null,null,null,null,null,null,null,null,null,null,null,null,null,null,null,null,null,null,null,null,null,null,null,null,null,null,null,null,null,null,null,null,null,null,null,null,null,null,null,null,null,null,null,null,null,null,null,null,null,null,null,null,null,null,null,null,null,null,null,null,null,null,null,null,null,null,null,null,null,null,null,null,null,null,null,null,null,null,null,null,null,null,null,null,null,null,null,null,null,null,null,null,null,null,null,null,null,null,null,null,null,null,null,null,null,null,null,null,null,null,null,null,null,null,null,null,null,null,null,null,null,null,null,null,null,null,null,null,null,null,null,null,null,null,null,null,null,null,null,null,null,null,null,null,null,null,null,null,null,null,null,null,null,null,null,null,null,null,null,null,null,null,null,null,null,null,null,null,null,null,null,null,null,null,null,null,null,null,null,null,null,null,null,null,null,null,null,null,null,null,null,null,null,null,null,null,null,null,null,null,"Push SCORE\nfor Self-Assessment\nR E S U L T S",null,null,null,null,null,"      Push   S T A R T"]
["charles.krim@fapel.lu",null,null,"F A P E L   Luxembourg   -   Charles KRIM ","SELF-ASSESSMENT TOOL",null,null,null,null,null,null,null,{"$f":"NOW()","v":"2023-11-16T16:11:49.230"}]
[null,null,null,null,null,null,null,null,null,null,null,"   START          END",null,null,null,null,"T I M E R ",null,null,null,null,null,null,null,null,null,null,null,null,null,null,null,null,null,null,null,null,null,null,null,null,null,null,null,null,null,null,null,null,null,null,null,null,null,null,null,null,null,null,null,null,null,null,null,null,null,null,null,null,null,null,null,null,null,null,null,null,null,null,null,null,null,null,null,null,null,null,null,null,null,null,null,null,null,null,null,null,null,null,null,null,null,null,null,null,null,null,null,null,null,null,null,null,null,null,null,null,null,null,null,null,null,null,null,null,null,null,null,null,null,null,null,null,null,null,null,null,null,null,null,null,null,null,null,null,null,null,null,null,null,null,null,null,null,null,null,null,null,null,null,null,null,null,null,null,null,null,null,null,null,null,null,null,null,null,null,null,null,null,null,null,null,null,null,null,null,null,null,null,null,null,null,null,null,null,null,null,null,null,null,null,null,null,null,null,null,null,null,null,null,null,null,null,null,null,null,null,null,null,null,null,null,null,null,null,null,null,null,null,null,null,null,null,null,null,null,null,null,null,null,null,null,null,null,null,null,null,null,null,null,null,null,null,null,null,null,null,null,null,null,null,null,null,null,null,null,null,null,null,null,null,null,null,null,null,null,null,null,null,null,null,null,null,null,null,null,null,null,null,null,null,null,null,null,null,null,null,null,null,{"$f":"SUM(KN10:KN85)","v":0},null,{"$f":"COUNTIF($KO$9:$KO$85,1)","v":9},{"$f":"COUNTIF($KO$9:$KO$85,2)","v":9},{"$f":"COUNTIF($KO$9:$KO$85,3)","v":12},{"$f":"COUNTIF($KO$9:$KO$85,4)","v":9},{"$f":"COUNTIF($KO$9:$KO$85,5)","v":12},null,null,null,"START          END",null,null,"T I M E R "]
["EDUCATION OUT OF THE BOX",null,null,null,null,null,null,null,null,null,null,null,"00:18:50",null,null,null,null,null,null,null,null,null,null,null,null,null,null,null,null,null,null,null,null,null,null,null,null,null,null,null,"17:55:46",null,null,null,null,null,null,null,null,null,null,null,null,null,null,null,null,null,null,null,null,null,null,null,null,null,null,null,null,null,null,null,null,null,null,null,null,null,null,null,null,null,null,null,null,null,null,null,null,null,null,null,null,null,null,null,null,null,null,null,null,null,null,null,null,null,null,null,null,null,null,null,null,null,null,null,null,null,null,null,null,null,null,null,null,null,null,null,null,null,null,null,null,null,null,null,null,null,null,null,null,null,null,null,null,null,null,null,null,null,null,null,null,null,null,null,null,null,null,null,null,null,null,null,null,null,null,null,null,null,null,null,null,null,null,null,null,null,null,null,null,null,null,null,null,null,null,null,null,null,null,null,null,null,null,null,null,null,null,null,null,null,null,null,null,null,null,null,null,null,null,null,null,null,null,null,null,null,null,null,null,null,null,null,null,null,null,null,null,null,null,null,null,null,null,null,null,null,null,null,null,null,null,null,null,null,null,null,null,null,null,null,null,null,null,null,null,null,null,null,null,null,null,null,null,null,null,null,null,null,null,null,null,null,null,null,null,null,null,null,null,null,null,null,null,null,null,null,null,null,null,null,null,null,null,null,null,null,null,"Nb Questions","Affectations","Information","Communication","Content creation","Safety","Problem solving",null,null,null,{"$f":"IF(M6=\"\",\"\",M6)","v":"00:18:50"},"22:15:21",null,{"$f":"(KY6-KX6)","v":"21:56:31"}]
["DIGITAL COMPETENCES   -   SELF ASSESSMENT TOOL",null,null,null,null,null,null,null,null,null,"Erasmus+\nEDUCATION OUT OF THE BOX\n2020-1-LU01-KA226-SCH-078053\nhttps://www.education-outofthebox.eu"]
[null,{"$f":"IF(KN5=0,0,KN5/51)","v":0},null,null,null,null,null,null,null,null,null,null,null,null,null,null,null,null,null,null,null,null,null,null,null,null,null,null,null,null,null,null,null,null,null,null,null,null,null,null,null,null,null,null,null,null,null,null,null,null,null,null,null,null,null,null,null,null,null,null,null,null,null,null,null,null,null,null,null,null,null,null,null,null,null,null,null,null,null,null,null,null,null,null,null,null,null,null,null,null,null,null,null,null,null,null,null,null,null,null,null,null,null,null,null,null,null,null,null,null,null,null,null,null,null,null,null,null,null,null,null,null,null,null,null,null,null,null,null,null,null,null,null,null,null,null,null,null,null,null,null,null,null,null,null,null,null,null,null,null,null,null,null,null,null,null,null,null,null,null,null,null,null,null,null,null,null,null,null,null,null,null,null,null,null,null,null,null,null,null,null,null,null,null,null,null,null,null,null,null,null,null,null,null,null,null,null,null,null,null,null,null,null,null,null,null,null,null,null,null,null,null,null,null,null,null,null,null,null,null,null,null,null,null,null,null,null,null,null,null,null,null,null,null,null,null,null,null,null,null,null,null,null,null,null,null,null,null,null,null,null,null,null,null,null,null,null,null,null,null,null,null,null,null,null,null,null,null,null,null,null,null,null,null,null,null,null,null,null,null,null,null,null,null,null,null,null,null,null,null,null,null,null,null,null,null,null,null,null,null,null,null,null,null,null,null,null,null,null,null,null,null,null,null,null,null,null,null,null,null,null,null,null,null,null,null,null,null,null,null,null,null,null,null,null,null,null,null,null,null,null,null,null,null,null,null,null,null,null,null,null,null,null,null,null,null,null,null,null,null,null,null,null,null,null,null,null,null,null,null,null,null,null,null,null,null,null," ."]
["Ratio of prossessed answers!","➊",null,"Digital Knowledge Assessment\nKindly, one single choice/answer per question/line is allowed!","Poor  ","Fair","Good","Very Good","Excellent",null,null,null,null,null,null,null,null,null,null,null,null,null,null,null,null,null,null,null,null,null,null,null,null,null,null,null,null,null,null,null,null,null,null,null,null,null,null,null,null,null,null,null,null,null,null,null,null,null,null,null,null,null,null,null,null,null,null,null,null,null,null,null,null,null,null,null,null,null,null,null,null,null,null,null,null,null,null,null,null,null,null,null,null,null,null,null,null,null,null,null,null,null,null,null,null,null,null,null,null,null,null,null,null,null,null,null,null,null,null,null,null,null,null,null,null,null,null,null,null,null,null,null,null,null,null,null,null,null,null,null,null,null,null,null,null,null,null,null,null,null,null,null,null,null,null,null,null,null,null,null,null,null,null,null,null,null,null,null,null,null,null,null,null,null,null,null,null,null,null,null,null,null,null,null,null,null,null,null,null,null,null,null,null,null,null,null,null,null,null,null,null,null,null,null,null,null,null,null,null,null,null,null,null,null,null,null,null,null,null,null,null,null,null,null,null,null,null,null,null,null,null,null,null,null,null,null,null,null,null,null,null,null,null,null,null,null,null,null,null,null,null,null,null,null,null,null,null,null,null,null,null,null,null,null,null,null,null,null,null,null,null,null,null,null,null,null,null,null,null,null,null,null,null,null,null,null,"➊",null,{"$f":"IF(D9=\"\",\"\",D9)","v":"Digital Knowledge Assessment\nKindly, one single choice/answer per question/line is allowed!"},null,"🖥","📟","🕸","💾","👪",null,null,null,null,null,null,{"$f":"SUM(KP10:KP112)","v":0},{"$f":"SUM(KQ10:KQ112)","v":0},{"$f":"SUM(KR10:KR112)","v":0},{"$f":"SUM(KS10:KS112)","v":0},{"$f":"SUM(KT10:KT112)","v":0},null,null,null,{"$f":"IF($M$2=\"\",\"S C O R E\",IF($M$2>17,\"E X C E L L E N T\",IF($M$2>14,\"V E R Y  G O O D\",IF($M$2>10,\"G O O D\",IF($M$2>7,\"F A I R\",IF($M$2>=0,\"P O O R\",0))))))","v":"S C O R E"},{"$f":"IF($M$2=\"\",\"S C O R E\",IF($M$2>17,\"E X C E L L E N T\",IF($M$2>14,\"V E R Y  G O O D\",IF($M$2>10,\"G O O D\",IF($M$2>7,\"F A I R\",IF($M$2>=0,\"P O O R\",0))))))","v":"S C O R E"}]
[{"$f":"IF(KJ10=0,0,1)","v":0},"➊","🖥","Assess your current level of digital knowledge!",null,null,null,null,null,null,null,null,null,null,null,null,null,null,null,null,null,null,null,null,null,null,null,null,null,null,null,null,null,null,null,null,null,null,null,null,null,null,null,null,null,null,null,null,null,null,null,null,null,null,null,null,null,null,null,null,null,null,null,null,null,null,null,null,null,null,null,null,null,null,null,null,null,null,null,null,null,null,null,null,null,null,null,null,null,null,null,null,null,null,null,null,null,null,null,null,null,null,null,null,null,null,null,null,null,null,null,null,null,null,null,null,null,null,null,null,null,null,null,null,null,null,null,null,null,null,null,null,null,null,null,null,null,null,null,null,null,null,null,null,null,null,null,null,null,null,null,null,null,null,null,null,null,null,null,null,null,null,null,null,null,null,null,null,null,null,null,null,null,null,null,null,null,null,null,null,null,null,null,null,null,null,null,null,null,null,null,null,null,null,null,null,null,null,null,null,null,null,null,null,null,null,null,null,null,null,null,null,null,null,null,null,null,null,null,null,null,null,null,null,null,null,null,null,null,null,null,null,null,null,null,null,null,null,null,null,null,null,null,null,null,null,null,null,null,null,null,null,null,null,null,null,null,null,null,null,null,null,null,null,null,null,null,null,null,null,null,null,null,null,null,null,null,null,null,null,null,null,null,null,null,null,"➊","🖥",{"$f":"D10","v":"Assess your current level of digital knowledge!"},0,{"$f":"IF($KJ10=1,1,0)","v":0},{"$f":"IF($KJ10=2,2,0)","v":0},{"$f":"IF($KJ10=3,3,0)","v":0},{"$f":"IF($KJ10=4,4,0)","v":0},{"$f":"IF($KJ10=5,5,0)","v":0},0,{"$f":"KJ10*1","v":0},null,null,{"$f":"IF(KJ10>0,1,\"\")","v":""},1,{"$f":"IF($KO10=1,$KJ10,0)","v":0},{"$f":"IF($KO10=2,$KJ10,0)","v":0},{"$f":"IF($KO10=3,$KJ10,0)","v":0},{"$f":"IF($KO10=4,$KJ10,0)","v":0},{"$f":"IF($KO10=5,$KJ10,0)","v":0}]
[{"$f":"IF(KJ11=0,0,1)","v":0},"➋","📟","Are you able to use different digital devices?\n(Computer, Tablet, Smartphone, …)",null,null,null,null,null,null,null,null,null,null,null,null,null,null,null,null,null,null,null,null,null,null,null,null,null,null,null,null,null,null,null,null,null,null,null,null,null,null,null,null,null,null,null,null,null,null,null,null,null,null,null,null,null,null,null,null,null,null,null,null,null,null,null,null,null,null,null,null,null,null,null,null,null,null,null,null,null,null,null,null,null,null,null,null,null,null,null,null,null,null,null,null,null,null,null,null,null,null,null,null,null,null,null,null,null,null,null,null,null,null,null,null,null,null,null,null,null,null,null,null,null,null,null,null,null,null,null,null,null,null,null,null,null,null,null,null,null,null,null,null,null,null,null,null,null,null,null,null,null,null,null,null,null,null,null,null,null,null,null,null,null,null,null,null,null,null,null,null,null,null,null,null,null,null,null,null,null,null,null,null,null,null,null,null,null,null,null,null,null,null,null,null,null,null,null,null,null,null,null,null,null,null,null,null,null,null,null,null,null,null,null,null,null,null,null,null,null,null,null,null,null,null,null,null,null,null,null,null,null,null,null,null,null,null,null,null,null,null,null,null,null,null,null,null,null,null,null,null,null,null,null,null,null,null,null,null,null,null,null,null,null,null,null,null,null,null,null,null,null,null,null,null,null,null,null,null,null,null,null,null,null,null,"➋","📟",{"$f":"D11","v":"Are you able to use different digital devices?\n(Computer, Tablet, Smartphone, …)"},0,{"$f":"IF($KJ11=1,1,0)","v":0},{"$f":"IF($KJ11=2,2,0)","v":0},{"$f":"IF($KJ11=3,3,0)","v":0},{"$f":"IF($KJ11=4,4,0)","v":0},{"$f":"IF($KJ11=5,5,0)","v":0},0,{"$f":"KJ11*2","v":0},null,null,{"$f":"IF(KJ11>0,1,\"\")","v":""},2,{"$f":"IF($KO11=1,$KJ11,0)","v":0},{"$f":"IF($KO11=2,$KJ11,0)","v":0},{"$f":"IF($KO11=3,$KJ11,0)","v":0},{"$f":"IF($KO11=4,$KJ11,0)","v":0},{"$f":"IF($KO11=5,$KJ11,0)","v":0},null,null,null,{"$f":"IF(M6=\"\",\"\",M6)","v":"00:18:50"}]
[{"$f":"IF(KJ12=0,0,1)","v":0},"➌","🕸","Are you able to navigate with ease on the net and undertake useful researchs?",null,null,null,null,null,null,null,null,null,null,null,null,null,null,null,null,null,null,null,null,null,null,null,null,null,null,null,null,null,null,null,null,null,null,null,null,null,null,null,null,null,null,null,null,null,null,null,null,null,null,null,null,null,null,null,null,null,null,null,null,null,null,null,null,null,null,null,null,null,null,null,null,null,null,null,null,null,null,null,null,null,null,null,null,null,null,null,null,null,null,null,null,null,null,null,null,null,null,null,null,null,null,null,null,null,null,null,null,null,null,null,null,null,null,null,null,null,null,null,null,null,null,null,null,null,null,null,null,null,null,null,null,null,null,null,null,null,null,null,null,null,null,null,null,null,null,null,null,null,null,null,null,null,null,null,null,null,null,null,null,null,null,null,null,null,null,null,null,null,null,null,null,null,null,null,null,null,null,null,null,null,null,null,null,null,null,null,null,null,null,null,null,null,null,null,null,null,null,null,null,null,null,null,null,null,null,null,null,null,null,null,null,null,null,null,null,null,null,null,null,null,null,null,null,null,null,null,null,null,null,null,null,null,null,null,null,null,null,null,null,null,null,null,null,null,null,null,null,null,null,null,null,null,null,null,null,null,null,null,null,null,null,null,null,null,null,null,null,null,null,null,null,null,null,null,null,null,null,null,null,null,null,"➌","🕸",{"$f":"D12","v":"Are you able to navigate with ease on the net and undertake useful researchs?"},0,{"$f":"IF($KJ12=1,1,0)","v":0},{"$f":"IF($KJ12=2,2,0)","v":0},{"$f":"IF($KJ12=3,3,0)","v":0},{"$f":"IF($KJ12=4,4,0)","v":0},0,0,{"$f":"KJ12*3","v":0},null,null,"",3,{"$f":"IF($KO12=1,$KJ12,0)","v":0},{"$f":"IF($KO12=2,$KJ12,0)","v":0},{"$f":"IF($KO12=3,$KJ12,0)","v":0},{"$f":"IF($KO12=4,$KJ12,0)","v":0},{"$f":"IF($KO12=5,$KJ12,0)","v":0}]
[{"$f":"IF(KJ13=0,0,1)","v":0},"➍","💾","Are you able to open/ handle/ save/ print/ store external data?",null,null,null,null,null,null,null,null,null,null,null,null,null,null,null,null,null,null,null,null,null,null,null,null,null,null,null,null,null,null,null,null,null,null,null,"17:55:46",null,null,null,null,null,null,null,null,null,null,null,null,null,null,null,null,null,null,null,null,null,null,null,null,null,null,null,null,null,null,null,null,null,null,null,null,null,null,null,null,null,null,null,null,null,null,null,null,null,null,null,null,null,null,null,null,null,null,null,null,null,null,null,null,null,null,null,null,null,null,null,null,null,null,null,null,null,null,null,null,null,null,null,null,null,null,null,null,null,null,null,null,null,null,null,null,null,null,null,null,null,null,null,null,null,null,null,null,null,null,null,null,null,null,null,null,null,null,null,null,null,null,null,null,null,null,null,null,null,null,null,null,null,null,null,null,null,null,null,null,null,null,null,null,null,null,null,null,null,null,null,null,null,null,null,null,null,null,null,null,null,null,null,null,null,null,null,null,null,null,null,null,null,null,null,null,null,null,null,null,null,null,null,null,null,null,null,null,null,null,null,null,null,null,null,null,null,null,null,null,null,null,null,null,null,null,null,null,null,null,null,null,null,null,null,null,null,null,null,null,null,null,null,null,null,null,null,null,null,null,null,null,null,null,null,null,null,null,null,null,null,null,null,null,null,null,"➍","💾",{"$f":"D13","v":"Are you able to open/ handle/ save/ print/ store external data?"},0,{"$f":"IF($KJ13=1,1,0)","v":0},{"$f":"IF($KJ13=2,2,0)","v":0},{"$f":"IF($KJ13=3,3,0)","v":0},{"$f":"IF($KJ13=4,4,0)","v":0},0,0,{"$f":"KJ13*4","v":0},null,null,"",4,{"$f":"IF($KO13=1,$KJ13,0)","v":0},{"$f":"IF($KO13=2,$KJ13,0)","v":0},{"$f":"IF($KO13=3,$KJ13,0)","v":0},{"$f":"IF($KO13=4,$KJ13,0)","v":0},{"$f":"IF($KO13=5,$KJ13,0)","v":0},null,null,null,"22:15:21"]
[{"$f":"IF(KJ14=0,0,1)","v":0},"➎","👪","Are you able to chat with an online community & handle current online meetings' tools?",null,null,null,null,null,null,null,null,null,null,null,null,null,null,null,null,null,null,null,null,null,null,null,null,null,null,null,null,null,null,null,null,null,null,null,null,null,null,null,null,null,null,null,null,null,null,null,null,null,null,null,null,null,null,null,null,null,null,null,null,null,null,null,null,null,null,null,null,null,null,null,null,null,null,null,null,null,null,null,null,null,null,null,null,null,null,null,null,null,null,null,null,null,null,null,null,null,null,null,null,null,null,null,null,null,null,null,null,null,null,null,null,null,null,null,null,null,null,null,null,null,null,null,null,null,null,null,null,null,null,null,null,null,null,null,null,null,null,null,null,null,null,null,null,null,null,null,null,null,null,null,null,null,null,null,null,null,null,null,null,null,null,null,null,null,null,null,null,null,null,null,null,null,null,null,null,null,null,null,null,null,null,null,null,null,null,null,null,null,null,null,null,null,null,null,null,null,null,null,null,null,null,null,null,null,null,null,null,null,null,null,null,null,null,null,null,null,null,null,null,null,null,null,null,null,null,null,null,null,null,null,null,null,null,null,null,null,null,null,null,null,null,null,null,null,null,null,null,null,null,null,null,null,null,null,null,null,null,null,null,null,null,null,null,null,null,null,null,null,null,null,null,null,null,null,null,null,null,null,null,null,null,"➎","👪",{"$f":"D14","v":"Are you able to chat with an online community & handle current online meetings' tools?"},0,{"$f":"IF($KJ14=1,1,0)","v":0},{"$f":"IF($KJ14=2,2,0)","v":0},{"$f":"IF($KJ14=3,3,0)","v":0},{"$f":"IF($KJ14=4,4,0)","v":0},0,0,{"$f":"KJ14*5","v":0},null,null,"",5,{"$f":"IF($KO14=1,$KJ14,0)","v":0},{"$f":"IF($KO14=2,$KJ14,0)","v":0},{"$f":"IF($KO14=3,$KJ14,0)","v":0},{"$f":"IF($KO14=4,$KJ14,0)","v":0},{"$f":"IF($KO14=5,$KJ14,0)","v":0}]
[null,null,null,null,null,null,null,null,null,null,null,null,null,null,null,null,null,null,null,null,null,null,null,null,null,null,null,null,null,null,null,null,null,null,null,null,null,null,null,null,null,null,null,null,null,null,null,null,null,null,null,null,null,null,null,null,null,null,null,null,null,null,null,null,null,null,null,null,null,null,null,null,null,null,null,null,null,null,null,null,null,null,null,null,null,null,null,null,null,null,null,null,null,null,null,null,null,null,null,null,null,null,null,null,null,null,null,null,null,null,null,null,null,null,null,null,null,null,null,null,null,null,null,null,null,null,null,null,null,null,null,null,null,null,null,null,null,null,null,null,null,null,null,null,null,null,null,null,null,null,null,null,null,null,null,null,null,null,null,null,null,null,null,null,null,null,null,null,null,null,null,null,null,null,null,null,null,null,null,null,null,null,null,null,null,null,null,null,null,null,null,null,null,null,null,null,null,null,null,null,null,null,null,null,null,null,null,null,null,null,null,null,null,null,null,null,null,null,null,null,null,null,null,null,null,null,null,null,null,null,null,null,null,null,null,null,null,null,null,null,null,null,null,null,null,null,null,null,null,null,null,null,null,null,null,null,null,null,null,null,null,null,null,null,null,null,null,null,null,null,null,null,null,null,null,null,null,null,null,null,null,null,null,null,null,null,null,null,null,null,null,null,null,null,null,null,null,null,null,""]
["Ratio of prossessed answers!","➋",null,"Digital Workload Assessment\nKindly, one single choice/answer per question/line is allowed!","Poor  ","Fair","Good","Very Good","Excellent",null,null,null,null,null,null,null,null,null,null,null,null,null,null,null,null,null,null,null,null,null,null,null,null,null,null,null,null,null,null,null,null,null,null,null,null,null,null,null,null,null,null,null,null,null,null,null,null,null,null,null,null,null,null,null,null,null,null,null,null,null,null,null,null,null,null,null,null,null,null,null,null,null,null,null,null,null,null,null,null,null,null,null,null,null,null,null,null,null,null,null,null,null,null,null,null,null,null,null,null,null,null,null,null,null,null,null,null,null,null,null,null,null,null,null,null,null,null,null,null,null,null,null,null,null,null,null,null,null,null,null,null,null,null,null,null,null,null,null,null,null,null,null,null,null,null,null,null,null,null,null,null,null,null,null,null,null,null,null,null,null,null,null,null,null,null,null,null,null,null,null,null,null,null,null,null,null,null,null,null,null,null,null,null,null,null,null,null,null,null,null,null,null,null,null,null,null,null,null,null,null,null,null,null,null,null,null,null,null,null,null,null,null,null,null,null,null,null,null,null,null,null,null,null,null,null,null,null,null,null,null,null,null,null,null,null,null,null,null,null,null,null,null,null,null,null,null,null,null,null,null,null,null,null,null,null,null,null,null,null,null,null,null,null,null,null,null,null,null,null,null,null,null,null,null,null,null,"➋",null,{"$f":"IF(D16=\"\",\"\",D16)","v":"Digital Workload Assessment\nKindly, one single choice/answer per question/line is allowed!"},null,null,null,null,null,null,null,null,null,null,"",null,null,null,null,null,null,null,null,null,{"$f":"(KX13-KX11)","v":"21:56:31"}]
[{"$f":"IF(KJ17=0,0,1)","v":0},"➊","⌚","How would you rate obtained results against the time you spent on digital tools?",null,null,null,null,null,null,null,null,null,null,null,null,null,null,null,null,null,null,null,null,null,null,null,null,null,null,null,null,null,null,null,null,null,null,null,null,null,null,null,null,null,null,null,null,null,null,null,null,null,null,null,null,null,null,null,null,null,null,null,null,null,null,null,null,null,null,null,null,null,null,null,null,null,null,null,null,null,null,null,null,null,null,null,null,null,null,null,null,null,null,null,null,null,null,null,null,null,null,null,null,null,null,null,null,null,null,null,null,null,null,null,null,null,null,null,null,null,null,null,null,null,null,null,null,null,null,null,null,null,null,null,null,null,null,null,null,null,null,null,null,null,null,null,null,null,null,null,null,null,null,null,null,null,null,null,null,null,null,null,null,null,null,null,null,null,null,null,null,null,null,null,null,null,null,null,null,null,null,null,null,null,null,null,null,null,null,null,null,null,null,null,null,null,null,null,null,null,null,null,null,null,null,null,null,null,null,null,null,null,null,null,null,null,null,null,null,null,null,null,null,null,null,null,null,null,null,null,null,null,null,null,null,null,null,null,null,null,null,null,null,null,null,null,null,null,null,null,null,null,null,null,null,null,null,null,null,null,null,null,null,null,null,null,null,null,null,null,null,null,null,null,null,null,null,null,null,null,null,null,null,null,null,"➊","⌚",{"$f":"D17","v":"How would you rate obtained results against the time you spent on digital tools?"},0,{"$f":"IF($KJ17=1,1,0)","v":0},{"$f":"IF($KJ17=2,2,0)","v":0},{"$f":"IF($KJ17=3,3,0)","v":0},{"$f":"IF($KJ17=4,4,0)","v":0},{"$f":"IF($KJ17=5,5,0)","v":0},0,{"$f":"KJ17*1","v":0},null,null,"",1,{"$f":"IF($KO17=1,$KJ17,0)","v":0},{"$f":"IF($KO17=2,$KJ17,0)","v":0},{"$f":"IF($KO17=3,$KJ17,0)","v":0},{"$f":"IF($KO17=4,$KJ17,0)","v":0},{"$f":"IF($KO17=5,$KJ17,0)","v":0}]
[{"$f":"IF(KJ18=0,0,1)","v":0},"➋","⌛","Are you able to give (Teachers) or follow (Teachers & students) an online course using digital tools?",null,null,null,null,null,null,null,null,null,null,null,null,null,null,null,null,null,null,null,null,null,null,null,null,null,null,null,null,null,null,null,null,null,null,null,null,null,null,null,null,null,null,null,null,null,null,null,null,null,null,null,null,null,null,null,null,null,null,null,null,null,null,null,null,null,null,null,null,null,null,null,null,null,null,null,null,null,null,null,null,null,null,null,null,null,null,null,null,null,null,null,null,null,null,null,null,null,null,null,null,null,null,null,null,null,null,null,null,null,null,null,null,null,null,null,null,null,null,null,null,null,null,null,null,null,null,null,null,null,null,null,null,null,null,null,null,null,null,null,null,null,null,null,null,null,null,null,null,null,null,null,null,null,null,null,null,null,null,null,null,null,null,null,null,null,null,null,null,null,null,null,null,null,null,null,null,null,null,null,null,null,null,null,null,null,null,null,null,null,null,null,null,null,null,null,null,null,null,null,null,null,null,null,null,null,null,null,null,null,null,null,null,null,null,null,null,null,null,null,null,null,null,null,null,null,null,null,null,null,null,null,null,null,null,null,null,null,null,null,null,null,null,null,null,null,null,null,null,null,null,null,null,null,null,null,null,null,null,null,null,null,null,null,null,null,null,null,null,null,null,null,null,null,null,null,null,null,null,null,null,null,null,"➋","⌛",{"$f":"D18","v":"Are you able to give (Teachers) or follow (Teachers & students) an online course using digital tools?"},0,{"$f":"IF($KJ18=1,1,0)","v":0},{"$f":"IF($KJ18=2,2,0)","v":0},{"$f":"IF($KJ18=3,3,0)","v":0},{"$f":"IF($KJ18=4,4,0)","v":0},{"$f":"IF($KJ18=5,5,0)","v":0},0,{"$f":"KJ18*2","v":0},null,null,"",2,{"$f":"IF($KO18=1,$KJ18,0)","v":0},{"$f":"IF($KO18=2,$KJ18,0)","v":0},{"$f":"IF($KO18=3,$KJ18,0)","v":0},{"$f":"IF($KO18=4,$KJ18,0)","v":0},{"$f":"IF($KO18=5,$KJ18,0)","v":0}]
[{"$f":"IF(KJ19=0,0,1)","v":0},"➌","","can you provide quick reply upon request when using a digital learning tool?",null,null,null,null,null,null,null,null,null,null,null,null,null,null,null,null,null,null,null,null,null,null,null,null,null,null,null,null,null,null,null,null,null,null,null,null,null,null,null,null,null,null,null,null,null,null,null,null,null,null,null,null,null,null,null,null,null,null,null,null,null,null,null,null,null,null,null,null,null,null,null,null,null,null,null,null,null,null,null,null,null,null,null,null,null,null,null,null,null,null,null,null,null,null,null,null,null,null,null,null,null,null,null,null,null,null,null,null,null,null,null,null,null,null,null,null,null,null,null,null,null,null,null,null,null,null,null,null,null,null,null,null,null,null,null,null,null,null,null,null,null,null,null,null,null,null,null,null,null,null,null,null,null,null,null,null,null,null,null,null,null,null,null,null,null,null,null,null,null,null,null,null,null,null,null,null,null,null,null,null,null,null,null,null,null,null,null,null,null,null,null,null,null,null,null,null,null,null,null,null,null,null,null,null,null,null,null,null,null,null,null,null,null,null,null,null,null,null,null,null,null,null,null,null,null,null,null,null,null,null,null,null,null,null,null,null,null,null,null,null,null,null,null,null,null,null,null,null,null,null,null,null,null,null,null,null,null,null,null,null,null,null,null,null,null,null,null,null,null,null,null,null,null,null,null,null,null,null,null,null,null,null,"➌","🕘",{"$f":"D19","v":"can you provide quick reply upon request when using a digital learning tool?"},0,{"$f":"IF($KJ19=1,1,0)","v":0},{"$f":"IF($KJ19=2,2,0)","v":0},{"$f":"IF($KJ19=3,3,0)","v":0},{"$f":"IF($KJ19=4,4,0)","v":0},0,0,{"$f":"KJ19*3","v":0},null,null,"",3,{"$f":"IF($KO19=1,$KJ19,0)","v":0},{"$f":"IF($KO19=2,$KJ19,0)","v":0},{"$f":"IF($KO19=3,$KJ19,0)","v":0},{"$f":"IF($KO19=4,$KJ19,0)","v":0},{"$f":"IF($KO19=5,$KJ19,0)","v":0}]
[{"$f":"IF(KJ20=0,0,1)","v":0},"➍","📊","Are you able to develop & protect your creative work/ Graphs/ layouts/ …  on digital tools?",null,null,null,null,null,null,null,null,null,null,null,null,null,null,null,null,null,null,null,null,null,null,null,null,null,null,null,null,null,null,null,null,null,null,null,null,null,null,null,null,null,null,null,null,null,null,null,null,null,null,null,null,null,null,null,null,null,null,null,null,null,null,null,null,null,null,null,null,null,null,null,null,null,null,null,null,null,null,null,null,null,null,null,null,null,null,null,null,null,null,null,null,null,null,null,null,null,null,null,null,null,null,null,null,null,null,null,null,null,null,null,null,null,null,null,null,null,null,null,null,null,null,null,null,null,null,null,null,null,null,null,null,null,null,null,null,null,null,null,null,null,null,null,null,null,null,null,null,null,null,null,null,null,null,null,null,null,null,null,null,null,null,null,null,null,null,null,null,null,null,null,null,null,null,null,null,null,null,null,null,null,null,null,null,null,null,null,null,null,null,null,null,null,null,null,null,null,null,null,null,null,null,null,null,null,null,null,null,null,null,null,null,null,null,null,null,null,null,null,null,null,null,null,null,null,null,null,null,null,null,null,null,null,null,null,null,null,null,null,null,null,null,null,null,null,null,null,null,null,null,null,null,null,null,null,null,null,null,null,null,null,null,null,null,null,null,null,null,null,null,null,null,null,null,null,null,null,null,null,null,null,null,"➍","📊",{"$f":"D20","v":"Are you able to develop & protect your creative work/ Graphs/ layouts/ …  on digital tools?"},0,{"$f":"IF($KJ20=1,1,0)","v":0},{"$f":"IF($KJ20=2,2,0)","v":0},{"$f":"IF($KJ20=3,3,0)","v":0},{"$f":"IF($KJ20=4,4,0)","v":0},0,0,{"$f":"KJ20*4","v":0},null,null,"",4,{"$f":"IF($KO20=1,$KJ20,0)","v":0},{"$f":"IF($KO20=2,$KJ20,0)","v":0},{"$f":"IF($KO20=3,$KJ20,0)","v":0},{"$f":"IF($KO20=4,$KJ20,0)","v":0},{"$f":"IF($KO20=5,$KJ20,0)","v":0},null,null,null,{"$f":"IF($M$2=\"\",\"S C O R E\",IF($M$2>17,\"E X C E L L E N T\",IF($M$2>14,\"V E R Y  G O O D\",IF($M$2>10,\"G O O D\",IF($M$2>7,\"F A I R\",IF($M$2>=0,\"P O O R\",0))))))","v":"S C O R E"},"Push to assess\ndigital skills"]
[{"$f":"IF(KJ21=0,0,1)","v":0},"➎","📂","Does the EOOTB platform help you to solve the problem of certain student shortcomings or illnesses? ",null,null,null,null,null,null,null,null,null,null,null,null,null,null,null,null,null,null,null,null,null,null,null,null,null,null,null,null,null,null,null,null,null,null,null,null,null,null,null,null,null,null,null,null,null,null,null,null,null,null,null,null,null,null,null,null,null,null,null,null,null,null,null,null,null,null,null,null,null,null,null,null,null,null,null,null,null,null,null,null,null,null,null,null,null,null,null,null,null,null,null,null,null,null,null,null,null,null,null,null,null,null,null,null,null,null,null,null,null,null,null,null,null,null,null,null,null,null,null,null,null,null,null,null,null,null,null,null,null,null,null,null,null,null,null,null,null,null,null,null,null,null,null,null,null,null,null,null,null,null,null,null,null,null,null,null,null,null,null,null,null,null,null,null,null,null,null,null,null,null,null,null,null,null,null,null,null,null,null,null,null,null,null,null,null,null,null,null,null,null,null,null,null,null,null,null,null,null,null,null,null,null,null,null,null,null,null,null,null,null,null,null,null,null,null,null,null,null,null,null,null,null,null,null,null,null,null,null,null,null,null,null,null,null,null,null,null,null,null,null,null,null,null,null,null,null,null,null,null,null,null,null,null,null,null,null,null,null,null,null,null,null,null,null,null,null,null,null,null,null,null,null,null,null,null,null,null,null,null,null,null,null,"➎","📂",{"$f":"D21","v":"Does the EOOTB platform help you to solve the problem of certain student shortcomings or illnesses? "},0,{"$f":"IF($KJ21=1,1,0)","v":0},{"$f":"IF($KJ21=2,2,0)","v":0},{"$f":"IF($KJ21=3,3,0)","v":0},{"$f":"IF($KJ21=4,4,0)","v":0},0,0,{"$f":"KJ21*5","v":0},null,null,"",5,{"$f":"IF($KO21=1,$KJ21,0)","v":0},{"$f":"IF($KO21=2,$KJ21,0)","v":0},{"$f":"IF($KO21=3,$KJ21,0)","v":0},{"$f":"IF($KO21=4,$KJ21,0)","v":0},{"$f":"IF($KO21=5,$KJ21,0)","v":0}]
[null,null,null,null,null,null,null,null,null,null,null,null,null,null,null,null,null,null,null,null,null,null,null,null,null,null,null,null,null,null,null,null,null,null,null,null,null,null,null,null,null,null,null,null,null,null,null,null,null,null,null,null,null,null,null,null,null,null,null,null,null,null,null,null,null,null,null,null,null,null,null,null,null,null,null,null,null,null,null,null,null,null,null,null,null,null,null,null,null,null,null,null,null,null,null,null,null,null,null,null,null,null,null,null,null,null,null,null,null,null,null,null,null,null,null,null,null,null,null,null,null,null,null,null,null,null,null,null,null,null,null,null,null,null,null,null,null,null,null,null,null,null,null,null,null,null,null,null,null,null,null,null,null,null,null,null,null,null,null,null,null,null,null,null,null,null,null,null,null,null,null,null,null,null,null,null,null,null,null,null,null,null,null,null,null,null,null,null,null,null,null,null,null,null,null,null,null,null,null,null,null,null,null,null,null,null,null,null,null,null,null,null,null,null,null,null,null,null,null,null,null,null,null,null,null,null,null,null,null,null,null,null,null,null,null,null,null,null,null,null,null,null,null,null,null,null,null,null,null,null,null,null,null,null,null,null,null,null,null,null,null,null,null,null,null,null,null,null,null,null,null,null,null,null,null,null,null,null,null,null,null,null,null,null,null,null,null,null,null,null,null,null,null,null,null,null,null,null,null,""]
["Ratio of prossessed answers!","➌",null,"Digital @ Profile Assessment\nKindly, one single choice/answer per question/line is allowed!","Never","Once a month","Once a week","Daily user","Intensive\nuser",null,null,null,null,null,null,null,null,null,null,null,null,null,null,null,null,null,null,null,null,null,null,null,null,null,null,null,null,null,null,null,null,null,null,null,null,null,null,null,null,null,null,null,null,null,null,null,null,null,null,null,null,null,null,null,null,null,null,null,null,null,null,null,null,null,null,null,null,null,null,null,null,null,null,null,null,null,null,null,null,null,null,null,null,null,null,null,null,null,null,null,null,null,null,null,null,null,null,null,null,null,null,null,null,null,null,null,null,null,null,null,null,null,null,null,null,null,null,null,null,null,null,null,null,null,null,null,null,null,null,null,null,null,null,null,null,null,null,null,null,null,null,null,null,null,null,null,null,null,null,null,null,null,null,null,null,null,null,null,null,null,null,null,null,null,null,null,null,null,null,null,null,null,null,null,null,null,null,null,null,null,null,null,null,null,null,null,null,null,null,null,null,null,null,null,null,null,null,null,null,null,null,null,null,null,null,null,null,null,null,null,null,null,null,null,null,null,null,null,null,null,null,null,null,null,null,null,null,null,null,null,null,null,null,null,null,null,null,null,null,null,null,null,null,null,null,null,null,null,null,null,null,null,null,null,null,null,null,null,null,null,null,null,null,null,null,null,null,null,null,null,null,null,null,null,null,null,"➌",null,{"$f":"IF(D23=\"\",\"\",D23)","v":"Digital @ Profile Assessment\nKindly, one single choice/answer per question/line is allowed!"},null,"🎮","💼","☠","🕸",null,null,null,null,null,""]
[{"$f":"IF(KJ24=0,0,1)","v":0},"➊","🎮","how often do you use any digital tool/ games?",null,null,null,null,null,null,null,null,null,null,null,null,null,null,null,null,null,null,null,null,null,null,null,null,null,null,null,null,null,null,null,null,null,null,null,null,null,null,null,null,null,null,null,null,null,null,null,null,null,null,null,null,null,null,null,null,null,null,null,null,null,null,null,null,null,null,null,null,null,null,null,null,null,null,null,null,null,null,null,null,null,null,null,null,null,null,null,null,null,null,null,null,null,null,null,null,null,null,null,null,null,null,null,null,null,null,null,null,null,null,null,null,null,null,null,null,null,null,null,null,null,null,null,null,null,null,null,null,null,null,null,null,null,null,null,null,null,null,null,null,null,null,null,null,null,null,null,null,null,null,null,null,null,null,null,null,null,null,null,null,null,null,null,null,null,null,null,null,null,null,null,null,null,null,null,null,null,null,null,null,null,null,null,null,null,null,null,null,null,null,null,null,null,null,null,null,null,null,null,null,null,null,null,null,null,null,null,null,null,null,null,null,null,null,null,null,null,null,null,null,null,null,null,null,null,null,null,null,null,null,null,null,null,null,null,null,null,null,null,null,null,null,null,null,null,null,null,null,null,null,null,null,null,null,null,null,null,null,null,null,null,null,null,null,null,null,null,null,null,null,null,null,null,null,null,null,null,null,null,null,null,null,"➊","🎮",{"$f":"D24","v":"how often do you use any digital tool/ games?"},0,{"$f":"IF($KJ24=1,1,0)","v":0},{"$f":"IF($KJ24=2,2,0)","v":0},{"$f":"IF($KJ24=3,3,0)","v":0},{"$f":"IF($KJ24=4,4,0)","v":0},{"$f":"IF($KJ24=5,5,0)","v":0},0,{"$f":"KJ24*1","v":0},null,null,"",1,{"$f":"IF($KO24=1,$KJ24,0)","v":0},{"$f":"IF($KO24=2,$KJ24,0)","v":0},{"$f":"IF($KO24=3,$KJ24,0)","v":0},{"$f":"IF($KO24=4,$KJ24,0)","v":0},{"$f":"IF($KO24=5,$KJ24,0)","v":0}]
[{"$f":"IF(KJ25=0,0,1)","v":0},"➋","💼"," Do you use digital tools in your school/professional life?",null,null,null,null,null,null,null,null,null,null,null,null,null,null,null,null,null,null,null,null,null,null,null,null,null,null,null,null,null,null,null,null,null,null,null,null,null,null,null,null,null,null,null,null,null,null,null,null,null,null,null,null,null,null,null,null,null,null,null,null,null,null,null,null,null,null,null,null,null,null,null,null,null,null,null,null,null,null,null,null,null,null,null,null,null,null,null,null,null,null,null,null,null,null,null,null,null,null,null,null,null,null,null,null,null,null,null,null,null,null,null,null,null,null,null,null,null,null,null,null,null,null,null,null,null,null,null,null,null,null,null,null,null,null,null,null,null,null,null,null,null,null,null,null,null,null,null,null,null,null,null,null,null,null,null,null,null,null,null,null,null,null,null,null,null,null,null,null,null,null,null,null,null,null,null,null,null,null,null,null,null,null,null,null,null,null,null,null,null,null,null,null,null,null,null,null,null,null,null,null,null,null,null,null,null,null,null,null,null,null,null,null,null,null,null,null,null,null,null,null,null,null,null,null,null,null,null,null,null,null,null,null,null,null,null,null,null,null,null,null,null,null,null,null,null,null,null,null,null,null,null,null,null,null,null,null,null,null,null,null,null,null,null,null,null,null,null,null,null,null,null,null,null,null,null,null,null,null,null,null,null,null,"➋","💼",{"$f":"D25","v":" Do you use digital tools in your school/professional life?"},0,{"$f":"IF($KJ25=1,1,0)","v":0},{"$f":"IF($KJ25=2,2,0)","v":0},{"$f":"IF($KJ25=3,3,0)","v":0},{"$f":"IF($KJ25=4,4,0)","v":0},{"$f":"IF($KJ25=5,5,0)","v":0},0,{"$f":"KJ25*2","v":0},null,null,"",2,{"$f":"IF($KO25=1,$KJ25,0)","v":0},{"$f":"IF($KO25=2,$KJ25,0)","v":0},{"$f":"IF($KO25=3,$KJ25,0)","v":0},{"$f":"IF($KO25=4,$KJ25,0)","v":0},{"$f":"IF($KO25=5,$KJ25,0)","v":0}]
[{"$f":"IF(KJ26=0,0,1)","v":0},"➌","☠","Are you comfortable with learning & creating content on EOOTB platform?",null,null,null,null,null,null,null,null,null,null,null,null,null,null,null,null,null,null,null,null,null,null,null,null,null,null,null,null,null,null,null,null,null,null,null,null,null,null,null,null,null,null,null,null,null,null,null,null,null,null,null,null,null,null,null,null,null,null,null,null,null,null,null,null,null,null,null,null,null,null,null,null,null,null,null,null,null,null,null,null,null,null,null,null,null,null,null,null,null,null,null,null,null,null,null,null,null,null,null,null,null,null,null,null,null,null,null,null,null,null,null,null,null,null,null,null,null,null,null,null,null,null,null,null,null,null,null,null,null,null,null,null,null,null,null,null,null,null,null,null,null,null,null,null,null,null,null,null,null,null,null,null,null,null,null,null,null,null,null,null,null,null,null,null,null,null,null,null,null,null,null,null,null,null,null,null,null,null,null,null,null,null,null,null,null,null,null,null,null,null,null,null,null,null,null,null,null,null,null,null,null,null,null,null,null,null,null,null,null,null,null,null,null,null,null,null,null,null,null,null,null,null,null,null,null,null,null,null,null,null,null,null,null,null,null,null,null,null,null,null,null,null,null,null,null,null,null,null,null,null,null,null,null,null,null,null,null,null,null,null,null,null,null,null,null,null,null,null,null,null,null,null,null,null,null,null,null,null,null,null,null,null,"➌","☠",{"$f":"D27","v":"Among the net's puzzle, are you able to recognize and avoid unsafe use of the web?"},0,{"$f":"IF($KJ26=1,1,0)","v":0},{"$f":"IF($KJ26=2,2,0)","v":0},{"$f":"IF($KJ26=3,3,0)","v":0},{"$f":"IF($KJ26=4,4,0)","v":0},0,0,{"$f":"KJ26*3","v":0},null,null,"",3,{"$f":"IF($KO26=1,$KJ26,0)","v":0},{"$f":"IF($KO26=2,$KJ26,0)","v":0},{"$f":"IF($KO26=3,$KJ26,0)","v":0},{"$f":"IF($KO26=4,$KJ26,0)","v":0},{"$f":"IF($KO26=5,$KJ26,0)","v":0}]
[{"$f":"IF(KJ27=0,0,1)","v":0},"➍","🕸","Among the net's puzzle, are you able to recognize and avoid unsafe use of the web?",null,null,null,null,null,null,null,null,null,null,null,null,null,null,null,null,null,null,null,null,null,null,null,null,null,null,null,null,null,null,null,null,null,null,null,null,null,null,null,null,null,null,null,null,null,null,null,null,null,null,null,null,null,null,null,null,null,null,null,null,null,null,null,null,null,null,null,null,null,null,null,null,null,null,null,null,null,null,null,null,null,null,null,null,null,null,null,null,null,null,null,null,null,null,null,null,null,null,null,null,null,null,null,null,null,null,null,null,null,null,null,null,null,null,null,null,null,null,null,null,null,null,null,null,null,null,null,null,null,null,null,null,null,null,null,null,null,null,null,null,null,null,null,null,null,null,null,null,null,null,null,null,null,null,null,null,null,null,null,null,null,null,null,null,null,null,null,null,null,null,null,null,null,null,null,null,null,null,null,null,null,null,null,null,null,null,null,null,null,null,null,null,null,null,null,null,null,null,null,null,null,null,null,null,null,null,null,null,null,null,null,null,null,null,null,null,null,null,null,null,null,null,null,null,null,null,null,null,null,null,null,null,null,null,null,null,null,null,null,null,null,null,null,null,null,null,null,null,null,null,null,null,null,null,null,null,null,null,null,null,null,null,null,null,null,null,null,null,null,null,null,null,null,null,null,null,null,null,null,null,null,null,"➍","🕸",{"$f":"D26","v":"Are you comfortable with learning & creating content on EOOTB platform?"},0,{"$f":"IF($KJ27=1,1,0)","v":0},{"$f":"IF($KJ27=2,2,0)","v":0},{"$f":"IF($KJ27=3,3,0)","v":0},{"$f":"IF($KJ27=4,4,0)","v":0},0,0,{"$f":"KJ27*4","v":0},null,null,"",4,{"$f":"IF($KO27=1,$KJ27,0)","v":0},{"$f":"IF($KO27=2,$KJ27,0)","v":0},{"$f":"IF($KO27=3,$KJ27,0)","v":0},{"$f":"IF($KO27=4,$KJ27,0)","v":0},{"$f":"IF($KO27=5,$KJ27,0)","v":0}]
[{"$f":"IF(KJ28=0,0,1)","v":0},"➎","🧩","Did you detect the EOOTB innovations and how it can help you improve your digital skills?",null,null,null,null,null,null,null,null,null,null,null,null,null,null,null,null,null,null,null,null,null,null,null,null,null,null,null,null,null,null,null,null,null,null,null,null,null,null,null,null,null,null,null,null,null,null,null,null,null,null,null,null,null,null,null,null,null,null,null,null,null,null,null,null,null,null,null,null,null,null,null,null,null,null,null,null,null,null,null,null,null,null,null,null,null,null,null,null,null,null,null,null,null,null,null,null,null,null,null,null,null,null,null,null,null,null,null,null,null,null,null,null,null,null,null,null,null,null,null,null,null,null,null,null,null,null,null,null,null,null,null,null,null,null,null,null,null,null,null,null,null,null,null,null,null,null,null,null,null,null,null,null,null,null,null,null,null,null,null,null,null,null,null,null,null,null,null,null,null,null,null,null,null,null,null,null,null,null,null,null,null,null,null,null,null,null,null,null,null,null,null,null,null,null,null,null,null,null,null,null,null,null,null,null,null,null,null,null,null,null,null,null,null,null,null,null,null,null,null,null,null,null,null,null,null,null,null,null,null,null,null,null,null,null,null,null,null,null,null,null,null,null,null,null,null,null,null,null,null,null,null,null,null,null,null,null,null,null,null,null,null,null,null,null,null,null,null,null,null,null,null,null,null,null,null,null,null,null,null,null,null,null,"➎","🧩",{"$f":"D28","v":"Did you detect the EOOTB innovations and how it can help you improve your digital skills?"},0,{"$f":"IF($KJ28=1,1,0)","v":0},{"$f":"IF($KJ28=2,2,0)","v":0},{"$f":"IF($KJ28=3,3,0)","v":0},{"$f":"IF($KJ28=4,4,0)","v":0},0,0,{"$f":"KJ28*5","v":0},null,null,"",5,{"$f":"IF($KO28=1,$KJ28,0)","v":0},{"$f":"IF($KO28=2,$KJ28,0)","v":0},{"$f":"IF($KO28=3,$KJ28,0)","v":0},{"$f":"IF($KO28=4,$KJ28,0)","v":0},{"$f":"IF($KO28=5,$KJ28,0)","v":0}]
[null,null,null,null,null,null,null,null,null,null,null,null,null,null,null,null,null,null,null,null,null,null,null,null,null,null,null,null,null,null,null,null,null,null,null,null,null,null,null,null,null,null,null,null,null,null,null,null,null,null,null,null,null,null,null,null,null,null,null,null,null,null,null,null,null,null,null,null,null,null,null,null,null,null,null,null,null,null,null,null,null,null,null,null,null,null,null,null,null,null,null,null,null,null,null,null,null,null,null,null,null,null,null,null,null,null,null,null,null,null,null,null,null,null,null,null,null,null,null,null,null,null,null,null,null,null,null,null,null,null,null,null,null,null,null,null,null,null,null,null,null,null,null,null,null,null,null,null,null,null,null,null,null,null,null,null,null,null,null,null,null,null,null,null,null,null,null,null,null,null,null,null,null,null,null,null,null,null,null,null,null,null,null,null,null,null,null,null,null,null,null,null,null,null,null,null,null,null,null,null,null,null,null,null,null,null,null,null,null,null,null,null,null,null,null,null,null,null,null,null,null,null,null,null,null,null,null,null,null,null,null,null,null,null,null,null,null,null,null,null,null,null,null,null,null,null,null,null,null,null,null,null,null,null,null,null,null,null,null,null,null,null,null,null,null,null,null,null,null,null,null,null,null,null,null,null,null,null,null,null,null,null,null,null,null,null,null,null,null,null,null,null,null,null,null,null,null,null,null,""]
["Ratio of prossessed answers!","➍",null,"Digital Upscale\nKindly, one single choice/answer per question/line is allowed!","YES",null,null,"NO",null,null,null,null,null,null,null,null,null,null,null,null,null,null,null,null,null,null,null,null,null,null,null,null,null,null,null,null,null,null,null,null,null,null,null,null,null,null,null,null,null,null,null,null,null,null,null,null,null,null,null,null,null,null,null,null,null,null,null,null,null,null,null,null,null,null,null,null,null,null,null,null,null,null,null,null,null,null,null,null,null,null,null,null,null,null,null,null,null,null,null,null,null,null,null,null,null,null,null,null,null,null,null,null,null,null,null,null,null,null,null,null,null,null,null,null,null,null,null,null,null,null,null,null,null,null,null,null,null,null,null,null,null,null,null,null,null,null,null,null,null,null,null,null,null,null,null,null,null,null,null,null,null,null,null,null,null,null,null,null,null,null,null,null,null,null,null,null,null,null,null,null,null,null,null,null,null,null,null,null,null,null,null,null,null,null,null,null,null,null,null,null,null,null,null,null,null,null,null,null,null,null,null,null,null,null,null,null,null,null,null,null,null,null,null,null,null,null,null,null,null,null,null,null,null,null,null,null,null,null,null,null,null,null,null,null,null,null,null,null,null,null,null,null,null,null,null,null,null,null,null,null,null,null,null,null,null,null,null,null,null,null,null,null,null,null,null,null,null,null,null,null,null,null,null,null,null,null,"➍",null,{"$f":"IF(D30=\"\",\"\",D30)","v":"Digital Upscale\nKindly, one single choice/answer per question/line is allowed!"},null,null,null,null,null,null,null,null,null,null,""]
[{"$f":"IF(KJ31=0,0,1)","v":0},"➊","🔝","Do you intend to unlock & upscale your personal digital skills?",null,null,null,null,null,null,null,null,null,null,null,null,null,null,null,null,null,null,null,null,null,null,null,null,null,null,null,null,null,null,null,null,null,null,null,null,null,null,null,null,null,null,null,null,null,null,null,null,null,null,null,null,null,null,null,null,null,null,null,null,null,null,null,null,null,null,null,null,null,null,null,null,null,null,null,null,null,null,null,null,null,null,null,null,null,null,null,null,null,null,null,null,null,null,null,null,null,null,null,null,null,null,null,null,null,null,null,null,null,null,null,null,null,null,null,null,null,null,null,null,null,null,null,null,null,null,null,null,null,null,null,null,null,null,null,null,null,null,null,null,null,null,null,null,null,null,null,null,null,null,null,null,null,null,null,null,null,null,null,null,null,null,null,null,null,null,null,null,null,null,null,null,null,null,null,null,null,null,null,null,null,null,null,null,null,null,null,null,null,null,null,null,null,null,null,null,null,null,null,null,null,null,null,null,null,null,null,null,null,null,null,null,null,null,null,null,null,null,null,null,null,null,null,null,null,null,null,null,null,null,null,null,null,null,null,null,null,null,null,null,null,null,null,null,null,null,null,null,null,null,null,null,null,null,null,null,null,null,null,null,null,null,null,null,null,null,null,null,null,null,null,null,null,null,null,null,null,null,null,null,null,null,"➊","🔝",{"$f":"D31","v":"Do you intend to unlock & upscale your personal digital skills?"},0,{"$f":"IF($KJ31=1,1,0)","v":0},{"$f":"IF($KJ31=2,2,0)","v":0},null,null,null,0,{"$f":"IF(KJ31=2,0,IF(AND(KJ31=1,KJ32=1),20,IF(KJ31=1,10,0)))","v":0},"➊",{"$f":"IF(KJ31=1,1,0)","v":0},"",3,{"$f":"IF($KO31=1,$KJ31,0)","v":0},{"$f":"IF($KO31=2,$KJ31,0)","v":0},{"$f":"IF($KO31=3,$KJ31*3,0)","v":0},{"$f":"IF($KO31=4,$KJ31,0)","v":0},{"$f":"IF($KO31=5,$KJ31,0)","v":0}]
[{"$f":"IF(KJ32=0,0,1)","v":0},"➋","📃","Are you willing to take part in digital trainings in your area?",null,null,null,null,null,null,null,null,null,null,null,null,null,null,null,null,null,null,null,null,null,null,null,null,null,null,null,null,null,null,null,null,null,null,null,null,null,null,null,null,null,null,null,null,null,null,null,null,null,null,null,null,null,null,null,null,null,null,null,null,null,null,null,null,null,null,null,null,null,null,null,null,null,null,null,null,null,null,null,null,null,null,null,null,null,null,null,null,null,null,null,null,null,null,null,null,null,null,null,null,null,null,null,null,null,null,null,null,null,null,null,null,null,null,null,null,null,null,null,null,null,null,null,null,null,null,null,null,null,null,null,null,null,null,null,null,null,null,null,null,null,null,null,null,null,null,null,null,null,null,null,null,null,null,null,null,null,null,null,null,null,null,null,null,null,null,null,null,null,null,null,null,null,null,null,null,null,null,null,null,null,null,null,null,null,null,null,null,null,null,null,null,null,null,null,null,null,null,null,null,null,null,null,null,null,null,null,null,null,null,null,null,null,null,null,null,null,null,null,null,null,null,null,null,null,null,null,null,null,null,null,null,null,null,null,null,null,null,null,null,null,null,null,null,null,null,null,null,null,null,null,null,null,null,null,null,null,null,null,null,null,null,null,null,null,null,null,null,null,null,null,null,null,null,null,null,null,null,null,null,null,null,"➋","📃",{"$f":"D32","v":"Are you willing to take part in digital trainings in your area?"},0,{"$f":"IF($KJ32=1,1,0)","v":0},{"$f":"IF($KJ32=2,2,0)","v":0},null,null,null,0,{"$f":"IF(KJ32=2,0,IF(KJ32=1,10,0))","v":0},"➋",{"$f":"IF(KJ32=1,1,0)","v":0},"",5,{"$f":"IF($KO32=1,$KJ32,0)","v":0},{"$f":"IF($KO32=2,$KJ32,0)","v":0},{"$f":"IF($KO32=3,$KJ32,0)","v":0},{"$f":"IF($KO32=4,$KJ32,0)","v":0},{"$f":"IF($KO32=5,$KJ32*3,0)","v":0}]
[null,null,null,null,null,null,null,null,null,null,null,null,null,null,null,null,null,null,null,null,null,null,null,null,null,null,null,null,null,null,null,null,null,null,null,null,null,null,null,null,null,null,null,null,null,null,null,null,null,null,null,null,null,null,null,null,null,null,null,null,null,null,null,null,null,null,null,null,null,null,null,null,null,null,null,null,null,null,null,null,null,null,null,null,null,null,null,null,null,null,null,null,null,null,null,null,null,null,null,null,null,null,null,null,null,null,null,null,null,null,null,null,null,null,null,null,null,null,null,null,null,null,null,null,null,null,null,null,null,null,null,null,null,null,null,null,null,null,null,null,null,null,null,null,null,null,null,null,null,null,null,null,null,null,null,null,null,null,null,null,null,null,null,null,null,null,null,null,null,null,null,null,null,null,null,null,null,null,null,null,null,null,null,null,null,null,null,null,null,null,null,null,null,null,null,null,null,null,null,null,null,null,null,null,null,null,null,null,null,null,null,null,null,null,null,null,null,null,null,null,null,null,null,null,null,null,null,null,null,null,null,null,null,null,null,null,null,null,null,null,null,null,null,null,null,null,null,null,null,null,null,null,null,null,null,null,null,null,null,null,null,null,null,null,null,null,null,null,null,null,null,null,null,null,null,null,null,null,null,null,null,null,null,null,null,null,null,null,null,null,null,null,null,null,null,null,null,null,null,""]
[null,null,null,null,null,null,null,null,null,null,null,null,null,null,null,null,null,null,null,null,null,null,null,null,null,null,null,null,null,null,null,null,null,null,null,null,null,null,null,null,null,null,null,null,null,null,null,null,null,null,null,null,null,null,null,null,null,null,null,null,null,null,null,null,null,null,null,null,null,null,null,null,null,null,null,null,null,null,null,null,null,null,null,null,null,null,null,null,null,null,null,null,null,null,null,null,null,null,null,null,null,null,null,null,null,null,null,null,null,null,null,null,null,null,null,null,null,null,null,null,null,null,null,null,null,null,null,null,null,null,null,null,null,null,null,null,null,null,null,null,null,null,null,null,null,null,null,null,null,null,null,null,null,null,null,null,null,null,null,null,null,null,null,null,null,null,null,null,null,null,null,null,null,null,null,null,null,null,null,null,null,null,null,null,null,null,null,null,null,null,null,null,null,null,null,null,null,null,null,null,null,null,null,null,null,null,null,null,null,null,null,null,null,null,null,null,null,null,null,null,null,null,null,null,null,null,null,null,null,null,null,null,null,null,null,null,null,null,null,null,null,null,null,null,null,null,null,null,null,null,null,null,null,null,null,null,null,null,null,null,null,null,null,null,null,null,null,null,null,null,null,null,null,null,null,null,null,null,null,null,null,null,null,null,null,null,null,null,null,null,null,null,null,null,null,null,null,null,null,""]
["Ratio of prossessed answers!","❺",null,"Digital Tools @ Home\nKindly, multiple choices/answers per question/line are allowed!","iPod \nMP3 reader","Tablet","Smartphone","Notebook","EOOTB\nPlatform",null,null,null,null,null,null,null,null,null,null,null,null,null,null,null,null,null,null,null,null,null,null,null,null,null,null,null,null,null,null,null,null,null,null,null,null,null,null,null,null,null,null,null,null,null,null,null,null,null,null,null,null,null,null,null,null,null,null,null,null,null,null,null,null,null,null,null,null,null,null,null,null,null,null,null,null,null,null,null,null,null,null,null,null,null,null,null,null,null,null,null,null,null,null,null,null,null,null,null,null,null,null,null,null,null,null,null,null,null,null,null,null,null,null,null,null,null,null,null,null,null,null,null,null,null,null,null,null,null,null,null,null,null,null,null,null,null,null,null,null,null,null,null,null,null,null,null,null,null,null,null,null,null,null,null,null,null,null,null,null,null,null,null,null,null,null,null,null,null,null,null,null,null,null,null,null,null,null,null,null,null,null,null,null,null,null,null,null,null,null,null,null,null,null,null,null,null,null,null,null,null,null,null,null,null,null,null,null,null,null,null,null,null,null,null,null,null,null,null,null,null,null,null,null,null,null,null,null,null,null,null,null,null,null,null,null,null,null,null,null,null,null,null,null,null,null,null,null,null,null,null,null,null,null,null,null,null,null,null,null,null,null,null,null,null,null,null,null,null,null,null,null,null,null,null,null,null,{"$f":"B35","v":"❺"},null,{"$f":"IF(D35=\"\",\"\",D35)","v":"Digital Tools @ Home\nKindly, multiple choices/answers per question/line are allowed!"},null,null,null,null,null,null,null,null,null,null,""]
[{"$f":"C36","v":0},"➊",{"$f":"AVERAGE(KE36:KI36)*1","v":0},"Which of the following digital tools do you use on a daily basis?",null,null,null,null,null,null," ||",null,null,null,null,null,null,null,null,null,null,null,null,null,null,null,null,null,null,null,null,null,null,null,null,null,null,null,null,null,null,null,null,null,null,null,null,null,null,null,null,null,null,null,null,null,null,null,null,null,null,null,null,null,null,null,null,null,null,null,null,null,null,null,null,null,null,null,null,null,null,null,null,null,null,null,null,null,null,null,null,null,null,null,null,null,null,null,null,null,null,null,null,null,null,null,null,null,null,null,null,null,null,null,null,null,null,null,null,null,null,null,null,null,null,null,null,null,null,null,null,null,null,null,null,null,null,null,null,null,null,null,null,null,null,null,null,null,null,null,null,null,null,null,null,null,null,null,null,null,null,null,null,null,null,null,null,null,null,null,null,null,null,null,null,null,null,null,null,null,null,null,null,null,null,null,null,null,null,null,null,null,null,null,null,null,null,null,null,null,null,null,null,null,null,null,null,null,null,null,null,null,null,null,null,null,null,null,null,null,null,null,null,null,null,null,null,null,null,null,null,null,null,null,null,null,null,null,null,null,null,null,null,null,null,null,null,null,null,null,null,null,null,null,null,null,null,null,null,null,null,null,null,null,null,null,null,null,null,null,null,null,null,null,null,null,null,null,null,null,null,null,null,null,null,null,"➊",{"$f":"C36","v":0},"Which of the following digital tools do you use on a daily basis?",0,{"$f":"IF(E36=TRUE,1,0)","v":0},0,0,0,0,{"$f":"SUM(KE36:KI36)","v":0},{"$f":"IF($KJ36=0,0,IF($KJ36=1,$KJ36*2,IF($KJ36=2,$KJ36*2,IF($KJ36=3,$KJ36*3,IF($KJ36=4,$KJ36*4,IF($KJ36=5,$KJ36*5,0))))))","v":0},null,null,"",1,{"$f":"IF($KO36=1,$KJ36,0)","v":0},{"$f":"IF($KO36=2,$KJ36,0)","v":0},{"$f":"IF($KO36=3,$KJ36,0)","v":0},{"$f":"IF($KO36=4,$KJ36,0)","v":0},{"$f":"IF($KO36=5,$KJ36,0)","v":0}]
[{"$f":"C37","v":0},"➋",{"$f":"AVERAGE(KE37:KI37)*1","v":0},"Which of the following digital tools do you use for your social networking?",null,null,null,null,null,null,null,null,null,null,null,null,null,null,null,null,null,null,null,null,null,null,null,null,null,null,null,null,null,null,null,null,null,null,null,null,null,null,null,null,null,null,null,null,null,null,null,null,null,null,null,null,null,null,null,null,null,null,null,null,null,null,null,null,null,null,null,null,null,null,null,null,null,null,null,null,null,null,null,null,null,null,null,null,null,null,null,null,null,null,null,null,null,null,null,null,null,null,null,null,null,null,null,null,null,null,null,null,null,null,null,null,null,null,null,null,null,null,null,null,null,null,null,null,null,null,null,null,null,null,null,null,null,null,null,null,null,null,null,null,null,null,null,null,null,null,null,null,null,null,null,null,null,null,null,null,null,null,null,null,null,null,null,null,null,null,null,null,null,null,null,null,null,null,null,null,null,null,null,null,null,null,null,null,null,null,null,null,null,null,null,null,null,null,null,null,null,null,null,null,null,null,null,null,null,null,null,null,null,null,null,null,null,null,null,null,null,null,null,null,null,null,null,null,null,null,null,null,null,null,null,null,null,null,null,null,null,null,null,null,null,null,null,null,null,null,null,null,null,null,null,null,null,null,null,null,null,null,null,null,null,null,null,null,null,null,null,null,null,null,null,null,null,null,null,null,null,null,null,null,null,null,"➋",0,"Which of the following digital tools do you use for your social networking?",0,0,0,0,0,0,{"$f":"SUM(KE37:KI37)","v":0},{"$f":"IF($KJ37=0,0,IF($KJ37=1,$KJ37*2,IF($KJ37=2,$KJ37*2,IF($KJ37=3,$KJ37*3,IF($KJ37=4,$KJ37*4,IF($KJ37=5,$KJ37*5,0))))))","v":0},null,null,"",2,{"$f":"IF($KO37=1,$KJ37,0)","v":0},{"$f":"IF($KO37=2,$KJ37,0)","v":0},{"$f":"IF($KO37=3,$KJ37,0)","v":0},{"$f":"IF($KO37=4,$KJ37,0)","v":0},{"$f":"IF($KO37=5,$KJ37,0)","v":0}]
[{"$f":"C38","v":0},"➌",{"$f":"AVERAGE(KE38:KI38)*1","v":0},"Which of the following tools do you use to transmit your data/ images/ folders/ ... ?",null,null,null,null,null,null,null,null,null,null,null,null,null,null,null,null,null,null,null,null,null,null,null,null,null,null,null,null,null,null,null,null,null,null,null,null,null,null,null,null,null,null,null,null,null,null,null,null,null,null,null,null,null,null,null,null,null,null,null,null,null,null,null,null,null,null,null,null,null,null,null,null,null,null,null,null,null,null,null,null,null,null,null,null,null,null,null,null,null,null,null,null,null,null,null,null,null,null,null,null,null,null,null,null,null,null,null,null,null,null,null,null,null,null,null,null,null,null,null,null,null,null,null,null,null,null,null,null,null,null,null,null,null,null,null,null,null,null,null,null,null,null,null,null,null,null,null,null,null,null,null,null,null,null,null,null,null,null,null,null,null,null,null,null,null,null,null,null,null,null,null,null,null,null,null,null,null,null,null,null,null,null,null,null,null,null,null,null,null,null,null,null,null,null,null,null,null,null,null,null,null,null,null,null,null,null,null,null,null,null,null,null,null,null,null,null,null,null,null,null,null,null,null,null,null,null,null,null,null,null,null,null,null,null,null,null,null,null,null,null,null,null,null,null,null,null,null,null,null,null,null,null,null,null,null,null,null,null,null,null,null,null,null,null,null,null,null,null,null,null,null,null,null,null,null,null,null,null,null,null,null,null,"➌",0,"Which of the following tools do you use to transmit your data/ images/ folders/ ... ?",0,0,0,0,0,0,0,{"$f":"IF($KJ38=0,0,IF($KJ38=1,$KJ38*2,IF($KJ38=2,$KJ38*2,IF($KJ38=3,$KJ38*3,IF($KJ38=4,$KJ38*4,IF($KJ38=5,$KJ38*5,0))))))","v":0},null,null,"",3,{"$f":"IF($KO38=1,$KJ38,0)","v":0},{"$f":"IF($KO38=2,$KJ38,0)","v":0},{"$f":"IF($KO38=3,$KJ38,0)","v":0},{"$f":"IF($KO38=4,$KJ38,0)","v":0},{"$f":"IF($KO38=5,$KJ38,0)","v":0},null,null,null,null,null,null,null,null,null,null,null,null,null,null,null,null,null,null,null,null,null,null,null,null,null,null,null,null,null,null,null,null,null,null,null,null,null,null,null,null,null,null,null,null,null,null,null,null,null,null,null,null,null,null,null,null,null,null,null,null,null,null,null,null,null,null,null,null,null,null,null,null,null,null,null,null,null,null,null,null,null,null,null,null,null,null,null,null,null,null,null,null,null,null,null,null,null,null,null,null,null,null,null,null,null,null,null,null,null,null,null,null,null,null,null,null,null,null,null,null,null,null,null,null,null,null,null,null,null,null,null,null,null,null,null,null,null,null,null,null,null,null,null,null,null,null,null,null,null,null,null,null,null,null,null,null,null,null,null,null,null,null,null,null,null,null,null,null,null,null,null,null,null,null,null,null,null,null,null,null,null,null,null,null,null,null,null,null,null,null,null,null,null,null,null,null,null,null,null,null,null,null,null,null,null,null,null,null,null,null,null,null,null,null,null,null,null,null,null,null,null,null,null,null,null,null,null,null,null,null,null,null,null,null,null,null,null,null,null,null,null,null,null,null,null,null,null,null,null,null,null,null,null,null,null,null,null,null,null,null,null,null,null,null,null,null,null,null,null,null,null,null,null,null,null,null,null,null,null,null,null,null,null,null,null,null,null,null,null,null,null,null,null,null,null,null,null,null,null,null,null,null,null,null,null,null,null,null,null,null,null,null,null,null,null,null,null,null,null,null,null,null,null,null,null,null,null,null,"Reminder of the rules"]
[{"$f":"C39","v":0},"➍",{"$f":"AVERAGE(KE39:KI39)*1","v":0},"Which of the following digital tools do you feel digitaly safe when using it?",null,null,null,null,null,null,null,null,null,null,null,null,null,null,null,null,null,null,null,null,null,null,null,null,null,null,null,null,null,null,null,null,null,null,null,null,null,null,null,null,null,null,null,null,null,null,null,null,null,null,null,null,null,null,null,null,null,null,null,null,null,null,null,null,null,null,null,null,null,null,null,null,null,null,null,null,null,null,null,null,null,null,null,null,null,null,null,null,null,null,null,null,null,null,null,null,null,null,null,null,null,null,null,null,null,null,null,null,null,null,null,null,null,null,null,null,null,null,null,null,null,null,null,null,null,null,null,null,null,null,null,null,null,null,null,null,null,null,null,null,null,null,null,null,null,null,null,null,null,null,null,null,null,null,null,null,null,null,null,null,null,null,null,null,null,null,null,null,null,null,null,null,null,null,null,null,null,null,null,null,null,null,null,null,null,null,null,null,null,null,null,null,null,null,null,null,null,null,null,null,null,null,null,null,null,null,null,null,null,null,null,null,null,null,null,null,null,null,null,null,null,null,null,null,null,null,null,null,null,null,null,null,null,null,null,null,null,null,null,null,null,null,null,null,null,null,null,null,null,null,null,null,null,null,null,null,null,null,null,null,null,null,null,null,null,null,null,null,null,null,null,null,null,null,null,null,null,null,null,null,null,null,"➍",0,"Which of the following digital tools do you feel digitaly safe when using it?",0,0,0,0,0,0,0,{"$f":"IF($KJ39=0,0,IF($KJ39=1,$KJ39*2,IF($KJ39=2,$KJ39*2,IF($KJ39=3,$KJ39*3,IF($KJ39=4,$KJ39*4,IF($KJ39=5,$KJ39*5,0))))))","v":0},null,null,"",4,{"$f":"IF($KO39=1,$KJ39,0)","v":0},{"$f":"IF($KO39=2,$KJ39,0)","v":0},{"$f":"IF($KO39=3,$KJ39,0)","v":0},{"$f":"IF($KO39=4,$KJ39,0)","v":0},{"$f":"IF($KO39=5,$KJ39,0)","v":0},null,null,null,null,null,null,null,null,null,null,null,null,null,null,null,null,null,null,null,null,null,null,null,null,null,null,null,null,null,null,null,null,null,null,null,null,null,null,null,null,null,null,null,null,null,null,null,null,null,null,null,null,null,null,null,null,null,null,null,null,null,null,null,null,null,null,null,null,null,null,null,null,null,null,null,null,null,null,null,null,null,null,null,null,null,null,null,null,null,null,null,null,null,null,null,null,null,null,null,null,null,null,null,null,null,null,null,null,null,null,null,null,null,null,null,null,null,null,null,null,null,null,null,null,null,null,null,null,null,null,null,null,null,null,null,null,null,null,null,null,null,null,null,null,null,null,null,null,null,null,null,null,null,null,null,null,null,null,null,null,null,null,null,null,null,null,null,null,null,null,null,null,null,null,null,null,null,null,null,null,null,null,null,null,null,null,null,null,null,null,null,null,null,null,null,null,null,null,null,null,null,null,null,null,null,null,null,null,null,null,null,null,null,null,null,null,null,null,null,null,null,null,null,null,null,null,null,null,null,null,null,null,null,null,null,null,null,null,null,null,null,null,null,null,null,null,null,null,null,null,null,null,null,null,null,null,null,null,null,null,null,null,null,null,null,null,null,null,null,null,null,null,null,null,null,null,null,null,null,null,null,null,null,null,null,null,null,null,null,null,null,null,null,null,null,null,null,null,null,null,null,null,null,null,null,null,null,null,null,null,null,null,null,null,null,null,null,null,null,null,null,null,null,null,null,null,null,null,"Rule 1: ",null,"add (or subtract) two fractions with the same denominator."]
[{"$f":"C40","v":0},"➎",{"$f":"AVERAGE(KE40:KI40)*1","v":0},"which of the following tools you master perfectly?",null,null,null,null,null,null,null,null,null,null,null,null,null,null,null,null,null,null,null,null,null,null,null,null,null,null,null,null,null,null,null,null,null,null,null,null,null,null,null,null,null,null,null,null,null,null,null,null,null,null,null,null,null,null,null,null,null,null,null,null,null,null,null,null,null,null,null,null,null,null,null,null,null,null,null,null,null,null,null,null,null,null,null,null,null,null,null,null,null,null,null,null,null,null,null,null,null,null,null,null,null,null,null,null,null,null,null,null,null,null,null,null,null,null,null,null,null,null,null,null,null,null,null,null,null,null,null,null,null,null,null,null,null,null,null,null,null,null,null,null,null,null,null,null,null,null,null,null,null,null,null,null,null,null,null,null,null,null,null,null,null,null,null,null,null,null,null,null,null,null,null,null,null,null,null,null,null,null,null,null,null,null,null,null,null,null,null,null,null,null,null,null,null,null,null,null,null,null,null,null,null,null,null,null,null,null,null,null,null,null,null,null,null,null,null,null,null,null,null,null,null,null,null,null,null,null,null,null,null,null,null,null,null,null,null,null,null,null,null,null,null,null,null,null,null,null,null,null,null,null,null,null,null,null,null,null,null,null,null,null,null,null,null,null,null,null,null,null,null,null,null,null,null,null,null,null,null,null,null,null,null,null,"➎",0,"which of the following tools you master perfectly?",0,0,0,0,0,0,0,{"$f":"IF($KJ40=0,0,IF($KJ40=1,$KJ40*2,IF($KJ40=2,$KJ40*2,IF($KJ40=3,$KJ40*3,IF($KJ40=4,$KJ40*4,IF($KJ40=5,$KJ40*5,0))))))","v":0},null,null,"",5,{"$f":"IF($KO40=1,$KJ40,0)","v":0},{"$f":"IF($KO40=2,$KJ40,0)","v":0},{"$f":"IF($KO40=3,$KJ40,0)","v":0},{"$f":"IF($KO40=4,$KJ40,0)","v":0},{"$f":"IF($KO40=5,$KJ40,0)","v":0},null,null,null,null,null,null,null,null,null,null,null,null,null,null,null,null,null,null,null,null,null,null,null,null,null,null,null,null,null,null,null,null,null,null,null,null,null,null,null,null,null,null,null,null,null,null,null,null,null,null,null,null,null,null,null,null,null,null,null,null,null,null,null,null,null,null,null,null,null,null,null,null,null,null,null,null,null,null,null,null,null,null,null,null,null,null,null,null,null,null,null,null,null,null,null,null,null,null,null,null,null,null,null,null,null,null,null,null,null,null,null,null,null,null,null,null,null,null,null,null,null,null,null,null,null,null,null,null,null,null,null,null,null,null,null,null,null,null,null,null,null,null,null,null,null,null,null,null,null,null,null,null,null,null,null,null,null,null,null,null,null,null,null,null,null,null,null,null,null,null,null,null,null,null,null,null,null,null,null,null,null,null,null,null,null,null,null,null,null,null,null,null,null,null,null,null,null,null,null,null,null,null,null,null,null,null,null,null,null,null,null,null,null,null,null,null,null,null,null,null,null,null,null,null,null,null,null,null,null,null,null,null,null,null,null,null,null,null,null,null,null,null,null,null,null,null,null,null,null,null,null,null,null,null,null,null,null,null,null,null,null,null,null,null,null,null,null,null,null,null,null,null,null,null,null,null,null,null,null,null,null,null,null,null,null,null,null,null,null,null,null,null,null,null,null,null,null,null,null,null,null,null,null,null,null,null,null,null,null,null,null,null,null,null,null,null,null,null,null,null,null,null,null,null,null,null,null,null,null,null,"add (or subtract) the two numerators."]
[null,null,null,null,null,null,null,null,null,null,null,null,null,null,null,null,null,null,null,null,null,null,null,null,null,null,null,null,null,null,null,null,null,null,null,null,null,null,null,null,null,null,null,null,null,null,null,null,null,null,null,null,null,null,null,null,null,null,null,null,null,null,null,null,null,null,null,null,null,null,null,null,null,null,null,null,null,null,null,null,null,null,null,null,null,null,null,null,null,null,null,null,null,null,null,null,null,null,null,null,null,null,null,null,null,null,null,null,null,null,null,null,null,null,null,null,null,null,null,null,null,null,null,null,null,null,null,null,null,null,null,null,null,null,null,null,null,null,null,null,null,null,null,null,null,null,null,null,null,null,null,null,null,null,null,null,null,null,null,null,null,null,null,null,null,null,null,null,null,null,null,null,null,null,null,null,null,null,null,null,null,null,null,null,null,null,null,null,null,null,null,null,null,null,null,null,null,null,null,null,null,null,null,null,null,null,null,null,null,null,null,null,null,null,null,null,null,null,null,null,null,null,null,null,null,null,null,null,null,null,null,null,null,null,null,null,null,null,null,null,null,null,null,null,null,null,null,null,null,null,null,null,null,null,null,null,null,null,null,null,null,null,null,null,null,null,null,null,null,null,null,null,null,null,null,null,null,null,null,null,null,null,null,null,null,null,null,null,null,null,null,null,null,null,null,null,null,null,null,""]
["Ratio of prossessed answers!","❻",null,"Digital Tools @ School\nKindly, multiple choices/answers per question/line are allowed!","iPod \nMP3 reader","Tablet","Smartphone","Notebook","EOOTB\nPlatform",null,null,null,null,null,null,null,null,null,null,null,null,null,null,null,null,null,null,null,null,null,null,null,null,null,null,null,null,null,null,null,null,null,null,null,null,null,null,null,null,null,null,null,null,null,null,null,null,null,null,null,null,null,null,null,null,null,null,null,null,null,null,null,null,null,null,null,null,null,null,null,null,null,null,null,null,null,null,null,null,null,null,null,null,null,null,null,null,null,null,null,null,null,null,null,null,null,null,null,null,null,null,null,null,null,null,null,null,null,null,null,null,null,null,null,null,null,null,null,null,null,null,null,null,null,null,null,null,null,null,null,null,null,null,null,null,null,null,null,null,null,null,null,null,null,null,null,null,null,null,null,null,null,null,null,null,null,null,null,null,null,null,null,null,null,null,null,null,null,null,null,null,null,null,null,null,null,null,null,null,null,null,null,null,null,null,null,null,null,null,null,null,null,null,null,null,null,null,null,null,null,null,null,null,null,null,null,null,null,null,null,null,null,null,null,null,null,null,null,null,null,null,null,null,null,null,null,null,null,null,null,null,null,null,null,null,null,null,null,null,null,null,null,null,null,null,null,null,null,null,null,null,null,null,null,null,null,null,null,null,null,null,null,null,null,null,null,null,null,null,null,null,null,null,null,null,null,{"$f":"B42","v":"❻"},null,{"$f":"IF(D42=\"\",\"\",D42)","v":"Digital Tools @ School\nKindly, multiple choices/answers per question/line are allowed!"},null,null,null,null,null,null,null,null,null,null,"",null,null,null,null,null,null,null,null,null,null,null,null,null,null,null,null,null,null,null,null,null,null,null,null,null,null,null,null,null,null,null,null,null,null,null,null,null,null,null,null,null,null,null,null,null,null,null,null,null,null,null,null,null,null,null,null,null,null,null,null,null,null,null,null,null,null,null,null,null,null,null,null,null,null,null,null,null,null,null,null,null,null,null,null,null,null,null,null,null,null,null,null,null,null,null,null,null,null,null,null,null,null,null,null,null,null,null,null,null,null,null,null,null,null,null,null,null,null,null,null,null,null,null,null,null,null,null,null,null,null,null,null,null,null,null,null,null,null,null,null,null,null,null,null,null,null,null,null,null,null,null,null,null,null,null,null,null,null,null,null,null,null,null,null,null,null,null,null,null,null,null,null,null,null,null,null,null,null,null,null,null,null,null,null,null,null,null,null,null,null,null,null,null,null,null,null,null,null,null,null,null,null,null,null,null,null,null,null,null,null,null,null,null,null,null,null,null,null,null,null,null,null,null,null,null,null,null,null,null,null,null,null,null,null,null,null,null,null,null,null,null,null,null,null,null,null,null,null,null,null,null,null,null,null,null,null,null,null,null,null,null,null,null,null,null,null,null,null,null,null,null,null,null,null,null,null,null,null,null,null,null,null,null,null,null,null,null,null,null,null,null,null,null,null,null,null,null,null,null,null,null,null,null,null,null,null,null,null,null,null,null,null,null,null,null,null,null,null,null,null,null,null,null,null,null,null,null,null,null,null,null,null,null,null,null,null,"keep their common denominator.",null,null,null,null,null,null,"(Do not convert fraction to lowest common denominator!!!)"]
[{"$f":"C43","v":0},"➊",{"$f":"AVERAGE(KE43:KI43)*1","v":0},"which of the following tools is your school equiped with?",null,null,null,null,null,null,null,null,null,null,null,null,null,null,null,null,null,null,null,null,null,null,null,null,null,null,null,null,null,null,null,null,null,null,null,null,null,null,null,null,null,null,null,null,null,null,null,null,null,null,null,null,null,null,null,null,null,null,null,null,null,null,null,null,null,null,null,null,null,null,null,null,null,null,null,null,null,null,null,null,null,null,null,null,null,null,null,null,null,null,null,null,null,null,null,null,null,null,null,null,null,null,null,null,null,null,null,null,null,null,null,null,null,null,null,null,null,null,null,null,null,null,null,null,null,null,null,null,null,null,null,null,null,null,null,null,null,null,null,null,null,null,null,null,null,null,null,null,null,null,null,null,null,null,null,null,null,null,null,null,null,null,null,null,null,null,null,null,null,null,null,null,null,null,null,null,null,null,null,null,null,null,null,null,null,null,null,null,null,null,null,null,null,null,null,null,null,null,null,null,null,null,null,null,null,null,null,null,null,null,null,null,null,null,null,null,null,null,null,null,null,null,null,null,null,null,null,null,null,null,null,null,null,null,null,null,null,null,null,null,null,null,null,null,null,null,null,null,null,null,null,null,null,null,null,null,null,null,null,null,null,null,null,null,null,null,null,null,null,null,null,null,null,null,null,null,null,null,null,null,null,null,"➊",{"$f":"KJ43/SUM($KJ$43:$KJ$47)","v":{"$error":"#DIV/0!"}},{"$f":"D43","v":"which of the following tools is your school equiped with?"},0,{"$f":"IF(E43=TRUE,1,0)","v":0},0,0,0,0,{"$f":"SUM(KE43:KI43)","v":0},{"$f":"IF($KJ43=0,0,IF($KJ43=1,$KJ43*2,IF($KJ43=2,$KJ43*2,IF($KJ43=3,$KJ43*3,IF($KJ43=4,$KJ43*4,IF($KJ43=5,$KJ43*5,0))))))","v":0},null,null,"",1,{"$f":"IF($KO43=1,$KJ43,0)","v":0},{"$f":"IF($KO43=2,$KJ43,0)","v":0},{"$f":"IF($KO43=3,$KJ43,0)","v":0},{"$f":"IF($KO43=4,$KJ43,0)","v":0},{"$f":"IF($KO43=5,$KJ43,0)","v":0},null,null,null,null,null,null,null,null,null,null,null,null,null,null,null,null,null,null,null,null,null,null,null,null,null,null,null,null,null,null,null,null,null,null,null,null,null,null,null,null,null,null,null,null,null,null,null,null,null,null,null,null,null,null,null,null,null,null,null,null,null,null,null,null,null,null,null,null,null,null,null,null,null,null,null,null,null,null,null,null,null,null,null,null,null,null,null,null,null,null,null,null,null,null,null,null,null,null,null,null,null,null,null,null,null,null,null,null,null,null,null,null,null,null,null,null,null,null,null,null,null,null,null,null,null,null,null,null,null,null,null,null,null,null,null,null,null,null,null,null,null,null,null,null,null,null,null,null,null,null,null,null,null,null,null,null,null,null,null,null,null,null,null,null,null,null,null,null,null,null,null,null,null,null,null,null,null,null,null,null,null,null,null,null,null,null,null,null,null,null,null,null,null,null,null,null,null,null,null,null,null,null,null,null,null,null,null,null,null,null,null,null,null,null,null,null,null,null,null,null,null,null,null,null,null,null,null,null,null,null,null,null,null,null,null,null,null,null,null,null,null,null,null,null,null,null,null,null,null,null,null,null,null,null,null,null,null,null,null,null,null,null,null,null,null,null,null,null,null,null,null,null,null,null,null,null,null,null,null,null,null,null,null,null,null,null,null,null,null,null,null,null,null,null,null,null,null,null,null,null,null,null,null,null,null,null,null,null,null,null,null,null,null,null,null,null,null,null,null,null,null,null,null,null,null,null,null,null,"Rule 2: ",null,"add (or subtract) two fractions with different denominators."]
[{"$f":"C44","v":0},"➋",{"$f":"AVERAGE(KE44:KI44)*1","v":0},"Kindly show which of these digital tools, does your school offer courses?",null,null,null,null,null,null,null,null,null,null,null,null,null,null,null,null,null,null,null,null,null,null,null,null,null,null,null,null,null,null,null,null,null,null,null,null,null,null,null,null,null,null,null,null,null,null,null,null,null,null,null,null,null,null,null,null,null,null,null,null,null,null,null,null,null,null,null,null,null,null,null,null,null,null,null,null,null,null,null,null,null,null,null,null,null,null,null,null,null,null,null,null,null,null,null,null,null,null,null,null,null,null,null,null,null,null,null,null,null,null,null,null,null,null,null,null,null,null,null,null,null,null,null,null,null,null,null,null,null,null,null,null,null,null,null,null,null,null,null,null,null,null,null,null,null,null,null,null,null,null,null,null,null,null,null,null,null,null,null,null,null,null,null,null,null,null,null,null,null,null,null,null,null,null,null,null,null,null,null,null,null,null,null,null,null,null,null,null,null,null,null,null,null,null,null,null,null,null,null,null,null,null,null,null,null,null,null,null,null,null,null,null,null,null,null,null,null,null,null,null,null,null,null,null,null,null,null,null,null,null,null,null,null,null,null,null,null,null,null,null,null,null,null,null,null,null,null,null,null,null,null,null,null,null,null,null,null,null,null,null,null,null,null,null,null,null,null,null,null,null,null,null,null,null,null,null,null,null,null,null,null,null,"➋",{"$f":"KJ44/SUM($KJ$43:$KJ$47)","v":{"$error":"#DIV/0!"}},{"$f":"D44","v":"Kindly show which of these digital tools, does your school offer courses?"},0,0,0,0,0,0,{"$f":"SUM(KE44:KI44)","v":0},{"$f":"IF($KJ44=0,0,IF($KJ44=1,$KJ44*2,IF($KJ44=2,$KJ44*2,IF($KJ44=3,$KJ44*3,IF($KJ44=4,$KJ44*4,IF($KJ44=5,$KJ44*5,0))))))","v":0},null,null,"",2,{"$f":"IF($KO44=1,$KJ44,0)","v":0},{"$f":"IF($KO44=2,$KJ44,0)","v":0},{"$f":"IF($KO44=3,$KJ44,0)","v":0},{"$f":"IF($KO44=4,$KJ44,0)","v":0},{"$f":"IF($KO44=5,$KJ44,0)","v":0},null,null,null,null,null,null,null,null,null,null,null,null,null,null,null,null,null,null,null,null,null,null,null,null,null,null,null,null,null,null,null,null,null,null,null,null,null,null,null,null,null,null,null,null,null,null,null,null,null,null,null,null,null,null,null,null,null,null,null,null,null,null,null,null,null,null,null,null,null,null,null,null,null,null,null,null,null,null,null,null,null,null,null,null,null,null,null,null,null,null,null,null,null,null,null,null,null,null,null,null,null,null,null,null,null,null,null,null,null,null,null,null,null,null,null,null,null,null,null,null,null,null,null,null,null,null,null,null,null,null,null,null,null,null,null,null,null,null,null,null,null,null,null,null,null,null,null,null,null,null,null,null,null,null,null,null,null,null,null,null,null,null,null,null,null,null,null,null,null,null,null,null,null,null,null,null,null,null,null,null,null,null,null,null,null,null,null,null,null,null,null,null,null,null,null,null,null,null,null,null,null,null,null,null,null,null,null,null,null,null,null,null,null,null,null,null,null,null,null,null,null,null,null,null,null,null,null,null,null,null,null,null,null,null,null,null,null,null,null,null,null,null,null,null,null,null,null,null,null,null,null,null,null,null,null,null,null,null,null,null,null,null,null,null,null,null,null,null,null,null,null,null,null,null,null,null,null,null,null,null,null,null,null,null,null,null,null,null,null,null,null,null,null,null,null,null,null,null,null,null,null,null,null,null,null,null,null,null,null,null,null,null,null,null,null,null,null,null,null,null,null,null,null,null,null,null,null,null,null,null,"put them on the same denominator.",null,null,null,null,null,null,"(Do not convert fraction to lowest common denominator!!!)"]
[{"$f":"C45","v":0},"➌",{"$f":"AVERAGE(KE45:KI45)*1","v":0},"Are you allowed to bring/use your personal digital tools at school? ",null,null,null,null,null,null,null,null,null,null,null,null,null,null,null,null,null,null,null,null,null,null,null,null,null,null,null,null,null,null,null,null,null,null,null,null,null,null,null,null,null,null,null,null,null,null,null,null,null,null,null,null,null,null,null,null,null,null,null,null,null,null,null,null,null,null,null,null,null,null,null,null,null,null,null,null,null,null,null,null,null,null,null,null,null,null,null,null,null,null,null,null,null,null,null,null,null,null,null,null,null,null,null,null,null,null,null,null,null,null,null,null,null,null,null,null,null,null,null,null,null,null,null,null,null,null,null,null,null,null,null,null,null,null,null,null,null,null,null,null,null,null,null,null,null,null,null,null,null,null,null,null,null,null,null,null,null,null,null,null,null,null,null,null,null,null,null,null,null,null,null,null,null,null,null,null,null,null,null,null,null,null,null,null,null,null,null,null,null,null,null,null,null,null,null,null,null,null,null,null,null,null,null,null,null,null,null,null,null,null,null,null,null,null,null,null,null,null,null,null,null,null,null,null,null,null,null,null,null,null,null,null,null,null,null,null,null,null,null,null,null,null,null,null,null,null,null,null,null,null,null,null,null,null,null,null,null,null,null,null,null,null,null,null,null,null,null,null,null,null,null,null,null,null,null,null,null,null,null,null,null,null,"➌",{"$f":"KJ45/SUM($KJ$43:$KJ$47)","v":{"$error":"#DIV/0!"}},{"$f":"D45","v":"Are you allowed to bring/use your personal digital tools at school? "},0,0,0,0,0,0,0,{"$f":"IF($KJ45=0,0,IF($KJ45=1,$KJ45*2,IF($KJ45=2,$KJ45*2,IF($KJ45=3,$KJ45*3,IF($KJ45=4,$KJ45*4,IF($KJ45=5,$KJ45*5,0))))))","v":0},null,null,"",3,{"$f":"IF($KO45=1,$KJ45,0)","v":0},{"$f":"IF($KO45=2,$KJ45,0)","v":0},{"$f":"IF($KO45=3,$KJ45,0)","v":0},{"$f":"IF($KO45=4,$KJ45,0)","v":0},{"$f":"IF($KO45=5,$KJ45,0)","v":0},null,null,null,null,null,null,null,null,null,null,null,null,null,null,null,null,null,null,null,null,null,null,null,null,null,null,null,null,null,null,null,null,null,null,null,null,null,null,null,null,null,null,null,null,null,null,null,null,null,null,null,null,null,null,null,null,null,null,null,null,null,null,null,null,null,null,null,null,null,null,null,null,null,null,null,null,null,null,null,null,null,null,null,null,null,null,null,null,null,null,null,null,null,null,null,null,null,null,null,null,null,null,null,null,null,null,null,null,null,null,null,null,null,null,null,null,null,null,null,null,null,null,null,null,null,null,null,null,null,null,null,null,null,null,null,null,null,null,null,null,null,null,null,null,null,null,null,null,null,null,null,null,null,null,null,null,null,null,null,null,null,null,null,null,null,null,null,null,null,null,null,null,null,null,null,null,null,null,null,null,null,null,null,null,null,null,null,null,null,null,null,null,null,null,null,null,null,null,null,null,null,null,null,null,null,null,null,null,null,null,null,null,null,null,null,null,null,null,null,null,null,null,null,null,null,null,null,null,null,null,null,null,null,null,null,null,null,null,null,null,null,null,null,null,null,null,null,null,null,null,null,null,null,null,null,null,null,null,null,null,null,null,null,null,null,null,null,null,null,null,null,null,null,null,null,null,null,null,null,null,null,null,null,null,null,null,null,null,null,null,null,null,null,null,null,null,null,null,null,null,null,null,null,null,null,null,null,null,null,null,null,null,null,null,null,null,null,null,null,null,null,null,null,null,null,null,null,null,"Rehearse Rules and try again to improve your Score",null,null,null,null,null,null,null,null,"& HAVE FUN …"]
[{"$f":"C46","v":0},"➍",{"$f":"AVERAGE(KE46:KI46)*1","v":0},"Which of the following tools are provided at school and could you take home with you?",null,null,null,null,null,null,null,null,null,null,null,null,null,null,null,null,null,null,null,null,null,null,null,null,null,null,null,null,null,null,null,null,null,null,null,null,null,null,null,null,null,null,null,null,null,null,null,null,null,null,null,null,null,null,null,null,null,null,null,null,null,null,null,null,null,null,null,null,null,null,null,null,null,null,null,null,null,null,null,null,null,null,null,null,null,null,null,null,null,null,null,null,null,null,null,null,null,null,null,null,null,null,null,null,null,null,null,null,null,null,null,null,null,null,null,null,null,null,null,null,null,null,null,null,null,null,null,null,null,null,null,null,null,null,null,null,null,null,null,null,null,null,null,null,null,null,null,null,null,null,null,null,null,null,null,null,null,null,null,null,null,null,null,null,null,null,null,null,null,null,null,null,null,null,null,null,null,null,null,null,null,null,null,null,null,null,null,null,null,null,null,null,null,null,null,null,null,null,null,null,null,null,null,null,null,null,null,null,null,null,null,null,null,null,null,null,null,null,null,null,null,null,null,null,null,null,null,null,null,null,null,null,null,null,null,null,null,null,null,null,null,null,null,null,null,null,null,null,null,null,null,null,null,null,null,null,null,null,null,null,null,null,null,null,null,null,null,null,null,null,null,null,null,null,null,null,null,null,null,null,null,null,"➍",{"$f":"KJ46/SUM($KJ$43:$KJ$47)","v":{"$error":"#DIV/0!"}},{"$f":"D46","v":"Which of the following tools are provided at school and could you take home with you?"},0,0,0,0,0,0,0,{"$f":"IF($KJ46=0,0,IF($KJ46=1,$KJ46*2,IF($KJ46=2,$KJ46*2,IF($KJ46=3,$KJ46*3,IF($KJ46=4,$KJ46*4,IF($KJ46=5,$KJ46*5,0))))))","v":0},null,null,"",4,{"$f":"IF($KO46=1,$KJ46,0)","v":0},{"$f":"IF($KO46=2,$KJ46,0)","v":0},{"$f":"IF($KO46=3,$KJ46,0)","v":0},{"$f":"IF($KO46=4,$KJ46,0)","v":0},{"$f":"IF($KO46=5,$KJ46,0)","v":0},null,null,null,null,null,null,null,null,null,null,null,null,null,null,null,null,null,null,null,null,null,null,null,null,null,null,null,null,null,null,null,null,null,null,null,null,null,null,null,null,null,null,null,null,null,null,null,null,null,null,null,null,null,null,null,null,null,null,null,null,null,null,null,null,null,null,null,null,null,null,null,null,null,null,null,null,null,null,null,null,null,null,null,null,null,null,null,null,null,null,null,null,null,null,null,null,null,null,null,null,null,null,null,null,null,null,null,null,null,null,null,null,null,null,null,null,null,null,null,null,null,null,null,null,null,null,null,null,null,null,null,null,null,null,null,null,null,null,null,null,null,null,null,null,null,null,null,null,null,null,null,null,null,null,null,null,null,null,null,null,null,null,null,null,null,null,null,null,null,null,null,null,null,null,null,null,null,null,null,null,null,null,null,null,null,null,null,null,null,null,null,null,null,null,null,null,null,null,null,null,null,null,null,null,null,null,null,null,null,null,null,null,null,null,null,null,null,null,null,null,null,null,null,null,null,null,null,null,null,null,null,null,null,null,null,null,null,null,null,null,null,null,null,null,null,null,null,null,null,null,null,null,null,null,null,null,null,null,null,null,null,null,null,null,null,null,null,null,null,null,null,null,null,null,null,null,null,null,null,null,null,null,null,null,null,null,null,null,null,null,null,null,null,null,null,null,null,null,null,null,null,null,null,null,null,null,null,null,null,null,null,null,null,null,null,null,null,null,null,null,null,null,null,null,null,null,null,null,"Rule 3: multiply two fractions."]
[{"$f":"C47","v":0},"➎",{"$f":"AVERAGE(KE47:KI47)*1","v":0},"Which digital tools are you allowed to use while having an exam at your school? ",null,null,null,null,null,null,null,null,null,null,null,null,null,null,null,null,null,null,null,null,null,null,null,null,null,null,null,null,null,null,null,null,null,null,null,null,null,null,null,null,null,null,null,null,null,null,null,null,null,null,null,null,null,null,null,null,null,null,null,null,null,null,null,null,null,null,null,null,null,null,null,null,null,null,null,null,null,null,null,null,null,null,null,null,null,null,null,null,null,null,null,null,null,null,null,null,null,null,null,null,null,null,null,null,null,null,null,null,null,null,null,null,null,null,null,null,null,null,null,null,null,null,null,null,null,null,null,null,null,null,null,null,null,null,null,null,null,null,null,null,null,null,null,null,null,null,null,null,null,null,null,null,null,null,null,null,null,null,null,null,null,null,null,null,null,null,null,null,null,null,null,null,null,null,null,null,null,null,null,null,null,null,null,null,null,null,null,null,null,null,null,null,null,null,null,null,null,null,null,null,null,null,null,null,null,null,null,null,null,null,null,null,null,null,null,null,null,null,null,null,null,null,null,null,null,null,null,null,null,null,null,null,null,null,null,null,null,null,null,null,null,null,null,null,null,null,null,null,null,null,null,null,null,null,null,null,null,null,null,null,null,null,null,null,null,null,null,null,null,null,null,null,null,null,null,null,null,null,null,null,null,null,"➎",{"$f":"KJ47/SUM($KJ$43:$KJ$47)","v":{"$error":"#DIV/0!"}},{"$f":"D47","v":"Which digital tools are you allowed to use while having an exam at your school? "},0,0,0,0,0,0,0,{"$f":"IF($KJ47=0,0,IF($KJ47=1,$KJ47*2,IF($KJ47=2,$KJ47*2,IF($KJ47=3,$KJ47*3,IF($KJ47=4,$KJ47*4,IF($KJ47=5,$KJ47*5,0))))))","v":0},null,null,"",5,{"$f":"IF($KO47=1,$KJ47,0)","v":0},{"$f":"IF($KO47=2,$KJ47,0)","v":0},{"$f":"IF($KO47=3,$KJ47,0)","v":0},{"$f":"IF($KO47=4,$KJ47,0)","v":0},{"$f":"IF($KO47=5,$KJ47,0)","v":0},null,null,null,null,null,null,null,null,null,null,null,null,null,null,null,null,null,null,null,null,null,null,null,null,null,null,null,null,null,null,null,null,null,null,null,null,null,null,null,null,null,null,null,null,null,null,null,null,null,null,null,null,null,null,null,null,null,null,null,null,null,null,null,null,null,null,null,null,null,null,null,null,null,null,null,null,null,null,null,null,null,null,null,null,null,null,null,null,null,null,null,null,null,null,null,null,null,null,null,null,null,null,null,null,null,null,null,null,null,null,null,null,null,null,null,null,null,null,null,null,null,null,null,null,null,null,null,null,null,null,null,null,null,null,null,null,null,null,null,null,null,null,null,null,null,null,null,null,null,null,null,null,null,null,null,null,null,null,null,null,null,null,null,null,null,null,null,null,null,null,null,null,null,null,null,null,null,null,null,null,null,null,null,null,null,null,null,null,null,null,null,null,null,null,null,null,null,null,null,null,null,null,null,null,null,null,null,null,null,null,null,null,null,null,null,null,null,null,null,null,null,null,null,null,null,null,null,null,null,null,null,null,null,null,null,null,null,null,null,null,null,null,null,null,null,null,null,null,null,null,null,null,null,null,null,null,null,null,null,null,null,null,null,null,null,null,null,null,null,null,null,null,null,null,null,null,null,null,null,null,null,null,null,null,null,null,null,null,null,null,null,null,null,null,null,null,null,null,null,null,null,null,null,null,null,null,null,null,null,null,null,null,null,null,null,null,null,null,null,null,null,null,null,null,null,null,null,null,"The product of two fractions is the fraction whose :",null,"on additionne (ou on soustrait) les deux numérateurs."]
[null,null,null,null,null,null,null,null,null,null,null,null,null,null,null,null,null,null,null,null,null,null,null,null,null,null,null,null,null,null,null,null,null,null,null,null,null,null,null,null,null,null,null,null,null,null,null,null,null,null,null,null,null,null,null,null,null,null,null,null,null,null,null,null,null,null,null,null,null,null,null,null,null,null,null,null,null,null,null,null,null,null,null,null,null,null,null,null,null,null,null,null,null,null,null,null,null,null,null,null,null,null,null,null,null,null,null,null,null,null,null,null,null,null,null,null,null,null,null,null,null,null,null,null,null,null,null,null,null,null,null,null,null,null,null,null,null,null,null,null,null,null,null,null,null,null,null,null,null,null,null,null,null,null,null,null,null,null,null,null,null,null,null,null,null,null,null,null,null,null,null,null,null,null,null,null,null,null,null,null,null,null,null,null,null,null,null,null,null,null,null,null,null,null,null,null,null,null,null,null,null,null,null,null,null,null,null,null,null,null,null,null,null,null,null,null,null,null,null,null,null,null,null,null,null,null,null,null,null,null,null,null,null,null,null,null,null,null,null,null,null,null,null,null,null,null,null,null,null,null,null,null,null,null,null,null,null,null,null,null,null,null,null,null,null,null,null,null,null,null,null,null,null,null,null,null,null,null,null,null,null,null,null,null,null,null,null,null,null,null,null,null,null,null,null,null,null,null,null,""]
["Ratio of prossessed answers!","❼",null,"Digital @ Applications\nKindly, multiple choices/answers per question/line are allowed!","KAHOUT","MEM RISE","DUOLINGO","QUIZLET","PADLET",null,null,null,null,null,null,null,null,null,null,null,null,null,null,null,null,null,null,null,null,null,null,null,null,null,null,null,null,null,null,null,null,null,null,null,null,null,null,null,null,null,null,null,null,null,null,null,null,null,null,null,null,null,null,null,null,null,null,null,null,null,null,null,null,null,null,null,null,null,null,null,null,null,null,null,null,null,null,null,null,null,null,null,null,null,null,null,null,null,null,null,null,null,null,null,null,null,null,null,null,null,null,null,null,null,null,null,null,null,null,null,null,null,null,null,null,null,null,null,null,null,null,null,null,null,null,null,null,null,null,null,null,null,null,null,null,null,null,null,null,null,null,null,null,null,null,null,null,null,null,null,null,null,null,null,null,null,null,null,null,null,null,null,null,null,null,null,null,null,null,null,null,null,null,null,null,null,null,null,null,null,null,null,null,null,null,null,null,null,null,null,null,null,null,null,null,null,null,null,null,null,null,null,null,null,null,null,null,null,null,null,null,null,null,null,null,null,null,null,null,null,null,null,null,null,null,null,null,null,null,null,null,null,null,null,null,null,null,null,null,null,null,null,null,null,null,null,null,null,null,null,null,null,null,null,null,null,null,null,null,null,null,null,null,null,null,null,null,null,null,null,null,null,null,null,null,null,{"$f":"B49","v":"❼"},null,{"$f":"IF(D49=\"\",\"\",D49)","v":"Digital @ Applications\nKindly, multiple choices/answers per question/line are allowed!"},null,"KAHOUT","MEM RISE","DUOLINGO","QUIZLET","PADLET",null,null,null,null,"",null,null,null,null,null,null,null,null,null,null,null,null,null,null,null,null,null,null,null,null,null,null,null,null,null,null,null,null,null,null,null,null,null,null,null,null,null,null,null,null,null,null,null,null,null,null,null,null,null,null,null,null,null,null,null,null,null,null,null,null,null,null,null,null,null,null,null,null,null,null,null,null,null,null,null,null,null,null,null,null,null,null,null,null,null,null,null,null,null,null,null,null,null,null,null,null,null,null,null,null,null,null,null,null,null,null,null,null,null,null,null,null,null,null,null,null,null,null,null,null,null,null,null,null,null,null,null,null,null,null,null,null,null,null,null,null,null,null,null,null,null,null,null,null,null,null,null,null,null,null,null,null,null,null,null,null,null,null,null,null,null,null,null,null,null,null,null,null,null,null,null,null,null,null,null,null,null,null,null,null,null,null,null,null,null,null,null,null,null,null,null,null,null,null,null,null,null,null,null,null,null,null,null,null,null,null,null,null,null,null,null,null,null,null,null,null,null,null,null,null,null,null,null,null,null,null,null,null,null,null,null,null,null,null,null,null,null,null,null,null,null,null,null,null,null,null,null,null,null,null,null,null,null,null,null,null,null,null,null,null,null,null,null,null,null,null,null,null,null,null,null,null,null,null,null,null,null,null,null,null,null,null,null,null,null,null,null,null,null,null,null,null,null,null,null,null,null,null,null,null,null,null,null,null,null,null,null,null,null,null,null,null,null,null,null,null,null,null,null,null,null,null,null,null,null,null,null,null,null,null,null,null,null,null,{"$f":"- the numerator is the product of the two numerators of the two factors.","v":{"$error":"#NAME?"}},null,"on conserve leur dénominateur commun."]
[{"$f":"C50","v":0},"➊",{"$f":"AVERAGE(KE50:KI50)*1","v":0},"how often do you use any digital tool/ games?",null,null,null,null,null,null,null,null,null,null,null,null,null,null,null,null,null,null,null,null,null,null,null,null,null,null,null,null,null,null,null,null,null,null,null,null,null,null,null,null,null,null,null,null,null,null,null,null,null,null,null,null,null,null,null,null,null,null,null,null,null,null,null,null,null,null,null,null,null,null,null,null,null,null,null,null,null,null,null,null,null,null,null,null,null,null,null,null,null,null,null,null,null,null,null,null,null,null,null,null,null,null,null,null,null,null,null,null,null,null,null,null,null,null,null,null,null,null,null,null,null,null,null,null,null,null,null,null,null,null,null,null,null,null,null,null,null,null,null,null,null,null,null,null,null,null,null,null,null,null,null,null,null,null,null,null,null,null,null,null,null,null,null,null,null,null,null,null,null,null,null,null,null,null,null,null,null,null,null,null,null,null,null,null,null,null,null,null,null,null,null,null,null,null,null,null,null,null,null,null,null,null,null,null,null,null,null,null,null,null,null,null,null,null,null,null,null,null,null,null,null,null,null,null,null,null,null,null,null,null,null,null,null,null,null,null,null,null,null,null,null,null,null,null,null,null,null,null,null,null,null,null,null,null,null,null,null,null,null,null,null,null,null,null,null,null,null,null,null,null,null,null,null,null,null,null,null,null,null,null,null,null,"➊",{"$f":"KJ50/SUM($KJ$50:$KJ$54)","v":{"$error":"#DIV/0!"}},{"$f":"D50","v":"how often do you use any digital tool/ games?"},0,{"$f":"IF(E50=TRUE,1,0)","v":0},0,0,0,0,{"$f":"SUM(KE50:KI50)","v":0},{"$f":"IF($KJ50=0,0,IF($KJ50=1,$KJ50*2,IF($KJ50=2,$KJ50*2,IF($KJ50=3,$KJ50*3,IF($KJ50=4,$KJ50*4,IF($KJ50=5,$KJ50*5,0))))))","v":0},null,null,"",1,{"$f":"IF($KO50=1,$KJ50,0)","v":0},{"$f":"IF($KO50=2,$KJ50,0)","v":0},{"$f":"IF($KO50=3,$KJ50,0)","v":0},{"$f":"IF($KO50=4,$KJ50,0)","v":0},{"$f":"IF($KO50=5,$KJ50,0)","v":0},null,null,null,null,null,null,null,null,null,null,null,null,null,null,null,null,null,null,null,null,null,null,null,null,null,null,null,null,null,null,null,null,null,null,null,null,null,null,null,null,null,null,null,null,null,null,null,null,null,null,null,null,null,null,null,null,null,null,null,null,null,null,null,null,null,null,null,null,null,null,null,null,null,null,null,null,null,null,null,null,null,null,null,null,null,null,null,null,null,null,null,null,null,null,null,null,null,null,null,null,null,null,null,null,null,null,null,null,null,null,null,null,null,null,null,null,null,null,null,null,null,null,null,null,null,null,null,null,null,null,null,null,null,null,null,null,null,null,null,null,null,null,null,null,null,null,null,null,null,null,null,null,null,null,null,null,null,null,null,null,null,null,null,null,null,null,null,null,null,null,null,null,null,null,null,null,null,null,null,null,null,null,null,null,null,null,null,null,null,null,null,null,null,null,null,null,null,null,null,null,null,null,null,null,null,null,null,null,null,null,null,null,null,null,null,null,null,null,null,null,null,null,null,null,null,null,null,null,null,null,null,null,null,null,null,null,null,null,null,null,null,null,null,null,null,null,null,null,null,null,null,null,null,null,null,null,null,null,null,null,null,null,null,null,null,null,null,null,null,null,null,null,null,null,null,null,null,null,null,null,null,null,null,null,null,null,null,null,null,null,null,null,null,null,null,null,null,null,null,null,null,null,null,null,null,null,null,null,null,null,null,null,null,null,null,null,null,null,null,null,null,null,null,null,null,null,null,null,{"$f":"- the denominator is the product of the two denominators of two factors","v":{"$error":"#NAME?"}},null,null,"Rappel des régles"]
[{"$f":"C51","v":0},"➋",{"$f":"AVERAGE(KE51:KI51)*1","v":0}," Do you use digital tools in your school/professional life?",null,null,null,null,null,null,null,null,null,null,null,null,null,null,null,null,null,null,null,null,null,null,null,null,null,null,null,null,null,null,null,null,null,null,null,null,null,null,null,null,null,null,null,null,null,null,null,null,null,null,null,null,null,null,null,null,null,null,null,null,null,null,null,null,null,null,null,null,null,null,null,null,null,null,null,null,null,null,null,null,null,null,null,null,null,null,null,null,null,null,null,null,null,null,null,null,null,null,null,null,null,null,null,null,null,null,null,null,null,null,null,null,null,null,null,null,null,null,null,null,null,null,null,null,null,null,null,null,null,null,null,null,null,null,null,null,null,null,null,null,null,null,null,null,null,null,null,null,null,null,null,null,null,null,null,null,null,null,null,null,null,null,null,null,null,null,null,null,null,null,null,null,null,null,null,null,null,null,null,null,null,null,null,null,null,null,null,null,null,null,null,null,null,null,null,null,null,null,null,null,null,null,null,null,null,null,null,null,null,null,null,null,null,null,null,null,null,null,null,null,null,null,null,null,null,null,null,null,null,null,null,null,null,null,null,null,null,null,null,null,null,null,null,null,null,null,null,null,null,null,null,null,null,null,null,null,null,null,null,null,null,null,null,null,null,null,null,null,null,null,null,null,null,null,null,null,null,null,null,null,null,null,"➋",{"$f":"KJ51/SUM($KJ$50:$KJ$54)","v":{"$error":"#DIV/0!"}},{"$f":"D51","v":" Do you use digital tools in your school/professional life?"},0,0,0,0,0,0,{"$f":"SUM(KE51:KI51)","v":0},0,null,null,"",2,{"$f":"IF($KO51=1,$KJ51,0)","v":0},{"$f":"IF($KO51=2,$KJ51,0)","v":0},{"$f":"IF($KO51=3,$KJ51,0)","v":0},{"$f":"IF($KO51=4,$KJ51,0)","v":0},{"$f":"IF($KO51=5,$KJ51,0)","v":0},null,null,null,null,null,null,null,null,null,null,null,null,null,null,null,null,null,null,null,null,null,null,null,null,null,null,null,null,null,null,null,null,null,null,null,null,null,null,null,null,null,null,null,null,null,null,null,null,null,null,null,null,null,null,null,null,null,null,null,null,null,null,null,null,null,null,null,null,null,null,null,null,null,null,null,null,null,null,null,null,null,null,null,null,null,null,null,null,null,null,null,null,null,null,null,null,null,null,null,null,null,null,null,null,null,null,null,null,null,null,null,null,null,null,null,null,null,null,null,null,null,null,null,null,null,null,null,null,null,null,null,null,null,null,null,null,null,null,null,null,null,null,null,null,null,null,null,null,null,null,null,null,null,null,null,null,null,null,null,null,null,null,null,null,null,null,null,null,null,null,null,null,null,null,null,null,null,null,null,null,null,null,null,null,null,null,null,null,null,null,null,null,null,null,null,null,null,null,null,null,null,null,null,null,null,null,null,null,null,null,null,null,null,null,null,null,null,null,null,null,null,null,null,null,null,null,null,null,null,null,null,null,null,null,null,null,null,null,null,null,null,null,null,null,null,null,null,null,null,null,null,null,null,null,null,null,null,null,null,null,null,null,null,null,null,null,null,null,null,null,null,null,null,null,null,null,null,null,null,null,null,null,null,null,null,null,null,null,null,null,null,null,null,null,null,null,null,null,null,null,null,null,null,null,null,null,null,null,null,null,null,null,null,null,null,null,null,null,null,null,null,null,null,null,null,null,null,null,"•",null,"on les met sur un même dénominateur.","Les Parenthèses"]
[0,"➌",{"$f":"AVERAGE(KE52:KI52)*1","v":0},"Are you comfortable with learning online new software applications?",null,null,null,null,null,null,null,null,null,null,null,null,null,null,null,null,null,null,null,null,null,null,null,null,null,null,null,null,null,null,null,null,null,null,null,null,null,null,null,null,null,null,null,null,null,null,null,null,null,null,null,null,null,null,null,null,null,null,null,null,null,null,null,null,null,null,null,null,null,null,null,null,null,null,null,null,null,null,null,null,null,null,null,null,null,null,null,null,null,null,null,null,null,null,null,null,null,null,null,null,null,null,null,null,null,null,null,null,null,null,null,null,null,null,null,null,null,null,null,null,null,null,null,null,null,null,null,null,null,null,null,null,null,null,null,null,null,null,null,null,null,null,null,null,null,null,null,null,null,null,null,null,null,null,null,null,null,null,null,null,null,null,null,null,null,null,null,null,null,null,null,null,null,null,null,null,null,null,null,null,null,null,null,null,null,null,null,null,null,null,null,null,null,null,null,null,null,null,null,null,null,null,null,null,null,null,null,null,null,null,null,null,null,null,null,null,null,null,null,null,null,null,null,null,null,null,null,null,null,null,null,null,null,null,null,null,null,null,null,null,null,null,null,null,null,null,null,null,null,null,null,null,null,null,null,null,null,null,null,null,null,null,null,null,null,null,null,null,null,null,null,null,null,null,null,null,null,null,null,null,null,null,"➌",{"$f":"KJ52/SUM($KJ$50:$KJ$54)","v":{"$error":"#DIV/0!"}},{"$f":"D53","v":"Are you able to recognize and avoid unsafe use on the web?"},0,0,0,0,0,0,0,0,null,null,"",3,{"$f":"IF($KO52=1,$KJ52,0)","v":0},{"$f":"IF($KO52=2,$KJ52,0)","v":0},{"$f":"IF($KO52=3,$KJ52,0)","v":0},{"$f":"IF($KO52=4,$KJ52,0)","v":0},{"$f":"IF($KO52=5,$KJ52,0)","v":0},null,null,null,null,null,null,null,null,null,null,null,null,null,null,null,null,null,null,null,null,null,null,null,null,null,null,null,null,null,null,null,null,null,null,null,null,null,null,null,null,null,null,null,null,null,null,null,null,null,null,null,null,null,null,null,null,null,null,null,null,null,null,null,null,null,null,null,null,null,null,null,null,null,null,null,null,null,null,null,null,null,null,null,null,null,null,null,null,null,null,null,null,null,null,null,null,null,null,null,null,null,null,null,null,null,null,null,null,null,null,null,null,null,null,null,null,null,null,null,null,null,null,null,null,null,null,null,null,null,null,null,null,null,null,null,null,null,null,null,null,null,null,null,null,null,null,null,null,null,null,null,null,null,null,null,null,null,null,null,null,null,null,null,null,null,null,null,null,null,null,null,null,null,null,null,null,null,null,null,null,null,null,null,null,null,null,null,null,null,null,null,null,null,null,null,null,null,null,null,null,null,null,null,null,null,null,null,null,null,null,null,null,null,null,null,null,null,null,null,null,null,null,null,null,null,null,null,null,null,null,null,null,null,null,null,null,null,null,null,null,null,null,null,null,null,null,null,null,null,null,null,null,null,null,null,null,null,null,null,null,null,null,null,null,null,null,null,null,null,null,null,null,null,null,null,null,null,null,null,null,null,null,null,null,null,null,null,null,null,null,null,null,null,null,null,null,null,null,null,null,null,null,null,null,null,null,null,null,null,null,null,null,null,null,null,null,null,null,null,null,null,null,null,null,null,null,null,null,null,null,null,"Les Exposants"]
[0,"➍",{"$f":"AVERAGE(KE53:KI53)*1","v":0},"Are you able to recognize and avoid unsafe use on the web?",null,null,null,null,null,null,null,null,null,null,null,null,null,null,null,null,null,null,null,null,null,null,null,null,null,null,null,null,null,null,null,null,null,null,null,null,null,null,null,null,null,null,null,null,null,null,null,null,null,null,null,null,null,null,null,null,null,null,null,null,null,null,null,null,null,null,null,null,null,null,null,null,null,null,null,null,null,null,null,null,null,null,null,null,null,null,null,null,null,null,null,null,null,null,null,null,null,null,null,null,null,null,null,null,null,null,null,null,null,null,null,null,null,null,null,null,null,null,null,null,null,null,null,null,null,null,null,null,null,null,null,null,null,null,null,null,null,null,null,null,null,null,null,null,null,null,null,null,null,null,null,null,null,null,null,null,null,null,null,null,null,null,null,null,null,null,null,null,null,null,null,null,null,null,null,null,null,null,null,null,null,null,null,null,null,null,null,null,null,null,null,null,null,null,null,null,null,null,null,null,null,null,null,null,null,null,null,null,null,null,null,null,null,null,null,null,null,null,null,null,null,null,null,null,null,null,null,null,null,null,null,null,null,null,null,null,null,null,null,null,null,null,null,null,null,null,null,null,null,null,null,null,null,null,null,null,null,null,null,null,null,null,null,null,null,null,null,null,null,null,null,null,null,null,null,null,null,null,null,null,null,null,"➍",{"$f":"KJ53/SUM($KJ$50:$KJ$54)","v":{"$error":"#DIV/0!"}},{"$f":"D52","v":"Are you comfortable with learning online new software applications?"},0,0,0,0,0,0,0,0,null,null,"",4,{"$f":"IF($KO53=1,$KJ53,0)","v":0},{"$f":"IF($KO53=2,$KJ53,0)","v":0},{"$f":"IF($KO53=3,$KJ53,0)","v":0},{"$f":"IF($KO53=4,$KJ53,0)","v":0},{"$f":"IF($KO53=5,$KJ53,0)","v":0},null,null,null,null,null,null,null,null,null,null,null,null,null,null,null,null,null,null,null,null,null,null,null,null,null,null,null,null,null,null,null,null,null,null,null,null,null,null,null,null,null,null,null,null,null,null,null,null,null,null,null,null,null,null,null,null,null,null,null,null,null,null,null,null,null,null,null,null,null,null,null,null,null,null,null,null,null,null,null,null,null,null,null,null,null,null,null,null,null,null,null,null,null,null,null,null,null,null,null,null,null,null,null,null,null,null,null,null,null,null,null,null,null,null,null,null,null,null,null,null,null,null,null,null,null,null,null,null,null,null,null,null,null,null,null,null,null,null,null,null,null,null,null,null,null,null,null,null,null,null,null,null,null,null,null,null,null,null,null,null,null,null,null,null,null,null,null,null,null,null,null,null,null,null,null,null,null,null,null,null,null,null,null,null,null,null,null,null,null,null,null,null,null,null,null,null,null,null,null,null,null,null,null,null,null,null,null,null,null,null,null,null,null,null,null,null,null,null,null,null,null,null,null,null,null,null,null,null,null,null,null,null,null,null,null,null,null,null,null,null,null,null,null,null,null,null,null,null,null,null,null,null,null,null,null,null,null,null,null,null,null,null,null,null,null,null,null,null,null,null,null,null,null,null,null,null,null,null,null,null,null,null,null,null,null,null,null,null,null,null,null,null,null,null,null,null,null,null,null,null,null,null,null,null,null,null,null,null,null,null,null,null,null,null,null,null,null,null,null,null,null,null,null,null,null,null,null,null,"Règle 3 : multiplier deux fractions.",null,null,"Les Multiplications et les Divisions (de la gauche vers la droite)"]
[0,"➎",{"$f":"AVERAGE(KE54:KI54)*1","v":0},"Among the net's puzzle, are you able to download safely any useful software and/or application from the net?",null,null,null,null,null,null,null,null,null,null,null,null,null,null,null,null,null,null,null,null,null,null,null,null,null,null,null,null,null,null,null,null,null,null,null,null,null,null,null,null,null,null,null,null,null,null,null,null,null,null,null,null,null,null,null,null,null,null,null,null,null,null,null,null,null,null,null,null,null,null,null,null,null,null,null,null,null,null,null,null,null,null,null,null,null,null,null,null,null,null,null,null,null,null,null,null,null,null,null,null,null,null,null,null,null,null,null,null,null,null,null,null,null,null,null,null,null,null,null,null,null,null,null,null,null,null,null,null,null,null,null,null,null,null,null,null,null,null,null,null,null,null,null,null,null,null,null,null,null,null,null,null,null,null,null,null,null,null,null,null,null,null,null,null,null,null,null,null,null,null,null,null,null,null,null,null,null,null,null,null,null,null,null,null,null,null,null,null,null,null,null,null,null,null,null,null,null,null,null,null,null,null,null,null,null,null,null,null,null,null,null,null,null,null,null,null,null,null,null,null,null,null,null,null,null,null,null,null,null,null,null,null,null,null,null,null,null,null,null,null,null,null,null,null,null,null,null,null,null,null,null,null,null,null,null,null,null,null,null,null,null,null,null,null,null,null,null,null,null,null,null,null,null,null,null,null,null,null,null,null,null,null,"➎",{"$f":"KJ54/SUM($KJ$50:$KJ$54)","v":{"$error":"#DIV/0!"}},{"$f":"D54","v":"Among the net's puzzle, are you able to download safely any useful software and/or application from the net?"},0,0,0,0,0,0,0,0,null,null,"",5,{"$f":"IF($KO54=1,$KJ54,0)","v":0},{"$f":"IF($KO54=2,$KJ54,0)","v":0},{"$f":"IF($KO54=3,$KJ54,0)","v":0},{"$f":"IF($KO54=4,$KJ54,0)","v":0},{"$f":"IF($KO54=5,$KJ54,0)","v":0},null,null,null,null,null,null,null,null,null,null,null,null,null,null,null,null,null,null,null,null,null,null,null,null,null,null,null,null,null,null,null,null,null,null,null,null,null,null,null,null,null,null,null,null,null,null,null,null,null,null,null,null,null,null,null,null,null,null,null,null,null,null,null,null,null,null,null,null,null,null,null,null,null,null,null,null,null,null,null,null,null,null,null,null,null,null,null,null,null,null,null,null,null,null,null,null,null,null,null,null,null,null,null,null,null,null,null,null,null,null,null,null,null,null,null,null,null,null,null,null,null,null,null,null,null,null,null,null,null,null,null,null,null,null,null,null,null,null,null,null,null,null,null,null,null,null,null,null,null,null,null,null,null,null,null,null,null,null,null,null,null,null,null,null,null,null,null,null,null,null,null,null,null,null,null,null,null,null,null,null,null,null,null,null,null,null,null,null,null,null,null,null,null,null,null,null,null,null,null,null,null,null,null,null,null,null,null,null,null,null,null,null,null,null,null,null,null,null,null,null,null,null,null,null,null,null,null,null,null,null,null,null,null,null,null,null,null,null,null,null,null,null,null,null,null,null,null,null,null,null,null,null,null,null,null,null,null,null,null,null,null,null,null,null,null,null,null,null,null,null,null,null,null,null,null,null,null,null,null,null,null,null,null,null,null,null,null,null,null,null,null,null,null,null,null,null,null,null,null,null,null,null,null,null,null,null,null,null,null,null,null,null,null,null,null,null,null,null,null,null,null,null,null,null,null,null,null,null,"Le produit de deux fractions est la fraction dont :",null,null,"Les Additions et les Soustractions (de la gauche vers la droite)"]
[null,null,null,null,null,null,null,null,null,null,null,null,null,null,null,null,null,null,null,null,null,null,null,null,null,null,null,null,null,null,null,null,null,null,null,null,null,null,null,null,null,null,null,null,null,null,null,null,null,null,null,null,null,null,null,null,null,null,null,null,null,null,null,null,null,null,null,null,null,null,null,null,null,null,null,null,null,null,null,null,null,null,null,null,null,null,null,null,null,null,null,null,null,null,null,null,null,null,null,null,null,null,null,null,null,null,null,null,null,null,null,null,null,null,null,null,null,null,null,null,null,null,null,null,null,null,null,null,null,null,null,null,null,null,null,null,null,null,null,null,null,null,null,null,null,null,null,null,null,null,null,null,null,null,null,null,null,null,null,null,null,null,null,null,null,null,null,null,null,null,null,null,null,null,null,null,null,null,null,null,null,null,null,null,null,null,null,null,null,null,null,null,null,null,null,null,null,null,null,null,null,null,null,null,null,null,null,null,null,null,null,null,null,null,null,null,null,null,null,null,null,null,null,null,null,null,null,null,null,null,null,null,null,null,null,null,null,null,null,null,null,null,null,null,null,null,null,null,null,null,null,null,null,null,null,null,null,null,null,null,null,null,null,null,null,null,null,null,null,null,null,null,null,null,null,null,null,null,null,null,null,null,null,null,null,null,null,null,null,null,null,null,null,null,null,null,null,null,null,""]
["Ratio of prossessed answers!","❽",null,"Digital @ School learning\nKindly, one single choice/answer per question/line is allowed!","YES",null,null,"NO",null,null,null,null,null,null,null,null,null,null,null,null,null,null,null,null,null,null,null,null,null,null,null,null,null,null,null,null,null,null,null,null,null,null,null,null,null,null,null,null,null,null,null,null,null,null,null,null,null,null,null,null,null,null,null,null,null,null,null,null,null,null,null,null,null,null,null,null,null,null,null,null,null,null,null,null,null,null,null,null,null,null,null,null,null,null,null,null,null,null,null,null,null,null,null,null,null,null,null,null,null,null,null,null,null,null,null,null,null,null,null,null,null,null,null,null,null,null,null,null,null,null,null,null,null,null,null,null,null,null,null,null,null,null,null,null,null,null,null,null,null,null,null,null,null,null,null,null,null,null,null,null,null,null,null,null,null,null,null,null,null,null,null,null,null,null,null,null,null,null,null,null,null,null,null,null,null,null,null,null,null,null,null,null,null,null,null,null,null,null,null,null,null,null,null,null,null,null,null,null,null,null,null,null,null,null,null,null,null,null,null,null,null,null,null,null,null,null,null,null,null,null,null,null,null,null,null,null,null,null,null,null,null,null,null,null,null,null,null,null,null,null,null,null,null,null,null,null,null,null,null,null,null,null,null,null,null,null,null,null,null,null,null,null,null,null,null,null,null,null,null,null,null,null,null,null,null,null,{"$f":"B56","v":"❽"},null,{"$f":"IF(D56=\"\",\"\",D56)","v":"Digital @ School learning\nKindly, one single choice/answer per question/line is allowed!"},null,null,null,null,null,null,null,null,null,"YES","",null,null,null,null,null,null,null,null,null,null,null,null,null,null,null,null,null,null,null,null,null,null,null,null,null,null,null,null,null,null,null,null,null,null,null,null,null,null,null,null,null,null,null,null,null,null,null,null,null,null,null,null,null,null,null,null,null,null,null,null,null,null,null,null,null,null,null,null,null,null,null,null,null,null,null,null,null,null,null,null,null,null,null,null,null,null,null,null,null,null,null,null,null,null,null,null,null,null,null,null,null,null,null,null,null,null,null,null,null,null,null,null,null,null,null,null,null,null,null,null,null,null,null,null,null,null,null,null,null,null,null,null,null,null,null,null,null,null,null,null,null,null,null,null,null,null,null,null,null,null,null,null,null,null,null,null,null,null,null,null,null,null,null,null,null,null,null,null,null,null,null,null,null,null,null,null,null,null,null,null,null,null,null,null,null,null,null,null,null,null,null,null,null,null,null,null,null,null,null,null,null,null,null,null,null,null,null,null,null,null,null,null,null,null,null,null,null,null,null,null,null,null,null,null,null,null,null,null,null,null,null,null,null,null,null,null,null,null,null,null,null,null,null,null,null,null,null,null,null,null,null,null,null,null,null,null,null,null,null,null,null,null,null,null,null,null,null,null,null,null,null,null,null,null,null,null,null,null,null,null,null,null,null,null,null,null,null,null,null,null,null,null,null,null,null,null,null,null,null,null,null,null,null,null,null,null,null,null,null,null,null,null,null,null,null,null,null,null,null,null,null,null,null,null,null,null,null,null,null,null,null,null,null,null,"•",null,"le numérateur est le produit des deux numérateurs des deux facteurs."]
["","➊",{"$f":"IF(KE57=1,1,IF(KE57=2,0,\"\"))","v":""},"Is your school offering Hybrid courses",1,null,null,null,null,null,null,null,null,null,null,null,null,null,null,null,null,null,null,null,null,null,null,null,null,null,null,null,null,null,null,null,null,null,null,null,null,null,null,null,null,null,null,null,null,null,null,null,null,null,null,null,null,null,null,null,null,null,null,null,null,null,null,null,null,null,null,null,null,null,null,null,null,null,null,null,null,null,null,null,null,null,null,null,null,null,null,null,null,null,null,null,null,null,null,null,null,null,null,null,null,null,null,null,null,null,null,null,null,null,null,null,null,null,null,null,null,null,null,null,null,null,null,null,null,null,null,null,null,null,null,null,null,null,null,null,null,null,null,null,null,null,null,null,null,null,null,null,null,null,null,null,null,null,null,null,null,null,null,null,null,null,null,null,null,null,null,null,null,null,null,null,null,null,null,null,null,null,null,null,null,null,null,null,null,null,null,null,null,null,null,null,null,null,null,null,null,null,null,null,null,null,null,null,null,null,null,null,null,null,null,null,null,null,null,null,null,null,null,null,null,null,null,null,null,null,null,null,null,null,null,null,null,null,null,null,null,null,null,null,null,null,null,null,null,null,null,null,null,null,null,null,null,null,null,null,null,null,null,null,null,null,null,null,null,null,null,null,null,null,null,null,null,null,null,null,null,null,null,null,null,null,"➊","🔝",{"$f":"D57","v":"Is your school offering Hybrid courses"},0,{"$f":"IF($KJ57=1,1,0)","v":0},{"$f":"IF($KJ57=2,2,0)","v":0},null,null,null,0,{"$f":"IF(KJ57=2,0,IF(AND(KJ57=1,KJ58=1),20,IF(KJ57=1,10,0)))","v":0},"➊",{"$f":"IF(KJ57=1,1,0)","v":0},"",3,{"$f":"IF($KO57=1,$KJ57,0)","v":0},{"$f":"IF($KO57=2,$KJ57,0)","v":0},{"$f":"IF($KO57=3,$KJ57*3,0)","v":0},{"$f":"IF($KO57=4,$KJ57,0)","v":0},{"$f":"IF($KO57=5,$KJ57,0)","v":0},null,null,null,null,null,null,null,null,null,null,null,null,null,null,null,null,null,null,null,null,null,null,null,null,null,null,null,null,null,null,null,null,null,null,null,null,null,null,null,null,null,null,null,null,null,null,null,null,null,null,null,null,null,null,null,null,null,null,null,null,null,null,null,null,null,null,null,null,null,null,null,null,null,null,null,null,null,null,null,null,null,null,null,null,null,null,null,null,null,null,null,null,null,null,null,null,null,null,null,null,null,null,null,null,null,null,null,null,null,null,null,null,null,null,null,null,null,null,null,null,null,null,null,null,null,null,null,null,null,null,null,null,null,null,null,null,null,null,null,null,null,null,null,null,null,null,null,null,null,null,null,null,null,null,null,null,null,null,null,null,null,null,null,null,null,null,null,null,null,null,null,null,null,null,null,null,null,null,null,null,null,null,null,null,null,null,null,null,null,null,null,null,null,null,null,null,null,null,null,null,null,null,null,null,null,null,null,null,null,null,null,null,null,null,null,null,null,null,null,null,null,null,null,null,null,null,null,null,null,null,null,null,null,null,null,null,null,null,null,null,null,null,null,null,null,null,null,null,null,null,null,null,null,null,null,null,null,null,null,null,null,null,null,null,null,null,null,null,null,null,null,null,null,null,null,null,null,null,null,null,null,null,null,null,null,null,null,null,null,null,null,null,null,null,null,null,null,null,null,null,null,null,null,null,null,null,null,null,null,null,null,null,null,null,null,null,null,null,null,null,null,null,null,null,null,null,null,null,"•",null,"le dénominateur est le produit des deux dénominateurs de deux facteurs"]
["","➋",{"$f":"IF(KE58=1,1,IF(KE58=2,0,\"\"))","v":""},"Is your school offering Blended courses",1,null,null,null,null,null,null,null,null,null,null,null,null,null,null,null,null,null,null,null,null,null,null,null,null,null,null,null,null,null,null,null,null,null,null,null,null,null,null,null,null,null,null,null,null,null,null,null,null,null,null,null,null,null,null,null,null,null,null,null,null,null,null,null,null,null,null,null,null,null,null,null,null,null,null,null,null,null,null,null,null,null,null,null,null,null,null,null,null,null,null,null,null,null,null,null,null,null,null,null,null,null,null,null,null,null,null,null,null,null,null,null,null,null,null,null,null,null,null,null,null,null,null,null,null,null,null,null,null,null,null,null,null,null,null,null,null,null,null,null,null,null,null,null,null,null,null,null,null,null,null,null,null,null,null,null,null,null,null,null,null,null,null,null,null,null,null,null,null,null,null,null,null,null,null,null,null,null,null,null,null,null,null,null,null,null,null,null,null,null,null,null,null,null,null,null,null,null,null,null,null,null,null,null,null,null,null,null,null,null,null,null,null,null,null,null,null,null,null,null,null,null,null,null,null,null,null,null,null,null,null,null,null,null,null,null,null,null,null,null,null,null,null,null,null,null,null,null,null,null,null,null,null,null,null,null,null,null,null,null,null,null,null,null,null,null,null,null,null,null,null,null,null,null,null,null,null,null,null,null,null,null,"➋","📃",{"$f":"D58","v":"Is your school offering Blended courses"},0,{"$f":"IF($KJ58=1,1,0)","v":0},{"$f":"IF($KJ58=2,2,0)","v":0},null,null,null,0,{"$f":"IF(KJ58=2,0,IF(KJ58=1,10,0))","v":0},"➋",{"$f":"IF(KJ58=1,1,0)","v":0},"",5,{"$f":"IF($KO58=1,$KJ58,0)","v":0},{"$f":"IF($KO58=2,$KJ58,0)","v":0},{"$f":"IF($KO58=3,$KJ58,0)","v":0},{"$f":"IF($KO58=4,$KJ58,0)","v":0},{"$f":"IF($KO58=5,$KJ58*3,0)","v":0}]
[null,null,null,null,null,null,null,null,null,null,null,null,null,null,null,null,null,null,null,null,null,null,null,null,null,null,null,null,null,null,null,null,null,null,null,null,null,null,null,null,null,null,null,null,null,null,null,null,null,null,null,null,null,null,null,null,null,null,null,null,null,null,null,null,null,null,null,null,null,null,null,null,null,null,null,null,null,null,null,null,null,null,null,null,null,null,null,null,null,null,null,null,null,null,null,null,null,null,null,null,null,null,null,null,null,null,null,null,null,null,null,null,null,null,null,null,null,null,null,null,null,null,null,null,null,null,null,null,null,null,null,null,null,null,null,null,null,null,null,null,null,null,null,null,null,null,null,null,null,null,null,null,null,null,null,null,null,null,null,null,null,null,null,null,null,null,null,null,null,null,null,null,null,null,null,null,null,null,null,null,null,null,null,null,null,null,null,null,null,null,null,null,null,null,null,null,null,null,null,null,null,null,null,null,null,null,null,null,null,null,null,null,null,null,null,null,null,null,null,null,null,null,null,null,null,null,null,null,null,null,null,null,null,null,null,null,null,null,null,null,null,null,null,null,null,null,null,null,null,null,null,null,null,null,null,null,null,null,null,null,null,null,null,null,null,null,null,null,null,null,null,null,null,null,null,null,null,null,null,null,null,null,null,null,null,null,null,null,null,null,null,null,null,null,null,null,null,null,null,""]
[null,null,null,null,null,null,null,null,null,null,null,null,null,null,null,null,null,null,null,null,null,null,null,null,null,null,null,null,null,null,null,null,null,null,null,null,null,null,null,null,null,null,null,null,null,null,null,null,null,null,null,null,null,null,null,null,null,null,null,null,null,null,null,null,null,null,null,null,null,null,null,null,null,null,null,null,null,null,null,null,null,null,null,null,null,null,null,null,null,null,null,null,null,null,null,null,null,null,null,null,null,null,null,null,null,null,null,null,null,null,null,null,null,null,null,null,null,null,null,null,null,null,null,null,null,null,null,null,null,null,null,null,null,null,null,null,null,null,null,null,null,null,null,null,null,null,null,null,null,null,null,null,null,null,null,null,null,null,null,null,null,null,null,null,null,null,null,null,null,null,null,null,null,null,null,null,null,null,null,null,null,null,null,null,null,null,null,null,null,null,null,null,null,null,null,null,null,null,null,null,null,null,null,null,null,null,null,null,null,null,null,null,null,null,null,null,null,null,null,null,null,null,null,null,null,null,null,null,null,null,null,null,null,null,null,null,null,null,null,null,null,null,null,null,null,null,null,null,null,null,null,null,null,null,null,null,null,null,null,null,null,null,null,null,null,null,null,null,null,null,null,null,null,null,null,null,null,null,null,null,null,null,null,null,null,null,null,null,null,null,null,null,null,null,null,null,null,null,"NO",""]
[null,"❾",null,"Digital @ Evaluation \nKindly, one single choice/answer per question/line is allowed!",null,null,null,null,null,null,null,null,null,null,null,null,null,null,null,null,null,null,null,null,null,null,null,null,null,null,null,null,null,null,null,null,null,null,null,null,null,null,null,null,null,null,null,null,null,null,null,null,null,null,null,null,null,null,null,null,null,null,null,null,null,null,null,null,null,null,null,null,null,null,null,null,null,null,null,null,null,null,null,null,null,null,null,null,null,null,null,null,null,null,null,null,null,null,null,null,null,null,null,null,null,null,null,null,null,null,null,null,null,null,null,null,null,null,null,null,null,null,null,null,null,null,null,null,null,null,null,null,null,null,null,null,null,null,null,null,null,null,null,null,null,null,null,null,null,null,null,null,null,null,null,null,null,null,null,null,null,null,null,null,null,null,null,null,null,null,null,null,null,null,null,null,null,null,null,null,null,null,null,null,null,null,null,null,null,null,null,null,null,null,null,null,null,null,null,null,null,null,null,null,null,null,null,null,null,null,null,null,null,null,null,null,null,null,null,null,null,null,null,null,null,null,null,null,null,null,null,null,null,null,null,null,null,null,null,null,null,null,null,null,null,null,null,null,null,null,null,null,null,null,null,null,null,null,null,null,null,null,null,null,null,null,null,null,null,null,null,null,null,null,null,null,null,null,null,null,null,null,null,null,null,null,null,null,null,null,null,null,null,null,null,null,null,null,null,""]
["Ratio of prossessed answers!",null,null,null,"Poor  ","Fair","Good","Very Good","Excellent",null,null,null,null,null,null,null,null,null,null,null,null,null,null,null,null,null,null,null,null,null,null,null,null,null,null,null,null,null,null,null,null,null,null,null,null,null,null,null,null,null,null,null,null,null,null,null,null,null,null,null,null,null,null,null,null,null,null,null,null,null,null,null,null,null,null,null,null,null,null,null,null,null,null,null,null,null,null,null,null,null,null,null,null,null,null,null,null,null,null,null,null,null,null,null,null,null,null,null,null,null,null,null,null,null,null,null,null,null,null,null,null,null,null,null,null,null,null,null,null,null,null,null,null,null,null,null,null,null,null,null,null,null,null,null,null,null,null,null,null,null,null,null,null,null,null,null,null,null,null,null,null,null,null,null,null,null,null,null,null,null,null,null,null,null,null,null,null,null,null,null,null,null,null,null,null,null,null,null,null,null,null,null,null,null,null,null,null,null,null,null,null,null,null,null,null,null,null,null,null,null,null,null,null,null,null,null,null,null,null,null,null,null,null,null,null,null,null,null,null,null,null,null,null,null,null,null,null,null,null,null,null,null,null,null,null,null,null,null,null,null,null,null,null,null,null,null,null,null,null,null,null,null,null,null,null,null,null,null,null,null,null,null,null,null,null,null,null,null,null,null,null,null,null,null,null,null,{"$f":"B61","v":"❾"},null,{"$f":"IF(D61=\"\",\"\",D61)","v":"Digital @ Evaluation \nKindly, one single choice/answer per question/line is allowed!"},null,null,null,null,null,null,null,null,null,null,""]
[{"$f":"IF(KJ63=0,0,1)","v":0},"➊",{"$f":"AVERAGE(KE63:KI63)*1","v":0},"What is the level of your profecency to carry digital information?",null,null,null,null,null,null,null,null,null,null,null,null,null,null,null,null,null,null,null,null,null,null,null,null,null,null,null,null,null,null,null,null,null,null,null,null,null,null,null,null,null,null,null,null,null,null,null,null,null,null,null,null,null,null,null,null,null,null,null,null,null,null,null,null,null,null,null,null,null,null,null,null,null,null,null,null,null,null,null,null,null,null,null,null,null,null,null,null,null,null,null,null,null,null,null,null,null,null,null,null,null,null,null,null,null,null,null,null,null,null,null,null,null,null,null,null,null,null,null,null,null,null,null,null,null,null,null,null,null,null,null,null,null,null,null,null,null,null,null,null,null,null,null,null,null,null,null,null,null,null,null,null,null,null,null,null,null,null,null,null,null,null,null,null,null,null,null,null,null,null,null,null,null,null,null,null,null,null,null,null,null,null,null,null,null,null,null,null,null,null,null,null,null,null,null,null,null,null,null,null,null,null,null,null,null,null,null,null,null,null,null,null,null,null,null,null,null,null,null,null,null,null,null,null,null,null,null,null,null,null,null,null,null,null,null,null,null,null,null,null,null,null,null,null,null,null,null,null,null,null,null,null,null,null,null,null,null,null,null,null,null,null,null,null,null,null,null,null,null,null,null,null,null,null,null,null,null,null,null,null,null,null,{"$f":"B63","v":"➊"},0,{"$f":"D63","v":"What is the level of your profecency to carry digital information?"},0,{"$f":"IF($KJ63=1,1,0)","v":0},{"$f":"IF($KJ63=2,2,0)","v":0},{"$f":"IF($KJ63=3,3,0)","v":0},{"$f":"IF($KJ63=4,4,0)","v":0},{"$f":"IF($KJ63=5,5,0)","v":0},0,{"$f":"KJ63*1","v":0},null,null,"",1,{"$f":"IF($KO63=1,$KJ63,0)","v":0},{"$f":"IF($KO63=2,$KJ63,0)","v":0},{"$f":"IF($KO63=3,$KJ63,0)","v":0},{"$f":"IF($KO63=4,$KJ63,0)","v":0},{"$f":"IF($KO63=5,$KJ63,0)","v":0}]
[{"$f":"IF(KJ64=0,0,1)","v":0},"➋",{"$f":"AVERAGE(KE64:KI64)*1","v":0},"What is the level of your profecency to carry digital communication?",null,null,null,null,null,null,null,null,null,null,null,null,null,null,null,null,null,null,null,null,null,null,null,null,null,null,null,null,null,null,null,null,null,null,null,null,null,null,null,null,null,null,null,null,null,null,null,null,null,null,null,null,null,null,null,null,null,null,null,null,null,null,null,null,null,null,null,null,null,null,null,null,null,null,null,null,null,null,null,null,null,null,null,null,null,null,null,null,null,null,null,null,null,null,null,null,null,null,null,null,null,null,null,null,null,null,null,null,null,null,null,null,null,null,null,null,null,null,null,null,null,null,null,null,null,null,null,null,null,null,null,null,null,null,null,null,null,null,null,null,null,null,null,null,null,null,null,null,null,null,null,null,null,null,null,null,null,null,null,null,null,null,null,null,null,null,null,null,null,null,null,null,null,null,null,null,null,null,null,null,null,null,null,null,null,null,null,null,null,null,null,null,null,null,null,null,null,null,null,null,null,null,null,null,null,null,null,null,null,null,null,null,null,null,null,null,null,null,null,null,null,null,null,null,null,null,null,null,null,null,null,null,null,null,null,null,null,null,null,null,null,null,null,null,null,null,null,null,null,null,null,null,null,null,null,null,null,null,null,null,null,null,null,null,null,null,null,null,null,null,null,null,null,null,null,null,null,null,null,null,null,null,"➋",0,{"$f":"D64","v":"What is the level of your profecency to carry digital communication?"},0,{"$f":"IF($KJ64=1,1,0)","v":0},{"$f":"IF($KJ64=2,2,0)","v":0},{"$f":"IF($KJ64=3,3,0)","v":0},{"$f":"IF($KJ64=4,4,0)","v":0},{"$f":"IF($KJ64=5,5,0)","v":0},0,{"$f":"KJ64*2","v":0},null,null,"",2,{"$f":"IF($KO64=1,$KJ64,0)","v":0},{"$f":"IF($KO64=2,$KJ64,0)","v":0},{"$f":"IF($KO64=3,$KJ64,0)","v":0},{"$f":"IF($KO64=4,$KJ64,0)","v":0},{"$f":"IF($KO64=5,$KJ64,0)","v":0}]
[{"$f":"IF(KJ65=0,0,1)","v":0},"➌",{"$f":"AVERAGE(KE65:KI65)*1","v":0},"What is the level of your profecency to create a digital content ?",null,null,null,null,null,null,null,null,null,null,null,null,null,null,null,null,null,null,null,null,null,null,null,null,null,null,null,null,null,null,null,null,null,null,null,null,null,null,null,null,null,null,null,null,null,null,null,null,null,null,null,null,null,null,null,null,null,null,null,null,null,null,null,null,null,null,null,null,null,null,null,null,null,null,null,null,null,null,null,null,null,null,null,null,null,null,null,null,null,null,null,null,null,null,null,null,null,null,null,null,null,null,null,null,null,null,null,null,null,null,null,null,null,null,null,null,null,null,null,null,null,null,null,null,null,null,null,null,null,null,null,null,null,null,null,null,null,null,null,null,null,null,null,null,null,null,null,null,null,null,null,null,null,null,null,null,null,null,null,null,null,null,null,null,null,null,null,null,null,null,null,null,null,null,null,null,null,null,null,null,null,null,null,null,null,null,null,null,null,null,null,null,null,null,null,null,null,null,null,null,null,null,null,null,null,null,null,null,null,null,null,null,null,null,null,null,null,null,null,null,null,null,null,null,null,null,null,null,null,null,null,null,null,null,null,null,null,null,null,null,null,null,null,null,null,null,null,null,null,null,null,null,null,null,null,null,null,null,null,null,null,null,null,null,null,null,null,null,null,null,null,null,null,null,null,null,null,null,null,null,null,null,"➌",0,{"$f":"D65","v":"What is the level of your profecency to create a digital content ?"},0,{"$f":"IF($KJ65=1,1,0)","v":0},{"$f":"IF($KJ65=2,2,0)","v":0},{"$f":"IF($KJ65=3,3,0)","v":0},{"$f":"IF($KJ65=4,4,0)","v":0},0,0,{"$f":"KJ65*3","v":0},null,null,"",3,{"$f":"IF($KO65=1,$KJ65,0)","v":0},{"$f":"IF($KO65=2,$KJ65,0)","v":0},{"$f":"IF($KO65=3,$KJ65,0)","v":0},{"$f":"IF($KO65=4,$KJ65,0)","v":0},{"$f":"IF($KO65=5,$KJ65,0)","v":0}]
[{"$f":"IF(KJ66=0,0,1)","v":0},"➍",{"$f":"AVERAGE(KE66:KI66)*1","v":0},"What is the level of your profecency to carry safe digital actions?",null,null,null,null,null,null,null,null,null,null,null,null,null,null,null,null,null,null,null,null,null,null,null,null,null,null,null,null,null,null,null,null,null,null,null,null,null,null,null,null,null,null,null,null,null,null,null,null,null,null,null,null,null,null,null,null,null,null,null,null,null,null,null,null,null,null,null,null,null,null,null,null,null,null,null,null,null,null,null,null,null,null,null,null,null,null,null,null,null,null,null,null,null,null,null,null,null,null,null,null,null,null,null,null,null,null,null,null,null,null,null,null,null,null,null,null,null,null,null,null,null,null,null,null,null,null,null,null,null,null,null,null,null,null,null,null,null,null,null,null,null,null,null,null,null,null,null,null,null,null,null,null,null,null,null,null,null,null,null,null,null,null,null,null,null,null,null,null,null,null,null,null,null,null,null,null,null,null,null,null,null,null,null,null,null,null,null,null,null,null,null,null,null,null,null,null,null,null,null,null,null,null,null,null,null,null,null,null,null,null,null,null,null,null,null,null,null,null,null,null,null,null,null,null,null,null,null,null,null,null,null,null,null,null,null,null,null,null,null,null,null,null,null,null,null,null,null,null,null,null,null,null,null,null,null,null,null,null,null,null,null,null,null,null,null,null,null,null,null,null,null,null,null,null,null,null,null,null,null,null,null,null,"➍",0,{"$f":"D66","v":"What is the level of your profecency to carry safe digital actions?"},0,{"$f":"IF($KJ66=1,1,0)","v":0},{"$f":"IF($KJ66=2,2,0)","v":0},{"$f":"IF($KJ66=3,3,0)","v":0},{"$f":"IF($KJ66=4,4,0)","v":0},0,0,{"$f":"KJ66*4","v":0},null,null,"",4,{"$f":"IF($KO66=1,$KJ66,0)","v":0},{"$f":"IF($KO66=2,$KJ66,0)","v":0},{"$f":"IF($KO66=3,$KJ66,0)","v":0},{"$f":"IF($KO66=4,$KJ66,0)","v":0},{"$f":"IF($KO66=5,$KJ66,0)","v":0}]
[{"$f":"IF(KJ67=0,0,1)","v":0},"➎",{"$f":"AVERAGE(KE67:KI67)*1","v":0},"What is the level of your profecency to solve digital problems?",null,null,null,null,null,null,null,null,null,null,null,null,null,null,null,null,null,null,null,null,null,null,null,null,null,null,null,null,null,null,null,null,null,null,null,null,null,null,null,null,null,null,null,null,null,null,null,null,null,null,null,null,null,null,null,null,null,null,null,null,null,null,null,null,null,null,null,null,null,null,null,null,null,null,null,null,null,null,null,null,null,null,null,null,null,null,null,null,null,null,null,null,null,null,null,null,null,null,null,null,null,null,null,null,null,null,null,null,null,null,null,null,null,null,null,null,null,null,null,null,null,null,null,null,null,null,null,null,null,null,null,null,null,null,null,null,null,null,null,null,null,null,null,null,null,null,null,null,null,null,null,null,null,null,null,null,null,null,null,null,null,null,null,null,null,null,null,null,null,null,null,null,null,null,null,null,null,null,null,null,null,null,null,null,null,null,null,null,null,null,null,null,null,null,null,null,null,null,null,null,null,null,null,null,null,null,null,null,null,null,null,null,null,null,null,null,null,null,null,null,null,null,null,null,null,null,null,null,null,null,null,null,null,null,null,null,null,null,null,null,null,null,null,null,null,null,null,null,null,null,null,null,null,null,null,null,null,null,null,null,null,null,null,null,null,null,null,null,null,null,null,null,null,null,null,null,null,null,null,null,null,null,"➎",0,{"$f":"D67","v":"What is the level of your profecency to solve digital problems?"},0,{"$f":"IF($KJ67=1,1,0)","v":0},{"$f":"IF($KJ67=2,2,0)","v":0},{"$f":"IF($KJ67=3,3,0)","v":0},{"$f":"IF($KJ67=4,4,0)","v":0},0,0,{"$f":"KJ67*5","v":0},null,null,"",5,{"$f":"IF($KO67=1,$KJ67,0)","v":0},{"$f":"IF($KO67=2,$KJ67,0)","v":0},{"$f":"IF($KO67=3,$KJ67,0)","v":0},{"$f":"IF($KO67=4,$KJ67,0)","v":0},{"$f":"IF($KO67=5,$KJ67,0)","v":0}]
[null,null,null,null,null,null,null,null,null,null,null,null,null,null,null,null,null,null,null,null,null,null,null,null,null,null,null,null,null,null,null,null,null,null,null,null,null,null,null,null,null,null,null,null,null,null,null,null,null,null,null,null,null,null,null,null,null,null,null,null,null,null,null,null,null,null,null,null,null,null,null,null,null,null,null,null,null,null,null,null,null,null,null,null,null,null,null,null,null,null,null,null,null,null,null,null,null,null,null,null,null,null,null,null,null,null,null,null,null,null,null,null,null,null,null,null,null,null,null,null,null,null,null,null,null,null,null,null,null,null,null,null,null,null,null,null,null,null,null,null,null,null,null,null,null,null,null,null,null,null,null,null,null,null,null,null,null,null,null,null,null,null,null,null,null,null,null,null,null,null,null,null,null,null,null,null,null,null,null,null,null,null,null,null,null,null,null,null,null,null,null,null,null,null,null,null,null,null,null,null,null,null,null,null,null,null,null,null,null,null,null,null,null,null,null,null,null,null,null,null,null,null,null,null,null,null,null,null,null,null,null,null,null,null,null,null,null,null,null,null,null,null,null,null,null,null,null,null,null,null,null,null,null,null,null,null,null,null,null,null,null,null,null,null,null,null,null,null,null,null,null,null,null,null,null,null,null,null,null,null,null,null,null,null,null,null,null,null,null,null,null,null,null,null,null,null,null,null,null,""]
["Ratio of prossessed answers!","❿",null,"Digital @ Information processing\nKindly, one single choice/answer per question/line is allowed!","Poor  ","Fair","Good","Very Good","Excellent",null,null,null,null,null,null,null,null,null,null,null,null,null,null,null,null,null,null,null,null,null,null,null,null,null,null,null,null,null,null,null,null,null,null,null,null,null,null,null,null,null,null,null,null,null,null,null,null,null,null,null,null,null,null,null,null,null,null,null,null,null,null,null,null,null,null,null,null,null,null,null,null,null,null,null,null,null,null,null,null,null,null,null,null,null,null,null,null,null,null,null,null,null,null,null,null,null,null,null,null,null,null,null,null,null,null,null,null,null,null,null,null,null,null,null,null,null,null,null,null,null,null,null,null,null,null,null,null,null,null,null,null,null,null,null,null,null,null,null,null,null,null,null,null,null,null,null,null,null,null,null,null,null,null,null,null,null,null,null,null,null,null,null,null,null,null,null,null,null,null,null,null,null,null,null,null,null,null,null,null,null,null,null,null,null,null,null,null,null,null,null,null,null,null,null,null,null,null,null,null,null,null,null,null,null,null,null,null,null,null,null,null,null,null,null,null,null,null,null,null,null,null,null,null,null,null,null,null,null,null,null,null,null,null,null,null,null,null,null,null,null,null,null,null,null,null,null,null,null,null,null,null,null,null,null,null,null,null,null,null,null,null,null,null,null,null,null,null,null,null,null,null,null,null,null,null,null,{"$f":"B69","v":"❿"},null,{"$f":"IF(D69=\"\",\"\",D69)","v":"Digital @ Information processing\nKindly, one single choice/answer per question/line is allowed!"},null,null,null,null,null,null,null,null,null,null,""]
[{"$f":"IF(KJ70=0,0,1)","v":0},"➊",{"$f":"AVERAGE(KE70:KI70)*1","v":0},"Are you familiar with MS Office for file creation, copy, paste, save, … (or any other word processing tool)?",null,null,null,null,null,null,null,null,null,null,null,null,null,null,null,null,null,null,null,null,null,null,null,null,null,null,null,null,null,null,null,null,null,null,null,null,null,null,null,null,null,null,null,null,null,null,null,null,null,null,null,null,null,null,null,null,null,null,null,null,null,null,null,null,null,null,null,null,null,null,null,null,null,null,null,null,null,null,null,null,null,null,null,null,null,null,null,null,null,null,null,null,null,null,null,null,null,null,null,null,null,null,null,null,null,null,null,null,null,null,null,null,null,null,null,null,null,null,null,null,null,null,null,null,null,null,null,null,null,null,null,null,null,null,null,null,null,null,null,null,null,null,null,null,null,null,null,null,null,null,null,null,null,null,null,null,null,null,null,null,null,null,null,null,null,null,null,null,null,null,null,null,null,null,null,null,null,null,null,null,null,null,null,null,null,null,null,null,null,null,null,null,null,null,null,null,null,null,null,null,null,null,null,null,null,null,null,null,null,null,null,null,null,null,null,null,null,null,null,null,null,null,null,null,null,null,null,null,null,null,null,null,null,null,null,null,null,null,null,null,null,null,null,null,null,null,null,null,null,null,null,null,null,null,null,null,null,null,null,null,null,null,null,null,null,null,null,null,null,null,null,null,null,null,null,null,null,null,null,null,null,null,"➊",{"$f":"C70","v":0},"Are you familiar with MS Office for file creation, copy, paste, save, … (or any other word processing tool)?",0,{"$f":"IF($KJ70=1,1,0)","v":0},{"$f":"IF($KJ70=2,2,0)","v":0},{"$f":"IF($KJ70=3,3,0)","v":0},{"$f":"IF($KJ70=4,4,0)","v":0},{"$f":"IF($KJ70=5,5,0)","v":0},0,{"$f":"KJ70*1","v":0},null,null,"",1,{"$f":"IF($KO70=1,$KJ70,0)","v":0},{"$f":"IF($KO70=2,$KJ70,0)","v":0},{"$f":"IF($KO70=3,$KJ70,0)","v":0},{"$f":"IF($KO70=4,$KJ70,0)","v":0},{"$f":"IF($KO70=5,$KJ70,0)","v":0}]
[{"$f":"IF(KJ71=0,0,1)","v":0},"➋",{"$f":"AVERAGE(KE71:KI71)*1","v":0},"Can you create a spreadsheet with formatting and formulas, or improve an existing spreadsheet?",null,null,null,null,null,null,null,null,null,null,null,null,null,null,null,null,null,null,null,null,null,null,null,null,null,null,null,null,null,null,null,null,null,null,null,null,null,null,null,null,null,null,null,null,null,null,null,null,null,null,null,null,null,null,null,null,null,null,null,null,null,null,null,null,null,null,null,null,null,null,null,null,null,null,null,null,null,null,null,null,null,null,null,null,null,null,null,null,null,null,null,null,null,null,null,null,null,null,null,null,null,null,null,null,null,null,null,null,null,null,null,null,null,null,null,null,null,null,null,null,null,null,null,null,null,null,null,null,null,null,null,null,null,null,null,null,null,null,null,null,null,null,null,null,null,null,null,null,null,null,null,null,null,null,null,null,null,null,null,null,null,null,null,null,null,null,null,null,null,null,null,null,null,null,null,null,null,null,null,null,null,null,null,null,null,null,null,null,null,null,null,null,null,null,null,null,null,null,null,null,null,null,null,null,null,null,null,null,null,null,null,null,null,null,null,null,null,null,null,null,null,null,null,null,null,null,null,null,null,null,null,null,null,null,null,null,null,null,null,null,null,null,null,null,null,null,null,null,null,null,null,null,null,null,null,null,null,null,null,null,null,null,null,null,null,null,null,null,null,null,null,null,null,null,null,null,null,null,null,null,null,null,"➋",0,"Can you create a spreadsheet with formatting and formulas, or improve an existing spreadsheet?",0,{"$f":"IF($KJ71=1,1,0)","v":0},{"$f":"IF($KJ71=2,2,0)","v":0},{"$f":"IF($KJ71=3,3,0)","v":0},{"$f":"IF($KJ71=4,4,0)","v":0},{"$f":"IF($KJ71=5,5,0)","v":0},0,{"$f":"KJ71*2","v":0},null,null,"",2,{"$f":"IF($KO71=1,$KJ71,0)","v":0},{"$f":"IF($KO71=2,$KJ71,0)","v":0},{"$f":"IF($KO71=3,$KJ71,0)","v":0},{"$f":"IF($KO71=4,$KJ71,0)","v":0},{"$f":"IF($KO71=5,$KJ71,0)","v":0}]
[{"$f":"IF(KJ72=0,0,1)","v":0},"➌",{"$f":"AVERAGE(KE72:KI72)*1","v":0},"Can you turn a word page into an effective presentation (PowerPoint/ Canva/ …)?",null,null,null,null,null,null,null,null,null,null,null,null,null,null,null,null,null,null,null,null,null,null,null,null,null,null,null,null,null,null,null,null,null,null,null,null,null,null,null,null,null,null,null,null,null,null,null,null,null,null,null,null,null,null,null,null,null,null,null,null,null,null,null,null,null,null,null,null,null,null,null,null,null,null,null,null,null,null,null,null,null,null,null,null,null,null,null,null,null,null,null,null,null,null,null,null,null,null,null,null,null,null,null,null,null,null,null,null,null,null,null,null,null,null,null,null,null,null,null,null,null,null,null,null,null,null,null,null,null,null,null,null,null,null,null,null,null,null,null,null,null,null,null,null,null,null,null,null,null,null,null,null,null,null,null,null,null,null,null,null,null,null,null,null,null,null,null,null,null,null,null,null,null,null,null,null,null,null,null,null,null,null,null,null,null,null,null,null,null,null,null,null,null,null,null,null,null,null,null,null,null,null,null,null,null,null,null,null,null,null,null,null,null,null,null,null,null,null,null,null,null,null,null,null,null,null,null,null,null,null,null,null,null,null,null,null,null,null,null,null,null,null,null,null,null,null,null,null,null,null,null,null,null,null,null,null,null,null,null,null,null,null,null,null,null,null,null,null,null,null,null,null,null,null,null,null,null,null,null,null,null,null,"➌",0,"Can you turn a word page into an effective presentation (PowerPoint/ Canva/ …)?",0,{"$f":"IF($KJ72=1,1,0)","v":0},{"$f":"IF($KJ72=2,2,0)","v":0},{"$f":"IF($KJ72=3,3,0)","v":0},{"$f":"IF($KJ72=4,4,0)","v":0},0,0,{"$f":"KJ72*3","v":0},null,null,"",3,{"$f":"IF($KO72=1,$KJ72,0)","v":0},{"$f":"IF($KO72=2,$KJ72,0)","v":0},{"$f":"IF($KO72=3,$KJ72,0)","v":0},{"$f":"IF($KO72=4,$KJ72,0)","v":0},{"$f":"IF($KO72=5,$KJ72,0)","v":0}]
[{"$f":"IF(KJ73=0,0,1)","v":0},"➍",{"$f":"AVERAGE(KE73:KI73)*1","v":0},"Can you protect your documents by restricting access to certain functions?",null,null,null,null,null,null,null,null,null,null,null,null,null,null,null,null,null,null,null,null,null,null,null,null,null,null,null,null,null,null,null,null,null,null,null,null,null,null,null,null,null,null,null,null,null,null,null,null,null,null,null,null,null,null,null,null,null,null,null,null,null,null,null,null,null,null,null,null,null,null,null,null,null,null,null,null,null,null,null,null,null,null,null,null,null,null,null,null,null,null,null,null,null,null,null,null,null,null,null,null,null,null,null,null,null,null,null,null,null,null,null,null,null,null,null,null,null,null,null,null,null,null,null,null,null,null,null,null,null,null,null,null,null,null,null,null,null,null,null,null,null,null,null,null,null,null,null,null,null,null,null,null,null,null,null,null,null,null,null,null,null,null,null,null,null,null,null,null,null,null,null,null,null,null,null,null,null,null,null,null,null,null,null,null,null,null,null,null,null,null,null,null,null,null,null,null,null,null,null,null,null,null,null,null,null,null,null,null,null,null,null,null,null,null,null,null,null,null,null,null,null,null,null,null,null,null,null,null,null,null,null,null,null,null,null,null,null,null,null,null,null,null,null,null,null,null,null,null,null,null,null,null,null,null,null,null,null,null,null,null,null,null,null,null,null,null,null,null,null,null,null,null,null,null,null,null,null,null,null,null,null,null,"➍",0,"Can you protect your documents by restricting access to certain functions?",0,{"$f":"IF($KJ73=1,1,0)","v":0},{"$f":"IF($KJ73=2,2,0)","v":0},{"$f":"IF($KJ73=3,3,0)","v":0},{"$f":"IF($KJ73=4,4,0)","v":0},0,0,{"$f":"KJ73*4","v":0},null,null,"",4,{"$f":"IF($KO73=1,$KJ73,0)","v":0},{"$f":"IF($KO73=2,$KJ73,0)","v":0},{"$f":"IF($KO73=3,$KJ73,0)","v":0},{"$f":"IF($KO73=4,$KJ73,0)","v":0},{"$f":"IF($KO73=5,$KJ73,0)","v":0}]
[{"$f":"IF(KJ74=0,0,1)","v":0},"➎",{"$f":"AVERAGE(KE74:KI74)*1","v":0},"Can you make modifications/improvements to your documents while keeping full track of your changes?",null,null,null,null,null,null,null,null,null,null,null,null,null,null,null,null,null,null,null,null,null,null,null,null,null,null,null,null,null,null,null,null,null,null,null,null,null,null,null,null,null,null,null,null,null,null,null,null,null,null,null,null,null,null,null,null,null,null,null,null,null,null,null,null,null,null,null,null,null,null,null,null,null,null,null,null,null,null,null,null,null,null,null,null,null,null,null,null,null,null,null,null,null,null,null,null,null,null,null,null,null,null,null,null,null,null,null,null,null,null,null,null,null,null,null,null,null,null,null,null,null,null,null,null,null,null,null,null,null,null,null,null,null,null,null,null,null,null,null,null,null,null,null,null,null,null,null,null,null,null,null,null,null,null,null,null,null,null,null,null,null,null,null,null,null,null,null,null,null,null,null,null,null,null,null,null,null,null,null,null,null,null,null,null,null,null,null,null,null,null,null,null,null,null,null,null,null,null,null,null,null,null,null,null,null,null,null,null,null,null,null,null,null,null,null,null,null,null,null,null,null,null,null,null,null,null,null,null,null,null,null,null,null,null,null,null,null,null,null,null,null,null,null,null,null,null,null,null,null,null,null,null,null,null,null,null,null,null,null,null,null,null,null,null,null,null,null,null,null,null,null,null,null,null,null,null,null,null,null,null,null,null,"➎",0,"Can you make modifications/improvements to your documents while keeping full track of your changes?",0,{"$f":"IF($KJ74=1,1,0)","v":0},{"$f":"IF($KJ74=2,2,0)","v":0},{"$f":"IF($KJ74=3,3,0)","v":0},{"$f":"IF($KJ74=4,4,0)","v":0},0,0,{"$f":"KJ74*5","v":0},null,null,"",5,{"$f":"IF($KO74=1,$KJ74,0)","v":0},{"$f":"IF($KO74=2,$KJ74,0)","v":0},{"$f":"IF($KO74=3,$KJ74,0)","v":0},{"$f":"IF($KO74=4,$KJ74,0)","v":0},{"$f":"IF($KO74=5,$KJ74,0)","v":0}]
[null,null,null,null,null,null,null,null,null,null,null,null,null,null,null,null,null,null,null,null,null,null,null,null,null,null,null,null,null,null,null,null,null,null,null,null,null,null,null,null,null,null,null,null,null,null,null,null,null,null,null,null,null,null,null,null,null,null,null,null,null,null,null,null,null,null,null,null,null,null,null,null,null,null,null,null,null,null,null,null,null,null,null,null,null,null,null,null,null,null,null,null,null,null,null,null,null,null,null,null,null,null,null,null,null,null,null,null,null,null,null,null,null,null,null,null,null,null,null,null,null,null,null,null,null,null,null,null,null,null,null,null,null,null,null,null,null,null,null,null,null,null,null,null,null,null,null,null,null,null,null,null,null,null,null,null,null,null,null,null,null,null,null,null,null,null,null,null,null,null,null,null,null,null,null,null,null,null,null,null,null,null,null,null,null,null,null,null,null,null,null,null,null,null,null,null,null,null,null,null,null,null,null,null,null,null,null,null,null,null,null,null,null,null,null,null,null,null,null,null,null,null,null,null,null,null,null,null,null,null,null,null,null,null,null,null,null,null,null,null,null,null,null,null,null,null,null,null,null,null,null,null,null,null,null,null,null,null,null,null,null,null,null,null,null,null,null,null,null,null,null,null,null,null,null,null,null,null,null,null,null,null,null,null,null,null,null,null,null,null,null,null,null,null,null,null,null,null,null,{"$f":"IF(KJ75>0,1,\"\")","v":""}]
["Ratio of prossessed answers!","⓫",null,"Digital @ Online Conference APPs\nKindly, multiple choices/answers per question/line are allowed!","SKYPE","TEAMS","ZOOM","GOOGLE\nMEET","WEBEX",null,null,null,null,null,null,null,null,null,null,null,null,null,null,null,null,null,null,null,null,null,null,null,null,null,null,null,null,null,null,null,null,null,null,null,null,null,null,null,null,null,null,null,null,null,null,null,null,null,null,null,null,null,null,null,null,null,null,null,null,null,null,null,null,null,null,null,null,null,null,null,null,null,null,null,null,null,null,null,null,null,null,null,null,null,null,null,null,null,null,null,null,null,null,null,null,null,null,null,null,null,null,null,null,null,null,null,null,null,null,null,null,null,null,null,null,null,null,null,null,null,null,null,null,null,null,null,null,null,null,null,null,null,null,null,null,null,null,null,null,null,null,null,null,null,null,null,null,null,null,null,null,null,null,null,null,null,null,null,null,null,null,null,null,null,null,null,null,null,null,null,null,null,null,null,null,null,null,null,null,null,null,null,null,null,null,null,null,null,null,null,null,null,null,null,null,null,null,null,null,null,null,null,null,null,null,null,null,null,null,null,null,null,null,null,null,null,null,null,null,null,null,null,null,null,null,null,null,null,null,null,null,null,null,null,null,null,null,null,null,null,null,null,null,null,null,null,null,null,null,null,null,null,null,null,null,null,null,null,null,null,null,null,null,null,null,null,null,null,null,null,null,null,null,null,null,null,{"$f":"B76","v":"⓫"},null,{"$f":"IF(D76=\"\",\"\",D76)","v":"Digital @ Online Conference APPs\nKindly, multiple choices/answers per question/line are allowed!"},null,"SKYPE","TEAMS","ZOOM","GOOGLE\nMEET","WEBEX",null,null,null,null,""]
[{"$f":"C77","v":0},"➊",{"$f":"AVERAGE(KE77:KI77)*1","v":0},"With one of the following online meeting applications are you familiar with?",null,null,null,null,null,null,null,null,null,null,null,null,null,null,null,null,null,null,null,null,null,null,null,null,null,null,null,null,null,null,null,null,null,null,null,null,null,null,null,null,null,null,null,null,null,null,null,null,null,null,null,null,null,null,null,null,null,null,null,null,null,null,null,null,null,null,null,null,null,null,null,null,null,null,null,null,null,null,null,null,null,null,null,null,null,null,null,null,null,null,null,null,null,null,null,null,null,null,null,null,null,null,null,null,null,null,null,null,null,null,null,null,null,null,null,null,null,null,null,null,null,null,null,null,null,null,null,null,null,null,null,null,null,null,null,null,null,null,null,null,null,null,null,null,null,null,null,null,null,null,null,null,null,null,null,null,null,null,null,null,null,null,null,null,null,null,null,null,null,null,null,null,null,null,null,null,null,null,null,null,null,null,null,null,null,null,null,null,null,null,null,null,null,null,null,null,null,null,null,null,null,null,null,null,null,null,null,null,null,null,null,null,null,null,null,null,null,null,null,null,null,null,null,null,null,null,null,null,null,null,null,null,null,null,null,null,null,null,null,null,null,null,null,null,null,null,null,null,null,null,null,null,null,null,null,null,null,null,null,null,null,null,null,null,null,null,null,null,null,null,null,null,null,null,null,null,null,null,null,null,null,null,{"$f":"B77","v":"➊"},{"$f":"C77","v":0},{"$f":"D77","v":"With one of the following online meeting applications are you familiar with?"},0,{"$f":"IF(E77=TRUE,1,0)","v":0},0,0,0,0,{"$f":"SUM(KE77:KI77)","v":0},{"$f":"IF($KJ77=0,0,IF($KJ77=1,$KJ77*2,IF($KJ77=2,$KJ77*2,IF($KJ77=3,$KJ77*3,IF($KJ77=4,$KJ77*4,IF($KJ77=5,$KJ77*5,0))))))","v":0},null,null,"",1,{"$f":"IF($KO77=1,$KJ77,0)","v":0},{"$f":"IF($KO77=2,$KJ77,0)","v":0},{"$f":"IF($KO77=3,$KJ77,0)","v":0},{"$f":"IF($KO77=4,$KJ77,0)","v":0},{"$f":"IF($KO77=5,$KJ77,0)","v":0}]
[{"$f":"C78","v":0},"➋",{"$f":"AVERAGE(KE78:KI78)*1","v":0},"Which one of the following APPs do you intensively use in your school/profesional life?",null,null,null,null,null,null,null,null,null,null,null,null,null,null,null,null,null,null,null,null,null,null,null,null,null,null,null,null,null,null,null,null,null,null,null,null,null,null,null,null,null,null,null,null,null,null,null,null,null,null,null,null,null,null,null,null,null,null,null,null,null,null,null,null,null,null,null,null,null,null,null,null,null,null,null,null,null,null,null,null,null,null,null,null,null,null,null,null,null,null,null,null,null,null,null,null,null,null,null,null,null,null,null,null,null,null,null,null,null,null,null,null,null,null,null,null,null,null,null,null,null,null,null,null,null,null,null,null,null,null,null,null,null,null,null,null,null,null,null,null,null,null,null,null,null,null,null,null,null,null,null,null,null,null,null,null,null,null,null,null,null,null,null,null,null,null,null,null,null,null,null,null,null,null,null,null,null,null,null,null,null,null,null,null,null,null,null,null,null,null,null,null,null,null,null,null,null,null,null,null,null,null,null,null,null,null,null,null,null,null,null,null,null,null,null,null,null,null,null,null,null,null,null,null,null,null,null,null,null,null,null,null,null,null,null,null,null,null,null,null,null,null,null,null,null,null,null,null,null,null,null,null,null,null,null,null,null,null,null,null,null,null,null,null,null,null,null,null,null,null,null,null,null,null,null,null,null,null,null,null,null,null,{"$f":"B78","v":"➋"},0,{"$f":"D78","v":"Which one of the following APPs do you intensively use in your school/profesional life?"},0,0,0,0,0,0,{"$f":"SUM(KE78:KI78)","v":0},{"$f":"IF($KJ78=0,0,IF($KJ78=1,$KJ78*2,IF($KJ78=2,$KJ78*2,IF($KJ78=3,$KJ78*3,IF($KJ78=4,$KJ78*4,IF($KJ78=5,$KJ78*5,0))))))","v":0},null,null,"",2,{"$f":"IF($KO78=1,$KJ78,0)","v":0},{"$f":"IF($KO78=2,$KJ78,0)","v":0},{"$f":"IF($KO78=3,$KJ78,0)","v":0},{"$f":"IF($KO78=4,$KJ78,0)","v":0},{"$f":"IF($KO78=5,$KJ78,0)","v":0}]
[{"$f":"C79","v":0},"➌",{"$f":"AVERAGE(KE79:KI79)*1","v":0},"Which APPs you master to the point of sharing Screen, Files, Videos, ...",null,null,null,null,null,null,null,null,null,null,null,null,null,null,null,null,null,null,null,null,null,null,null,null,null,null,null,null,null,null,null,null,null,null,null,null,null,null,null,null,null,null,null,null,null,null,null,null,null,null,null,null,null,null,null,null,null,null,null,null,null,null,null,null,null,null,null,null,null,null,null,null,null,null,null,null,null,null,null,null,null,null,null,null,null,null,null,null,null,null,null,null,null,null,null,null,null,null,null,null,null,null,null,null,null,null,null,null,null,null,null,null,null,null,null,null,null,null,null,null,null,null,null,null,null,null,null,null,null,null,null,null,null,null,null,null,null,null,null,null,null,null,null,null,null,null,null,null,null,null,null,null,null,null,null,null,null,null,null,null,null,null,null,null,null,null,null,null,null,null,null,null,null,null,null,null,null,null,null,null,null,null,null,null,null,null,null,null,null,null,null,null,null,null,null,null,null,null,null,null,null,null,null,null,null,null,null,null,null,null,null,null,null,null,null,null,null,null,null,null,null,null,null,null,null,null,null,null,null,null,null,null,null,null,null,null,null,null,null,null,null,null,null,null,null,null,null,null,null,null,null,null,null,null,null,null,null,null,null,null,null,null,null,null,null,null,null,null,null,null,null,null,null,null,null,null,null,null,null,null,null,null,"➌",0,{"$f":"D79","v":"Which APPs you master to the point of sharing Screen, Files, Videos, ..."},0,0,0,0,0,0,0,{"$f":"IF($KJ79=0,0,IF($KJ79=1,$KJ79*2,IF($KJ79=2,$KJ79*2,IF($KJ79=3,$KJ79*3,IF($KJ79=4,$KJ79*4,IF($KJ79=5,$KJ79*5,0))))))","v":0},null,null,"",3,{"$f":"IF($KO79=1,$KJ79,0)","v":0},{"$f":"IF($KO79=2,$KJ79,0)","v":0},{"$f":"IF($KO79=3,$KJ79,0)","v":0},{"$f":"IF($KO79=4,$KJ79,0)","v":0},{"$f":"IF($KO79=5,$KJ79,0)","v":0}]
[{"$f":"C80","v":0},"➍",{"$f":"AVERAGE(KE80:KI80)*1","v":0},"Which tool are you able to contrôle settings for best security use?",null,null,null,null,null,null,null,null,null,null,null,null,null,null,null,null,null,null,null,null,null,null,null,null,null,null,null,null,null,null,null,null,null,null,null,null,null,null,null,null,null,null,null,null,null,null,null,null,null,null,null,null,null,null,null,null,null,null,null,null,null,null,null,null,null,null,null,null,null,null,null,null,null,null,null,null,null,null,null,null,null,null,null,null,null,null,null,null,null,null,null,null,null,null,null,null,null,null,null,null,null,null,null,null,null,null,null,null,null,null,null,null,null,null,null,null,null,null,null,null,null,null,null,null,null,null,null,null,null,null,null,null,null,null,null,null,null,null,null,null,null,null,null,null,null,null,null,null,null,null,null,null,null,null,null,null,null,null,null,null,null,null,null,null,null,null,null,null,null,null,null,null,null,null,null,null,null,null,null,null,null,null,null,null,null,null,null,null,null,null,null,null,null,null,null,null,null,null,null,null,null,null,null,null,null,null,null,null,null,null,null,null,null,null,null,null,null,null,null,null,null,null,null,null,null,null,null,null,null,null,null,null,null,null,null,null,null,null,null,null,null,null,null,null,null,null,null,null,null,null,null,null,null,null,null,null,null,null,null,null,null,null,null,null,null,null,null,null,null,null,null,null,null,null,null,null,null,null,null,null,null,null,"➍",0,{"$f":"D80","v":"Which tool are you able to contrôle settings for best security use?"},0,0,0,0,0,0,0,{"$f":"IF($KJ80=0,0,IF($KJ80=1,$KJ80*2,IF($KJ80=2,$KJ80*2,IF($KJ80=3,$KJ80*3,IF($KJ80=4,$KJ80*4,IF($KJ80=5,$KJ80*5,0))))))","v":0},null,null,"",4,{"$f":"IF($KO80=1,$KJ80,0)","v":0},{"$f":"IF($KO80=2,$KJ80,0)","v":0},{"$f":"IF($KO80=3,$KJ80,0)","v":0},{"$f":"IF($KO80=4,$KJ80,0)","v":0},{"$f":"IF($KO80=5,$KJ80,0)","v":0}]
[{"$f":"C81","v":0},"➎",{"$f":"AVERAGE(KE81:KI81)*1","v":0},"Which tool do you master to prevent any intrusion into the meeting and ensure total privacy of the exchanged data?",null,null,null,null,null,null,null,null,null,null,null,null,null,null,null,null,null,null,null,null,null,null,null,null,null,null,null,null,null,null,null,null,null,null,null,null,null,null,null,null,null,null,null,null,null,null,null,null,null,null,null,null,null,null,null,null,null,null,null,null,null,null,null,null,null,null,null,null,null,null,null,null,null,null,null,null,null,null,null,null,null,null,null,null,null,null,null,null,null,null,null,null,null,null,null,null,null,null,null,null,null,null,null,null,null,null,null,null,null,null,null,null,null,null,null,null,null,null,null,null,null,null,null,null,null,null,null,null,null,null,null,null,null,null,null,null,null,null,null,null,null,null,null,null,null,null,null,null,null,null,null,null,null,null,null,null,null,null,null,null,null,null,null,null,null,null,null,null,null,null,null,null,null,null,null,null,null,null,null,null,null,null,null,null,null,null,null,null,null,null,null,null,null,null,null,null,null,null,null,null,null,null,null,null,null,null,null,null,null,null,null,null,null,null,null,null,null,null,null,null,null,null,null,null,null,null,null,null,null,null,null,null,null,null,null,null,null,null,null,null,null,null,null,null,null,null,null,null,null,null,null,null,null,null,null,null,null,null,null,null,null,null,null,null,null,null,null,null,null,null,null,null,null,null,null,null,null,null,null,null,null,null,"➎",0,{"$f":"D81","v":"Which tool do you master to prevent any intrusion into the meeting and ensure total privacy of the exchanged data?"},0,0,0,0,0,0,0,{"$f":"IF($KJ81=0,0,IF($KJ81=1,$KJ81*2,IF($KJ81=2,$KJ81*2,IF($KJ81=3,$KJ81*3,IF($KJ81=4,$KJ81*4,IF($KJ81=5,$KJ81*5,0))))))","v":0},null,null,"",5,{"$f":"IF($KO81=1,$KJ81,0)","v":0},{"$f":"IF($KO81=2,$KJ81,0)","v":0},{"$f":"IF($KO81=3,$KJ81,0)","v":0},{"$f":"IF($KO81=4,$KJ81,0)","v":0},{"$f":"IF($KO81=5,$KJ81,0)","v":0}]
[null,null,null,null,null,null,null,null,null,null,null,null,null,null,null,null,null,null,null,null,null,null,null,null,null,null,null,null,null,null,null,null,null,null,null,null,null,null,null,null,null,null,null,null,null,null,null,null,null,null,null,null,null,null,null,null,null,null,null,null,null,null,null,null,null,null,null,null,null,null,null,null,null,null,null,null,null,null,null,null,null,null,null,null,null,null,null,null,null,null,null,null,null,null,null,null,null,null,null,null,null,null,null,null,null,null,null,null,null,null,null,null,null,null,null,null,null,null,null,null,null,null,null,null,null,null,null,null,null,null,null,null,null,null,null,null,null,null,null,null,null,null,null,null,null,null,null,null,null,null,null,null,null,null,null,null,null,null,null,null,null,null,null,null,null,null,null,null,null,null,null,null,null,null,null,null,null,null,null,null,null,null,null,null,null,null,null,null,null,null,null,null,null,null,null,null,null,null,null,null,null,null,null,null,null,null,null,null,null,null,null,null,null,null,null,null,null,null,null,null,null,null,null,null,null,null,null,null,null,null,null,null,null,null,null,null,null,null,null,null,null,null,null,null,null,null,null,null,null,null,null,null,null,null,null,null,null,null,null,null,null,null,null,null,null,null,null,null,null,null,null,null,null,null,null,null,null,null,null,null,null,null,null,null,null,null,null,null,null,null,null,null,null,null,null,null,null,null,null,""]
["Ratio of prossessed answers!","⓬",null,"EOOTB - Digital Assessment Tool (D.A.T)\nKindly, one single choice/answer per question/line is allowed!","YES",null,null,"NO",null,null,null,null,null,null,null,null,null,null,null,null,null,null,null,null,null,null,null,null,null,null,null,null,null,null,null,null,null,null,null,null,null,null,null,null,null,null,null,null,null,null,null,null,null,null,null,null,null,null,null,null,null,null,null,null,null,null,null,null,null,null,null,null,null,null,null,null,null,null,null,null,null,null,null,null,null,null,null,null,null,null,null,null,null,null,null,null,null,null,null,null,null,null,null,null,null,null,null,null,null,null,null,null,null,null,null,null,null,null,null,null,null,null,null,null,null,null,null,null,null,null,null,null,null,null,null,null,null,null,null,null,null,null,null,null,null,null,null,null,null,null,null,null,null,null,null,null,null,null,null,null,null,null,null,null,null,null,null,null,null,null,null,null,null,null,null,null,null,null,null,null,null,null,null,null,null,null,null,null,null,null,null,null,null,null,null,null,null,null,null,null,null,null,null,null,null,null,null,null,null,null,null,null,null,null,null,null,null,null,null,null,null,null,null,null,null,null,null,null,null,null,null,null,null,null,null,null,null,null,null,null,null,null,null,null,null,null,null,null,null,null,null,null,null,null,null,null,null,null,null,null,null,null,null,null,null,null,null,null,null,null,null,null,null,null,null,null,null,null,null,null,null,null,null,null,null,null,{"$f":"B83","v":"⓬"},null,{"$f":"IF(D83=\"\",\"\",D83)","v":"EOOTB - Digital Assessment Tool (D.A.T)\nKindly, one single choice/answer per question/line is allowed!"},null,null,null,null,null,null,null,null,null,"YES",""]
[{"$f":"C84","v":""},"➊",{"$f":"IF(KJ84=1,1,IF(KJ84=2,0,\"\"))","v":""},"Did this D.A.T helped you define your digital\nWEEK & STRONG points?",1,null,null,2,null,null,null,null,null,null,null,null,null,null,null,null,null,null,null,null,null,null,null,null,null,null,null,null,null,null,null,null,null,null,null,null,null,null,null,null,null,null,null,null,null,null,null,null,null,null,null,null,null,null,null,null,null,null,null,null,null,null,null,null,null,null,null,null,null,null,null,null,null,null,null,null,null,null,null,null,null,null,null,null,null,null,null,null,null,null,null,null,null,null,null,null,null,null,null,null,null,null,null,null,null,null,null,null,null,null,null,null,null,null,null,null,null,null,null,null,null,null,null,null,null,null,null,null,null,null,null,null,null,null,null,null,null,null,null,null,null,null,null,null,null,null,null,null,null,null,null,null,null,null,null,null,null,null,null,null,null,null,null,null,null,null,null,null,null,null,null,null,null,null,null,null,null,null,null,null,null,null,null,null,null,null,null,null,null,null,null,null,null,null,null,null,null,null,null,null,null,null,null,null,null,null,null,null,null,null,null,null,null,null,null,null,null,null,null,null,null,null,null,null,null,null,null,null,null,null,null,null,null,null,null,null,null,null,null,null,null,null,null,null,null,null,null,null,null,null,null,null,null,null,null,null,null,null,null,null,null,null,null,null,null,null,null,null,null,null,null,null,null,null,null,null,null,null,null,null,null,null,"➊","🔝",{"$f":"D84","v":"Did this D.A.T helped you define your digital\nWEEK & STRONG points?"},0,{"$f":"IF($KJ84=1,1,0)","v":0},{"$f":"IF($KJ84=2,2,0)","v":0},null,null,null,0,{"$f":"IF(KJ84=2,0,IF(AND(KJ84=1,KJ85=1),20,IF(KJ84=1,10,0)))","v":0},null,{"$f":"IF(KJ84=1,1,0)","v":0},"",3,{"$f":"IF($KO84=1,$KJ84,0)","v":0},{"$f":"IF($KO84=2,$KJ84,0)","v":0},{"$f":"IF($KO84=3,$KJ84*3,0)","v":0},{"$f":"IF($KO84=4,$KJ84,0)","v":0},{"$f":"IF($KO84=5,$KJ84,0)","v":0}]
[{"$f":"C85","v":""},"➋",{"$f":"IF(KJ85=1,1,IF(KJ85=2,0,\"\"))","v":""},"Did you intend to use EOOTB platform and its innovations\nin the next 6 months?",1,null,null,null,null,null,null,null,null,null,null,null,null,null,null,null,null,null,null,null,null,null,null,null,null,null,null,null,null,null,null,null,null,null,null,null,null,null,null,null,null,null,null,null,null,null,null,null,null,null,null,null,null,null,null,null,null,null,null,null,null,null,null,null,null,null,null,null,null,null,null,null,null,null,null,null,null,null,null,null,null,null,null,null,null,null,null,null,null,null,null,null,null,null,null,null,null,null,null,null,null,null,null,null,null,null,null,null,null,null,null,null,null,null,null,null,null,null,null,null,null,null,null,null,null,null,null,null,null,null,null,null,null,null,null,null,null,null,null,null,null,null,null,null,null,null,null,null,null,null,null,null,null,null,null,null,null,null,null,null,null,null,null,null,null,null,null,null,null,null,null,null,null,null,null,null,null,null,null,null,null,null,null,null,null,null,null,null,null,null,null,null,null,null,null,null,null,null,null,null,null,null,null,null,null,null,null,null,null,null,null,null,null,null,null,null,null,null,null,null,null,null,null,null,null,null,null,null,null,null,null,null,null,null,null,null,null,null,null,null,null,null,null,null,null,null,null,null,null,null,null,null,null,null,null,null,null,null,null,null,null,null,null,null,null,null,null,null,null,null,null,null,null,null,null,null,null,null,null,null,null,null,"➋","📃",{"$f":"D85","v":"Did you intend to use EOOTB platform and its innovations\nin the next 6 months?"},0,{"$f":"IF($KJ85=1,1,0)","v":0},{"$f":"IF($KJ85=2,2,0)","v":0},null,null,null,0,{"$f":"IF(KJ85=2,0,IF(KJ85=1,10,0))","v":0},null,{"$f":"IF(KJ85=1,1,0)","v":0},"",5,{"$f":"IF($KO85=1,$KJ85,0)","v":0},{"$f":"IF($KO85=2,$KJ85,0)","v":0},{"$f":"IF($KO85=3,$KJ85,0)","v":0},{"$f":"IF($KO85=4,$KJ85,0)","v":0},{"$f":"IF($KO85=5,$KJ85*3,0)","v":0}]
[null,null,null,null,null,null,null,null,null,null,null,null,null,null,null,null,null,null,null,null,null,null,null,null,null,null,null,null,null,null,null,null,null,null,null,null,null,null,null,null,null,null,null,null,null,null,null,null,null,null,null,null,null,null,null,null,null,null,null,null,null,null,null,null,null,null,null,null,null,null,null,null,null,null,null,null,null,null,null,null,null,null,null,null,null,null,null,null,null,null,null,null,null,null,null,null,null,null,null,null,null,null,null,null,null,null,null,null,null,null,null,null,null,null,null,null,null,null,null,null,null,null,null,null,null,null,null,null,null,null,null,null,null,null,null,null,null,null,null,null,null,null,null,null,null,null,null,null,null,null,null,null,null,null,null,null,null,null,null,null,null,null,null,null,null,null,null,null,null,null,null,null,null,null,null,null,null,null,null,null,null,null,null,null,null,null,null,null,null,null,null,null,null,null,null,null,null,null,null,null,null,null,null,null,null,null,null,null,null,null,null,null,null,null,null,null,null,null,null,null,null,null,null,null,null,null,null,null,null,null,null,null,null,null,null,null,null,null,null,null,null,null,null,null,null,null,null,null,null,null,null,null,null,null,null,null,null,null,null,null,null,null,null,null,null,null,null,null,null,null,null,null,null,null,null,null,null,null,null,null,null,null,null,null,null,null,null,null,null,null,null,null,null,null,null,null,null,null,"NO"]
["This document is protected by copyright under article L. 111-1 of the Intellectual Property Code (CPI/IPC), which stipulates that \"Mr Charles KRIM, President of the FAPEL Federation and author of this work of the mind, enjoys an exclusive intangible property right in this work, enforceable against all parties, solely by virtue of its creation\"."]
["Self-Competences Digital Assessment",null,null,null,null,null,null,null,null,null,null,null,null,null,null,null,null,null,null,null,null,null,null,null,null,null,null,null,null,null,null,null,null,null,null,null,null,null,null,null,null,null,null,null,null,null,null,null,null,null,null,null,null,null,null,null,null,null,null,null,null,null,null,null,null,null,null,null,null,null,null,null,null,null,null,null,null,null,null,null,null,null,null,null,null,null,null,null,null,null,null,null,null,null,null,null,null,null,null,null,null,null,null,null,null,null,null,null,null,null,null,null,null,null,null,null,null,null,null,null,null,null,null,null,null,null,null,null,null,null,null,null,null,null,null,null,null,null,null,null,null,null,null,null,null,null,null,null,null,null,null,null,null,null,null,null,null,null,null,null,null,null,null,null,null,null,null,null,null,null,null,null,null,null,null,null,null,null,null,null,null,null,null,null,null,null,null,null,null,null,null,null,null,null,null,null,null,null,null,null,null,null,null,null,null,null,null,null,null,null,null,null,null,null,null,null,null,null,null,null,null,null,null,null,null,null,null,null,null,null,null,null,null,null,null,null,null,null,null,null,null,null,null,null,null,null,null,null,null,null,null,null,null,null,null,null,null,null,null,null,null,null,null,null,null,null,null,null,null,null,null,null,null,null,null,null,null,null,null,null,null,null,null,null,null,null,null,null,null,null,null,null,null,null,null,null,"",null,null,"Information",null,null,null,""]
[]
["",null,null,"Information",null,null,null,"",null,null,null,null,null,null,null,null,null,null,null,null,null,null,null,null,null,null,null,null,null,null,null,null,null,null,null,null,null,null,null,null,null,null,null,null,null,null,null,null,null,null,null,null,null,null,null,null,null,null,null,null,null,null,null,null,null,null,null,null,null,null,null,null,null,null,null,null,null,null,null,null,null,null,null,null,null,null,null,null,null,null,null,null,null,null,null,null,null,null,null,null,null,null,null,null,null,null,null,null,null,null,null,null,null,null,null,null,null,null,null,null,null,null,null,null,null,null,null,null,null,null,null,null,null,null,null,null,null,null,null,null,null,null,null,null,null,null,null,null,null,null,null,null,null,null,null,null,null,null,null,null,null,null,null,null,null,null,null,null,null,null,null,null,null,null,null,null,null,null,null,null,null,null,null,null,null,null,null,null,null,null,null,null,null,null,null,null,null,null,null,null,null,null,null,null,null,null,null,null,null,null,null,null,null,null,null,null,null,null,null,null,null,null,null,null,null,null,null,null,null,null,null,null,null,null,null,null,null,null,null,null,null,null,null,null,null,null,null,null,null,null,null,null,null,null,null,null,null,null,null,null,null,null,null,null,null,null,null,null,null,null,null,null,null,null,null,null,null,null,null,null,null,null,null,null,null,null,"",null,null,null,null,null,null,null,null,null,"📣",null,null,"Communication",null,null,null,"📣"]
[]
["📣",null,null,"Communication",null,null,null,"📣",null,null,null,null,null,null,null,null,null,null,null,null,null,null,null,null,null,null,null,null,null,null,null,null,null,null,null,null,null,null,null,null,null,null,null,null,null,null,null,null,null,null,null,null,null,null,null,null,null,null,null,null,null,null,null,null,null,null,null,null,null,null,null,null,null,null,null,null,null,null,null,null,null,null,null,null,null,null,null,null,null,null,null,null,null,null,null,null,null,null,null,null,null,null,null,null,null,null,null,null,null,null,null,null,null,null,null,null,null,null,null,null,null,null,null,null,null,null,null,null,null,null,null,null,null,null,null,null,null,null,null,null,null,null,null,null,null,null,null,null,null,null,null,null,null,null,null,null,null,null,null,null,null,null,null,null,null,null,null,null,null,null,null,null,null,null,null,null,null,null,null,null,null,null,null,null,null,null,null,null,null,null,null,null,null,null,null,null,null,null,null,null,null,null,null,null,null,null,null,null,null,null,null,null,null,null,null,null,null,null,null,null,null,null,null,null,null,null,null,null,null,null,null,null,null,null,null,null,null,null,null,null,null,null,null,null,null,null,null,null,null,null,null,null,null,null,null,null,null,null,null,null,null,null,null,null,null,null,null,null,null,null,null,null,null,null,null,null,null,null,null,null,null,null,null,null,null,null,"📣",null,null,null,null,null,null,null,null,null,"",null,null,"Content creation",null,null,null,""]
[]
["",null,null,"Content creation",null,null,null,"",null,null,null,null,null,null,null,null,null,null,null,null,null,null,null,null,null,null,null,null,null,null,null,null,null,null,null,null,null,null,null,null,null,null,null,null,null,null,null,null,null,null,null,null,null,null,null,null,null,null,null,null,null,null,null,null,null,null,null,null,null,null,null,null,null,null,null,null,null,null,null,null,null,null,null,null,null,null,null,null,null,null,null,null,null,null,null,null,null,null,null,null,null,null,null,null,null,null,null,null,null,null,null,null,null,null,null,null,null,null,null,null,null,null,null,null,null,null,null,null,null,null,null,null,null,null,null,null,null,null,null,null,null,null,null,null,null,null,null,null,null,null,null,null,null,null,null,null,null,null,null,null,null,null,null,null,null,null,null,null,null,null,null,null,null,null,null,null,null,null,null,null,null,null,null,null,null,null,null,null,null,null,null,null,null,null,null,null,null,null,null,null,null,null,null,null,null,null,null,null,null,null,null,null,null,null,null,null,null,null,null,null,null,null,null,null,null,null,null,null,null,null,null,null,null,null,null,null,null,null,null,null,null,null,null,null,null,null,null,null,null,null,null,null,null,null,null,null,null,null,null,null,null,null,null,null,null,null,null,null,null,null,null,null,null,null,null,null,null,null,null,null,null,null,null,null,null,null,"",null,null,null,null,null,null,null,null,null,"",null,null,"Safety",null,null,null,""]
[]
["",null,null,"Safety",null,null,null,"",null,null,null,null,null,null,null,null,null,null,null,null,null,null,null,null,null,null,null,null,null,null,null,null,null,null,null,null,null,null,null,null,null,null,null,null,null,null,null,null,null,null,null,null,null,null,null,null,null,null,null,null,null,null,null,null,null,null,null,null,null,null,null,null,null,null,null,null,null,null,null,null,null,null,null,null,null,null,null,null,null,null,null,null,null,null,null,null,null,null,null,null,null,null,null,null,null,null,null,null,null,null,null,null,null,null,null,null,null,null,null,null,null,null,null,null,null,null,null,null,null,null,null,null,null,null,null,null,null,null,null,null,null,null,null,null,null,null,null,null,null,null,null,null,null,null,null,null,null,null,null,null,null,null,null,null,null,null,null,null,null,null,null,null,null,null,null,null,null,null,null,null,null,null,null,null,null,null,null,null,null,null,null,null,null,null,null,null,null,null,null,null,null,null,null,null,null,null,null,null,null,null,null,null,null,null,null,null,null,null,null,null,null,null,null,null,null,null,null,null,null,null,null,null,null,null,null,null,null,null,null,null,null,null,null,null,null,null,null,null,null,null,null,null,null,null,null,null,null,null,null,null,null,null,null,null,null,null,null,null,null,null,null,null,null,null,null,null,null,null,null,null,null,null,null,null,null,null,"",null,null,null,null,null,null,null,null,null,"",null,null,"Problem Solving",null,null,null,""]
[]
["",null,null,"Problem Solving",null,null,null,"",null,null,null,null,null,null,null,null,null,null,null,null,null,null,null,null,null,null,null,null,null,null,null,null,null,null,null,null,null,null,null,null,null,null,null,null,null,null,null,null,null,null,null,null,null,null,null,null,null,null,null,null,null,null,null,null,null,null,null,null,null,null,null,null,null,null,null,null,null,null,null,null,null,null,null,null,null,null,null,null,null,null,null,null,null,null,null,null,null,null,null,null,null,null,null,null,null,null,null,null,null,null,null,null,null,null,null,null,null,null,null,null,null,null,null,null,null,null,null,null,null,null,null,null,null,null,null,null,null,null,null,null,null,null,null,null,null,null,null,null,null,null,null,null,null,null,null,null,null,null,null,null,null,null,null,null,null,null,null,null,null,null,null,null,null,null,null,null,null,null,null,null,null,null,null,null,null,null,null,null,null,null,null,null,null,null,null,null,null,null,null,null,null,null,null,null,null,null,null,null,null,null,null,null,null,null,null,null,null,null,null,null,null,null,null,null,null,null,null,null,null,null,null,null,null,null,null,null,null,null,null,null,null,null,null,null,null,null,null,null,null,null,null,null,null,null,null,null,null,null,null,null,null,null,null,null,null,null,null,null,null,null,null,null,null,null,null,null,null,null,null,null,null,null,null,null,null,null,""]
[]
[]
[]
[]
[null,null,null,null,null,null,null,null,null,null,null,null,null,null,null,null,null,null,null,null,null,null,null,null,null,null,null,null,null,null,null,null,null,null,null,null,null,null,null,null,null,null,null,null,null,null,null,null,null,null,null,null,null,null,null,null,null,null,null,null,null,null,null,null,null,null,null,null,null,null,null,null,null,null,null,null,null,null,null,null,null,null,null,null,null,null,null,null,null,null,null,null,null,null,null,null,null,null,null,null,null,null,null,null,null,null,null,null,null,null,null,null,null,null,null,null,null,null,null,null,null,null,null,null,null,null,null,null,null,null,null,null,null,null,null,null,null,null,null,null,null,null,null,null,null,null,null,null,null,null,null,null,null,null,null,null,null,null,null,null,null,null,null,null,null,null,null,null,null,null,null,null,null,null,null,null,null,null,null,null,null,null,null,null,null,null,null,null,null,null,null,null,null,null,null,null,null,null,null,null,null,null,null,null,null,null,null,null,null,null,null,null,null,null,null,null,null,null,null,null,null,null,null,null,null,null,null,null,null,null,null,null,null,null,null,null,null,null,null,null,null,null,null,null,null,null,null,null,null,null,null,null,null,null,null,null,null,null,null,null,null,null,null,null,null,null,null,null,null,null,null,null,null,null,null,null,null,null,null,null,null,null,null,null,null,null,null,null,null,null,null,null,null,null,null,null,null,null,{"$f":"AVERAGE(LP1:LT1)","v":{"$error":"#DIV/0!"}}]
[]
[null,null,{"$f":"AVERAGE(KP3:KT3)","v":0}]
[]
[]
[]
[]
[]
[]
[null,null,null,null,null,null,null,null,null,null,null,null,null,null,null,null,null,null,null,null,null,null,null,null,null,null,null,null,null,null,null,null,null,null,null,null,null,null,null,null,null,null,null,null,null,null,null,null,null,null,null,null,null,null,null,null,null,null,null,null,null,null,null,null,null,null,null,null,null,null,null,null,null,null,null,null,null,null,null,null,null,null,null,null,null,null,null,null,null,null,null,null,null,null,null,null,null,null,null,null,null,null,null,null,null,null,null,null,null,null,null,null,null,null,null,null,null,null,null,null,null,null,null,null,null,null,null,null,null,null,null,null,null,null,null,null,null,null,null,null,null,null,null,null,null,null,null,null,null,null,null,null,null,null,null,null,null,null,null,null,null,null,null,null,null,null,null,null,null,null,null,null,null,null,null,null,null,null,null,null,null,null,null,null,null,null,null,null,null,null,null,null,null,null,null,null,null,null,null,null,null,null,null,null,null,null,null,null,null,null,null,null,null,null,null,null,null,null,null,null,null,null,null,null,null,null,null,null,null,null,null,null,null,null,null,null,null,null,null,null,null,null,null,null,null,null,null,null,null,null,null,null,null,null,null,null,null,null,null,null,null,null,null,null,null,null,null,null,null,null,null,null,null,null,null,null,null,null,null,null,null,null,null,null,null,null,null,null,null,null,null,null,null,null,null,null,"     📣            ",null,null,null,null,null,null,null,"       📣           "]
[null,null,null,null,null,null,null,null,null,null,null,null,null,null,null,null,null,null,null,null,null,null,null,null,null,null,null,null,null,null,null,null,null,null,null,null,null,null,null,null,null,null,null,null,null,null,null,null,null,null,null,null,null,null,null,null,null,null,null,null,null,null,null,null,null,null,null,null,null,null,null,null,null,null,null,null,null,null,null,null,null,null,null,null,null,null,null,null,null,null,null,null,null,null,null,null,null,null,null,null,null,null,null,null,null,null,null,null,null,null,null,null,null,null,null,null,null,null,null,null,null,null,null,null,null,null,null,null,null,null,null,null,null,null,null,null,null,null,null,null,null,null,null,null,null,null,null,null,null,null,null,null,null,null,null,null,null,null,null,null,null,null,null,null,null,null,null,null,null,null,null,null,null,null,null,null,null,null,null,null,null,null,null,null,null,null,null,null,null,null,null,null,null,null,null,null,null,null,null,null,null,null,null,null,null,null,null,null,null,null,null,null,null,null,null,null,null,null,null,null,null,null,null,null,null,null,null,null,null,null,null,null,null,null,null,null,null,null,null,null,null,null,null,null,null,null,null,null,null,null,null,null,null,null,null,null,null,null,null,null,null,null,null,null,null,null,null,null,null,null,null,null,null,null,null,null,null,null,null,null,null,null,null,null,null,null,null,null,null,null,null,null,null,null,null,null,"             Information     Communication   Content Creation          Safety         Problem Solving",null,null,null,null,null,null,null,"        Information     Communication   Content Creation      Safety       Problem Solving"]
["     📣            ",null,null,null,null,null,null,null,"       📣           "]
["             Information     Communication   Content Creation          Safety         Problem Solving",null,null,null,null,null,null,null,"        Information     Communication   Content Creation      Safety       Problem Solving"]
[]
[]
[]
[]
[]
[]
[]
[]
[]
[]
[]
[]
[]
[]
[]
[]
[]
[]
[]
[]
[]
[]
[]
[]
[]
[]
[]
[]
[]
[]
[]
[]
[]
[]
[]
[]
[]
[]
[]
[]
[]
[]
[]
[]
[]
[]
[]
[]
[]
[]
[]
[]
[]
[]
[]
[]
[]
[]
[]
[]
[]
[]
[]
[]
[]
[]
[]
[]
[]
[]
[]
[]
[]
[]
[]
[]
[]
[]
[]
[]
[]
[]
[]
[]
[]
[]
[]
[]
[]
[]
[]
[]
[]
[]
[]
[]
[]
[]
[]
[]
[]
[]
[]
[]
[]
[]
[]
[]
[]
[]
[]
[]
[]
[]
[]
[]
[]
[]
[]
[]
[]
[]
[]
[]
[]
[]
[]
[]
[]
[]
[]
[]
[]
[]
[]
[]
[]
[]
[]
[]
[]
[]
[]
[]
[]
[]
[]
[]
[]
[]
[]
[]
[]
[]
[]
[]
[]
[]
[]
[]
[]
[]
[]
[]
[]
[]
[]
[]
[]
[]
[]
[]
[]
[]
[]
[]
[]
[]
[]
[]
[]
[]
[]
[]
[]
[]
[]
[]
[]
[]
[]
[]
[]
[]
[]
[]
[]
[]
[]
[]
[]
[]
[]
[]
[]
[]
[]
[]
[]
[]
[]
[]
[]
[]
[]
[]
[]
[]
[]
[]
[]
[]
[]
[]
[]
[]
[]
[]
[]
[]
[]
[]
[]
[]
[]
[]
[]
[]
[]
[]
[]
[]
[]
[]
[]
[]
[]
[]
[]
[]
[]
[]
[]
[]
[]
[]
[]
[]
[]
[]
[]
[]
[]
[]
[]
[]
[]
[]
[]
[]
[]
[]
[]
[]
[]
[]
[]
[]
[]
[]
[]
[]
[]
[]
[]
[]
[]
[]
[]
[]
[]
[]
[]
[]
[]
[]
[]
[]
[]
[]
[]
[]
[]
[]
[]
[]
[]
[]
[]
[]
[]
[]
[]
[]
[]
[]
[]
[]
[]
[]
[]
[]
[]
[]
[]
[]
[]
[]
[]
[]
[]
[]
[]
[]
[]
[]
[]
[]
[]
[]
[]
[]
[]
[]
[]
[]
[]
[]
[]
[]
[]
[]
[]
[]
[]
[]
[]
[]
[]
[]
[]
[]
[]
[]
[]
[]
[]
[]
[]
[]
[]
[]
[]
[]
[]
[]
[]
[]
[]
[]
[]
[]
[]
[]
[]
[]
[]
[]
[]
[]
[]
[]
[]
[]
[]
[]
[]
[]
[]
[]
[]
[]
[]
[]
[]
[]
[]
[]
[]
[]
[]
[]
[]
[]
[]
[]
[]
[]
[]
[]
[]
[]
[]
[]
[]
[]
[]
[]
[]
[]
[]
[]
[]
[]
[]
[]
[]
[]
[]
[]
[]
[]
[]
[]
[]
[]
[]
[]
[]
[]
[]
[]
[]
[]
[]
[]
[]
[]
[]
[]
[]
[]
[]
[]
[]
[]
[]
[]
[]
[]
[]
[]
[]
[]
[]
[]
[]
[]
[]
[]
[]
[]
[]
[]
[]
[]
[]
[]
[]
[]
[]
[]
[]
[]
[]
[]
[]
[]
[]
[]
[]
[]
[]
[]
[]
[]
[]
[]
[]
[]
[]
[]
[]
[]
[]
[]
[]
[]
[]
[]
[]
[]
[]
[]
[]
[]
[]
[]
[]
[]
[]
[]
[]
[]
[]
[]
[]
[]
[]
[]
[]
[]
[]
[]
[]
[]
[]
[]
[]
[]
[]
[]
[]
[]
[]
[]
[]
[]
[]
[]
[]
[]
[]
[]
[]
[]
[]
[]
[]
[]
[]
[]
[]
[]
[]
[]
[]
[]
[]
[]
[]
[]
[]
[]
[]
[]
[]
[]
[]
[]
[]
[]
[]
[]
[]
[]
[]
[]
[]
[]
[]
[]
[]
[]
[]
[]
[]
[]
[]
[]
[]
[]
[]
[]
[]
[]
[]
[]
[]
[]
[]
[]
[]
[]
[]
[]
[]
[]
[]
[]
[]
[]
[]
[]
[]
[]
[]
[]
[]
[]
[]
[]
[]
[]
[]
[]
[]
[]
[]
[]
[]
[]
[]
[]
[]
[]
[]
[]
[]
[]
[]
[]
[]
[]
[]
[]
[]
[]
[]
[]
[]
[]
[]
[]
[]
[]
[]
[]
[]
[]
[]
[]
[]
[]
[]
[]
[]
[]
[]
[]
[]
[]
[]
[]
[]
[]
[]
[]
[]
[]
[]
[]
[]
[]
[]
[]
[]
[]
[]
[]
[]
[]
[]
[]
[]
[]
[]
[]
[]
[]
[]
[]
[]
[]
[]
[]
[]
[]
[]
[]
[]
[]
[]
[]
[]
[]
[]
[]
[]
[]
[]
[]
[]
[]
[]
[]
[]
[]
[]
[]
[]
[]
[]
[]
[]
[]
[]
[]
[]
[]
[]
[]
[]
[]
[]
[]
[]
[]
[]
[]
[]
[]
[]
[]
[]
[]
[]
[]
[]
[]
[]
[]
[]
[]
[]
[]
[]
[]
[]
[]
[]
[]
[]
[]
[]
[]
[]
[]
[]
[]
[]
[]
[]
[]
[]
[]
[]
[]
[]
[]
[]
[]
[]
[]
[]
[]
[]
[]
[]
[]
[]
[]
[]
[]
[]
[]
[]
[]
[]
[]
[]
[]
[]
[]
[]
[]
[]
[]
[]
[]
[]
[]
[]
[]
[]
[]
[]
[]
[]
[]
[]
[]
[]
[]
[]
[]
[]
[]
[]
[]
[]
[]
[]
[]
[]
[]
[]
[]
[]
[]
[]
[]
[]
[]
[]
[]
[]
[]
[]
[]
[]
[]
[]
[]
[]
[]
[]
[]
[]
[]
[]
[]
[]
[]
[]
[]
[]
[]
[]
[]
[]
[]
[]
[]
[]
[]
[]
[]
[]
[]
[]
[]
[]
[]
[]
[]
[]
[]
[]
[]
[]
[]
[]
[]
[]
[]
[]
[]
[]
[]
[]
[]
[]
[]
[]
[]
[]
[]
[]
[]
[]
[]
[]
[]
[]
[]
[]
[]
[]
[]
[]
[]
[]
[]
[]
[]
[]
[]
[]
[]
[]
[]
[]
[]
[]
[]
[]
[]
[]
[]
[]
[]
[]
[]
[]
[]
[]
[]
[]
[]
[]
[]
[]
[]
[]
[]
[]
[]
[]
[]
[]
[]
[]
[]
[]
[]
[]
[]
[]
[]
[]
[]
[]
[]
[]
[]
[]
[]
[]
[]
[]
[]
[]
[]
[]
[]
[]
[]
[]
[]
[]
[]
[]
[]
[]
[]
[]
[]
[]
[]
[]
[]
[]
[]
[]
[]
[]
[]
[]
[]
[]
[]
[]
[]
[]
[]
[]
[]
[]
[]
[]
[]
[]
[]
[]
[]
[]
[]
[]
[]
[]
[]
[]
[]
[]
[]
[]
[]
[]
[]
[]
[]
[]
[]
[]
[]
[]
[]
[]
[]
[]
[]
[]
[]
[]
[]
[]
[]
[]
[]
[]
[]
[]
[]
[]
[]
[]
[]
[]
[]
[]
[]
[]
[]
[]
[]
[]
[]
[]
[]
[]
[]
[]
[]
[]
[]
[]
[]
[]
[]
[]
[]
[]
[]
[]
[]
[]
[]
[]
[]
[]
[]
[]
[]
[]
[]
[]
[]
[]
[]
[]
[]
[]
[]
[]
[]
[]
[]
[]
[]
[]
[]
[]
[]
[]
[]
[]
[]
[]
[]
[]
[]
[]
[]
[]
[]
[]
[]
[]
[]
[]
[]
[]
[]
[]
[]
[]
[]
[]
[]
[]
[]
[]
[]
[]
[]
[]
[]
[]
[]
[]
[]
[]
[]
[]
[]
[]
[]
[]
[]
[]
[]
[]
[]
[]
[]
[]
[]
[]
[]
[]
[]
[]
[]
[]
[]
[]
[]
[]
[]
[]
[]
[]
[]
[]
[]
[]
[]
[]
[]
[]
[]
[]
[]
[]
[]
[]
[]
[]
[]
[]
[]
[]
[]
[]
[]
[]
[]
[]
[]
[]
[]
[]
[]
[]
[]
[]
[]
[]
[]
[]
[]
[]
[]
[]
[]
[]
[]
[]
[]
[]
[]
[]
[]
[]
[]
[]
[]
[]
[]
[]
[]
[]
[]
[]
[]
[]
[]
[]
[]
[]
[]
[]
[]
[]
[]
[]
[]
[]
[]
[]
[]
[]
[]
[]
[]
[]
[]
[]
[]
[]
[]
[]
[]
[]
[]
[]
[]
[]
[]
[]
[]
[]
[]
[]
[]
[]
[]
[]
[]
[]
[]
[]
[]
[]
[]
[]
[]
[]
[]
[]
[]
[]
[]
[]
[]
[]
[]
[]
[]
[]
[]
[]
[]
[]
[]
[]
[]
[]
[]
[]
[]
[]
[]
[]
[]
[]
[]
[]
[]
[]
[]
[]
[]
[]
[]
[]
[]
[]
[]
[]
[]
[]
[]
[]
[]
[]
[]
[]
[]
[]
[]
[]
[]
[]
[]
[]
[]
[]
[]
[]
[]
[]
[]
[]
[]
[]
[]
[]
[]
[]
[]
[]
[]
[]
[]
[]
[]
[]
[]
[]
[]
[]
[]
[]
[]
[]
[]
[]
[]
[]
[]
[]
[]
[]
[]
[]
[]
[]
[]
[]
[]
[]
[]
[]
[]
[]
[]
[]
[]
[]
[]
[]
[]
[]
[]
[]
[]
[]
[]
[]
[]
[]
[]
[]
[]
[]
[]
[]
[]
[]
[]
[]
[]
[]
[]
[]
[]
[]
[]
[]
[]
[]
[]
[]
[]
[]
[]
[]
[]
[]
[]
[]
[]
[]
[]
[]
[]
[]
[]
[]
[]
[]
[]
[]
[]
[]
[]
[]
[]
[]
[]
[]
[]
[]
[]
[]
[]
[]
[]
[]
[]
[]
[]
[]
[]
[]
[]
[]
[]
[]
[]
[]
[]
[]
[]
[]
[]
[]
[]
[]
[]
[]
[]
[]
[]
[]
[]
[]
[]
[]
[]
[]
[]
[]
[]
[]
[]
[]
[]
[]
[]
[]
[]
[]
[]
[]
[]
[]
[]
[]
[]
[]
[]
[]
[]
[]
[]
[]
[]
[]
[]
[]
[]
[]
[]
[]
[]
[]
[]
[]
[]
[]
[]
[]
[]
[]
[]
[]
[]
[]
[]
[]
[]
[]
[]
[]
[]
[]
[]
[]
[]
[]
[]
[]
[]
[]
[]
[]
[]
[]
[]
[]
[]
[]
[]
[]
[]
[]
[]
[]
[]
[]
[]
[]
[]
[]
[]
[]
[]
[]
[]
[]
[]
[]
[]
[]
[]
[]
[]
[]
[]
[]
[]
[]
[]
[]
[]
[]
[]
[]
[]
[]
[]
[]
[]
[]
[]
[]
[]
[]
[]
[]
[]
[]
[]
[]
[]
[]
[]
[]
[]
[]
[]
[]
[]
[]
[]
[]
[]
[]
[]
[]
[]
[]
[]
[]
[]
[]
[]
[]
[]
[]
[]
[]
[]
[]
[]
[]
[]
[]
[]
[]
[]
[]
[]
[]
[]
[]
[]
[]
[]
[]
[]
[]
[]
[]
[]
[]
[]
[]
[]
[]
[]
[]
[]
[]
[]
[]
[]
[]
[]
[]
[]
[]
[]
[]
[]
[]
[]
[]
[]
[]
[]
[]
[]
[]
[]
[]
[]
[]
[]
[]
[]
[]
[]
[]
[]
[]
[]
[]
[]
[]
[]
[]
[]
[]
[]
[]
[]
[]
[]
[]
[]
[]
[]
[]
[]
[]
[]
[]
[]
[]
[]
[]
[]
[]
[]
[]
[]
[]
[]
[]
[]
[]
[]
[]
[]
[]
[]
[]
[]
[]
[]
[]
[]
[]
[]
[]
[]
[]
[]
[]
[]
[]
[]
[]
[]
[]
[]
[]
[]
[]
[]
[]
[]
[]
[]
[]
[]
[]
[]
[]
[]
[]
[]
[]
[]
[]
[]
[]
[]
[]
[]
[]
[]
[]
[]
[]
[]
[]
[]
[]
[]
[]
[]
[]
[]
[]
[]
[]
[]
[]
[]
[]
[]
[]
[]
[]
[]
[]
[]
[]
[]
[]
[]
[]
[]
[]
[]
[]
[]
[]
[]
[]
[]
[]
[]
[]
[]
[]
[]
[null,null,null,null,null,null,null,null,null,null,null,null,null,null,null,null,null,null,null,null,null,null,null,null,null,null,null,null,null,null,null,null,null,null,null,null,null,null,null,null,null,null,null,null,null,null,null,null,null,null,null,null,null,null,null,null,null,null,null,null,null,null,null,null,null,null,null,null,null,null,null,null,null,null,null,null,null,null,null,null,null,null,null,null,null,null,null,null,null,null,null,null,null,null,null,null,null,null,null,null,null,null,null,null,null,null,null,null,null,null,null,null,null,null,null,null,null,null,null,null,null,null,null,null,null,null,null,null,null,null,null,null,null,null,null,null,null,null,null,null,null,null,null,null,null,null,null,null,null,null,null,null,null,null,null,null,null,null,null,null,null,null,null,null,null,null,null,null,null,null,null,null,null,null,null,null,null,null,null,null,null,null,null,null,null,null,null,null,null,null,null,null,null,null,null,null,null,null,null,null,null,null,null,null,null,null,null,null,null,null,null,null,null,null,null,null,null,null,null,null,null,null,null,null,null,null,null,null,null,null,null,null,null,null,null,null,null,null,null,null,null,null,null,null,null,null,null,null,null,null,null,null,null,null,null,null,null,null,null,null,null,null,null,null,null,null,null,null,null,null,null,null,null,null,null,null,null,null,null,null,null,null,null,null,null,null,null,null,null,null,null,null,null,null,null,null,null,null,null,null,null,null,null,null,null,null,null,null,null,null,null,null,null,null,null,null,null,null,null,null,null,null,null,null,null,null,null,null,null,null,null,null,null,null,null,null,null,null,null,null,null,null,null,null,null,null,null,null,null,null,null,null,null,null,null,null,null,null,null,null,null,null,null,null,null,null,null,null,null,null,null,null,null,null,null,null,null," ."]
[null,null,null,null,null,null,null,null,null,null,null,null,null,null,null,null,null,null,null,null,null,null,null,null,null,null,null,null,null,null,null,null,null,null,null,null,null,null,null,null,null,null,null,null,null,null,null,null,null,null,null,null,null,null,null,null,null,null,null,null,null,null,null,null,null,null,null,null,null,null,null,null,null,null,null,null,null,null,null,null,null,null,null,null,null,null,null,null,null,null,null,null,null,null,null,null,null,null,null,null,null,null,null,null,null,null,null,null,null,null,null,null,null,null,null,null,null,null,null,null,null,null,null,null,null,null,null,null,null,null,null,null,null,null,null,null,null,null,null,null,null,null,null,null,null,null,null,null,null,null,null,null,null,null,null,null,null,null,null,null,null,null,null,null,null,null,null,null,null,null,null,null,null,null,null,null,null,null,null,null,null,null,null,null,null,null,null,null,null,null,null,null,null,null,null,null,null,null,null,null,null,null,null,null,null,null,null,null,null,null,null,null,null,null,null,null,null,null,null,null,null,null,null,null,null,null,null,null,null,null,null,null,null,null,null,null,null,null,null,null,null,null,null,null,null,null,null,null,null,null,null,null,null,null,null,null,null,null,null,null,null,null,null,null,null,null,null,null,null,null,null,null,null,null,null,null,null,null,null,null,null,null,null,null,null,null,null,null,null,null,null,null,null,null,null,null,null,null,null,null,null,null,null,null,null,null,null,null,null,null,null,null,null,null,null,null,null,null,null,null,null,null,null,null,null,null,null,null,null,null,null,null,null,null,null,null,null,null,null,null,null,null,null,null,null,null,null,null,null,null,null,null,null,null,null,null,null,null,null,null,null,null,null,null,null,null,null,null,null,null,null,null,null,null,null,null,null," ."]

{"sheet":"Digital Assessment Tool","index":1,"n_rows":2020,"n_cols":542,"rows_kept":2020,"cut":false,"hidden":false,"merged":[[97,3,97,5],[89,3,89,5],[1,14,1,16],[2,14,2,16],[1,12,1,13],[2,12,2,13],[55,4,55,5],[55,7,55,8],[7,1,7,4],[6,0,6,4],[5,6,5,10],[22,1,22,2],[29,1,29,2],[29,4,29,5],[29,7,29,8],[30,4,30,5],[111,194,111,201],[111,202,111,210],[112,194,112,200],[112,202,112,210],[102,196,108,197],[91,3,91,5],[93,3,93,5],[104,2,107,3],[50,535,50,542],[51,535,51,542],[52,535,52,542],[53,535,53,542],[60,1,61,2],[60,3,61,3],[75,1,75,2],[82,1,82,2],[82,4,82,5],[82,7,82,8],[83,4,83,5],[87,0,87,16],[95,3,95,5],[48,1,48,2],[4,207,4,208],[5,197,7,197],[5,198,7,198],[5,199,7,199],[5,200,7,200],[5,201,7,201],[5,202,7,202],[5,203,7,203],[34,1,34,2],[41,1,41,2],[125,0,125,16],[3,0,3,2],[3,4,3,11],[3,12,3,16],[6,10,7,10],[4,11,4,14],[114,0,114,6],[114,8,114,16],[15,1,15,2],[8,1,8,2],[55,1,55,2],[123,0,123,16],[68,1,68,2],[113,0,113,7],[113,8,113,16],[108,2,111,3]]}
[null,null,null,null,null,null,null,null,null,null,null,null,null,null,null,null,null,null,null,null,null,null,null,null,null,null,null,null,null,null,null,null,null,null,null,null,null,null,null,null,null,null,null,null,null,null,null,null,null,null,null,null,null,null,null,null,null,null,null,null,null,null,null,null,null,null,null,null,null,null,null,null,null,null,null,null,null,null,null,null,null,null,null,null,null,null,null,null,null,null,null,null,null,null,null,null,null,null,null,null,null,null,null,null,null,null,null,null,null,null,null,null,null,null,null,null,null,null,null,null,null,null,null,null,null,null,null,null,null,null,null,null,null,null,null,null,null,null,null,null,null,null,null,null,null,null,null,null,null,null,null,null,null,null,null,null,null,null,null,null,null,null,null,null,null,null,null,null,null,null,null,null,null,null,null,null,null,null,null,null,null,null,"Poor",10,15,null,null,{"$f":"'EOOTB - D.S.A.T (01)'!KC1","v":0},{"$f":"'EOOTB - D.S.A.T (01)'!KE1","v":0},{"$f":"'EOOTB - D.S.A.T (01)'!KF1","v":0},{"$f":"'EOOTB - D.S.A.T (01)'!KG1","v":0},{"$f":"'EOOTB - D.S.A.T (01)'!KH1","v":0},{"$f":"'EOOTB - D.S.A.T (01)'!KI1","v":0},{"$f":"'EOOTB - D.S.A.T (01)'!KJ1","v":0},{"$f":"'EOOTB - D.S.A.T (01)'!KK1","v":0},{"$f":"'EOOTB - D.S.A.T (01)'!KL1","v":0},{"$f":"'EOOTB - D.S.A.T (01)'!KM1","v":0},{"$f":"'EOOTB - D.S.A.T (01)'!KN1","v":0},{"$f":"'EOOTB - D.S.A.T (01)'!KO1","v":0},{"$f":"'EOOTB - D.S.A.T (01)'!KP1","v":""},{"$f":"'EOOTB - D.S.A.T (01)'!KQ1","v":"📣"},{"$f":"'EOOTB - D.S.A.T (01)'!KR1","v":""},{"$f":"'EOOTB - D.S.A.T (01)'!KS1","v":""},{"$f":"'EOOTB - D.S.A.T (01)'!KT1","v":""},null,null,null,"","📣","","","",null,null,null,null,null,null,null,null,null,null,null,null,null,null,null,null,null,null,null,null,null,null,null,null,null,null,null,null,null,null,null,null,null,null,null,null,null,null,null,null,null,null,null,null,null,null,null,null,null,null,null,null,null,null,null,null,null,null,null,null,null,null,null," ."]
[null,null,null,null,null,null,null,null,null,null,null,null,"User First Name: ",null,{"$f":"IF('EOOTB - D.S.A.T (01)'!P1=\"\",\"First Name\",'EOOTB - D.S.A.T (01)'!P1)","v":"First Name"},null,null,null,null,null,null,null,null,null,null,null,null,null,null,null,null,null,null,null,null,null,null,null,null,null,null,null,null,null,null,null,null,null,null,null,null,null,null,null,null,null,null,null,null,null,null,null,null,null,null,null,null,null,null,null,null,null,null,null,null,null,null,null,null,null,null,null,null,null,null,null,null,null,null,null,null,null,null,null,null,null,null,null,null,null,null,null,null,null,null,null,null,null,null,null,null,null,null,null,null,null,null,null,null,null,null,null,null,null,null,null,null,null,null,null,null,null,null,null,null,null,null,null,null,null,null,null,null,null,null,null,null,null,null,null,null,null,null,null,null,null,null,null,null,null,null,null,null,null,null,null,null,null,null,null,null,null,null,null,null,null,null,null,null,null,null,null,"Fair",20,{"$f":"+GB1+GB2","v":30},null,null,{"$f":"'EOOTB - D.S.A.T (01)'!KC2","v":0},{"$f":"'EOOTB - D.S.A.T (01)'!KE2","v":0},{"$f":"'EOOTB - D.S.A.T (01)'!KF2","v":0},{"$f":"'EOOTB - D.S.A.T (01)'!KG2","v":0},{"$f":"'EOOTB - D.S.A.T (01)'!KH2","v":0},{"$f":"'EOOTB - D.S.A.T (01)'!KI2","v":0},{"$f":"'EOOTB - D.S.A.T (01)'!KJ2","v":0},{"$f":"'EOOTB - D.S.A.T (01)'!KK2","v":0},{"$f":"'EOOTB - D.S.A.T (01)'!KL2","v":0},{"$f":"'EOOTB - D.S.A.T (01)'!KM2","v":0},{"$f":"'EOOTB - D.S.A.T (01)'!KN2","v":0},{"$f":"'EOOTB - D.S.A.T (01)'!KO2","v":0},{"$f":"1-GR3","v":1},{"$f":"1-GS3","v":1},1,1,1,null,null,null,{"$f":"1-GR3+10%","v":1.1000000000000001},{"$f":"1-GS3+10%","v":1.1000000000000001},{"$f":"1-GT3+10%","v":1.1000000000000001},1.1000000000000001,1.1000000000000001,null,null,null,null,null,null,null,null,null,null,null,null,null,null,null,null,null,null,null,null,null,null,null,null,null,null,null,null,null,null,null,null,null,null,null,null,null,null,null,null,null,null,null,null,null,null,null,null,null,null,null,null,null,null,null,null,null,null,null,null,null,null,null,"."]
[null,null,null,null,null,null,null,null,null,null,null,null,"User Last Name: ",null,{"$f":"IF('EOOTB - D.S.A.T (01)'!P2=\"\",\"Last Name\",'EOOTB - D.S.A.T (01)'!P2)","v":"Last Name"},null,null,null,null,null,null,null,null,null,null,null,null,null,null,null,null,null,null,null,null,null,null,null,null,null,null,null,null,null,null,null,null,null,null,null,null,null,null,null,null,null,null,null,null,null,null,null,null,null,null,null,null,null,null,null,null,null,null,null,null,null,null,null,null,null,null,null,null,null,null,null,null,null,null,null,null,null,null,null,null,null,null,null,null,null,null,null,null,null,null,null,null,null,null,null,null,null,null,null,null,null,null,null,null,null,null,null,null,null,null,null,null,null,null,null,null,null,null,null,null,null,null,null,null,null,null,null,null,null,null,null,null,null,null,null,null,null,null,null,null,null,null,null,null,null,null,null,null,null,null,null,null,null,null,null,null,null,null,null,null,null,null,null,null,null,null,null,"Good",35,{"$f":"+GB1+GB2+GB3","v":65},null,null,null,{"$f":"'EOOTB - D.S.A.T (01)'!KE3","v":0},{"$f":"'EOOTB - D.S.A.T (01)'!KF3","v":0},{"$f":"'EOOTB - D.S.A.T (01)'!KG3","v":0},{"$f":"'EOOTB - D.S.A.T (01)'!KH3","v":0},{"$f":"'EOOTB - D.S.A.T (01)'!KI3","v":0},{"$f":"'EOOTB - D.S.A.T (01)'!KJ3","v":0},{"$f":"'EOOTB - D.S.A.T (01)'!KK3","v":0},{"$f":"'EOOTB - D.S.A.T (01)'!KL3","v":0},{"$f":"'EOOTB - D.S.A.T (01)'!KM3","v":0},{"$f":"'EOOTB - D.S.A.T (01)'!KN3","v":0},{"$f":"'EOOTB - D.S.A.T (01)'!KO3","v":0},{"$f":"IF((SUM(GR10:GR85)/GR5)<0,0,IF((SUM(GR10:GR85)/GR5)>1,1,(SUM(GR10:GR85)/GR5)))","v":0},{"$f":"IF((SUM(GS10:GS85)/GS5)<0,0,IF((SUM(GS10:GS85)/GS5)>1,1,(SUM(GS10:GS85)/GS5)))","v":0},{"$f":"IF((SUM(GT10:GT85)/GT5)<0,0,IF((SUM(GT10:GT85)/GT5)>1,1,(SUM(GT10:GT85)/GT5)))","v":0},{"$f":"IF((SUM(GU10:GU85)/GU5)<0,0,IF((SUM(GU10:GU85)/GU5)>1,1,(SUM(GU10:GU85)/GU5)))","v":0},{"$f":"IF((SUM(GV10:GV85)/GV5)<0,0,IF((SUM(GV10:GV85)/GV5)>1,1,(SUM(GV10:GV85)/GV5)))","v":0},null,null,null,{"$f":"GR3","v":0},{"$f":"GS3","v":0},0,0,{"$f":"GV3+10%","v":0.1}]
["charles.krim@fapel.lu",null,null,"F A P E L    Luxembourg   -   Charles KRIM ","SELF-ASSESSMENT TOOL",null,null,null,null,null,null,null,{"$f":"NOW()","v":"2023-11-16T16:11:49.230"},null,null,null,null,null,null,null,null,null,null,null,null,null,null,null,null,null,null,null,null,null,null,null,null,null,null,null,null,null,null,null,null,null,null,null,null,null,null,null,null,null,null,null,null,null,null,null,null,null,null,null,null,null,null,null,null,null,null,null,null,null,null,null,null,null,null,null,null,null,null,null,null,null,null,null,null,null,null,null,null,null,null,null,null,null,null,null,null,null,null,null,null,null,null,null,null,null,null,null,null,null,null,null,null,null,null,null,null,null,null,null,null,null,null,null,null,null,null,null,null,null,null,null,null,null,null,null,null,null,null,null,null,null,null,null,null,null,null,null,null,null,null,null,null,null,null,null,null,null,null,null,null,null,null,null,null,null,null,null,null,null,null,null,null,null,null,null,null,null,"Very Good",20,{"$f":"+GB1+GB2+GB3+GB4","v":85},null,null,{"$f":"'EOOTB - D.S.A.T (01)'!KC4","v":0},{"$f":"'EOOTB - D.S.A.T (01)'!KE4","v":0},{"$f":"'EOOTB - D.S.A.T (01)'!KF4","v":0},{"$f":"'EOOTB - D.S.A.T (01)'!KG4","v":0},{"$f":"'EOOTB - D.S.A.T (01)'!KH4","v":0},{"$f":"'EOOTB - D.S.A.T (01)'!KI4","v":0},{"$f":"'EOOTB - D.S.A.T (01)'!KJ4","v":0},{"$f":"'EOOTB - D.S.A.T (01)'!KK4","v":0},{"$f":"'EOOTB - D.S.A.T (01)'!KL4","v":0},{"$f":"'EOOTB - D.S.A.T (01)'!KM4","v":0},{"$f":"'EOOTB - D.S.A.T (01)'!KN4","v":0},{"$f":"'EOOTB - D.S.A.T (01)'!KO4","v":0},1.2,1.2,1.2,1.2,1.2]
[null,null,null,null,null,null,null,null,null,null,null,"   START          END",null,null,null,null,"T I M E R ",null,null,null,null,null,null,null,null,null,null,null,null,null,null,null,null,null,null,null,null,null,null,null,null,null,null,null,null,null,null,null,null,null,null,null,null,null,null,null,null,null,null,null,null,null,null,null,null,null,null,null,null,null,null,null,null,null,null,null,null,null,null,null,null,null,null,null,null,null,null,null,null,null,null,null,null,null,null,null,null,null,null,null,null,null,null,null,null,null,null,null,null,null,null,null,null,null,null,null,null,null,null,null,null,null,null,null,null,null,null,null,null,null,null,null,null,null,null,null,null,null,null,null,null,null,null,null,null,null,null,null,null,null,null,null,null,null,null,null,null,null,null,null,null,null,null,null,null,null,null,null,null,null,null,null,null,null,null,null,null,null,null,null,null,null,"Excellent",{"$f":"100-SUM(GB1:GB4)","v":15},{"$f":"+GB1++GB2+GB3+GB4+GB5","v":100},null,null,{"$f":"'EOOTB - D.S.A.T (01)'!KC5","v":0},{"$f":"'EOOTB - D.S.A.T (01)'!KE5","v":0},{"$f":"'EOOTB - D.S.A.T (01)'!KF5","v":0},{"$f":"'EOOTB - D.S.A.T (01)'!KG5","v":0},{"$f":"'EOOTB - D.S.A.T (01)'!KH5","v":0},{"$f":"'EOOTB - D.S.A.T (01)'!KI5","v":0},{"$f":"'EOOTB - D.S.A.T (01)'!KJ5","v":0},{"$f":"'EOOTB - D.S.A.T (01)'!KK5","v":0},{"$f":"'EOOTB - D.S.A.T (01)'!KL5","v":0},{"$f":"'EOOTB - D.S.A.T (01)'!KM5","v":0},{"$f":"'EOOTB - D.S.A.T (01)'!KN5","v":0},{"$f":"'EOOTB - D.S.A.T (01)'!KO5","v":0},45,45,45,51,51,null,null,null,"START          END",null,null,"T I M E R "]
["EDUCATION OUT OF THE BOX",null,null,null,null,null,{"$f":"$C$105","v":0},null,null,null,null,null,{"$f":"'EOOTB - D.S.A.T (01)'!M6","v":"00:18:50"},null,{"$f":"'EOOTB - D.S.A.T (01)'!$O$6","v":"00:00:00"},null,{"$f":"'EOOTB - D.S.A.T (01)'!Q6","v":"00:00:00"},null,null,null,null,null,null,null,null,null,null,null,null,null,null,null,null,null,null,null,null,null,null,null,null,null,null,null,null,null,null,null,null,null,null,null,null,null,null,null,null,null,null,null,null,null,null,null,null,null,null,null,null,null,null,null,null,null,null,null,null,null,null,null,null,null,null,null,null,null,null,null,null,null,null,null,null,null,null,null,null,null,null,null,null,null,null,null,null,null,null,null,null,null,null,null,null,null,null,null,null,null,null,null,null,null,null,null,null,null,null,null,null,null,null,null,null,null,null,null,null,null,null,null,null,null,null,null,null,null,null,null,null,null,null,null,null,null,null,null,null,null,null,null,null,null,null,null,null,null,null,null,null,null,null,null,null,null,null,null,null,null,null,null,null,null,"Vide",100,100,null,null,{"$f":"'EOOTB - D.S.A.T (01)'!KC6","v":0},{"$f":"'EOOTB - D.S.A.T (01)'!KE6","v":0},{"$f":"'EOOTB - D.S.A.T (01)'!KF6","v":0},{"$f":"'EOOTB - D.S.A.T (01)'!KG6","v":0},{"$f":"'EOOTB - D.S.A.T (01)'!KH6","v":0},{"$f":"'EOOTB - D.S.A.T (01)'!KI6","v":0},{"$f":"'EOOTB - D.S.A.T (01)'!KJ6","v":0},{"$f":"'EOOTB - D.S.A.T (01)'!KK6","v":0},{"$f":"'EOOTB - D.S.A.T (01)'!KL6","v":0},{"$f":"'EOOTB - D.S.A.T (01)'!KM6","v":0},{"$f":"'EOOTB - D.S.A.T (01)'!KN6","v":"Nb Questions"},{"$f":"'EOOTB - D.S.A.T (01)'!KO6","v":"Affectations"},{"$f":"'EOOTB - D.S.A.T (01)'!KP6:KP8","v":"Information"},{"$f":"'EOOTB - D.S.A.T (01)'!KQ6:KQ8","v":"Communication"},{"$f":"'EOOTB - D.S.A.T (01)'!KR6:KR8","v":"Content creation"},{"$f":"'EOOTB - D.S.A.T (01)'!KS6:KS8","v":"Safety"},{"$f":"'EOOTB - D.S.A.T (01)'!KT6:KT8","v":"Problem solving"},null,null,null,{"$f":"IF(M6=\"\",\"\",M6)","v":"00:18:50"},"02:04:55",null,{"$f":"(HA6-GZ6)","v":"01:46:05"}]
["DIGITAL COMPETENCIES   -   SELF ASSESSMENT TOOL",null,null,null,null,null,null,null,null,null,null,null,null,null,null,null,null,null,{"$f":"'EOOTB - D.S.A.T (01)'!KB7","v":0},null,null,null,null,null,null,null,null,null,null,null,null,null,null,null,null,null,null,null,null,null,null,null,null,null,null,null,null,null,null,null,null,null,null,null,null,null,null,null,null,null,null,null,null,null,null,null,null,null,null,null,null,null,null,null,null,null,null,null,null,null,null,null,null,null,null,null,null,null,null,null,null,null,null,null,null,null,null,null,null,null,null,null,null,null,null,null,null,null,null,null,null,null,null,null,null,null,null,null,null,null,null,null,null,null,null,null,null,null,null,null,null,null,null,null,null,null,null,null,null,null,null,null,null,null,null,null,null,null,null,null,null,null,null,null,null,null,null,null,null,null,null,null,null,null,null,null,null,null,null,null,null,null,null,null,null,null,null,null,null,null,null,null,null,null,null,null,null,{"$f":"'EOOTB - D.S.A.T (01)'!KC7","v":0},{"$f":"'EOOTB - D.S.A.T (01)'!KE7","v":0},{"$f":"'EOOTB - D.S.A.T (01)'!KF7","v":0},{"$f":"'EOOTB - D.S.A.T (01)'!KG7","v":0},{"$f":"'EOOTB - D.S.A.T (01)'!KH7","v":0},{"$f":"'EOOTB - D.S.A.T (01)'!KI7","v":0},{"$f":"'EOOTB - D.S.A.T (01)'!KJ7","v":0},{"$f":"'EOOTB - D.S.A.T (01)'!KK7","v":0},{"$f":"'EOOTB - D.S.A.T (01)'!KL7","v":0},{"$f":"'EOOTB - D.S.A.T (01)'!KM7","v":0},{"$f":"'EOOTB - D.S.A.T (01)'!KN7","v":0},{"$f":"'EOOTB - D.S.A.T (01)'!KO7","v":0}]
[null,{"$f":"'EOOTB - D.S.A.T (01)'!B8","v":0},null,null,null,null,null,null,null,null,null,null,null,null,null,null,null,null,{"$f":"'EOOTB - D.S.A.T (01)'!KB8","v":0},null,null,null,null,null,null,null,null,null,null,null,null,null,null,null,null,null,null,null,null,null,null,null,null,null,null,null,null,null,null,null,null,null,null,null,null,null,null,null,null,null,null,null,null,null,null,null,null,null,null,null,null,null,null,null,null,null,null,null,null,null,null,null,null,null,null,null,null,null,null,null,null,null,null,null,null,null,null,null,null,null,null,null,null,null,null,null,null,null,null,null,null,null,null,null,null,null,null,null,null,null,null,null,null,null,null,null,null,null,null,null,null,null,null,null,null,null,null,null,null,null,null,null,null,null,null,null,null,null,null,null,null,null,null,null,null,null,null,null,null,null,null,null,null,null,null,null,null,null,null,null,null,null,null,null,null,null,null,null,null,null,null,null,null,null,null,null,null,{"$f":"'EOOTB - D.S.A.T (01)'!KC8","v":0},{"$f":"'EOOTB - D.S.A.T (01)'!KE8","v":0},{"$f":"'EOOTB - D.S.A.T (01)'!KF8","v":0},{"$f":"'EOOTB - D.S.A.T (01)'!KG8","v":0},{"$f":"'EOOTB - D.S.A.T (01)'!KH8","v":0},{"$f":"'EOOTB - D.S.A.T (01)'!KI8","v":0},{"$f":"'EOOTB - D.S.A.T (01)'!KJ8","v":0},{"$f":"'EOOTB - D.S.A.T (01)'!KK8","v":0},{"$f":"'EOOTB - D.S.A.T (01)'!KL8","v":0},{"$f":"'EOOTB - D.S.A.T (01)'!KM8","v":0},{"$f":"'EOOTB - D.S.A.T (01)'!KN8","v":0},{"$f":"'EOOTB - D.S.A.T (01)'!KO8","v":0}]
[null,null,null,null,null,null,null,null,null,null,null,null,null,null,null,null,null,{"$f":"'EOOTB - D.S.A.T (01)'!KA9","v":"➊"},{"$f":"'EOOTB - D.S.A.T (01)'!KB9","v":0},null,null,null,null,null,null,null,null,null,null,null,null,null,null,null,null,null,null,null,null,null,null,null,null,null,null,null,null,null,null,null,null,null,null,null,null,null,null,null,null,null,null,null,null,null,null,null,null,null,null,null,null,null,null,null,null,null,null,null,null,null,null,null,null,null,null,null,null,null,null,null,null,null,null,null,null,null,null,null,null,null,null,null,null,null,null,null,null,null,null,null,null,null,null,null,null,null,null,null,null,null,null,null,null,null,null,null,null,null,null,null,null,null,null,null,null,null,null,null,null,null,null,null,null,null,null,null,null,null,null,null,null,null,null,null,null,null,null,null,null,null,null,null,null,null,null,null,null,null,null,null,null,null,null,null,null,null,null,null,null,null,null,null,null,null,null,null,null,{"$f":"'EOOTB - D.S.A.T (01)'!KC9","v":"Digital Knowledge Assessment\nKindly, one single choice/answer per question/line is allowed!"},{"$f":"'EOOTB - D.S.A.T (01)'!KE9","v":"🖥"},{"$f":"'EOOTB - D.S.A.T (01)'!KF9","v":"📟"},{"$f":"'EOOTB - D.S.A.T (01)'!KG9","v":"🕸"},{"$f":"'EOOTB - D.S.A.T (01)'!KH9","v":"💾"},{"$f":"'EOOTB - D.S.A.T (01)'!KI9","v":"👪"},{"$f":"'EOOTB - D.S.A.T (01)'!KJ9","v":0},{"$f":"'EOOTB - D.S.A.T (01)'!KK9","v":0},{"$f":"'EOOTB - D.S.A.T (01)'!KL9","v":0},{"$f":"'EOOTB - D.S.A.T (01)'!KM9","v":0},{"$f":"'EOOTB - D.S.A.T (01)'!KN9","v":0},{"$f":"'EOOTB - D.S.A.T (01)'!KO9","v":0},{"$f":"'EOOTB - D.S.A.T (01)'!KP9","v":0},{"$f":"'EOOTB - D.S.A.T (01)'!KQ9","v":0},{"$f":"'EOOTB - D.S.A.T (01)'!KR9","v":0},{"$f":"'EOOTB - D.S.A.T (01)'!KS9","v":0},{"$f":"'EOOTB - D.S.A.T (01)'!KT9","v":0},null,null,null,{"$f":"IF(#REF!=\"\",\"S C O R E\",IF(#REF!>17,\"E X C E L L E N T\",IF(#REF!>14,\"V E R Y  G O O D\",IF(#REF!>10,\"G O O D\",IF(#REF!>7,\"F A I R\",IF(#REF!>=0,\"P O O R\",0))))))","v":{"$error":"#REF!"}},{"$f":"IF(#REF!=\"\",\"S C O R E\",IF(#REF!>17,\"E X C E L L E N T\",IF(#REF!>14,\"V E R Y  G O O D\",IF(#REF!>10,\"G O O D\",IF(#REF!>7,\"F A I R\",IF(#REF!>=0,\"P O O R\",0))))))","v":{"$error":"#REF!"}}]
[null,null,null,null,null,null,null,null,null,null,null,null,null,null,null,null,null,{"$f":"'EOOTB - D.S.A.T (01)'!KA10","v":"➊"},{"$f":"'EOOTB - D.S.A.T (01)'!KB10","v":"🖥"},null,null,null,null,null,null,null,null,null,null,null,null,null,null,null,null,null,null,null,null,null,null,null,null,null,null,null,null,null,null,null,null,null,null,null,null,null,null,null,null,null,null,null,null,null,null,null,null,null,null,null,null,null,null,null,null,null,null,null,null,null,null,null,null,null,null,null,null,null,null,null,null,null,null,null,null,null,null,null,null,null,null,null,null,null,null,null,null,null,null,null,null,null,null,null,null,null,null,null,null,null,null,null,null,null,null,null,null,null,null,null,null,null,null,null,null,null,null,null,null,null,null,null,null,null,null,null,null,null,null,null,null,null,null,null,null,null,null,null,null,null,null,null,null,null,null,null,null,null,null,null,null,null,null,null,null,null,null,null,null,null,null,null,null,null,null,null,null,{"$f":"'EOOTB - D.S.A.T (01)'!KC10","v":"Assess your current level of digital knowledge!"},{"$f":"'EOOTB - D.S.A.T (01)'!KE10","v":0},{"$f":"'EOOTB - D.S.A.T (01)'!KF10","v":0},{"$f":"'EOOTB - D.S.A.T (01)'!KG10","v":0},{"$f":"'EOOTB - D.S.A.T (01)'!KH10","v":0},{"$f":"'EOOTB - D.S.A.T (01)'!KI10","v":0},{"$f":"'EOOTB - D.S.A.T (01)'!KJ10","v":0},{"$f":"GL10","v":0},{"$f":"'EOOTB - D.S.A.T (01)'!KL10","v":0},{"$f":"'EOOTB - D.S.A.T (01)'!KM10","v":0},{"$f":"'EOOTB - D.S.A.T (01)'!KN10","v":""},{"$f":"'EOOTB - D.S.A.T (01)'!KO10","v":1},{"$f":"'EOOTB - D.S.A.T (01)'!KP10","v":0},{"$f":"'EOOTB - D.S.A.T (01)'!KQ10","v":0},{"$f":"'EOOTB - D.S.A.T (01)'!KR10","v":0},{"$f":"'EOOTB - D.S.A.T (01)'!KS10","v":0},{"$f":"'EOOTB - D.S.A.T (01)'!KT10","v":0}]
[null,null,null,null,null,null,null,null,null,null,null,null,null,null,null,null,null,{"$f":"'EOOTB - D.S.A.T (01)'!KA11","v":"➋"},{"$f":"'EOOTB - D.S.A.T (01)'!KB11","v":"📟"},null,null,null,null,null,null,null,null,null,null,null,null,null,null,null,null,null,null,null,null,null,null,null,null,null,null,null,null,null,null,null,null,null,null,null,null,null,null,null,null,null,null,null,null,null,null,null,null,null,null,null,null,null,null,null,null,null,null,null,null,null,null,null,null,null,null,null,null,null,null,null,null,null,null,null,null,null,null,null,null,null,null,null,null,null,null,null,null,null,null,null,null,null,null,null,null,null,null,null,null,null,null,null,null,null,null,null,null,null,null,null,null,null,null,null,null,null,null,null,null,null,null,null,null,null,null,null,null,null,null,null,null,null,null,null,null,null,null,null,null,null,null,null,null,null,null,null,null,null,null,null,null,null,null,null,null,null,null,null,null,null,null,null,null,null,null,null,null,{"$f":"'EOOTB - D.S.A.T (01)'!KC11","v":"Are you able to use different digital devices?\n(Computer, Tablet, Smartphone, …)"},{"$f":"'EOOTB - D.S.A.T (01)'!KE11","v":0},{"$f":"'EOOTB - D.S.A.T (01)'!KF11","v":0},{"$f":"'EOOTB - D.S.A.T (01)'!KG11","v":0},{"$f":"'EOOTB - D.S.A.T (01)'!KH11","v":0},{"$f":"'EOOTB - D.S.A.T (01)'!KI11","v":0},{"$f":"'EOOTB - D.S.A.T (01)'!KJ11","v":0},{"$f":"GL11","v":0},{"$f":"'EOOTB - D.S.A.T (01)'!KL11","v":0},{"$f":"'EOOTB - D.S.A.T (01)'!KM11","v":0},{"$f":"'EOOTB - D.S.A.T (01)'!KN11","v":""},{"$f":"'EOOTB - D.S.A.T (01)'!KO11","v":2},{"$f":"'EOOTB - D.S.A.T (01)'!KP11","v":0},{"$f":"'EOOTB - D.S.A.T (01)'!KQ11","v":0},{"$f":"'EOOTB - D.S.A.T (01)'!KR11","v":0},{"$f":"'EOOTB - D.S.A.T (01)'!KS11","v":0},{"$f":"'EOOTB - D.S.A.T (01)'!KT11","v":0},null,null,null,{"$f":"IF(M6=\"\",\"\",M6)","v":"00:18:50"}]
[null,null,null,null,null,null,null,null,null,null,null,null,null,null,null,null,null,{"$f":"'EOOTB - D.S.A.T (01)'!KA12","v":"➌"},{"$f":"'EOOTB - D.S.A.T (01)'!KB12","v":"🕸"},null,null,null,null,null,null,null,null,null,null,null,null,null,null,null,null,null,null,null,null,null,null,null,null,null,null,null,null,null,null,null,null,null,null,null,null,null,null,null,null,null,null,null,null,null,null,null,null,null,null,null,null,null,null,null,null,null,null,null,null,null,null,null,null,null,null,null,null,null,null,null,null,null,null,null,null,null,null,null,null,null,null,null,null,null,null,null,null,null,null,null,null,null,null,null,null,null,null,null,null,null,null,null,null,null,null,null,null,null,null,null,null,null,null,null,null,null,null,null,null,null,null,null,null,null,null,null,null,null,null,null,null,null,null,null,null,null,null,null,null,null,null,null,null,null,null,null,null,null,null,null,null,null,null,null,null,null,null,null,null,null,null,null,null,null,null,null,null,{"$f":"'EOOTB - D.S.A.T (01)'!KC12","v":"Are you able to navigate with ease on the net and undertake useful researchs?"},{"$f":"'EOOTB - D.S.A.T (01)'!KE12","v":0},{"$f":"'EOOTB - D.S.A.T (01)'!KF12","v":0},{"$f":"'EOOTB - D.S.A.T (01)'!KG12","v":0},{"$f":"'EOOTB - D.S.A.T (01)'!KH12","v":0},{"$f":"'EOOTB - D.S.A.T (01)'!KI12","v":0},{"$f":"'EOOTB - D.S.A.T (01)'!KJ12","v":0},0,{"$f":"'EOOTB - D.S.A.T (01)'!KL12","v":0},{"$f":"'EOOTB - D.S.A.T (01)'!KM12","v":0},{"$f":"'EOOTB - D.S.A.T (01)'!KN12","v":""},{"$f":"'EOOTB - D.S.A.T (01)'!KO12","v":3},{"$f":"'EOOTB - D.S.A.T (01)'!KP12","v":0},{"$f":"'EOOTB - D.S.A.T (01)'!KQ12","v":0},{"$f":"'EOOTB - D.S.A.T (01)'!KR12","v":0},{"$f":"'EOOTB - D.S.A.T (01)'!KS12","v":0},{"$f":"'EOOTB - D.S.A.T (01)'!KT12","v":0}]
[null,null,null,null,null,null,null,null,null,null,null,null,null,null,null,null,null,{"$f":"'EOOTB - D.S.A.T (01)'!KA13","v":"➍"},{"$f":"'EOOTB - D.S.A.T (01)'!KB13","v":"💾"},null,null,null,null,null,null,null,null,null,null,null,null,null,null,null,null,null,null,null,null,null,null,null,null,null,null,null,null,null,null,null,null,null,null,null,null,null,null,null,null,null,null,null,null,null,null,null,null,null,null,null,null,null,null,null,null,null,null,null,null,null,null,null,null,null,null,null,null,null,null,null,null,null,null,null,null,null,null,null,null,null,null,null,null,null,null,null,null,null,null,null,null,null,null,null,null,null,null,null,null,null,null,null,null,null,null,null,null,null,null,null,null,null,null,null,null,null,null,null,null,null,null,null,null,null,null,null,null,null,null,null,null,null,null,null,null,null,null,null,null,null,null,null,null,null,null,null,null,null,null,null,null,null,null,null,null,null,null,null,null,null,null,null,null,null,null,null,null,{"$f":"'EOOTB - D.S.A.T (01)'!KC13","v":"Are you able to open/ handle/ save/ print/ store external data?"},{"$f":"'EOOTB - D.S.A.T (01)'!KE13","v":0},{"$f":"'EOOTB - D.S.A.T (01)'!KF13","v":0},{"$f":"'EOOTB - D.S.A.T (01)'!KG13","v":0},{"$f":"'EOOTB - D.S.A.T (01)'!KH13","v":0},{"$f":"'EOOTB - D.S.A.T (01)'!KI13","v":0},{"$f":"'EOOTB - D.S.A.T (01)'!KJ13","v":0},0,{"$f":"'EOOTB - D.S.A.T (01)'!KL13","v":0},{"$f":"'EOOTB - D.S.A.T (01)'!KM13","v":0},{"$f":"'EOOTB - D.S.A.T (01)'!KN13","v":""},{"$f":"'EOOTB - D.S.A.T (01)'!KO13","v":4},{"$f":"'EOOTB - D.S.A.T (01)'!KP13","v":0},{"$f":"'EOOTB - D.S.A.T (01)'!KQ13","v":0},{"$f":"'EOOTB - D.S.A.T (01)'!KR13","v":0},{"$f":"'EOOTB - D.S.A.T (01)'!KS13","v":0},{"$f":"'EOOTB - D.S.A.T (01)'!KT13","v":0},null,null,null,"02:04:55"]
[null,null,null,null,null,null,null,null,null,null,null,null,null,null,null,null,null,{"$f":"'EOOTB - D.S.A.T (01)'!KA14","v":"➎"},{"$f":"'EOOTB - D.S.A.T (01)'!KB14","v":"👪"},null,null,null,null,null,null,null,null,null,null,null,null,null,null,null,null,null,null,null,null,null,null,null,null,null,null,null,null,null,null,null,null,null,null,null,null,null,null,null,null,null,null,null,null,null,null,null,null,null,null,null,null,null,null,null,null,null,null,null,null,null,null,null,null,null,null,null,null,null,null,null,null,null,null,null,null,null,null,null,null,null,null,null,null,null,null,null,null,null,null,null,null,null,null,null,null,null,null,null,null,null,null,null,null,null,null,null,null,null,null,null,null,null,null,null,null,null,null,null,null,null,null,null,null,null,null,null,null,null,null,null,null,null,null,null,null,null,null,null,null,null,null,null,null,null,null,null,null,null,null,null,null,null,null,null,null,null,null,null,null,null,null,null,null,null,null,null,null,{"$f":"'EOOTB - D.S.A.T (01)'!KC14","v":"Are you able to chat with an online community & handle current online meetings' tools?"},{"$f":"'EOOTB - D.S.A.T (01)'!KE14","v":0},{"$f":"'EOOTB - D.S.A.T (01)'!KF14","v":0},{"$f":"'EOOTB - D.S.A.T (01)'!KG14","v":0},{"$f":"'EOOTB - D.S.A.T (01)'!KH14","v":0},{"$f":"'EOOTB - D.S.A.T (01)'!KI14","v":0},{"$f":"'EOOTB - D.S.A.T (01)'!KJ14","v":0},0,{"$f":"'EOOTB - D.S.A.T (01)'!KL14","v":0},{"$f":"'EOOTB - D.S.A.T (01)'!KM14","v":0},{"$f":"'EOOTB - D.S.A.T (01)'!KN14","v":""},{"$f":"'EOOTB - D.S.A.T (01)'!KO14","v":5},{"$f":"'EOOTB - D.S.A.T (01)'!KP14","v":0},{"$f":"'EOOTB - D.S.A.T (01)'!KQ14","v":0},{"$f":"'EOOTB - D.S.A.T (01)'!KR14","v":0},{"$f":"'EOOTB - D.S.A.T (01)'!KS14","v":0},{"$f":"'EOOTB - D.S.A.T (01)'!KT14","v":0}]
[null,null,null,null,null,null,null,null,null,null,null,null,null,null,null,null,null,{"$f":"'EOOTB - D.S.A.T (01)'!KA15","v":0},{"$f":"'EOOTB - D.S.A.T (01)'!KB15","v":0},null,null,null,null,null,null,null,null,null,null,null,null,null,null,null,null,null,null,null,null,null,null,null,null,null,null,null,null,null,null,null,null,null,null,null,null,null,null,null,null,null,null,null,null,null,null,null,null,null,null,null,null,null,null,null,null,null,null,null,null,null,null,null,null,null,null,null,null,null,null,null,null,null,null,null,null,null,null,null,null,null,null,null,null,null,null,null,null,null,null,null,null,null,null,null,null,null,null,null,null,null,null,null,null,null,null,null,null,null,null,null,null,null,null,null,null,null,null,null,null,null,null,null,null,null,null,null,null,null,null,null,null,null,null,null,null,null,null,null,null,null,null,null,null,null,null,null,null,null,null,null,null,null,null,null,null,null,null,null,null,null,null,null,null,null,null,null,null,{"$f":"'EOOTB - D.S.A.T (01)'!KC15","v":0},{"$f":"'EOOTB - D.S.A.T (01)'!KE15","v":0},{"$f":"'EOOTB - D.S.A.T (01)'!KF15","v":0},{"$f":"'EOOTB - D.S.A.T (01)'!KG15","v":0},{"$f":"'EOOTB - D.S.A.T (01)'!KH15","v":0},{"$f":"'EOOTB - D.S.A.T (01)'!KI15","v":0},{"$f":"'EOOTB - D.S.A.T (01)'!KJ15","v":0},{"$f":"'EOOTB - D.S.A.T (01)'!KK15","v":0},{"$f":"'EOOTB - D.S.A.T (01)'!KL15","v":0},{"$f":"'EOOTB - D.S.A.T (01)'!KM15","v":0},{"$f":"'EOOTB - D.S.A.T (01)'!KN15","v":""},{"$f":"'EOOTB - D.S.A.T (01)'!KO15","v":0},{"$f":"'EOOTB - D.S.A.T (01)'!KP15","v":0},{"$f":"'EOOTB - D.S.A.T (01)'!KQ15","v":0},{"$f":"'EOOTB - D.S.A.T (01)'!KR15","v":0},{"$f":"'EOOTB - D.S.A.T (01)'!KS15","v":0},{"$f":"'EOOTB - D.S.A.T (01)'!KT15","v":0}]
[null,null,null,null,null,null,null,null,null,null,null,null,null,null,null,null,null,{"$f":"'EOOTB - D.S.A.T (01)'!KA16","v":"➋"},{"$f":"'EOOTB - D.S.A.T (01)'!KB16","v":0},null,null,null,null,null,null,null,null,null,null,null,null,null,null,null,null,null,null,null,null,null,null,null,null,null,null,null,null,null,null,null,null,null,null,null,null,null,null,null,null,null,null,null,null,null,null,null,null,null,null,null,null,null,null,null,null,null,null,null,null,null,null,null,null,null,null,null,null,null,null,null,null,null,null,null,null,null,null,null,null,null,null,null,null,null,null,null,null,null,null,null,null,null,null,null,null,null,null,null,null,null,null,null,null,null,null,null,null,null,null,null,null,null,null,null,null,null,null,null,null,null,null,null,null,null,null,null,null,null,null,null,null,null,null,null,null,null,null,null,null,null,null,null,null,null,null,null,null,null,null,null,null,null,null,null,null,null,null,null,null,null,null,null,null,null,null,null,null,{"$f":"'EOOTB - D.S.A.T (01)'!KC16","v":"Digital Workload Assessment\nKindly, one single choice/answer per question/line is allowed!"},{"$f":"'EOOTB - D.S.A.T (01)'!KE16","v":0},{"$f":"'EOOTB - D.S.A.T (01)'!KF16","v":0},{"$f":"'EOOTB - D.S.A.T (01)'!KG16","v":0},{"$f":"'EOOTB - D.S.A.T (01)'!KH16","v":0},{"$f":"'EOOTB - D.S.A.T (01)'!KI16","v":0},{"$f":"'EOOTB - D.S.A.T (01)'!KJ16","v":0},{"$f":"'EOOTB - D.S.A.T (01)'!KK16","v":0},{"$f":"'EOOTB - D.S.A.T (01)'!KL16","v":0},{"$f":"'EOOTB - D.S.A.T (01)'!KM16","v":0},{"$f":"'EOOTB - D.S.A.T (01)'!KN16","v":""},{"$f":"'EOOTB - D.S.A.T (01)'!KO16","v":0},{"$f":"'EOOTB - D.S.A.T (01)'!KP16","v":0},{"$f":"'EOOTB - D.S.A.T (01)'!KQ16","v":0},{"$f":"'EOOTB - D.S.A.T (01)'!KR16","v":0},{"$f":"'EOOTB - D.S.A.T (01)'!KS16","v":0},{"$f":"'EOOTB - D.S.A.T (01)'!KT16","v":0},null,null,null,{"$f":"(GZ13-GZ11)","v":"01:46:05"}]
[null,null,null,null,null,null,null,null,null,null,null,null,null,null,null,null,null,{"$f":"'EOOTB - D.S.A.T (01)'!KA17","v":"➊"},{"$f":"'EOOTB - D.S.A.T (01)'!KB17","v":"⌚"},null,null,null,null,null,null,null,null,null,null,null,null,null,null,null,null,null,null,null,null,null,null,null,null,null,null,null,null,null,null,null,null,null,null,null,null,null,null,null,null,null,null,null,null,null,null,null,null,null,null,null,null,null,null,null,null,null,null,null,null,null,null,null,null,null,null,null,null,null,null,null,null,null,null,null,null,null,null,null,null,null,null,null,null,null,null,null,null,null,null,null,null,null,null,null,null,null,null,null,null,null,null,null,null,null,null,null,null,null,null,null,null,null,null,null,null,null,null,null,null,null,null,null,null,null,null,null,null,null,null,null,null,null,null,null,null,null,null,null,null,null,null,null,null,null,null,null,null,null,null,null,null,null,null,null,null,null,null,null,null,null,null,null,null,null,null,null,null,{"$f":"'EOOTB - D.S.A.T (01)'!KC17","v":"How would you rate obtained results against the time you spent on digital tools?"},{"$f":"'EOOTB - D.S.A.T (01)'!KE17","v":0},{"$f":"'EOOTB - D.S.A.T (01)'!KF17","v":0},{"$f":"'EOOTB - D.S.A.T (01)'!KG17","v":0},{"$f":"'EOOTB - D.S.A.T (01)'!KH17","v":0},{"$f":"'EOOTB - D.S.A.T (01)'!KI17","v":0},{"$f":"'EOOTB - D.S.A.T (01)'!KJ17","v":0},{"$f":"GL17","v":0},{"$f":"'EOOTB - D.S.A.T (01)'!KL17","v":0},{"$f":"'EOOTB - D.S.A.T (01)'!KM17","v":0},{"$f":"'EOOTB - D.S.A.T (01)'!KN17","v":""},{"$f":"'EOOTB - D.S.A.T (01)'!KO17","v":1},{"$f":"'EOOTB - D.S.A.T (01)'!KP17","v":0},{"$f":"'EOOTB - D.S.A.T (01)'!KQ17","v":0},{"$f":"'EOOTB - D.S.A.T (01)'!KR17","v":0},{"$f":"'EOOTB - D.S.A.T (01)'!KS17","v":0},{"$f":"'EOOTB - D.S.A.T (01)'!KT17","v":0}]
[null,null,null,null,null,null,null,null,null,null,null,null,null,null,null,null,null,{"$f":"'EOOTB - D.S.A.T (01)'!KA18","v":"➋"},{"$f":"'EOOTB - D.S.A.T (01)'!KB18","v":"⌛"},null,null,null,null,null,null,null,null,null,null,null,null,null,null,null,null,null,null,null,null,null,null,null,null,null,null,null,null,null,null,null,null,null,null,null,null,null,null,null,null,null,null,null,null,null,null,null,null,null,null,null,null,null,null,null,null,null,null,null,null,null,null,null,null,null,null,null,null,null,null,null,null,null,null,null,null,null,null,null,null,null,null,null,null,null,null,null,null,null,null,null,null,null,null,null,null,null,null,null,null,null,null,null,null,null,null,null,null,null,null,null,null,null,null,null,null,null,null,null,null,null,null,null,null,null,null,null,null,null,null,null,null,null,null,null,null,null,null,null,null,null,null,null,null,null,null,null,null,null,null,null,null,null,null,null,null,null,null,null,null,null,null,null,null,null,null,null,null,{"$f":"'EOOTB - D.S.A.T (01)'!KC18","v":"Are you able to give (Teachers) or follow (Teachers & students) an online course using digital tools?"},{"$f":"'EOOTB - D.S.A.T (01)'!KE18","v":0},{"$f":"'EOOTB - D.S.A.T (01)'!KF18","v":0},{"$f":"'EOOTB - D.S.A.T (01)'!KG18","v":0},{"$f":"'EOOTB - D.S.A.T (01)'!KH18","v":0},{"$f":"'EOOTB - D.S.A.T (01)'!KI18","v":0},{"$f":"'EOOTB - D.S.A.T (01)'!KJ18","v":0},{"$f":"GL18","v":0},{"$f":"'EOOTB - D.S.A.T (01)'!KL18","v":0},{"$f":"'EOOTB - D.S.A.T (01)'!KM18","v":0},{"$f":"'EOOTB - D.S.A.T (01)'!KN18","v":""},{"$f":"'EOOTB - D.S.A.T (01)'!KO18","v":2},{"$f":"'EOOTB - D.S.A.T (01)'!KP18","v":0},{"$f":"'EOOTB - D.S.A.T (01)'!KQ18","v":0},{"$f":"'EOOTB - D.S.A.T (01)'!KR18","v":0},{"$f":"'EOOTB - D.S.A.T (01)'!KS18","v":0},{"$f":"'EOOTB - D.S.A.T (01)'!KT18","v":0}]
[null,null,null,null,null,null,null,null,null,null,null,null,null,null,null,null,null,{"$f":"'EOOTB - D.S.A.T (01)'!KA19","v":"➌"},{"$f":"'EOOTB - D.S.A.T (01)'!KB19","v":"🕘"},null,null,null,null,null,null,null,null,null,null,null,null,null,null,null,null,null,null,null,null,null,null,null,null,null,null,null,null,null,null,null,null,null,null,null,null,null,null,null,null,null,null,null,null,null,null,null,null,null,null,null,null,null,null,null,null,null,null,null,null,null,null,null,null,null,null,null,null,null,null,null,null,null,null,null,null,null,null,null,null,null,null,null,null,null,null,null,null,null,null,null,null,null,null,null,null,null,null,null,null,null,null,null,null,null,null,null,null,null,null,null,null,null,null,null,null,null,null,null,null,null,null,null,null,null,null,null,null,null,null,null,null,null,null,null,null,null,null,null,null,null,null,null,null,null,null,null,null,null,null,null,null,null,null,null,null,null,null,null,null,null,null,null,null,null,null,null,null,{"$f":"'EOOTB - D.S.A.T (01)'!KC19","v":"can you provide quick reply upon request when using a digital learning tool?"},{"$f":"'EOOTB - D.S.A.T (01)'!KE19","v":0},{"$f":"'EOOTB - D.S.A.T (01)'!KF19","v":0},{"$f":"'EOOTB - D.S.A.T (01)'!KG19","v":0},{"$f":"'EOOTB - D.S.A.T (01)'!KH19","v":0},{"$f":"'EOOTB - D.S.A.T (01)'!KI19","v":0},{"$f":"'EOOTB - D.S.A.T (01)'!KJ19","v":0},0,{"$f":"'EOOTB - D.S.A.T (01)'!KL19","v":0},{"$f":"'EOOTB - D.S.A.T (01)'!KM19","v":0},{"$f":"'EOOTB - D.S.A.T (01)'!KN19","v":""},{"$f":"'EOOTB - D.S.A.T (01)'!KO19","v":3},{"$f":"'EOOTB - D.S.A.T (01)'!KP19","v":0},{"$f":"'EOOTB - D.S.A.T (01)'!KQ19","v":0},{"$f":"'EOOTB - D.S.A.T (01)'!KR19","v":0},{"$f":"'EOOTB - D.S.A.T (01)'!KS19","v":0},{"$f":"'EOOTB - D.S.A.T (01)'!KT19","v":0}]
[null,null,null,null,null,null,null,null,null,null,null,null,null,null,null,null,null,{"$f":"'EOOTB - D.S.A.T (01)'!KA20","v":"➍"},{"$f":"'EOOTB - D.S.A.T (01)'!KB20","v":"📊"},null,null,null,null,null,null,null,null,null,null,null,null,null,null,null,null,null,null,null,null,null,null,null,null,null,null,null,null,null,null,null,null,null,null,null,null,null,null,null,null,null,null,null,null,null,null,null,null,null,null,null,null,null,null,null,null,null,null,null,null,null,null,null,null,null,null,null,null,null,null,null,null,null,null,null,null,null,null,null,null,null,null,null,null,null,null,null,null,null,null,null,null,null,null,null,null,null,null,null,null,null,null,null,null,null,null,null,null,null,null,null,null,null,null,null,null,null,null,null,null,null,null,null,null,null,null,null,null,null,null,null,null,null,null,null,null,null,null,null,null,null,null,null,null,null,null,null,null,null,null,null,null,null,null,null,null,null,null,null,null,null,null,null,null,null,null,null,null,{"$f":"'EOOTB - D.S.A.T (01)'!KC20","v":"Are you able to develop & protect your creative work/ Graphs/ layouts/ …  on digital tools?"},{"$f":"'EOOTB - D.S.A.T (01)'!KE20","v":0},{"$f":"'EOOTB - D.S.A.T (01)'!KF20","v":0},{"$f":"'EOOTB - D.S.A.T (01)'!KG20","v":0},{"$f":"'EOOTB - D.S.A.T (01)'!KH20","v":0},{"$f":"'EOOTB - D.S.A.T (01)'!KI20","v":0},{"$f":"'EOOTB - D.S.A.T (01)'!KJ20","v":0},0,{"$f":"'EOOTB - D.S.A.T (01)'!KL20","v":0},{"$f":"'EOOTB - D.S.A.T (01)'!KM20","v":0},{"$f":"'EOOTB - D.S.A.T (01)'!KN20","v":""},{"$f":"'EOOTB - D.S.A.T (01)'!KO20","v":4},{"$f":"'EOOTB - D.S.A.T (01)'!KP20","v":0},{"$f":"'EOOTB - D.S.A.T (01)'!KQ20","v":0},{"$f":"'EOOTB - D.S.A.T (01)'!KR20","v":0},{"$f":"'EOOTB - D.S.A.T (01)'!KS20","v":0},{"$f":"'EOOTB - D.S.A.T (01)'!KT20","v":0},null,null,null,{"$f":"IF(#REF!=\"\",\"S C O R E\",IF(#REF!>17,\"E X C E L L E N T\",IF(#REF!>14,\"V E R Y  G O O D\",IF(#REF!>10,\"G O O D\",IF(#REF!>7,\"F A I R\",IF(#REF!>=0,\"P O O R\",0))))))","v":{"$error":"#REF!"}},"Push to assess\ndigital skills"]
[null,null,null,null,null,null,null,null,null,null,null,null,null,null,null,null,null,{"$f":"'EOOTB - D.S.A.T (01)'!KA21","v":"➎"},{"$f":"'EOOTB - D.S.A.T (01)'!KB21","v":"📂"},null,null,null,null,null,null,null,null,null,null,null,null,null,null,null,null,null,null,null,null,null,null,null,null,null,null,null,null,null,null,null,null,null,null,null,null,null,null,null,null,null,null,null,null,null,null,null,null,null,null,null,null,null,null,null,null,null,null,null,null,null,null,null,null,null,null,null,null,null,null,null,null,null,null,null,null,null,null,null,null,null,null,null,null,null,null,null,null,null,null,null,null,null,null,null,null,null,null,null,null,null,null,null,null,null,null,null,null,null,null,null,null,null,null,null,null,null,null,null,null,null,null,null,null,null,null,null,null,null,null,null,null,null,null,null,null,null,null,null,null,null,null,null,null,null,null,null,null,null,null,null,null,null,null,null,null,null,null,null,null,null,null,null,null,null,null,null,null,{"$f":"'EOOTB - D.S.A.T (01)'!KC21","v":"Does the EOOTB platform help you to solve the problem of certain student shortcomings or illnesses? "},{"$f":"'EOOTB - D.S.A.T (01)'!KE21","v":0},{"$f":"'EOOTB - D.S.A.T (01)'!KF21","v":0},{"$f":"'EOOTB - D.S.A.T (01)'!KG21","v":0},{"$f":"'EOOTB - D.S.A.T (01)'!KH21","v":0},{"$f":"'EOOTB - D.S.A.T (01)'!KI21","v":0},{"$f":"'EOOTB - D.S.A.T (01)'!KJ21","v":0},0,{"$f":"'EOOTB - D.S.A.T (01)'!KL21","v":0},{"$f":"'EOOTB - D.S.A.T (01)'!KM21","v":0},{"$f":"'EOOTB - D.S.A.T (01)'!KN21","v":""},{"$f":"'EOOTB - D.S.A.T (01)'!KO21","v":5},{"$f":"'EOOTB - D.S.A.T (01)'!KP21","v":0},{"$f":"'EOOTB - D.S.A.T (01)'!KQ21","v":0},{"$f":"'EOOTB - D.S.A.T (01)'!KR21","v":0},{"$f":"'EOOTB - D.S.A.T (01)'!KS21","v":0},{"$f":"'EOOTB - D.S.A.T (01)'!KT21","v":0}]
[null,null,null,null,null,null,null,null,null,null,null,null,null,null,null,null,null,{"$f":"'EOOTB - D.S.A.T (01)'!KA22","v":0},{"$f":"'EOOTB - D.S.A.T (01)'!KB22","v":0},null,null,null,null,null,null,null,null,null,null,null,null,null,null,null,null,null,null,null,null,null,null,null,null,null,null,null,null,null,null,null,null,null,null,null,null,null,null,null,null,null,null,null,null,null,null,null,null,null,null,null,null,null,null,null,null,null,null,null,null,null,null,null,null,null,null,null,null,null,null,null,null,null,null,null,null,null,null,null,null,null,null,null,null,null,null,null,null,null,null,null,null,null,null,null,null,null,null,null,null,null,null,null,null,null,null,null,null,null,null,null,null,null,null,null,null,null,null,null,null,null,null,null,null,null,null,null,null,null,null,null,null,null,null,null,null,null,null,null,null,null,null,null,null,null,null,null,null,null,null,null,null,null,null,null,null,null,null,null,null,null,null,null,null,null,null,null,null,{"$f":"'EOOTB - D.S.A.T (01)'!KC22","v":0},{"$f":"'EOOTB - D.S.A.T (01)'!KE22","v":0},{"$f":"'EOOTB - D.S.A.T (01)'!KF22","v":0},{"$f":"'EOOTB - D.S.A.T (01)'!KG22","v":0},{"$f":"'EOOTB - D.S.A.T (01)'!KH22","v":0},{"$f":"'EOOTB - D.S.A.T (01)'!KI22","v":0},{"$f":"'EOOTB - D.S.A.T (01)'!KJ22","v":0},{"$f":"'EOOTB - D.S.A.T (01)'!KK22","v":0},{"$f":"'EOOTB - D.S.A.T (01)'!KL22","v":0},{"$f":"'EOOTB - D.S.A.T (01)'!KM22","v":0},{"$f":"'EOOTB - D.S.A.T (01)'!KN22","v":""},{"$f":"'EOOTB - D.S.A.T (01)'!KO22","v":0},{"$f":"'EOOTB - D.S.A.T (01)'!KP22","v":0},{"$f":"'EOOTB - D.S.A.T (01)'!KQ22","v":0},{"$f":"'EOOTB - D.S.A.T (01)'!KR22","v":0},{"$f":"'EOOTB - D.S.A.T (01)'!KS22","v":0},{"$f":"'EOOTB - D.S.A.T (01)'!KT22","v":0}]
[null,null,null,null,null,null,null,null,null,null,null,null,null,null,null,null,null,{"$f":"'EOOTB - D.S.A.T (01)'!KA23","v":"➌"},{"$f":"'EOOTB - D.S.A.T (01)'!KB23","v":0},null,null,null,null,null,null,null,null,null,null,null,null,null,null,null,null,null,null,null,null,null,null,null,null,null,null,null,null,null,null,null,null,null,null,null,null,null,null,null,null,null,null,null,null,null,null,null,null,null,null,null,null,null,null,null,null,null,null,null,null,null,null,null,null,null,null,null,null,null,null,null,null,null,null,null,null,null,null,null,null,null,null,null,null,null,null,null,null,null,null,null,null,null,null,null,null,null,null,null,null,null,null,null,null,null,null,null,null,null,null,null,null,null,null,null,null,null,null,null,null,null,null,null,null,null,null,null,null,null,null,null,null,null,null,null,null,null,null,null,null,null,null,null,null,null,null,null,null,null,null,null,null,null,null,null,null,null,null,null,null,null,null,null,null,null,null,null,null,{"$f":"'EOOTB - D.S.A.T (01)'!KC23","v":"Digital @ Profile Assessment\nKindly, one single choice/answer per question/line is allowed!"},{"$f":"'EOOTB - D.S.A.T (01)'!KE23","v":"🎮"},{"$f":"'EOOTB - D.S.A.T (01)'!KF23","v":"💼"},{"$f":"'EOOTB - D.S.A.T (01)'!KG23","v":"☠"},{"$f":"'EOOTB - D.S.A.T (01)'!KH23","v":"🕸"},{"$f":"'EOOTB - D.S.A.T (01)'!KI23","v":0},{"$f":"'EOOTB - D.S.A.T (01)'!KJ23","v":0},{"$f":"'EOOTB - D.S.A.T (01)'!KK23","v":0},{"$f":"'EOOTB - D.S.A.T (01)'!KL23","v":0},{"$f":"'EOOTB - D.S.A.T (01)'!KM23","v":0},{"$f":"'EOOTB - D.S.A.T (01)'!KN23","v":""},{"$f":"'EOOTB - D.S.A.T (01)'!KO23","v":0},{"$f":"'EOOTB - D.S.A.T (01)'!KP23","v":0},{"$f":"'EOOTB - D.S.A.T (01)'!KQ23","v":0},{"$f":"'EOOTB - D.S.A.T (01)'!KR23","v":0},{"$f":"'EOOTB - D.S.A.T (01)'!KS23","v":0},{"$f":"'EOOTB - D.S.A.T (01)'!KT23","v":0}]
[null,null,null,null,null,null,null,null,null,null,null,null,null,null,null,null,null,{"$f":"'EOOTB - D.S.A.T (01)'!KA24","v":"➊"},{"$f":"'EOOTB - D.S.A.T (01)'!KB24","v":"🎮"},null,null,null,null,null,null,null,null,null,null,null,null,null,null,null,null,null,null,null,null,null,null,null,null,null,null,null,null,null,null,null,null,null,null,null,null,null,null,null,null,null,null,null,null,null,null,null,null,null,null,null,null,null,null,null,null,null,null,null,null,null,null,null,null,null,null,null,null,null,null,null,null,null,null,null,null,null,null,null,null,null,null,null,null,null,null,null,null,null,null,null,null,null,null,null,null,null,null,null,null,null,null,null,null,null,null,null,null,null,null,null,null,null,null,null,null,null,null,null,null,null,null,null,null,null,null,null,null,null,null,null,null,null,null,null,null,null,null,null,null,null,null,null,null,null,null,null,null,null,null,null,null,null,null,null,null,null,null,null,null,null,null,null,null,null,null,null,null,{"$f":"'EOOTB - D.S.A.T (01)'!KC24","v":"how often do you use any digital tool/ games?"},{"$f":"'EOOTB - D.S.A.T (01)'!KE24","v":0},{"$f":"'EOOTB - D.S.A.T (01)'!KF24","v":0},{"$f":"'EOOTB - D.S.A.T (01)'!KG24","v":0},{"$f":"'EOOTB - D.S.A.T (01)'!KH24","v":0},{"$f":"'EOOTB - D.S.A.T (01)'!KI24","v":0},{"$f":"'EOOTB - D.S.A.T (01)'!KJ24","v":0},{"$f":"GL24","v":0},{"$f":"'EOOTB - D.S.A.T (01)'!KL24","v":0},{"$f":"'EOOTB - D.S.A.T (01)'!KM24","v":0},{"$f":"'EOOTB - D.S.A.T (01)'!KN24","v":""},{"$f":"'EOOTB - D.S.A.T (01)'!KO24","v":1},{"$f":"'EOOTB - D.S.A.T (01)'!KP24","v":0},{"$f":"'EOOTB - D.S.A.T (01)'!KQ24","v":0},{"$f":"'EOOTB - D.S.A.T (01)'!KR24","v":0},{"$f":"'EOOTB - D.S.A.T (01)'!KS24","v":0},{"$f":"'EOOTB - D.S.A.T (01)'!KT24","v":0}]
[null,null,null,null,null,null,null,null,null,null,null,null,null,null,null,null,null,{"$f":"'EOOTB - D.S.A.T (01)'!KA25","v":"➋"},{"$f":"'EOOTB - D.S.A.T (01)'!KB25","v":"💼"},null,null,null,null,null,null,null,null,null,null,null,null,null,null,null,null,null,null,null,null,null,null,null,null,null,null,null,null,null,null,null,null,null,null,null,null,null,null,null,null,null,null,null,null,null,null,null,null,null,null,null,null,null,null,null,null,null,null,null,null,null,null,null,null,null,null,null,null,null,null,null,null,null,null,null,null,null,null,null,null,null,null,null,null,null,null,null,null,null,null,null,null,null,null,null,null,null,null,null,null,null,null,null,null,null,null,null,null,null,null,null,null,null,null,null,null,null,null,null,null,null,null,null,null,null,null,null,null,null,null,null,null,null,null,null,null,null,null,null,null,null,null,null,null,null,null,null,null,null,null,null,null,null,null,null,null,null,null,null,null,null,null,null,null,null,null,null,null,{"$f":"'EOOTB - D.S.A.T (01)'!KC25","v":" Do you use digital tools in your school/professional life?"},{"$f":"'EOOTB - D.S.A.T (01)'!KE25","v":0},{"$f":"'EOOTB - D.S.A.T (01)'!KF25","v":0},{"$f":"'EOOTB - D.S.A.T (01)'!KG25","v":0},{"$f":"'EOOTB - D.S.A.T (01)'!KH25","v":0},{"$f":"'EOOTB - D.S.A.T (01)'!KI25","v":0},{"$f":"'EOOTB - D.S.A.T (01)'!KJ25","v":0},{"$f":"GL25","v":0},{"$f":"'EOOTB - D.S.A.T (01)'!KL25","v":0},{"$f":"'EOOTB - D.S.A.T (01)'!KM25","v":0},{"$f":"'EOOTB - D.S.A.T (01)'!KN25","v":""},{"$f":"'EOOTB - D.S.A.T (01)'!KO25","v":2},{"$f":"'EOOTB - D.S.A.T (01)'!KP25","v":0},{"$f":"'EOOTB - D.S.A.T (01)'!KQ25","v":0},{"$f":"'EOOTB - D.S.A.T (01)'!KR25","v":0},{"$f":"'EOOTB - D.S.A.T (01)'!KS25","v":0},{"$f":"'EOOTB - D.S.A.T (01)'!KT25","v":0}]
[null,null,null,null,null,null,null,null,null,null,null,null,null,null,null,null,null,{"$f":"'EOOTB - D.S.A.T (01)'!KA26","v":"➌"},{"$f":"'EOOTB - D.S.A.T (01)'!KB26","v":"☠"},null,null,null,null,null,null,null,null,null,null,null,null,null,null,null,null,null,null,null,null,null,null,null,null,null,null,null,null,null,null,null,null,null,null,null,null,null,null,null,null,null,null,null,null,null,null,null,null,null,null,null,null,null,null,null,null,null,null,null,null,null,null,null,null,null,null,null,null,null,null,null,null,null,null,null,null,null,null,null,null,null,null,null,null,null,null,null,null,null,null,null,null,null,null,null,null,null,null,null,null,null,null,null,null,null,null,null,null,null,null,null,null,null,null,null,null,null,null,null,null,null,null,null,null,null,null,null,null,null,null,null,null,null,null,null,null,null,null,null,null,null,null,null,null,null,null,null,null,null,null,null,null,null,null,null,null,null,null,null,null,null,null,null,null,null,null,null,null,{"$f":"'EOOTB - D.S.A.T (01)'!KC26","v":"Among the net's puzzle, are you able to recognize and avoid unsafe use of the web?"},{"$f":"'EOOTB - D.S.A.T (01)'!KE26","v":0},{"$f":"'EOOTB - D.S.A.T (01)'!KF26","v":0},{"$f":"'EOOTB - D.S.A.T (01)'!KG26","v":0},{"$f":"'EOOTB - D.S.A.T (01)'!KH26","v":0},{"$f":"'EOOTB - D.S.A.T (01)'!KI26","v":0},{"$f":"'EOOTB - D.S.A.T (01)'!KJ26","v":0},0,{"$f":"'EOOTB - D.S.A.T (01)'!KL26","v":0},{"$f":"'EOOTB - D.S.A.T (01)'!KM26","v":0},{"$f":"'EOOTB - D.S.A.T (01)'!KN26","v":""},{"$f":"'EOOTB - D.S.A.T (01)'!KO26","v":3},{"$f":"'EOOTB - D.S.A.T (01)'!KP26","v":0},{"$f":"'EOOTB - D.S.A.T (01)'!KQ26","v":0},{"$f":"'EOOTB - D.S.A.T (01)'!KR26","v":0},{"$f":"'EOOTB - D.S.A.T (01)'!KS26","v":0},{"$f":"'EOOTB - D.S.A.T (01)'!KT26","v":0}]
[null,null,null,null,null,null,null,null,null,null,null,null,null,null,null,null,null,{"$f":"'EOOTB - D.S.A.T (01)'!KA27","v":"➍"},{"$f":"'EOOTB - D.S.A.T (01)'!KB27","v":"🕸"},null,null,null,null,null,null,null,null,null,null,null,null,null,null,null,null,null,null,null,null,null,null,null,null,null,null,null,null,null,null,null,null,null,null,null,null,null,null,null,null,null,null,null,null,null,null,null,null,null,null,null,null,null,null,null,null,null,null,null,null,null,null,null,null,null,null,null,null,null,null,null,null,null,null,null,null,null,null,null,null,null,null,null,null,null,null,null,null,null,null,null,null,null,null,null,null,null,null,null,null,null,null,null,null,null,null,null,null,null,null,null,null,null,null,null,null,null,null,null,null,null,null,null,null,null,null,null,null,null,null,null,null,null,null,null,null,null,null,null,null,null,null,null,null,null,null,null,null,null,null,null,null,null,null,null,null,null,null,null,null,null,null,null,null,null,null,null,null,{"$f":"'EOOTB - D.S.A.T (01)'!KC27","v":"Are you comfortable with learning & creating content on EOOTB platform?"},{"$f":"'EOOTB - D.S.A.T (01)'!KE27","v":0},{"$f":"'EOOTB - D.S.A.T (01)'!KF27","v":0},{"$f":"'EOOTB - D.S.A.T (01)'!KG27","v":0},{"$f":"'EOOTB - D.S.A.T (01)'!KH27","v":0},{"$f":"'EOOTB - D.S.A.T (01)'!KI27","v":0},{"$f":"'EOOTB - D.S.A.T (01)'!KJ27","v":0},0,{"$f":"'EOOTB - D.S.A.T (01)'!KL27","v":0},{"$f":"'EOOTB - D.S.A.T (01)'!KM27","v":0},{"$f":"'EOOTB - D.S.A.T (01)'!KN27","v":""},{"$f":"'EOOTB - D.S.A.T (01)'!KO27","v":4},{"$f":"'EOOTB - D.S.A.T (01)'!KP27","v":0},{"$f":"'EOOTB - D.S.A.T (01)'!KQ27","v":0},{"$f":"'EOOTB - D.S.A.T (01)'!KR27","v":0},{"$f":"'EOOTB - D.S.A.T (01)'!KS27","v":0},{"$f":"'EOOTB - D.S.A.T (01)'!KT27","v":0}]
[null,null,null,null,null,null,null,null,null,null,null,null,null,null,null,null,null,{"$f":"'EOOTB - D.S.A.T (01)'!KA28","v":"➎"},{"$f":"'EOOTB - D.S.A.T (01)'!KB28","v":"🧩"},null,null,null,null,null,null,null,null,null,null,null,null,null,null,null,null,null,null,null,null,null,null,null,null,null,null,null,null,null,null,null,null,null,null,null,null,null,null,null,null,null,null,null,null,null,null,null,null,null,null,null,null,null,null,null,null,null,null,null,null,null,null,null,null,null,null,null,null,null,null,null,null,null,null,null,null,null,null,null,null,null,null,null,null,null,null,null,null,null,null,null,null,null,null,null,null,null,null,null,null,null,null,null,null,null,null,null,null,null,null,null,null,null,null,null,null,null,null,null,null,null,null,null,null,null,null,null,null,null,null,null,null,null,null,null,null,null,null,null,null,null,null,null,null,null,null,null,null,null,null,null,null,null,null,null,null,null,null,null,null,null,null,null,null,null,null,null,null,{"$f":"'EOOTB - D.S.A.T (01)'!KC28","v":"Did you detect the EOOTB innovations and how it can help you improve your digital skills?"},{"$f":"'EOOTB - D.S.A.T (01)'!KE28","v":0},{"$f":"'EOOTB - D.S.A.T (01)'!KF28","v":0},{"$f":"'EOOTB - D.S.A.T (01)'!KG28","v":0},{"$f":"'EOOTB - D.S.A.T (01)'!KH28","v":0},{"$f":"'EOOTB - D.S.A.T (01)'!KI28","v":0},{"$f":"'EOOTB - D.S.A.T (01)'!KJ28","v":0},0,{"$f":"'EOOTB - D.S.A.T (01)'!KL28","v":0},{"$f":"'EOOTB - D.S.A.T (01)'!KM28","v":0},{"$f":"'EOOTB - D.S.A.T (01)'!KN28","v":""},{"$f":"'EOOTB - D.S.A.T (01)'!KO28","v":5},{"$f":"'EOOTB - D.S.A.T (01)'!KP28","v":0},{"$f":"'EOOTB - D.S.A.T (01)'!KQ28","v":0},{"$f":"'EOOTB - D.S.A.T (01)'!KR28","v":0},{"$f":"'EOOTB - D.S.A.T (01)'!KS28","v":0},{"$f":"'EOOTB - D.S.A.T (01)'!KT28","v":0}]
[null,null,null,null,null,null,null,null,null,null,null,null,null,null,null,null,null,{"$f":"'EOOTB - D.S.A.T (01)'!KA29","v":0},{"$f":"'EOOTB - D.S.A.T (01)'!KB29","v":0},null,null,null,null,null,null,null,null,null,null,null,null,null,null,null,null,null,null,null,null,null,null,null,null,null,null,null,null,null,null,null,null,null,null,null,null,null,null,null,null,null,null,null,null,null,null,null,null,null,null,null,null,null,null,null,null,null,null,null,null,null,null,null,null,null,null,null,null,null,null,null,null,null,null,null,null,null,null,null,null,null,null,null,null,null,null,null,null,null,null,null,null,null,null,null,null,null,null,null,null,null,null,null,null,null,null,null,null,null,null,null,null,null,null,null,null,null,null,null,null,null,null,null,null,null,null,null,null,null,null,null,null,null,null,null,null,null,null,null,null,null,null,null,null,null,null,null,null,null,null,null,null,null,null,null,null,null,null,null,null,null,null,null,null,null,null,null,null,{"$f":"'EOOTB - D.S.A.T (01)'!KC29","v":0},{"$f":"'EOOTB - D.S.A.T (01)'!KE29","v":0},{"$f":"'EOOTB - D.S.A.T (01)'!KF29","v":0},{"$f":"'EOOTB - D.S.A.T (01)'!KG29","v":0},{"$f":"'EOOTB - D.S.A.T (01)'!KH29","v":0},{"$f":"'EOOTB - D.S.A.T (01)'!KI29","v":0},{"$f":"'EOOTB - D.S.A.T (01)'!KJ29","v":0},{"$f":"'EOOTB - D.S.A.T (01)'!KK29","v":0},{"$f":"'EOOTB - D.S.A.T (01)'!KL29","v":0},{"$f":"'EOOTB - D.S.A.T (01)'!KM29","v":0},{"$f":"'EOOTB - D.S.A.T (01)'!KN29","v":""},{"$f":"'EOOTB - D.S.A.T (01)'!KO29","v":0},{"$f":"'EOOTB - D.S.A.T (01)'!KP29","v":0},{"$f":"'EOOTB - D.S.A.T (01)'!KQ29","v":0},{"$f":"'EOOTB - D.S.A.T (01)'!KR29","v":0},{"$f":"'EOOTB - D.S.A.T (01)'!KS29","v":0},{"$f":"'EOOTB - D.S.A.T (01)'!KT29","v":0}]
[null,null,null,null,null,null,null,null,null,null,null,null,null,null,null,null,null,{"$f":"'EOOTB - D.S.A.T (01)'!KA30","v":"➍"},{"$f":"'EOOTB - D.S.A.T (01)'!KB30","v":0},null,null,null,null,null,null,null,null,null,null,null,null,null,null,null,null,null,null,null,null,null,null,null,null,null,null,null,null,null,null,null,null,null,null,null,null,null,null,null,null,null,null,null,null,null,null,null,null,null,null,null,null,null,null,null,null,null,null,null,null,null,null,null,null,null,null,null,null,null,null,null,null,null,null,null,null,null,null,null,null,null,null,null,null,null,null,null,null,null,null,null,null,null,null,null,null,null,null,null,null,null,null,null,null,null,null,null,null,null,null,null,null,null,null,null,null,null,null,null,null,null,null,null,null,null,null,null,null,null,null,null,null,null,null,null,null,null,null,null,null,null,null,null,null,null,null,null,null,null,null,null,null,null,null,null,null,null,null,null,null,null,null,null,null,null,null,null,null,{"$f":"'EOOTB - D.S.A.T (01)'!KC30","v":"Digital Upscale\nKindly, one single choice/answer per question/line is allowed!"},{"$f":"'EOOTB - D.S.A.T (01)'!KE30","v":0},{"$f":"'EOOTB - D.S.A.T (01)'!KF30","v":0},{"$f":"'EOOTB - D.S.A.T (01)'!KG30","v":0},{"$f":"'EOOTB - D.S.A.T (01)'!KH30","v":0},{"$f":"'EOOTB - D.S.A.T (01)'!KI30","v":0},{"$f":"'EOOTB - D.S.A.T (01)'!KJ30","v":0},{"$f":"'EOOTB - D.S.A.T (01)'!KK30","v":0},{"$f":"'EOOTB - D.S.A.T (01)'!KL30","v":0},{"$f":"'EOOTB - D.S.A.T (01)'!KM30","v":0},{"$f":"'EOOTB - D.S.A.T (01)'!KN30","v":""},{"$f":"'EOOTB - D.S.A.T (01)'!KO30","v":0},{"$f":"'EOOTB - D.S.A.T (01)'!KP30","v":0},{"$f":"'EOOTB - D.S.A.T (01)'!KQ30","v":0},{"$f":"'EOOTB - D.S.A.T (01)'!KR30","v":0},{"$f":"'EOOTB - D.S.A.T (01)'!KS30","v":0},{"$f":"'EOOTB - D.S.A.T (01)'!KT30","v":0}]
[null,null,null,null,null,null,null,null,null,null,null,null,null,null,null,null,null,{"$f":"'EOOTB - D.S.A.T (01)'!KA31","v":"➊"},{"$f":"'EOOTB - D.S.A.T (01)'!KB31","v":"🔝"},null,null,null,null,null,null,null,null,null,null,null,null,null,null,null,null,null,null,null,null,null,null,null,null,null,null,null,null,null,null,null,null,null,null,null,null,null,null,null,null,null,null,null,null,null,null,null,null,null,null,null,null,null,null,null,null,null,null,null,null,null,null,null,null,null,null,null,null,null,null,null,null,null,null,null,null,null,null,null,null,null,null,null,null,null,null,null,null,null,null,null,null,null,null,null,null,null,null,null,null,null,null,null,null,null,null,null,null,null,null,null,null,null,null,null,null,null,null,null,null,null,null,null,null,null,null,null,null,null,null,null,null,null,null,null,null,null,null,null,null,null,null,null,null,null,null,null,null,null,null,null,null,null,null,null,null,null,null,null,null,null,null,null,null,null,null,null,null,{"$f":"'EOOTB - D.S.A.T (01)'!KC31","v":"Do you intend to unlock & upscale your personal digital skills?"},{"$f":"'EOOTB - D.S.A.T (01)'!KE31","v":0},{"$f":"'EOOTB - D.S.A.T (01)'!KF31","v":0},{"$f":"'EOOTB - D.S.A.T (01)'!KG31","v":0},{"$f":"'EOOTB - D.S.A.T (01)'!KH31","v":0},{"$f":"'EOOTB - D.S.A.T (01)'!KI31","v":0},{"$f":"'EOOTB - D.S.A.T (01)'!KJ31","v":0},{"$f":"GL31","v":0},{"$f":"'EOOTB - D.S.A.T (01)'!KL31","v":"➊"},{"$f":"'EOOTB - D.S.A.T (01)'!KM31","v":0},{"$f":"'EOOTB - D.S.A.T (01)'!KN31","v":""},{"$f":"'EOOTB - D.S.A.T (01)'!KO31","v":3},{"$f":"'EOOTB - D.S.A.T (01)'!KP31","v":0},{"$f":"'EOOTB - D.S.A.T (01)'!KQ31","v":0},{"$f":"IF(GL31=1,5,0)","v":0},{"$f":"'EOOTB - D.S.A.T (01)'!KS31","v":0},{"$f":"'EOOTB - D.S.A.T (01)'!KT31","v":0}]
[null,null,null,null,null,null,null,null,null,null,null,null,null,null,null,null,null,{"$f":"'EOOTB - D.S.A.T (01)'!KA32","v":"➋"},{"$f":"'EOOTB - D.S.A.T (01)'!KB32","v":"📃"},null,null,null,null,null,null,null,null,null,null,null,null,null,null,null,null,null,null,null,null,null,null,null,null,null,null,null,null,null,null,null,null,null,null,null,null,null,null,null,null,null,null,null,null,null,null,null,null,null,null,null,null,null,null,null,null,null,null,null,null,null,null,null,null,null,null,null,null,null,null,null,null,null,null,null,null,null,null,null,null,null,null,null,null,null,null,null,null,null,null,null,null,null,null,null,null,null,null,null,null,null,null,null,null,null,null,null,null,null,null,null,null,null,null,null,null,null,null,null,null,null,null,null,null,null,null,null,null,null,null,null,null,null,null,null,null,null,null,null,null,null,null,null,null,null,null,null,null,null,null,null,null,null,null,null,null,null,null,null,null,null,null,null,null,null,null,null,null,{"$f":"'EOOTB - D.S.A.T (01)'!KC32","v":"Are you willing to take part in digital trainings in your area?"},{"$f":"'EOOTB - D.S.A.T (01)'!KE32","v":0},{"$f":"'EOOTB - D.S.A.T (01)'!KF32","v":0},{"$f":"'EOOTB - D.S.A.T (01)'!KG32","v":0},{"$f":"'EOOTB - D.S.A.T (01)'!KH32","v":0},{"$f":"'EOOTB - D.S.A.T (01)'!KI32","v":0},{"$f":"'EOOTB - D.S.A.T (01)'!KJ32","v":0},{"$f":"GL32","v":0},{"$f":"'EOOTB - D.S.A.T (01)'!KL32","v":"➋"},{"$f":"'EOOTB - D.S.A.T (01)'!KM32","v":0},{"$f":"'EOOTB - D.S.A.T (01)'!KN32","v":""},{"$f":"'EOOTB - D.S.A.T (01)'!KO32","v":5},{"$f":"'EOOTB - D.S.A.T (01)'!KP32","v":0},{"$f":"'EOOTB - D.S.A.T (01)'!KQ32","v":0},{"$f":"'EOOTB - D.S.A.T (01)'!KR32","v":0},{"$f":"'EOOTB - D.S.A.T (01)'!KS32","v":0},{"$f":"IF(GL32=1,5,0)","v":0}]
[null,null,null,null,null,null,null,null,null,null,null,null,null,null,null,null,null,{"$f":"'EOOTB - D.S.A.T (01)'!KA33","v":0},{"$f":"'EOOTB - D.S.A.T (01)'!KB33","v":0},null,null,null,null,null,null,null,null,null,null,null,null,null,null,null,null,null,null,null,null,null,null,null,null,null,null,null,null,null,null,null,null,null,null,null,null,null,null,null,null,null,null,null,null,null,null,null,null,null,null,null,null,null,null,null,null,null,null,null,null,null,null,null,null,null,null,null,null,null,null,null,null,null,null,null,null,null,null,null,null,null,null,null,null,null,null,null,null,null,null,null,null,null,null,null,null,null,null,null,null,null,null,null,null,null,null,null,null,null,null,null,null,null,null,null,null,null,null,null,null,null,null,null,null,null,null,null,null,null,null,null,null,null,null,null,null,null,null,null,null,null,null,null,null,null,null,null,null,null,null,null,null,null,null,null,null,null,null,null,null,null,null,null,null,null,null,null,null,{"$f":"'EOOTB - D.S.A.T (01)'!KC33","v":0},{"$f":"'EOOTB - D.S.A.T (01)'!KE33","v":0},{"$f":"'EOOTB - D.S.A.T (01)'!KF33","v":0},{"$f":"'EOOTB - D.S.A.T (01)'!KG33","v":0},{"$f":"'EOOTB - D.S.A.T (01)'!KH33","v":0},{"$f":"'EOOTB - D.S.A.T (01)'!KI33","v":0},{"$f":"'EOOTB - D.S.A.T (01)'!KJ33","v":0},{"$f":"'EOOTB - D.S.A.T (01)'!KK33","v":0},{"$f":"'EOOTB - D.S.A.T (01)'!KL33","v":0},{"$f":"'EOOTB - D.S.A.T (01)'!KM33","v":0},{"$f":"'EOOTB - D.S.A.T (01)'!KN33","v":""},{"$f":"'EOOTB - D.S.A.T (01)'!KO33","v":0},{"$f":"'EOOTB - D.S.A.T (01)'!KP33","v":0},{"$f":"'EOOTB - D.S.A.T (01)'!KQ33","v":0},{"$f":"'EOOTB - D.S.A.T (01)'!KR33","v":0},{"$f":"'EOOTB - D.S.A.T (01)'!KS33","v":0},{"$f":"'EOOTB - D.S.A.T (01)'!KT33","v":0}]
[null,null,null,null,null,null,null,null,null,null,null,null,null,null,null,null,null,{"$f":"'EOOTB - D.S.A.T (01)'!KA34","v":0},{"$f":"'EOOTB - D.S.A.T (01)'!KB34","v":0},null,null,null,null,null,null,null,null,null,null,null,null,null,null,null,null,null,null,null,null,null,null,null,null,null,null,null,null,null,null,null,null,null,null,null,null,null,null,null,null,null,null,null,null,null,null,null,null,null,null,null,null,null,null,null,null,null,null,null,null,null,null,null,null,null,null,null,null,null,null,null,null,null,null,null,null,null,null,null,null,null,null,null,null,null,null,null,null,null,null,null,null,null,null,null,null,null,null,null,null,null,null,null,null,null,null,null,null,null,null,null,null,null,null,null,null,null,null,null,null,null,null,null,null,null,null,null,null,null,null,null,null,null,null,null,null,null,null,null,null,null,null,null,null,null,null,null,null,null,null,null,null,null,null,null,null,null,null,null,null,null,null,null,null,null,null,null,null,{"$f":"'EOOTB - D.S.A.T (01)'!KC34","v":0},{"$f":"'EOOTB - D.S.A.T (01)'!KE34","v":0},{"$f":"'EOOTB - D.S.A.T (01)'!KF34","v":0},{"$f":"'EOOTB - D.S.A.T (01)'!KG34","v":0},{"$f":"'EOOTB - D.S.A.T (01)'!KH34","v":0},{"$f":"'EOOTB - D.S.A.T (01)'!KI34","v":0},{"$f":"'EOOTB - D.S.A.T (01)'!KJ34","v":0},{"$f":"'EOOTB - D.S.A.T (01)'!KK34","v":0},{"$f":"'EOOTB - D.S.A.T (01)'!KL34","v":0},{"$f":"'EOOTB - D.S.A.T (01)'!KM34","v":0},{"$f":"'EOOTB - D.S.A.T (01)'!KN34","v":""},{"$f":"'EOOTB - D.S.A.T (01)'!KO34","v":0},{"$f":"'EOOTB - D.S.A.T (01)'!KP34","v":0},{"$f":"'EOOTB - D.S.A.T (01)'!KQ34","v":0},{"$f":"'EOOTB - D.S.A.T (01)'!KR34","v":0},{"$f":"'EOOTB - D.S.A.T (01)'!KS34","v":0},{"$f":"'EOOTB - D.S.A.T (01)'!KT34","v":0}]
[null,null,null,null,null,null,null,null,null,null,null,null,null,null,null,null,null,{"$f":"'EOOTB - D.S.A.T (01)'!KA35","v":"❺"},{"$f":"'EOOTB - D.S.A.T (01)'!KB35","v":0},null,null,null,null,null,null,null,null,null,null,null,null,null,null,null,null,null,null,null,null,null,null,null,null,null,null,null,null,null,null,null,null,null,null,null,null,null,null,null,null,null,null,null,null,null,null,null,null,null,null,null,null,null,null,null,null,null,null,null,null,null,null,null,null,null,null,null,null,null,null,null,null,null,null,null,null,null,null,null,null,null,null,null,null,null,null,null,null,null,null,null,null,null,null,null,null,null,null,null,null,null,null,null,null,null,null,null,null,null,null,null,null,null,null,null,null,null,null,null,null,null,null,null,null,null,null,null,null,null,null,null,null,null,null,null,null,null,null,null,null,null,null,null,null,null,null,null,null,null,null,null,null,null,null,null,null,null,null,null,null,null,null,null,null,null,null,null,null,{"$f":"'EOOTB - D.S.A.T (01)'!KC35","v":"Digital Tools @ Home\nKindly, multiple choices/answers per question/line are allowed!"},{"$f":"'EOOTB - D.S.A.T (01)'!KE35","v":0},{"$f":"'EOOTB - D.S.A.T (01)'!KF35","v":0},{"$f":"'EOOTB - D.S.A.T (01)'!KG35","v":0},{"$f":"'EOOTB - D.S.A.T (01)'!KH35","v":0},{"$f":"'EOOTB - D.S.A.T (01)'!KI35","v":0},{"$f":"'EOOTB - D.S.A.T (01)'!KJ35","v":0},{"$f":"'EOOTB - D.S.A.T (01)'!KK35","v":0},{"$f":"'EOOTB - D.S.A.T (01)'!KL35","v":0},{"$f":"'EOOTB - D.S.A.T (01)'!KM35","v":0},{"$f":"'EOOTB - D.S.A.T (01)'!KN35","v":""},{"$f":"'EOOTB - D.S.A.T (01)'!KO35","v":0},{"$f":"'EOOTB - D.S.A.T (01)'!KP35","v":0},{"$f":"'EOOTB - D.S.A.T (01)'!KQ35","v":0},{"$f":"'EOOTB - D.S.A.T (01)'!KR35","v":0},{"$f":"'EOOTB - D.S.A.T (01)'!KS35","v":0},{"$f":"'EOOTB - D.S.A.T (01)'!KT35","v":0}]
[null,null,null,null,null,null,null,null,null,null," ||",null,null,null,null,null,null,{"$f":"'EOOTB - D.S.A.T (01)'!KA36","v":"➊"},{"$f":"'EOOTB - D.S.A.T (01)'!KB36","v":0},null,null,null,null,null,null,null,null,null,null,null,null,null,null,null,null,null,null,null,null,null,null,null,null,null,null,null,null,null,null,null,null,null,null,null,null,null,null,null,null,null,null,null,null,null,null,null,null,null,null,null,null,null,null,null,null,null,null,null,null,null,null,null,null,null,null,null,null,null,null,null,null,null,null,null,null,null,null,null,null,null,null,null,null,null,null,null,null,null,null,null,null,null,null,null,null,null,null,null,null,null,null,null,null,null,null,null,null,null,null,null,null,null,null,null,null,null,null,null,null,null,null,null,null,null,null,null,null,null,null,null,null,null,null,null,null,null,null,null,null,null,null,null,null,null,null,null,null,null,null,null,null,null,null,null,null,null,null,null,null,null,null,null,null,null,null,null,null,{"$f":"'EOOTB - D.S.A.T (01)'!KC36","v":"Which of the following digital tools do you use on a daily basis?"},{"$f":"'EOOTB - D.S.A.T (01)'!KE36","v":0},{"$f":"'EOOTB - D.S.A.T (01)'!KF36","v":0},{"$f":"'EOOTB - D.S.A.T (01)'!KG36","v":0},{"$f":"'EOOTB - D.S.A.T (01)'!KH36","v":0},{"$f":"'EOOTB - D.S.A.T (01)'!KI36","v":0},{"$f":"'EOOTB - D.S.A.T (01)'!KJ36","v":0},{"$f":"COUNTIF(GG36:GK36,1)","v":0},{"$f":"'EOOTB - D.S.A.T (01)'!KL36","v":0},{"$f":"'EOOTB - D.S.A.T (01)'!KM36","v":0},{"$f":"'EOOTB - D.S.A.T (01)'!KN36","v":""},{"$f":"'EOOTB - D.S.A.T (01)'!KO36","v":1},{"$f":"IF(GG36=0,0,GG36+GG36/10)","v":0},{"$f":"IF(GH36=0,0,GH36+GH36/10)","v":0},0,0,0,null,null,null,"Rule 1: ","add (or subtract) two fractions with the same denominator."]
[null,null,null,null,null,null,null,null,null,null,null,null,null,null,null,null,null,{"$f":"'EOOTB - D.S.A.T (01)'!KA37","v":"➋"},{"$f":"'EOOTB - D.S.A.T (01)'!KB37","v":0},null,null,null,null,null,null,null,null,null,null,null,null,null,null,null,null,null,null,null,null,null,null,null,null,null,null,null,null,null,null,null,null,null,null,null,null,null,null,null,null,null,null,null,null,null,null,null,null,null,null,null,null,null,null,null,null,null,null,null,null,null,null,null,null,null,null,null,null,null,null,null,null,null,null,null,null,null,null,null,null,null,null,null,null,null,null,null,null,null,null,null,null,null,null,null,null,null,null,null,null,null,null,null,null,null,null,null,null,null,null,null,null,null,null,null,null,null,null,null,null,null,null,null,null,null,null,null,null,null,null,null,null,null,null,null,null,null,null,null,null,null,null,null,null,null,null,null,null,null,null,null,null,null,null,null,null,null,null,null,null,null,null,null,null,null,null,null,null,{"$f":"'EOOTB - D.S.A.T (01)'!KC37","v":"Which of the following digital tools do you use for your social networking?"},{"$f":"'EOOTB - D.S.A.T (01)'!KE37","v":0},{"$f":"'EOOTB - D.S.A.T (01)'!KF37","v":0},{"$f":"'EOOTB - D.S.A.T (01)'!KG37","v":0},{"$f":"'EOOTB - D.S.A.T (01)'!KH37","v":0},{"$f":"'EOOTB - D.S.A.T (01)'!KI37","v":0},{"$f":"'EOOTB - D.S.A.T (01)'!KJ37","v":0},{"$f":"COUNTIF(GG37:GK37,1)","v":0},{"$f":"'EOOTB - D.S.A.T (01)'!KL37","v":0},{"$f":"'EOOTB - D.S.A.T (01)'!KM37","v":0},{"$f":"'EOOTB - D.S.A.T (01)'!KN37","v":""},{"$f":"'EOOTB - D.S.A.T (01)'!KO37","v":2},{"$f":"IF(GG37=0,0,GG37+GG37/10)","v":0},{"$f":"IF(GH37=0,0,GH37+GH37/10)","v":0},{"$f":"IF(GI37=0,0,GI37+GI37/10)","v":0},{"$f":"IF(GJ37=0,0,GJ37+GJ37/10)","v":0},{"$f":"IF(GK37=0,0,GK37+GK37/10)","v":0},null,null,null,null,"add (or subtract) the two numerators."]
[null,null,null,null,null,null,null,null,null,null,null,null,null,null,null,null,null,{"$f":"'EOOTB - D.S.A.T (01)'!KA38","v":"➌"},{"$f":"'EOOTB - D.S.A.T (01)'!KB38","v":0},null,null,null,null,null,null,null,null,null,null,null,null,null,null,null,null,null,null,null,null,null,null,null,null,null,null,null,null,null,null,null,null,null,null,null,null,null,null,null,null,null,null,null,null,null,null,null,null,null,null,null,null,null,null,null,null,null,null,null,null,null,null,null,null,null,null,null,null,null,null,null,null,null,null,null,null,null,null,null,null,null,null,null,null,null,null,null,null,null,null,null,null,null,null,null,null,null,null,null,null,null,null,null,null,null,null,null,null,null,null,null,null,null,null,null,null,null,null,null,null,null,null,null,null,null,null,null,null,null,null,null,null,null,null,null,null,null,null,null,null,null,null,null,null,null,null,null,null,null,null,null,null,null,null,null,null,null,null,null,null,null,null,null,null,null,null,null,null,{"$f":"'EOOTB - D.S.A.T (01)'!KC38","v":"Which of the following tools do you use to transmit your data/ images/ folders/ ... ?"},{"$f":"'EOOTB - D.S.A.T (01)'!KE38","v":0},{"$f":"'EOOTB - D.S.A.T (01)'!KF38","v":0},{"$f":"'EOOTB - D.S.A.T (01)'!KG38","v":0},{"$f":"'EOOTB - D.S.A.T (01)'!KH38","v":0},{"$f":"'EOOTB - D.S.A.T (01)'!KI38","v":0},{"$f":"'EOOTB - D.S.A.T (01)'!KJ38","v":0},0,{"$f":"'EOOTB - D.S.A.T (01)'!KL38","v":0},{"$f":"'EOOTB - D.S.A.T (01)'!KM38","v":0},{"$f":"'EOOTB - D.S.A.T (01)'!KN38","v":""},{"$f":"'EOOTB - D.S.A.T (01)'!KO38","v":3},0,0,0,0,0,null,null,null,null,"keep their common denominator (.",null,null,null,null,null,null,null,null,null,null,null,null,null,null,null,null,null,null,null,null,null,null,null,null,null,null,null,null,null,null,null,null,null,null,null,null,null,null,null,null,null,null,null,null,null,null,null,null,null,null,null,null,null,null,null,null,null,null,null,null,null,null,null,null,null,null,null,null,null,null,null,null,null,null,null,null,null,null,null,null,null,null,null,null,null,null,null,null,null,null,null,null,null,null,null,null,null,null,null,null,null,null,null,null,null,null,null,null,null,null,null,null,null,null,null,null,null,null,null,null,null,null,null,null,null,null,null,null,null,null,null,null,null,null,null,null,null,null,null,null,null,null,null,null,null,null,null,null,null,null,null,null,null,null,null,null,null,null,null,null,null,null,null,null,null,null,null,null,null,null,null,null,null,null,null,null,null,null,null,null,null,null,null,null,null,null,null,null,null,null,null,null,null,null,null,null,null,null,null,null,null,null,null,null,null,null,null,null,null,null,null,null,null,null,null,null,null,null,null,null,null,null,null,null,null,null,null,null,null,null,null,null,null,null,null,null,null,null,null,null,null,null,null,null,null,null,null,null,null,null,null,null,null,null,null,null,null,null,null,null,null,null,null,null,null,null,null,null,null,null,null,null,null,null,null,null,null,null,null,null,null,null,null,null,null,null,null,null,null,null,null,null,null,null,null,null,null,null,null,null,null,null,null,null,null,null,null,null,null,null,null,null,null,null,null,null,null,null,null,null,null,null,null,"Reminder of the rules"]
[null,null,null,null,null,null,null,null,null,null,null,null,null,null,null,null,null,{"$f":"'EOOTB - D.S.A.T (01)'!KA39","v":"➍"},{"$f":"'EOOTB - D.S.A.T (01)'!KB39","v":0},null,null,null,null,null,null,null,null,null,null,null,null,null,null,null,null,null,null,null,null,null,null,null,null,null,null,null,null,null,null,null,null,null,null,null,null,null,null,null,null,null,null,null,null,null,null,null,null,null,null,null,null,null,null,null,null,null,null,null,null,null,null,null,null,null,null,null,null,null,null,null,null,null,null,null,null,null,null,null,null,null,null,null,null,null,null,null,null,null,null,null,null,null,null,null,null,null,null,null,null,null,null,null,null,null,null,null,null,null,null,null,null,null,null,null,null,null,null,null,null,null,null,null,null,null,null,null,null,null,null,null,null,null,null,null,null,null,null,null,null,null,null,null,null,null,null,null,null,null,null,null,null,null,null,null,null,null,null,null,null,null,null,null,null,null,null,null,null,{"$f":"'EOOTB - D.S.A.T (01)'!KC39","v":"Which of the following digital tools do you feel digitaly safe when using it?"},{"$f":"'EOOTB - D.S.A.T (01)'!KE39","v":0},{"$f":"'EOOTB - D.S.A.T (01)'!KF39","v":0},{"$f":"'EOOTB - D.S.A.T (01)'!KG39","v":0},{"$f":"'EOOTB - D.S.A.T (01)'!KH39","v":0},{"$f":"'EOOTB - D.S.A.T (01)'!KI39","v":0},{"$f":"'EOOTB - D.S.A.T (01)'!KJ39","v":0},0,{"$f":"'EOOTB - D.S.A.T (01)'!KL39","v":0},{"$f":"'EOOTB - D.S.A.T (01)'!KM39","v":0},{"$f":"'EOOTB - D.S.A.T (01)'!KN39","v":""},{"$f":"'EOOTB - D.S.A.T (01)'!KO39","v":4},0,0,0,0,0,null,null,null,"Rule 2: ","add (or subtract) two fractions with different denominators.",null,null,null,null,null,null,null,null,null,null,null,null,null,null,null,null,null,null,null,null,null,null,null,null,null,null,null,null,null,null,null,null,null,null,null,null,null,null,null,null,null,null,null,null,null,null,null,null,null,null,null,null,null,null,null,null,null,null,null,null,null,null,null,null,null,null,null,null,null,null,null,null,null,null,null,null,null,null,null,null,null,null,null,null,null,null,null,null,null,null,null,null,null,null,null,null,null,null,null,null,null,null,null,null,null,null,null,null,null,null,null,null,null,null,null,null,null,null,null,null,null,null,null,null,null,null,null,null,null,null,null,null,null,null,null,null,null,null,null,null,null,null,null,null,null,null,null,null,null,null,null,null,null,null,null,null,null,null,null,null,null,null,null,null,null,null,null,null,null,null,null,null,null,null,null,null,null,null,null,null,null,null,null,null,null,null,null,null,null,null,null,null,null,null,null,null,null,null,null,null,null,null,null,null,null,null,null,null,null,null,null,null,null,null,null,null,null,null,null,null,null,null,null,null,null,null,null,null,null,null,null,null,null,null,null,null,null,null,null,null,null,null,null,null,null,null,null,null,null,null,null,null,null,null,null,null,null,null,null,null,null,null,null,null,null,null,null,null,null,null,null,null,null,null,null,null,null,null,null,null,null,null,null,null,null,null,null,null,null,null,null,null,null,null,null,null,null,null,null,null,null,null,null,null,null,null,null,null,null,null,null,null,null,null,null,null,null,null,null,null,null,null,null,"Rule 1: ",null,"add (or subtract) two fractions with the same denominator."]
[null,null,null,null,null,null,null,null,null,null,null,null,null,null,null,null,null,{"$f":"'EOOTB - D.S.A.T (01)'!KA40","v":"➎"},{"$f":"'EOOTB - D.S.A.T (01)'!KB40","v":0},null,null,null,null,null,null,null,null,null,null,null,null,null,null,null,null,null,null,null,null,null,null,null,null,null,null,null,null,null,null,null,null,null,null,null,null,null,null,null,null,null,null,null,null,null,null,null,null,null,null,null,null,null,null,null,null,null,null,null,null,null,null,null,null,null,null,null,null,null,null,null,null,null,null,null,null,null,null,null,null,null,null,null,null,null,null,null,null,null,null,null,null,null,null,null,null,null,null,null,null,null,null,null,null,null,null,null,null,null,null,null,null,null,null,null,null,null,null,null,null,null,null,null,null,null,null,null,null,null,null,null,null,null,null,null,null,null,null,null,null,null,null,null,null,null,null,null,null,null,null,null,null,null,null,null,null,null,null,null,null,null,null,null,null,null,null,null,null,{"$f":"'EOOTB - D.S.A.T (01)'!KC40","v":"which of the following tools you master perfectly?"},{"$f":"'EOOTB - D.S.A.T (01)'!KE40","v":0},{"$f":"'EOOTB - D.S.A.T (01)'!KF40","v":0},{"$f":"'EOOTB - D.S.A.T (01)'!KG40","v":0},{"$f":"'EOOTB - D.S.A.T (01)'!KH40","v":0},{"$f":"'EOOTB - D.S.A.T (01)'!KI40","v":0},{"$f":"'EOOTB - D.S.A.T (01)'!KJ40","v":0},0,{"$f":"'EOOTB - D.S.A.T (01)'!KL40","v":0},{"$f":"'EOOTB - D.S.A.T (01)'!KM40","v":0},{"$f":"'EOOTB - D.S.A.T (01)'!KN40","v":""},{"$f":"'EOOTB - D.S.A.T (01)'!KO40","v":5},0,0,0,0,0,null,null,null,null,"put them on the same denominator.",null,null,null,null,null,null,null,null,null,null,null,null,null,null,null,null,null,null,null,null,null,null,null,null,null,null,null,null,null,null,null,null,null,null,null,null,null,null,null,null,null,null,null,null,null,null,null,null,null,null,null,null,null,null,null,null,null,null,null,null,null,null,null,null,null,null,null,null,null,null,null,null,null,null,null,null,null,null,null,null,null,null,null,null,null,null,null,null,null,null,null,null,null,null,null,null,null,null,null,null,null,null,null,null,null,null,null,null,null,null,null,null,null,null,null,null,null,null,null,null,null,null,null,null,null,null,null,null,null,null,null,null,null,null,null,null,null,null,null,null,null,null,null,null,null,null,null,null,null,null,null,null,null,null,null,null,null,null,null,null,null,null,null,null,null,null,null,null,null,null,null,null,null,null,null,null,null,null,null,null,null,null,null,null,null,null,null,null,null,null,null,null,null,null,null,null,null,null,null,null,null,null,null,null,null,null,null,null,null,null,null,null,null,null,null,null,null,null,null,null,null,null,null,null,null,null,null,null,null,null,null,null,null,null,null,null,null,null,null,null,null,null,null,null,null,null,null,null,null,null,null,null,null,null,null,null,null,null,null,null,null,null,null,null,null,null,null,null,null,null,null,null,null,null,null,null,null,null,null,null,null,null,null,null,null,null,null,null,null,null,null,null,null,null,null,null,null,null,null,null,null,null,null,null,null,null,null,null,null,null,null,null,null,null,null,null,null,null,null,null,null,null,null,null,null,"add (or subtract) the two numerators."]
[null,null,null,null,null,null,null,null,null,null,null,null,null,null,null,null,null,{"$f":"'EOOTB - D.S.A.T (01)'!KA41","v":0},{"$f":"'EOOTB - D.S.A.T (01)'!KB41","v":0},null,null,null,null,null,null,null,null,null,null,null,null,null,null,null,null,null,null,null,null,null,null,null,null,null,null,null,null,null,null,null,null,null,null,null,null,null,null,null,null,null,null,null,null,null,null,null,null,null,null,null,null,null,null,null,null,null,null,null,null,null,null,null,null,null,null,null,null,null,null,null,null,null,null,null,null,null,null,null,null,null,null,null,null,null,null,null,null,null,null,null,null,null,null,null,null,null,null,null,null,null,null,null,null,null,null,null,null,null,null,null,null,null,null,null,null,null,null,null,null,null,null,null,null,null,null,null,null,null,null,null,null,null,null,null,null,null,null,null,null,null,null,null,null,null,null,null,null,null,null,null,null,null,null,null,null,null,null,null,null,null,null,null,null,null,null,null,null,{"$f":"'EOOTB - D.S.A.T (01)'!KC41","v":0},{"$f":"'EOOTB - D.S.A.T (01)'!KE41","v":0},{"$f":"'EOOTB - D.S.A.T (01)'!KF41","v":0},{"$f":"'EOOTB - D.S.A.T (01)'!KG41","v":0},{"$f":"'EOOTB - D.S.A.T (01)'!KH41","v":0},{"$f":"'EOOTB - D.S.A.T (01)'!KI41","v":0},{"$f":"'EOOTB - D.S.A.T (01)'!KJ41","v":0},{"$f":"'EOOTB - D.S.A.T (01)'!KK41","v":0},{"$f":"'EOOTB - D.S.A.T (01)'!KL41","v":0},{"$f":"'EOOTB - D.S.A.T (01)'!KM41","v":0},{"$f":"'EOOTB - D.S.A.T (01)'!KN41","v":""},{"$f":"'EOOTB - D.S.A.T (01)'!KO41","v":0},{"$f":"'EOOTB - D.S.A.T (01)'!KP41","v":0},{"$f":"'EOOTB - D.S.A.T (01)'!KQ41","v":0},{"$f":"'EOOTB - D.S.A.T (01)'!KR41","v":0},{"$f":"'EOOTB - D.S.A.T (01)'!KS41","v":0},{"$f":"'EOOTB - D.S.A.T (01)'!KT41","v":0}]
[null,null,null,null,null,null,null,null,null,null,null,null,null,null,null,null,null,{"$f":"'EOOTB - D.S.A.T (01)'!KA42","v":"❻"},{"$f":"'EOOTB - D.S.A.T (01)'!KB42","v":0},null,null,null,null,null,null,null,null,null,null,null,null,null,null,null,null,null,null,null,null,null,null,null,null,null,null,null,null,null,null,null,null,null,null,null,null,null,null,null,null,null,null,null,null,null,null,null,null,null,null,null,null,null,null,null,null,null,null,null,null,null,null,null,null,null,null,null,null,null,null,null,null,null,null,null,null,null,null,null,null,null,null,null,null,null,null,null,null,null,null,null,null,null,null,null,null,null,null,null,null,null,null,null,null,null,null,null,null,null,null,null,null,null,null,null,null,null,null,null,null,null,null,null,null,null,null,null,null,null,null,null,null,null,null,null,null,null,null,null,null,null,null,null,null,null,null,null,null,null,null,null,null,null,null,null,null,null,null,null,null,null,null,null,null,null,null,null,null,{"$f":"'EOOTB - D.S.A.T (01)'!KC42","v":"Digital Tools @ School\nKindly, multiple choices/answers per question/line are allowed!"},{"$f":"'EOOTB - D.S.A.T (01)'!KE42","v":0},{"$f":"'EOOTB - D.S.A.T (01)'!KF42","v":0},{"$f":"'EOOTB - D.S.A.T (01)'!KG42","v":0},{"$f":"'EOOTB - D.S.A.T (01)'!KH42","v":0},{"$f":"'EOOTB - D.S.A.T (01)'!KI42","v":0},{"$f":"'EOOTB - D.S.A.T (01)'!KJ42","v":0},{"$f":"'EOOTB - D.S.A.T (01)'!KK42","v":0},{"$f":"'EOOTB - D.S.A.T (01)'!KL42","v":0},{"$f":"'EOOTB - D.S.A.T (01)'!KM42","v":0},{"$f":"'EOOTB - D.S.A.T (01)'!KN42","v":""},{"$f":"'EOOTB - D.S.A.T (01)'!KO42","v":0},{"$f":"'EOOTB - D.S.A.T (01)'!KP42","v":0},{"$f":"'EOOTB - D.S.A.T (01)'!KQ42","v":0},{"$f":"'EOOTB - D.S.A.T (01)'!KR42","v":0},{"$f":"'EOOTB - D.S.A.T (01)'!KS42","v":0},{"$f":"'EOOTB - D.S.A.T (01)'!KT42","v":0},null,null,null,"Rule 3: ","multiply two fractions.",null,null,null,null,null,null,null,null,null,null,null,null,null,null,null,null,null,null,null,null,null,null,null,null,null,null,null,null,null,null,null,null,null,null,null,null,null,null,null,null,null,null,null,null,null,null,null,null,null,null,null,null,null,null,null,null,null,null,null,null,null,null,null,null,null,null,null,null,null,null,null,null,null,null,null,null,null,null,null,null,null,null,null,null,null,null,null,null,null,null,null,null,null,null,null,null,null,null,null,null,null,null,null,null,null,null,null,null,null,null,null,null,null,null,null,null,null,null,null,null,null,null,null,null,null,null,null,null,null,null,null,null,null,null,null,null,null,null,null,null,null,null,null,null,null,null,null,null,null,null,null,null,null,null,null,null,null,null,null,null,null,null,null,null,null,null,null,null,null,null,null,null,null,null,null,null,null,null,null,null,null,null,null,null,null,null,null,null,null,null,null,null,null,null,null,null,null,null,null,null,null,null,null,null,null,null,null,null,null,null,null,null,null,null,null,null,null,null,null,null,null,null,null,null,null,null,null,null,null,null,null,null,null,null,null,null,null,null,null,null,null,null,null,null,null,null,null,null,null,null,null,null,null,null,null,null,null,null,null,null,null,null,null,null,null,null,null,null,null,null,null,null,null,null,null,null,null,null,null,null,null,null,null,null,null,null,null,null,null,null,null,null,null,null,null,null,null,null,null,null,null,null,null,null,null,null,null,null,null,null,null,null,null,null,null,null,null,null,null,null,null,null,null,null,null,"keep their common denominator.",null,null,null,null,null,null,"(Do not convert fraction to lowest common denominator!!!)"]
[null,null,null,null,null,null,null,null,null,null,null,null,null,null,null,null,null,{"$f":"'EOOTB - D.S.A.T (01)'!KA43","v":"➊"},{"$f":"'EOOTB - D.S.A.T (01)'!KB43","v":{"$error":"#DIV/0!"}},null,null,null,null,null,null,null,null,null,null,null,null,null,null,null,null,null,null,null,null,null,null,null,null,null,null,null,null,null,null,null,null,null,null,null,null,null,null,null,null,null,null,null,null,null,null,null,null,null,null,null,null,null,null,null,null,null,null,null,null,null,null,null,null,null,null,null,null,null,null,null,null,null,null,null,null,null,null,null,null,null,null,null,null,null,null,null,null,null,null,null,null,null,null,null,null,null,null,null,null,null,null,null,null,null,null,null,null,null,null,null,null,null,null,null,null,null,null,null,null,null,null,null,null,null,null,null,null,null,null,null,null,null,null,null,null,null,null,null,null,null,null,null,null,null,null,null,null,null,null,null,null,null,null,null,null,null,null,null,null,null,null,null,null,null,null,null,null,{"$f":"'EOOTB - D.S.A.T (01)'!KC43","v":"which of the following tools is your school equiped with?"},{"$f":"'EOOTB - D.S.A.T (01)'!KE43","v":0},{"$f":"'EOOTB - D.S.A.T (01)'!KF43","v":0},{"$f":"'EOOTB - D.S.A.T (01)'!KG43","v":0},{"$f":"'EOOTB - D.S.A.T (01)'!KH43","v":0},{"$f":"'EOOTB - D.S.A.T (01)'!KI43","v":0},{"$f":"'EOOTB - D.S.A.T (01)'!KJ43","v":0},{"$f":"COUNTIF(GG43:GK43,1)","v":0},{"$f":"'EOOTB - D.S.A.T (01)'!KL43","v":0},{"$f":"'EOOTB - D.S.A.T (01)'!KM43","v":0},{"$f":"'EOOTB - D.S.A.T (01)'!KN43","v":""},{"$f":"'EOOTB - D.S.A.T (01)'!KO43","v":1},{"$f":"IF(GG43=0,0,GG43+GG43/10)","v":0},{"$f":"IF(GH43=0,0,GH43+GH43/10)","v":0},{"$f":"IF(GI43=0,0,GI43+GI43/10)","v":0},{"$f":"IF(GJ43=0,0,GJ43+GJ43/10)","v":0},{"$f":"IF(GK43=0,0,GK43+GK43/10)","v":0},null,null,null,null,"the numerator is the product of the two numerators of the two factors.",null,null,null,null,null,null,null,null,null,null,null,null,null,null,null,null,null,null,null,null,null,null,null,null,null,null,null,null,null,null,null,null,null,null,null,null,null,null,null,null,null,null,null,null,null,null,null,null,null,null,null,null,null,null,null,null,null,null,null,null,null,null,null,null,null,null,null,null,null,null,null,null,null,null,null,null,null,null,null,null,null,null,null,null,null,null,null,null,null,null,null,null,null,null,null,null,null,null,null,null,null,null,null,null,null,null,null,null,null,null,null,null,null,null,null,null,null,null,null,null,null,null,null,null,null,null,null,null,null,null,null,null,null,null,null,null,null,null,null,null,null,null,null,null,null,null,null,null,null,null,null,null,null,null,null,null,null,null,null,null,null,null,null,null,null,null,null,null,null,null,null,null,null,null,null,null,null,null,null,null,null,null,null,null,null,null,null,null,null,null,null,null,null,null,null,null,null,null,null,null,null,null,null,null,null,null,null,null,null,null,null,null,null,null,null,null,null,null,null,null,null,null,null,null,null,null,null,null,null,null,null,null,null,null,null,null,null,null,null,null,null,null,null,null,null,null,null,null,null,null,null,null,null,null,null,null,null,null,null,null,null,null,null,null,null,null,null,null,null,null,null,null,null,null,null,null,null,null,null,null,null,null,null,null,null,null,null,null,null,null,null,null,null,null,null,null,null,null,null,null,null,null,null,null,null,null,null,null,null,null,null,null,null,null,null,null,null,null,null,null,null,null,null,"Rule 2: ",null,"add (or subtract) two fractions with different denominators."]
[null,null,null,null,null,null,null,null,null,null,null,null,null,null,null,null,null,{"$f":"'EOOTB - D.S.A.T (01)'!KA44","v":"➋"},{"$f":"'EOOTB - D.S.A.T (01)'!KB44","v":{"$error":"#DIV/0!"}},null,null,null,null,null,null,null,null,null,null,null,null,null,null,null,null,null,null,null,null,null,null,null,null,null,null,null,null,null,null,null,null,null,null,null,null,null,null,null,null,null,null,null,null,null,null,null,null,null,null,null,null,null,null,null,null,null,null,null,null,null,null,null,null,null,null,null,null,null,null,null,null,null,null,null,null,null,null,null,null,null,null,null,null,null,null,null,null,null,null,null,null,null,null,null,null,null,null,null,null,null,null,null,null,null,null,null,null,null,null,null,null,null,null,null,null,null,null,null,null,null,null,null,null,null,null,null,null,null,null,null,null,null,null,null,null,null,null,null,null,null,null,null,null,null,null,null,null,null,null,null,null,null,null,null,null,null,null,null,null,null,null,null,null,null,null,null,null,{"$f":"'EOOTB - D.S.A.T (01)'!KC44","v":"Kindly show which of these digital tools, does your school offer courses?"},{"$f":"'EOOTB - D.S.A.T (01)'!KE44","v":0},{"$f":"'EOOTB - D.S.A.T (01)'!KF44","v":0},{"$f":"'EOOTB - D.S.A.T (01)'!KG44","v":0},{"$f":"'EOOTB - D.S.A.T (01)'!KH44","v":0},{"$f":"'EOOTB - D.S.A.T (01)'!KI44","v":0},{"$f":"'EOOTB - D.S.A.T (01)'!KJ44","v":0},{"$f":"COUNTIF(GG44:GK44,1)","v":0},{"$f":"'EOOTB - D.S.A.T (01)'!KL44","v":0},{"$f":"'EOOTB - D.S.A.T (01)'!KM44","v":0},{"$f":"'EOOTB - D.S.A.T (01)'!KN44","v":""},{"$f":"'EOOTB - D.S.A.T (01)'!KO44","v":2},{"$f":"IF(GG44=0,0,GG44+GG44/10)","v":0},0,0,0,0,null,null,null,null,"the denominator is the product of the two denominators of two factors",null,null,null,null,null,null,null,null,null,null,null,null,null,null,null,null,null,null,null,null,null,null,null,null,null,null,null,null,null,null,null,null,null,null,null,null,null,null,null,null,null,null,null,null,null,null,null,null,null,null,null,null,null,null,null,null,null,null,null,null,null,null,null,null,null,null,null,null,null,null,null,null,null,null,null,null,null,null,null,null,null,null,null,null,null,null,null,null,null,null,null,null,null,null,null,null,null,null,null,null,null,null,null,null,null,null,null,null,null,null,null,null,null,null,null,null,null,null,null,null,null,null,null,null,null,null,null,null,null,null,null,null,null,null,null,null,null,null,null,null,null,null,null,null,null,null,null,null,null,null,null,null,null,null,null,null,null,null,null,null,null,null,null,null,null,null,null,null,null,null,null,null,null,null,null,null,null,null,null,null,null,null,null,null,null,null,null,null,null,null,null,null,null,null,null,null,null,null,null,null,null,null,null,null,null,null,null,null,null,null,null,null,null,null,null,null,null,null,null,null,null,null,null,null,null,null,null,null,null,null,null,null,null,null,null,null,null,null,null,null,null,null,null,null,null,null,null,null,null,null,null,null,null,null,null,null,null,null,null,null,null,null,null,null,null,null,null,null,null,null,null,null,null,null,null,null,null,null,null,null,null,null,null,null,null,null,null,null,null,null,null,null,null,null,null,null,null,null,null,null,null,null,null,null,null,null,null,null,null,null,null,null,null,null,null,null,null,null,null,null,null,null,null,null,null,"put them on the same denominator.",null,null,null,null,null,null,"(Do not convert fraction to lowest common denominator!!!)"]
[null,null,null,null,null,null,null,null,null,null,null,null,null,null,null,null,null,{"$f":"'EOOTB - D.S.A.T (01)'!KA45","v":"➌"},{"$f":"'EOOTB - D.S.A.T (01)'!KB45","v":{"$error":"#DIV/0!"}},null,null,null,null,null,null,null,null,null,null,null,null,null,null,null,null,null,null,null,null,null,null,null,null,null,null,null,null,null,null,null,null,null,null,null,null,null,null,null,null,null,null,null,null,null,null,null,null,null,null,null,null,null,null,null,null,null,null,null,null,null,null,null,null,null,null,null,null,null,null,null,null,null,null,null,null,null,null,null,null,null,null,null,null,null,null,null,null,null,null,null,null,null,null,null,null,null,null,null,null,null,null,null,null,null,null,null,null,null,null,null,null,null,null,null,null,null,null,null,null,null,null,null,null,null,null,null,null,null,null,null,null,null,null,null,null,null,null,null,null,null,null,null,null,null,null,null,null,null,null,null,null,null,null,null,null,null,null,null,null,null,null,null,null,null,null,null,null,{"$f":"'EOOTB - D.S.A.T (01)'!KC45","v":"Are you allowed to bring/use your personal digital tools at school? "},{"$f":"'EOOTB - D.S.A.T (01)'!KE45","v":0},{"$f":"'EOOTB - D.S.A.T (01)'!KF45","v":0},{"$f":"'EOOTB - D.S.A.T (01)'!KG45","v":0},{"$f":"'EOOTB - D.S.A.T (01)'!KH45","v":0},{"$f":"'EOOTB - D.S.A.T (01)'!KI45","v":0},{"$f":"'EOOTB - D.S.A.T (01)'!KJ45","v":0},0,{"$f":"'EOOTB - D.S.A.T (01)'!KL45","v":0},{"$f":"'EOOTB - D.S.A.T (01)'!KM45","v":0},{"$f":"'EOOTB - D.S.A.T (01)'!KN45","v":""},{"$f":"'EOOTB - D.S.A.T (01)'!KO45","v":3},0,0,0,0,0,null,null,null,null,null,null,null,null,null,null,null,null,null,null,null,null,null,null,null,null,null,null,null,null,null,null,null,null,null,null,null,null,null,null,null,null,null,null,null,null,null,null,null,null,null,null,null,null,null,null,null,null,null,null,null,null,null,null,null,null,null,null,null,null,null,null,null,null,null,null,null,null,null,null,null,null,null,null,null,null,null,null,null,null,null,null,null,null,null,null,null,null,null,null,null,null,null,null,null,null,null,null,null,null,null,null,null,null,null,null,null,null,null,null,null,null,null,null,null,null,null,null,null,null,null,null,null,null,null,null,null,null,null,null,null,null,null,null,null,null,null,null,null,null,null,null,null,null,null,null,null,null,null,null,null,null,null,null,null,null,null,null,null,null,null,null,null,null,null,null,null,null,null,null,null,null,null,null,null,null,null,null,null,null,null,null,null,null,null,null,null,null,null,null,null,null,null,null,null,null,null,null,null,null,null,null,null,null,null,null,null,null,null,null,null,null,null,null,null,null,null,null,null,null,null,null,null,null,null,null,null,null,null,null,null,null,null,null,null,null,null,null,null,null,null,null,null,null,null,null,null,null,null,null,null,null,null,null,null,null,null,null,null,null,null,null,null,null,null,null,null,null,null,null,null,null,null,null,null,null,null,null,null,null,null,null,null,null,null,null,null,null,null,null,null,null,null,null,null,null,null,null,null,null,null,null,null,null,null,null,null,null,null,null,null,null,null,null,null,null,null,null,null,null,null,null,null,null,"Rehearse Rules and try again to improve your Score",null,null,null,null,null,null,null,null,"& HAVE FUN …"]
[null,null,null,null,null,null,null,null,null,null,null,null,null,null,null,null,null,{"$f":"'EOOTB - D.S.A.T (01)'!KA46","v":"➍"},{"$f":"'EOOTB - D.S.A.T (01)'!KB46","v":{"$error":"#DIV/0!"}},null,null,null,null,null,null,null,null,null,null,null,null,null,null,null,null,null,null,null,null,null,null,null,null,null,null,null,null,null,null,null,null,null,null,null,null,null,null,null,null,null,null,null,null,null,null,null,null,null,null,null,null,null,null,null,null,null,null,null,null,null,null,null,null,null,null,null,null,null,null,null,null,null,null,null,null,null,null,null,null,null,null,null,null,null,null,null,null,null,null,null,null,null,null,null,null,null,null,null,null,null,null,null,null,null,null,null,null,null,null,null,null,null,null,null,null,null,null,null,null,null,null,null,null,null,null,null,null,null,null,null,null,null,null,null,null,null,null,null,null,null,null,null,null,null,null,null,null,null,null,null,null,null,null,null,null,null,null,null,null,null,null,null,null,null,null,null,null,{"$f":"'EOOTB - D.S.A.T (01)'!KC46","v":"Which of the following tools are provided at school and could you take home with you?"},{"$f":"'EOOTB - D.S.A.T (01)'!KE46","v":0},{"$f":"'EOOTB - D.S.A.T (01)'!KF46","v":0},{"$f":"'EOOTB - D.S.A.T (01)'!KG46","v":0},{"$f":"'EOOTB - D.S.A.T (01)'!KH46","v":0},{"$f":"'EOOTB - D.S.A.T (01)'!KI46","v":0},{"$f":"'EOOTB - D.S.A.T (01)'!KJ46","v":0},0,{"$f":"'EOOTB - D.S.A.T (01)'!KL46","v":0},{"$f":"'EOOTB - D.S.A.T (01)'!KM46","v":0},{"$f":"'EOOTB - D.S.A.T (01)'!KN46","v":""},{"$f":"'EOOTB - D.S.A.T (01)'!KO46","v":4},0,0,0,0,0,null,null,null,null,null,null,null,null,null,null,null,null,null,null,null,null,null,null,null,null,null,null,null,null,null,null,null,null,null,null,null,null,null,null,null,null,null,null,null,null,null,null,null,null,null,null,null,null,null,null,null,null,null,null,null,null,null,null,null,null,null,null,null,null,null,null,null,null,null,null,null,null,null,null,null,null,null,null,null,null,null,null,null,null,null,null,null,null,null,null,null,null,null,null,null,null,null,null,null,null,null,null,null,null,null,null,null,null,null,null,null,null,null,null,null,null,null,null,null,null,null,null,null,null,null,null,null,null,null,null,null,null,null,null,null,null,null,null,null,null,null,null,null,null,null,null,null,null,null,null,null,null,null,null,null,null,null,null,null,null,null,null,null,null,null,null,null,null,null,null,null,null,null,null,null,null,null,null,null,null,null,null,null,null,null,null,null,null,null,null,null,null,null,null,null,null,null,null,null,null,null,null,null,null,null,null,null,null,null,null,null,null,null,null,null,null,null,null,null,null,null,null,null,null,null,null,null,null,null,null,null,null,null,null,null,null,null,null,null,null,null,null,null,null,null,null,null,null,null,null,null,null,null,null,null,null,null,null,null,null,null,null,null,null,null,null,null,null,null,null,null,null,null,null,null,null,null,null,null,null,null,null,null,null,null,null,null,null,null,null,null,null,null,null,null,null,null,null,null,null,null,null,null,null,null,null,null,null,null,null,null,null,null,null,null,null,null,null,null,null,null,null,null,null,null,null,null,null,"Rule 3: multiply two fractions."]
[null,null,null,null,null,null,null,null,null,null,null,null,null,null,null,null,null,{"$f":"'EOOTB - D.S.A.T (01)'!KA47","v":"➎"},{"$f":"'EOOTB - D.S.A.T (01)'!KB47","v":{"$error":"#DIV/0!"}},null,null,null,null,null,null,null,null,null,null,null,null,null,null,null,null,null,null,null,null,null,null,null,null,null,null,null,null,null,null,null,null,null,null,null,null,null,null,null,null,null,null,null,null,null,null,null,null,null,null,null,null,null,null,null,null,null,null,null,null,null,null,null,null,null,null,null,null,null,null,null,null,null,null,null,null,null,null,null,null,null,null,null,null,null,null,null,null,null,null,null,null,null,null,null,null,null,null,null,null,null,null,null,null,null,null,null,null,null,null,null,null,null,null,null,null,null,null,null,null,null,null,null,null,null,null,null,null,null,null,null,null,null,null,null,null,null,null,null,null,null,null,null,null,null,null,null,null,null,null,null,null,null,null,null,null,null,null,null,null,null,null,null,null,null,null,null,null,{"$f":"'EOOTB - D.S.A.T (01)'!KC47","v":"Which digital tools are you allowed to use while having an exam at your school? "},{"$f":"'EOOTB - D.S.A.T (01)'!KE47","v":0},{"$f":"'EOOTB - D.S.A.T (01)'!KF47","v":0},{"$f":"'EOOTB - D.S.A.T (01)'!KG47","v":0},{"$f":"'EOOTB - D.S.A.T (01)'!KH47","v":0},{"$f":"'EOOTB - D.S.A.T (01)'!KI47","v":0},{"$f":"'EOOTB - D.S.A.T (01)'!KJ47","v":0},0,{"$f":"'EOOTB - D.S.A.T (01)'!KL47","v":0},{"$f":"'EOOTB - D.S.A.T (01)'!KM47","v":0},{"$f":"'EOOTB - D.S.A.T (01)'!KN47","v":""},{"$f":"'EOOTB - D.S.A.T (01)'!KO47","v":5},0,0,0,0,0,null,null,null,null,null,null,null,null,null,null,null,null,null,null,null,null,null,null,null,null,null,null,null,null,null,null,null,null,null,null,null,null,null,null,null,null,null,null,null,null,null,null,null,null,null,null,null,null,null,null,null,null,null,null,null,null,null,null,null,null,null,null,null,null,null,null,null,null,null,null,null,null,null,null,null,null,null,null,null,null,null,null,null,null,null,null,null,null,null,null,null,null,null,null,null,null,null,null,null,null,null,null,null,null,null,null,null,null,null,null,null,null,null,null,null,null,null,null,null,null,null,null,null,null,null,null,null,null,null,null,null,null,null,null,null,null,null,null,null,null,null,null,null,null,null,null,null,null,null,null,null,null,null,null,null,null,null,null,null,null,null,null,null,null,null,null,null,null,null,null,null,null,null,null,null,null,null,null,null,null,null,null,null,null,null,null,null,null,null,null,null,null,null,null,null,null,null,null,null,null,null,null,null,null,null,null,null,null,null,null,null,null,null,null,null,null,null,null,null,null,null,null,null,null,null,null,null,null,null,null,null,null,null,null,null,null,null,null,null,null,null,null,null,null,null,null,null,null,null,null,null,null,null,null,null,null,null,null,null,null,null,null,null,null,null,null,null,null,null,null,null,null,null,null,null,null,null,null,null,null,null,null,null,null,null,null,null,null,null,null,null,null,null,null,null,null,null,null,null,null,null,null,null,null,null,null,null,null,null,null,null,null,null,null,null,null,null,null,null,null,null,null,null,null,null,null,null,null,"The product of two fractions is the fraction whose :",null,"on additionne (ou on soustrait) les deux numérateurs."]
[null,null,null,null,null,null,null,null,null,null,null,null,null,null,null,null,null,{"$f":"'EOOTB - D.S.A.T (01)'!KA48","v":0},{"$f":"'EOOTB - D.S.A.T (01)'!KB48","v":0},null,null,null,null,null,null,null,null,null,null,null,null,null,null,null,null,null,null,null,null,null,null,null,null,null,null,null,null,null,null,null,null,null,null,null,null,null,null,null,null,null,null,null,null,null,null,null,null,null,null,null,null,null,null,null,null,null,null,null,null,null,null,null,null,null,null,null,null,null,null,null,null,null,null,null,null,null,null,null,null,null,null,null,null,null,null,null,null,null,null,null,null,null,null,null,null,null,null,null,null,null,null,null,null,null,null,null,null,null,null,null,null,null,null,null,null,null,null,null,null,null,null,null,null,null,null,null,null,null,null,null,null,null,null,null,null,null,null,null,null,null,null,null,null,null,null,null,null,null,null,null,null,null,null,null,null,null,null,null,null,null,null,null,null,null,null,null,null,{"$f":"'EOOTB - D.S.A.T (01)'!KC48","v":0},{"$f":"'EOOTB - D.S.A.T (01)'!KE48","v":0},{"$f":"'EOOTB - D.S.A.T (01)'!KF48","v":0},{"$f":"'EOOTB - D.S.A.T (01)'!KG48","v":0},{"$f":"'EOOTB - D.S.A.T (01)'!KH48","v":0},{"$f":"'EOOTB - D.S.A.T (01)'!KI48","v":0},{"$f":"'EOOTB - D.S.A.T (01)'!KJ48","v":0},{"$f":"'EOOTB - D.S.A.T (01)'!KK48","v":0},{"$f":"'EOOTB - D.S.A.T (01)'!KL48","v":0},{"$f":"'EOOTB - D.S.A.T (01)'!KM48","v":0},{"$f":"'EOOTB - D.S.A.T (01)'!KN48","v":""},{"$f":"'EOOTB - D.S.A.T (01)'!KO48","v":0},{"$f":"'EOOTB - D.S.A.T (01)'!KP48","v":0},{"$f":"'EOOTB - D.S.A.T (01)'!KQ48","v":0},{"$f":"'EOOTB - D.S.A.T (01)'!KR48","v":0},{"$f":"'EOOTB - D.S.A.T (01)'!KS48","v":0},{"$f":"'EOOTB - D.S.A.T (01)'!KT48","v":0}]
[null,null,null,null,null,null,null,null,null,null,null,null,null,null,null,null,null,{"$f":"'EOOTB - D.S.A.T (01)'!KA49","v":"❼"},{"$f":"'EOOTB - D.S.A.T (01)'!KB49","v":0},null,null,null,null,null,null,null,null,null,null,null,null,null,null,null,null,null,null,null,null,null,null,null,null,null,null,null,null,null,null,null,null,null,null,null,null,null,null,null,null,null,null,null,null,null,null,null,null,null,null,null,null,null,null,null,null,null,null,null,null,null,null,null,null,null,null,null,null,null,null,null,null,null,null,null,null,null,null,null,null,null,null,null,null,null,null,null,null,null,null,null,null,null,null,null,null,null,null,null,null,null,null,null,null,null,null,null,null,null,null,null,null,null,null,null,null,null,null,null,null,null,null,null,null,null,null,null,null,null,null,null,null,null,null,null,null,null,null,null,null,null,null,null,null,null,null,null,null,null,null,null,null,null,null,null,null,null,null,null,null,null,null,null,null,null,null,null,null,{"$f":"'EOOTB - D.S.A.T (01)'!KC49","v":"Digital @ Applications\nKindly, multiple choices/answers per question/line are allowed!"},{"$f":"'EOOTB - D.S.A.T (01)'!KE49","v":"KAHOUT"},{"$f":"'EOOTB - D.S.A.T (01)'!KF49","v":"MEM RISE"},{"$f":"'EOOTB - D.S.A.T (01)'!KG49","v":"DUOLINGO"},{"$f":"'EOOTB - D.S.A.T (01)'!KH49","v":"QUIZLET"},{"$f":"'EOOTB - D.S.A.T (01)'!KI49","v":"PADLET"},{"$f":"'EOOTB - D.S.A.T (01)'!KJ49","v":0},{"$f":"'EOOTB - D.S.A.T (01)'!KK49","v":0},{"$f":"'EOOTB - D.S.A.T (01)'!KL49","v":0},{"$f":"'EOOTB - D.S.A.T (01)'!KM49","v":0},{"$f":"'EOOTB - D.S.A.T (01)'!KN49","v":""},{"$f":"'EOOTB - D.S.A.T (01)'!KO49","v":0},{"$f":"'EOOTB - D.S.A.T (01)'!KP49","v":0},{"$f":"'EOOTB - D.S.A.T (01)'!KQ49","v":0},{"$f":"'EOOTB - D.S.A.T (01)'!KR49","v":0},{"$f":"'EOOTB - D.S.A.T (01)'!KS49","v":0},{"$f":"'EOOTB - D.S.A.T (01)'!KT49","v":0},null,null,null,null,null,null,null,null,null,null,null,null,null,null,null,null,null,null,null,null,null,null,null,null,null,null,null,null,null,null,null,null,null,null,null,null,null,null,null,null,null,null,null,null,null,null,null,null,null,null,null,null,null,null,null,null,null,null,null,null,null,null,null,null,null,null,null,null,null,null,null,null,null,null,null,null,null,null,null,null,null,null,null,null,null,null,null,null,null,null,null,null,null,null,null,null,null,null,null,null,null,null,null,null,null,null,null,null,null,null,null,null,null,null,null,null,null,null,null,null,null,null,null,null,null,null,null,null,null,null,null,null,null,null,null,null,null,null,null,null,null,null,null,null,null,null,null,null,null,null,null,null,null,null,null,null,null,null,null,null,null,null,null,null,null,null,null,null,null,null,null,null,null,null,null,null,null,null,null,null,null,null,null,null,null,null,null,null,null,null,null,null,null,null,null,null,null,null,null,null,null,null,null,null,null,null,null,null,null,null,null,null,null,null,null,null,null,null,null,null,null,null,null,null,null,null,null,null,null,null,null,null,null,null,null,null,null,null,null,null,null,null,null,null,null,null,null,null,null,null,null,null,null,null,null,null,null,null,null,null,null,null,null,null,null,null,null,null,null,null,null,null,null,null,null,null,null,null,null,null,null,null,null,null,null,null,null,null,null,null,null,null,null,null,null,null,null,null,null,null,null,null,null,null,null,null,null,null,null,null,null,null,null,null,null,null,null,null,null,null,null,null,null,null,null,null,null,null,{"$f":"- the numerator is the product of the two numerators of the two factors.","v":{"$error":"#NAME?"}},null,"on conserve leur dénominateur commun."]
[null,null,null,null,null,null,null,null,null,null,null,null,null,null,null,null,null,{"$f":"'EOOTB - D.S.A.T (01)'!KA50","v":"➊"},{"$f":"'EOOTB - D.S.A.T (01)'!KB50","v":{"$error":"#DIV/0!"}},null,null,null,null,null,null,null,null,null,null,null,null,null,null,null,null,null,null,null,null,null,null,null,null,null,null,null,null,null,null,null,null,null,null,null,null,null,null,null,null,null,null,null,null,null,null,null,null,null,null,null,null,null,null,null,null,null,null,null,null,null,null,null,null,null,null,null,null,null,null,null,null,null,null,null,null,null,null,null,null,null,null,null,null,null,null,null,null,null,null,null,null,null,null,null,null,null,null,null,null,null,null,null,null,null,null,null,null,null,null,null,null,null,null,null,null,null,null,null,null,null,null,null,null,null,null,null,null,null,null,null,null,null,null,null,null,null,null,null,null,null,null,null,null,null,null,null,null,null,null,null,null,null,null,null,null,null,null,null,null,null,null,null,null,null,null,null,null,{"$f":"'EOOTB - D.S.A.T (01)'!KC50","v":"how often do you use any digital tool/ games?"},{"$f":"'EOOTB - D.S.A.T (01)'!KE50","v":0},{"$f":"'EOOTB - D.S.A.T (01)'!KF50","v":0},{"$f":"'EOOTB - D.S.A.T (01)'!KG50","v":0},{"$f":"'EOOTB - D.S.A.T (01)'!KH50","v":0},{"$f":"'EOOTB - D.S.A.T (01)'!KI50","v":0},{"$f":"'EOOTB - D.S.A.T (01)'!KJ50","v":0},{"$f":"COUNTIF(GG50:GK50,1)","v":0},{"$f":"'EOOTB - D.S.A.T (01)'!KL50","v":0},{"$f":"'EOOTB - D.S.A.T (01)'!KM50","v":0},{"$f":"'EOOTB - D.S.A.T (01)'!KN50","v":""},{"$f":"'EOOTB - D.S.A.T (01)'!KO50","v":1},{"$f":"IF(GG50=0,0,GG50+GG50/10)","v":0},{"$f":"IF(GH50=0,0,GH50+GH50/10)","v":0},{"$f":"IF(GI50=0,0,GI50+GI50/10)","v":0},{"$f":"IF(GJ50=0,0,GJ50+GJ50/10)","v":0},{"$f":"IF(GK50=0,0,GK50+GK50/10)","v":0},null,null,null,null,null,null,null,null,null,null,null,null,null,null,null,null,null,null,null,null,null,null,null,null,null,null,null,null,null,null,null,null,null,null,null,null,null,null,null,null,null,null,null,null,null,null,null,null,null,null,null,null,null,null,null,null,null,null,null,null,null,null,null,null,null,null,null,null,null,null,null,null,null,null,null,null,null,null,null,null,null,null,null,null,null,null,null,null,null,null,null,null,null,null,null,null,null,null,null,null,null,null,null,null,null,null,null,null,null,null,null,null,null,null,null,null,null,null,null,null,null,null,null,null,null,null,null,null,null,null,null,null,null,null,null,null,null,null,null,null,null,null,null,null,null,null,null,null,null,null,null,null,null,null,null,null,null,null,null,null,null,null,null,null,null,null,null,null,null,null,null,null,null,null,null,null,null,null,null,null,null,null,null,null,null,null,null,null,null,null,null,null,null,null,null,null,null,null,null,null,null,null,null,null,null,null,null,null,null,null,null,null,null,null,null,null,null,null,null,null,null,null,null,null,null,null,null,null,null,null,null,null,null,null,null,null,null,null,null,null,null,null,null,null,null,null,null,null,null,null,null,null,null,null,null,null,null,null,null,null,null,null,null,null,null,null,null,null,null,null,null,null,null,null,null,null,null,null,null,null,null,null,null,null,null,null,null,null,null,null,null,null,null,null,null,null,null,null,null,null,null,null,null,null,null,null,null,null,null,null,null,null,null,null,null,null,null,null,null,null,null,null,null,null,null,null,null,null,{"$f":"- the denominator is the product of the two denominators of two factors","v":{"$error":"#NAME?"}},null,null,"Rappel des régles"]
[null,null,null,null,null,null,null,null,null,null,null,null,null,null,null,null,null,{"$f":"'EOOTB - D.S.A.T (01)'!KA51","v":"➋"},{"$f":"'EOOTB - D.S.A.T (01)'!KB51","v":{"$error":"#DIV/0!"}},null,null,null,null,null,null,null,null,null,null,null,null,null,null,null,null,null,null,null,null,null,null,null,null,null,null,null,null,null,null,null,null,null,null,null,null,null,null,null,null,null,null,null,null,null,null,null,null,null,null,null,null,null,null,null,null,null,null,null,null,null,null,null,null,null,null,null,null,null,null,null,null,null,null,null,null,null,null,null,null,null,null,null,null,null,null,null,null,null,null,null,null,null,null,null,null,null,null,null,null,null,null,null,null,null,null,null,null,null,null,null,null,null,null,null,null,null,null,null,null,null,null,null,null,null,null,null,null,null,null,null,null,null,null,null,null,null,null,null,null,null,null,null,null,null,null,null,null,null,null,null,null,null,null,null,null,null,null,null,null,null,null,null,null,null,null,null,null,{"$f":"'EOOTB - D.S.A.T (01)'!KC51","v":" Do you use digital tools in your school/professional life?"},{"$f":"'EOOTB - D.S.A.T (01)'!KE51","v":0},{"$f":"'EOOTB - D.S.A.T (01)'!KF51","v":0},{"$f":"'EOOTB - D.S.A.T (01)'!KG51","v":0},{"$f":"'EOOTB - D.S.A.T (01)'!KH51","v":0},{"$f":"'EOOTB - D.S.A.T (01)'!KI51","v":0},{"$f":"'EOOTB - D.S.A.T (01)'!KJ51","v":0},{"$f":"COUNTIF(GG51:GK51,1)","v":0},{"$f":"'EOOTB - D.S.A.T (01)'!KL51","v":0},{"$f":"'EOOTB - D.S.A.T (01)'!KM51","v":0},{"$f":"'EOOTB - D.S.A.T (01)'!KN51","v":""},{"$f":"'EOOTB - D.S.A.T (01)'!KO51","v":2},{"$f":"IF(GG51=0,0,GG51+GG51/10)","v":0},0,0,0,0,null,null,null,null,null,null,null,null,null,null,null,null,null,null,null,null,null,null,null,null,null,null,null,null,null,null,null,null,null,null,null,null,null,null,null,null,null,null,null,null,null,null,null,null,null,null,null,null,null,null,null,null,null,null,null,null,null,null,null,null,null,null,null,null,null,null,null,null,null,null,null,null,null,null,null,null,null,null,null,null,null,null,null,null,null,null,null,null,null,null,null,null,null,null,null,null,null,null,null,null,null,null,null,null,null,null,null,null,null,null,null,null,null,null,null,null,null,null,null,null,null,null,null,null,null,null,null,null,null,null,null,null,null,null,null,null,null,null,null,null,null,null,null,null,null,null,null,null,null,null,null,null,null,null,null,null,null,null,null,null,null,null,null,null,null,null,null,null,null,null,null,null,null,null,null,null,null,null,null,null,null,null,null,null,null,null,null,null,null,null,null,null,null,null,null,null,null,null,null,null,null,null,null,null,null,null,null,null,null,null,null,null,null,null,null,null,null,null,null,null,null,null,null,null,null,null,null,null,null,null,null,null,null,null,null,null,null,null,null,null,null,null,null,null,null,null,null,null,null,null,null,null,null,null,null,null,null,null,null,null,null,null,null,null,null,null,null,null,null,null,null,null,null,null,null,null,null,null,null,null,null,null,null,null,null,null,null,null,null,null,null,null,null,null,null,null,null,null,null,null,null,null,null,null,null,null,null,null,null,null,null,null,null,null,null,null,null,null,null,null,null,null,null,null,null,null,null,null,"•",null,"on les met sur un même dénominateur.","Les Parenthèses"]
[null,null,null,null,null,null,null,null,null,null,null,null,null,null,null,null,null,{"$f":"'EOOTB - D.S.A.T (01)'!KA52","v":"➌"},{"$f":"'EOOTB - D.S.A.T (01)'!KB52","v":{"$error":"#DIV/0!"}},null,null,null,null,null,null,null,null,null,null,null,null,null,null,null,null,null,null,null,null,null,null,null,null,null,null,null,null,null,null,null,null,null,null,null,null,null,null,null,null,null,null,null,null,null,null,null,null,null,null,null,null,null,null,null,null,null,null,null,null,null,null,null,null,null,null,null,null,null,null,null,null,null,null,null,null,null,null,null,null,null,null,null,null,null,null,null,null,null,null,null,null,null,null,null,null,null,null,null,null,null,null,null,null,null,null,null,null,null,null,null,null,null,null,null,null,null,null,null,null,null,null,null,null,null,null,null,null,null,null,null,null,null,null,null,null,null,null,null,null,null,null,null,null,null,null,null,null,null,null,null,null,null,null,null,null,null,null,null,null,null,null,null,null,null,null,null,null,{"$f":"'EOOTB - D.S.A.T (01)'!KC52","v":"Are you able to recognize and avoid unsafe use on the web?"},{"$f":"'EOOTB - D.S.A.T (01)'!KE52","v":0},{"$f":"'EOOTB - D.S.A.T (01)'!KF52","v":0},{"$f":"'EOOTB - D.S.A.T (01)'!KG52","v":0},{"$f":"'EOOTB - D.S.A.T (01)'!KH52","v":0},{"$f":"'EOOTB - D.S.A.T (01)'!KI52","v":0},{"$f":"'EOOTB - D.S.A.T (01)'!KJ52","v":0},0,{"$f":"'EOOTB - D.S.A.T (01)'!KL52","v":0},{"$f":"'EOOTB - D.S.A.T (01)'!KM52","v":0},{"$f":"'EOOTB - D.S.A.T (01)'!KN52","v":""},{"$f":"'EOOTB - D.S.A.T (01)'!KO52","v":3},0,0,0,0,0,null,null,null,null,null,null,null,null,null,null,null,null,null,null,null,null,null,null,null,null,null,null,null,null,null,null,null,null,null,null,null,null,null,null,null,null,null,null,null,null,null,null,null,null,null,null,null,null,null,null,null,null,null,null,null,null,null,null,null,null,null,null,null,null,null,null,null,null,null,null,null,null,null,null,null,null,null,null,null,null,null,null,null,null,null,null,null,null,null,null,null,null,null,null,null,null,null,null,null,null,null,null,null,null,null,null,null,null,null,null,null,null,null,null,null,null,null,null,null,null,null,null,null,null,null,null,null,null,null,null,null,null,null,null,null,null,null,null,null,null,null,null,null,null,null,null,null,null,null,null,null,null,null,null,null,null,null,null,null,null,null,null,null,null,null,null,null,null,null,null,null,null,null,null,null,null,null,null,null,null,null,null,null,null,null,null,null,null,null,null,null,null,null,null,null,null,null,null,null,null,null,null,null,null,null,null,null,null,null,null,null,null,null,null,null,null,null,null,null,null,null,null,null,null,null,null,null,null,null,null,null,null,null,null,null,null,null,null,null,null,null,null,null,null,null,null,null,null,null,null,null,null,null,null,null,null,null,null,null,null,null,null,null,null,null,null,null,null,null,null,null,null,null,null,null,null,null,null,null,null,null,null,null,null,null,null,null,null,null,null,null,null,null,null,null,null,null,null,null,null,null,null,null,null,null,null,null,null,null,null,null,null,null,null,null,null,null,null,null,null,null,null,null,null,null,null,null,null,null,null,null,"Les Exposants"]
[null,null,null,null,null,null,null,null,null,null,null,null,null,null,null,null,null,{"$f":"'EOOTB - D.S.A.T (01)'!KA53","v":"➍"},{"$f":"'EOOTB - D.S.A.T (01)'!KB53","v":{"$error":"#DIV/0!"}},null,null,null,null,null,null,null,null,null,null,null,null,null,null,null,null,null,null,null,null,null,null,null,null,null,null,null,null,null,null,null,null,null,null,null,null,null,null,null,null,null,null,null,null,null,null,null,null,null,null,null,null,null,null,null,null,null,null,null,null,null,null,null,null,null,null,null,null,null,null,null,null,null,null,null,null,null,null,null,null,null,null,null,null,null,null,null,null,null,null,null,null,null,null,null,null,null,null,null,null,null,null,null,null,null,null,null,null,null,null,null,null,null,null,null,null,null,null,null,null,null,null,null,null,null,null,null,null,null,null,null,null,null,null,null,null,null,null,null,null,null,null,null,null,null,null,null,null,null,null,null,null,null,null,null,null,null,null,null,null,null,null,null,null,null,null,null,null,{"$f":"'EOOTB - D.S.A.T (01)'!KC53","v":"Are you comfortable with learning online new software applications?"},{"$f":"'EOOTB - D.S.A.T (01)'!KE53","v":0},{"$f":"'EOOTB - D.S.A.T (01)'!KF53","v":0},{"$f":"'EOOTB - D.S.A.T (01)'!KG53","v":0},{"$f":"'EOOTB - D.S.A.T (01)'!KH53","v":0},{"$f":"'EOOTB - D.S.A.T (01)'!KI53","v":0},{"$f":"'EOOTB - D.S.A.T (01)'!KJ53","v":0},0,{"$f":"'EOOTB - D.S.A.T (01)'!KL53","v":0},{"$f":"'EOOTB - D.S.A.T (01)'!KM53","v":0},{"$f":"'EOOTB - D.S.A.T (01)'!KN53","v":""},{"$f":"'EOOTB - D.S.A.T (01)'!KO53","v":4},0,0,0,0,0,null,null,null,null,null,null,null,null,null,null,null,null,null,null,null,null,null,null,null,null,null,null,null,null,null,null,null,null,null,null,null,null,null,null,null,null,null,null,null,null,null,null,null,null,null,null,null,null,null,null,null,null,null,null,null,null,null,null,null,null,null,null,null,null,null,null,null,null,null,null,null,null,null,null,null,null,null,null,null,null,null,null,null,null,null,null,null,null,null,null,null,null,null,null,null,null,null,null,null,null,null,null,null,null,null,null,null,null,null,null,null,null,null,null,null,null,null,null,null,null,null,null,null,null,null,null,null,null,null,null,null,null,null,null,null,null,null,null,null,null,null,null,null,null,null,null,null,null,null,null,null,null,null,null,null,null,null,null,null,null,null,null,null,null,null,null,null,null,null,null,null,null,null,null,null,null,null,null,null,null,null,null,null,null,null,null,null,null,null,null,null,null,null,null,null,null,null,null,null,null,null,null,null,null,null,null,null,null,null,null,null,null,null,null,null,null,null,null,null,null,null,null,null,null,null,null,null,null,null,null,null,null,null,null,null,null,null,null,null,null,null,null,null,null,null,null,null,null,null,null,null,null,null,null,null,null,null,null,null,null,null,null,null,null,null,null,null,null,null,null,null,null,null,null,null,null,null,null,null,null,null,null,null,null,null,null,null,null,null,null,null,null,null,null,null,null,null,null,null,null,null,null,null,null,null,null,null,null,null,null,null,null,null,null,null,null,null,null,null,null,null,null,null,null,null,null,null,null,"Règle 3 : multiplier deux fractions.",null,null,"Les Multiplications et les Divisions (de la gauche vers la droite)"]
[null,null,null,null,null,null,null,null,null,null,null,null,null,null,null,null,null,{"$f":"'EOOTB - D.S.A.T (01)'!KA54","v":"➎"},{"$f":"'EOOTB - D.S.A.T (01)'!KB54","v":{"$error":"#DIV/0!"}},null,null,null,null,null,null,null,null,null,null,null,null,null,null,null,null,null,null,null,null,null,null,null,null,null,null,null,null,null,null,null,null,null,null,null,null,null,null,null,null,null,null,null,null,null,null,null,null,null,null,null,null,null,null,null,null,null,null,null,null,null,null,null,null,null,null,null,null,null,null,null,null,null,null,null,null,null,null,null,null,null,null,null,null,null,null,null,null,null,null,null,null,null,null,null,null,null,null,null,null,null,null,null,null,null,null,null,null,null,null,null,null,null,null,null,null,null,null,null,null,null,null,null,null,null,null,null,null,null,null,null,null,null,null,null,null,null,null,null,null,null,null,null,null,null,null,null,null,null,null,null,null,null,null,null,null,null,null,null,null,null,null,null,null,null,null,null,null,{"$f":"'EOOTB - D.S.A.T (01)'!KC54","v":"Among the net's puzzle, are you able to download safely any useful software and/or application from the net?"},{"$f":"'EOOTB - D.S.A.T (01)'!KE54","v":0},{"$f":"'EOOTB - D.S.A.T (01)'!KF54","v":0},{"$f":"'EOOTB - D.S.A.T (01)'!KG54","v":0},{"$f":"'EOOTB - D.S.A.T (01)'!KH54","v":0},{"$f":"'EOOTB - D.S.A.T (01)'!KI54","v":0},{"$f":"'EOOTB - D.S.A.T (01)'!KJ54","v":0},0,{"$f":"'EOOTB - D.S.A.T (01)'!KL54","v":0},{"$f":"'EOOTB - D.S.A.T (01)'!KM54","v":0},{"$f":"'EOOTB - D.S.A.T (01)'!KN54","v":""},{"$f":"'EOOTB - D.S.A.T (01)'!KO54","v":5},0,0,0,0,0,null,null,null,null,null,null,null,null,null,null,null,null,null,null,null,null,null,null,null,null,null,null,null,null,null,null,null,null,null,null,null,null,null,null,null,null,null,null,null,null,null,null,null,null,null,null,null,null,null,null,null,null,null,null,null,null,null,null,null,null,null,null,null,null,null,null,null,null,null,null,null,null,null,null,null,null,null,null,null,null,null,null,null,null,null,null,null,null,null,null,null,null,null,null,null,null,null,null,null,null,null,null,null,null,null,null,null,null,null,null,null,null,null,null,null,null,null,null,null,null,null,null,null,null,null,null,null,null,null,null,null,null,null,null,null,null,null,null,null,null,null,null,null,null,null,null,null,null,null,null,null,null,null,null,null,null,null,null,null,null,null,null,null,null,null,null,null,null,null,null,null,null,null,null,null,null,null,null,null,null,null,null,null,null,null,null,null,null,null,null,null,null,null,null,null,null,null,null,null,null,null,null,null,null,null,null,null,null,null,null,null,null,null,null,null,null,null,null,null,null,null,null,null,null,null,null,null,null,null,null,null,null,null,null,null,null,null,null,null,null,null,null,null,null,null,null,null,null,null,null,null,null,null,null,null,null,null,null,null,null,null,null,null,null,null,null,null,null,null,null,null,null,null,null,null,null,null,null,null,null,null,null,null,null,null,null,null,null,null,null,null,null,null,null,null,null,null,null,null,null,null,null,null,null,null,null,null,null,null,null,null,null,null,null,null,null,null,null,null,null,null,null,null,null,null,null,null,null,"Le produit de deux fractions est la fraction dont :",null,null,"Les Additions et les Soustractions (de la gauche vers la droite)"]
[null,null,null,null,null,null,null,null,null,null,null,null,null,null,null,null,null,{"$f":"'EOOTB - D.S.A.T (01)'!KA55","v":0},{"$f":"'EOOTB - D.S.A.T (01)'!KB55","v":0},null,null,null,null,null,null,null,null,null,null,null,null,null,null,null,null,null,null,null,null,null,null,null,null,null,null,null,null,null,null,null,null,null,null,null,null,null,null,null,null,null,null,null,null,null,null,null,null,null,null,null,null,null,null,null,null,null,null,null,null,null,null,null,null,null,null,null,null,null,null,null,null,null,null,null,null,null,null,null,null,null,null,null,null,null,null,null,null,null,null,null,null,null,null,null,null,null,null,null,null,null,null,null,null,null,null,null,null,null,null,null,null,null,null,null,null,null,null,null,null,null,null,null,null,null,null,null,null,null,null,null,null,null,null,null,null,null,null,null,null,null,null,null,null,null,null,null,null,null,null,null,null,null,null,null,null,null,null,null,null,null,null,null,null,null,null,null,null,{"$f":"'EOOTB - D.S.A.T (01)'!KC55","v":0},{"$f":"'EOOTB - D.S.A.T (01)'!KE55","v":0},{"$f":"'EOOTB - D.S.A.T (01)'!KF55","v":0},{"$f":"'EOOTB - D.S.A.T (01)'!KG55","v":0},{"$f":"'EOOTB - D.S.A.T (01)'!KH55","v":0},{"$f":"'EOOTB - D.S.A.T (01)'!KI55","v":0},{"$f":"'EOOTB - D.S.A.T (01)'!KJ55","v":0},{"$f":"'EOOTB - D.S.A.T (01)'!KK55","v":0},{"$f":"'EOOTB - D.S.A.T (01)'!KL55","v":0},{"$f":"'EOOTB - D.S.A.T (01)'!KM55","v":0},{"$f":"'EOOTB - D.S.A.T (01)'!KN55","v":""},{"$f":"'EOOTB - D.S.A.T (01)'!KO55","v":0},{"$f":"'EOOTB - D.S.A.T (01)'!KP55","v":0},{"$f":"'EOOTB - D.S.A.T (01)'!KQ55","v":0},{"$f":"'EOOTB - D.S.A.T (01)'!KR55","v":0},{"$f":"'EOOTB - D.S.A.T (01)'!KS55","v":0},{"$f":"'EOOTB - D.S.A.T (01)'!KT55","v":0}]
[null,null,null,null,null,null,null,null,null,null,null,null,null,null,null,null,null,{"$f":"'EOOTB - D.S.A.T (01)'!KA56","v":"❽"},{"$f":"'EOOTB - D.S.A.T (01)'!KB56","v":0},null,null,null,null,null,null,null,null,null,null,null,null,null,null,null,null,null,null,null,null,null,null,null,null,null,null,null,null,null,null,null,null,null,null,null,null,null,null,null,null,null,null,null,null,null,null,null,null,null,null,null,null,null,null,null,null,null,null,null,null,null,null,null,null,null,null,null,null,null,null,null,null,null,null,null,null,null,null,null,null,null,null,null,null,null,null,null,null,null,null,null,null,null,null,null,null,null,null,null,null,null,null,null,null,null,null,null,null,null,null,null,null,null,null,null,null,null,null,null,null,null,null,null,null,null,null,null,null,null,null,null,null,null,null,null,null,null,null,null,null,null,null,null,null,null,null,null,null,null,null,null,null,null,null,null,null,null,null,null,null,null,null,null,null,null,null,null,null,{"$f":"'EOOTB - D.S.A.T (01)'!KC56","v":"Digital @ School learning\nKindly, one single choice/answer per question/line is allowed!"},{"$f":"'EOOTB - D.S.A.T (01)'!KE56","v":0},{"$f":"'EOOTB - D.S.A.T (01)'!KF56","v":0},{"$f":"'EOOTB - D.S.A.T (01)'!KG56","v":0},{"$f":"'EOOTB - D.S.A.T (01)'!KH56","v":0},{"$f":"'EOOTB - D.S.A.T (01)'!KI56","v":0},{"$f":"'EOOTB - D.S.A.T (01)'!KJ56","v":0},{"$f":"'EOOTB - D.S.A.T (01)'!KK56","v":0},{"$f":"'EOOTB - D.S.A.T (01)'!KL56","v":0},{"$f":"'EOOTB - D.S.A.T (01)'!KM56","v":"YES"},{"$f":"'EOOTB - D.S.A.T (01)'!KN56","v":""},{"$f":"'EOOTB - D.S.A.T (01)'!KO56","v":0},{"$f":"'EOOTB - D.S.A.T (01)'!KP56","v":0},{"$f":"'EOOTB - D.S.A.T (01)'!KQ56","v":0},{"$f":"'EOOTB - D.S.A.T (01)'!KR56","v":0},{"$f":"'EOOTB - D.S.A.T (01)'!KS56","v":0},{"$f":"'EOOTB - D.S.A.T (01)'!KT56","v":0},null,null,null,null,null,null,null,null,null,null,null,null,null,null,null,null,null,null,null,null,null,null,null,null,null,null,null,null,null,null,null,null,null,null,null,null,null,null,null,null,null,null,null,null,null,null,null,null,null,null,null,null,null,null,null,null,null,null,null,null,null,null,null,null,null,null,null,null,null,null,null,null,null,null,null,null,null,null,null,null,null,null,null,null,null,null,null,null,null,null,null,null,null,null,null,null,null,null,null,null,null,null,null,null,null,null,null,null,null,null,null,null,null,null,null,null,null,null,null,null,null,null,null,null,null,null,null,null,null,null,null,null,null,null,null,null,null,null,null,null,null,null,null,null,null,null,null,null,null,null,null,null,null,null,null,null,null,null,null,null,null,null,null,null,null,null,null,null,null,null,null,null,null,null,null,null,null,null,null,null,null,null,null,null,null,null,null,null,null,null,null,null,null,null,null,null,null,null,null,null,null,null,null,null,null,null,null,null,null,null,null,null,null,null,null,null,null,null,null,null,null,null,null,null,null,null,null,null,null,null,null,null,null,null,null,null,null,null,null,null,null,null,null,null,null,null,null,null,null,null,null,null,null,null,null,null,null,null,null,null,null,null,null,null,null,null,null,null,null,null,null,null,null,null,null,null,null,null,null,null,null,null,null,null,null,null,null,null,null,null,null,null,null,null,null,null,null,null,null,null,null,null,null,null,null,null,null,null,null,null,null,null,null,null,null,null,null,null,null,null,null,null,null,null,null,null,null,null,"•",null,"le numérateur est le produit des deux numérateurs des deux facteurs."]
[null,null,null,null,null,null,null,null,null,null,null,null,null,null,null,null,null,{"$f":"'EOOTB - D.S.A.T (01)'!KA57","v":"➊"},{"$f":"'EOOTB - D.S.A.T (01)'!KB57","v":"🔝"},null,null,null,null,null,null,null,null,null,null,null,null,null,null,null,null,null,null,null,null,null,null,null,null,null,null,null,null,null,null,null,null,null,null,null,null,null,null,null,null,null,null,null,null,null,null,null,null,null,null,null,null,null,null,null,null,null,null,null,null,null,null,null,null,null,null,null,null,null,null,null,null,null,null,null,null,null,null,null,null,null,null,null,null,null,null,null,null,null,null,null,null,null,null,null,null,null,null,null,null,null,null,null,null,null,null,null,null,null,null,null,null,null,null,null,null,null,null,null,null,null,null,null,null,null,null,null,null,null,null,null,null,null,null,null,null,null,null,null,null,null,null,null,null,null,null,null,null,null,null,null,null,null,null,null,null,null,null,null,null,null,null,null,null,null,null,null,null,{"$f":"'EOOTB - D.S.A.T (01)'!KC57","v":"Is your school offering Hybrid courses"},{"$f":"'EOOTB - D.S.A.T (01)'!KE57","v":0},{"$f":"'EOOTB - D.S.A.T (01)'!KF57","v":0},{"$f":"'EOOTB - D.S.A.T (01)'!KG57","v":0},{"$f":"'EOOTB - D.S.A.T (01)'!KH57","v":0},{"$f":"'EOOTB - D.S.A.T (01)'!KI57","v":0},{"$f":"'EOOTB - D.S.A.T (01)'!KJ57","v":0},{"$f":"'EOOTB - D.S.A.T (01)'!KK57","v":0},{"$f":"'EOOTB - D.S.A.T (01)'!KL57","v":"➊"},{"$f":"'EOOTB - D.S.A.T (01)'!KM57","v":0},{"$f":"'EOOTB - D.S.A.T (01)'!KN57","v":""},{"$f":"'EOOTB - D.S.A.T (01)'!KO57","v":3},{"$f":"'EOOTB - D.S.A.T (01)'!KP57","v":0},{"$f":"'EOOTB - D.S.A.T (01)'!KQ57","v":0},{"$f":"IF(GL57=1,5,0)","v":0},{"$f":"'EOOTB - D.S.A.T (01)'!KS57","v":0},{"$f":"'EOOTB - D.S.A.T (01)'!KT57","v":0},null,null,null,null,null,null,null,null,null,null,null,null,null,null,null,null,null,null,null,null,null,null,null,null,null,null,null,null,null,null,null,null,null,null,null,null,null,null,null,null,null,null,null,null,null,null,null,null,null,null,null,null,null,null,null,null,null,null,null,null,null,null,null,null,null,null,null,null,null,null,null,null,null,null,null,null,null,null,null,null,null,null,null,null,null,null,null,null,null,null,null,null,null,null,null,null,null,null,null,null,null,null,null,null,null,null,null,null,null,null,null,null,null,null,null,null,null,null,null,null,null,null,null,null,null,null,null,null,null,null,null,null,null,null,null,null,null,null,null,null,null,null,null,null,null,null,null,null,null,null,null,null,null,null,null,null,null,null,null,null,null,null,null,null,null,null,null,null,null,null,null,null,null,null,null,null,null,null,null,null,null,null,null,null,null,null,null,null,null,null,null,null,null,null,null,null,null,null,null,null,null,null,null,null,null,null,null,null,null,null,null,null,null,null,null,null,null,null,null,null,null,null,null,null,null,null,null,null,null,null,null,null,null,null,null,null,null,null,null,null,null,null,null,null,null,null,null,null,null,null,null,null,null,null,null,null,null,null,null,null,null,null,null,null,null,null,null,null,null,null,null,null,null,null,null,null,null,null,null,null,null,null,null,null,null,null,null,null,null,null,null,null,null,null,null,null,null,null,null,null,null,null,null,null,null,null,null,null,null,null,null,null,null,null,null,null,null,null,null,null,null,null,null,null,null,null,null,null,"•",null,"le dénominateur est le produit des deux dénominateurs de deux facteurs"]
[null,null,null,null,null,null,null,null,null,null,null,null,null,null,null,null,null,{"$f":"'EOOTB - D.S.A.T (01)'!KA58","v":"➋"},{"$f":"'EOOTB - D.S.A.T (01)'!KB58","v":"📃"},null,null,null,null,null,null,null,null,null,null,null,null,null,null,null,null,null,null,null,null,null,null,null,null,null,null,null,null,null,null,null,null,null,null,null,null,null,null,null,null,null,null,null,null,null,null,null,null,null,null,null,null,null,null,null,null,null,null,null,null,null,null,null,null,null,null,null,null,null,null,null,null,null,null,null,null,null,null,null,null,null,null,null,null,null,null,null,null,null,null,null,null,null,null,null,null,null,null,null,null,null,null,null,null,null,null,null,null,null,null,null,null,null,null,null,null,null,null,null,null,null,null,null,null,null,null,null,null,null,null,null,null,null,null,null,null,null,null,null,null,null,null,null,null,null,null,null,null,null,null,null,null,null,null,null,null,null,null,null,null,null,null,null,null,null,null,null,null,{"$f":"'EOOTB - D.S.A.T (01)'!KC58","v":"Is your school offering Blended courses"},{"$f":"'EOOTB - D.S.A.T (01)'!KE58","v":0},{"$f":"'EOOTB - D.S.A.T (01)'!KF58","v":0},{"$f":"'EOOTB - D.S.A.T (01)'!KG58","v":0},{"$f":"'EOOTB - D.S.A.T (01)'!KH58","v":0},{"$f":"'EOOTB - D.S.A.T (01)'!KI58","v":0},{"$f":"'EOOTB - D.S.A.T (01)'!KJ58","v":0},{"$f":"'EOOTB - D.S.A.T (01)'!KK58","v":0},{"$f":"'EOOTB - D.S.A.T (01)'!KL58","v":"➋"},{"$f":"'EOOTB - D.S.A.T (01)'!KM58","v":0},{"$f":"'EOOTB - D.S.A.T (01)'!KN58","v":""},{"$f":"'EOOTB - D.S.A.T (01)'!KO58","v":5},{"$f":"'EOOTB - D.S.A.T (01)'!KP58","v":0},{"$f":"'EOOTB - D.S.A.T (01)'!KQ58","v":0},{"$f":"'EOOTB - D.S.A.T (01)'!KR58","v":0},{"$f":"'EOOTB - D.S.A.T (01)'!KS58","v":0},{"$f":"IF(GL58=1,5,0)","v":0}]
[null,null,null,null,null,null,null,null,null,null,null,null,null,null,null,null,null,{"$f":"'EOOTB - D.S.A.T (01)'!KA59","v":0},{"$f":"'EOOTB - D.S.A.T (01)'!KB59","v":0},null,null,null,null,null,null,null,null,null,null,null,null,null,null,null,null,null,null,null,null,null,null,null,null,null,null,null,null,null,null,null,null,null,null,null,null,null,null,null,null,null,null,null,null,null,null,null,null,null,null,null,null,null,null,null,null,null,null,null,null,null,null,null,null,null,null,null,null,null,null,null,null,null,null,null,null,null,null,null,null,null,null,null,null,null,null,null,null,null,null,null,null,null,null,null,null,null,null,null,null,null,null,null,null,null,null,null,null,null,null,null,null,null,null,null,null,null,null,null,null,null,null,null,null,null,null,null,null,null,null,null,null,null,null,null,null,null,null,null,null,null,null,null,null,null,null,null,null,null,null,null,null,null,null,null,null,null,null,null,null,null,null,null,null,null,null,null,null,{"$f":"'EOOTB - D.S.A.T (01)'!KC59","v":0},{"$f":"'EOOTB - D.S.A.T (01)'!KE59","v":0},{"$f":"'EOOTB - D.S.A.T (01)'!KF59","v":0},{"$f":"'EOOTB - D.S.A.T (01)'!KG59","v":0},{"$f":"'EOOTB - D.S.A.T (01)'!KH59","v":0},{"$f":"'EOOTB - D.S.A.T (01)'!KI59","v":0},{"$f":"'EOOTB - D.S.A.T (01)'!KJ59","v":0},{"$f":"'EOOTB - D.S.A.T (01)'!KK59","v":0},{"$f":"'EOOTB - D.S.A.T (01)'!KL59","v":0},{"$f":"'EOOTB - D.S.A.T (01)'!KM59","v":0},{"$f":"'EOOTB - D.S.A.T (01)'!KN59","v":""},{"$f":"'EOOTB - D.S.A.T (01)'!KO59","v":0},{"$f":"'EOOTB - D.S.A.T (01)'!KP59","v":0},{"$f":"'EOOTB - D.S.A.T (01)'!KQ59","v":0},{"$f":"'EOOTB - D.S.A.T (01)'!KR59","v":0},{"$f":"'EOOTB - D.S.A.T (01)'!KS59","v":0},{"$f":"'EOOTB - D.S.A.T (01)'!KT59","v":0}]
[null,null,null,null,null,null,null,null,null,null,null,null,null,null,null,null,null,{"$f":"'EOOTB - D.S.A.T (01)'!KA60","v":0},{"$f":"'EOOTB - D.S.A.T (01)'!KB60","v":0},null,null,null,null,null,null,null,null,null,null,null,null,null,null,null,null,null,null,null,null,null,null,null,null,null,null,null,null,null,null,null,null,null,null,null,null,null,null,null,null,null,null,null,null,null,null,null,null,null,null,null,null,null,null,null,null,null,null,null,null,null,null,null,null,null,null,null,null,null,null,null,null,null,null,null,null,null,null,null,null,null,null,null,null,null,null,null,null,null,null,null,null,null,null,null,null,null,null,null,null,null,null,null,null,null,null,null,null,null,null,null,null,null,null,null,null,null,null,null,null,null,null,null,null,null,null,null,null,null,null,null,null,null,null,null,null,null,null,null,null,null,null,null,null,null,null,null,null,null,null,null,null,null,null,null,null,null,null,null,null,null,null,null,null,null,null,null,null,{"$f":"'EOOTB - D.S.A.T (01)'!KC60","v":0},{"$f":"'EOOTB - D.S.A.T (01)'!KE60","v":0},{"$f":"'EOOTB - D.S.A.T (01)'!KF60","v":0},{"$f":"'EOOTB - D.S.A.T (01)'!KG60","v":0},{"$f":"'EOOTB - D.S.A.T (01)'!KH60","v":0},{"$f":"'EOOTB - D.S.A.T (01)'!KI60","v":0},{"$f":"'EOOTB - D.S.A.T (01)'!KJ60","v":0},{"$f":"'EOOTB - D.S.A.T (01)'!KK60","v":0},{"$f":"'EOOTB - D.S.A.T (01)'!KL60","v":0},{"$f":"'EOOTB - D.S.A.T (01)'!KM60","v":"NO"},{"$f":"'EOOTB - D.S.A.T (01)'!KN60","v":""},{"$f":"'EOOTB - D.S.A.T (01)'!KO60","v":0},{"$f":"'EOOTB - D.S.A.T (01)'!KP60","v":0},{"$f":"'EOOTB - D.S.A.T (01)'!KQ60","v":0},{"$f":"'EOOTB - D.S.A.T (01)'!KR60","v":0},{"$f":"'EOOTB - D.S.A.T (01)'!KS60","v":0},{"$f":"'EOOTB - D.S.A.T (01)'!KT60","v":0}]
[null,null,null,null,null,null,null,null,null,null,null,null,null,null,null,null,null,{"$f":"'EOOTB - D.S.A.T (01)'!KA61","v":0},{"$f":"'EOOTB - D.S.A.T (01)'!KB61","v":0},null,null,null,null,null,null,null,null,null,null,null,null,null,null,null,null,null,null,null,null,null,null,null,null,null,null,null,null,null,null,null,null,null,null,null,null,null,null,null,null,null,null,null,null,null,null,null,null,null,null,null,null,null,null,null,null,null,null,null,null,null,null,null,null,null,null,null,null,null,null,null,null,null,null,null,null,null,null,null,null,null,null,null,null,null,null,null,null,null,null,null,null,null,null,null,null,null,null,null,null,null,null,null,null,null,null,null,null,null,null,null,null,null,null,null,null,null,null,null,null,null,null,null,null,null,null,null,null,null,null,null,null,null,null,null,null,null,null,null,null,null,null,null,null,null,null,null,null,null,null,null,null,null,null,null,null,null,null,null,null,null,null,null,null,null,null,null,null,{"$f":"'EOOTB - D.S.A.T (01)'!KC61","v":0},{"$f":"'EOOTB - D.S.A.T (01)'!KE61","v":0},{"$f":"'EOOTB - D.S.A.T (01)'!KF61","v":0},{"$f":"'EOOTB - D.S.A.T (01)'!KG61","v":0},{"$f":"'EOOTB - D.S.A.T (01)'!KH61","v":0},{"$f":"'EOOTB - D.S.A.T (01)'!KI61","v":0},{"$f":"'EOOTB - D.S.A.T (01)'!KJ61","v":0},{"$f":"'EOOTB - D.S.A.T (01)'!KK61","v":0},{"$f":"'EOOTB - D.S.A.T (01)'!KL61","v":0},{"$f":"'EOOTB - D.S.A.T (01)'!KM61","v":0},{"$f":"'EOOTB - D.S.A.T (01)'!KN61","v":""},{"$f":"'EOOTB - D.S.A.T (01)'!KO61","v":0},{"$f":"'EOOTB - D.S.A.T (01)'!KP61","v":0},{"$f":"'EOOTB - D.S.A.T (01)'!KQ61","v":0},{"$f":"'EOOTB - D.S.A.T (01)'!KR61","v":0},{"$f":"'EOOTB - D.S.A.T (01)'!KS61","v":0},{"$f":"'EOOTB - D.S.A.T (01)'!KT61","v":0}]
[null,null,null,null,null,null,null,null,null,null,null,null,null,null,null,null,null,{"$f":"'EOOTB - D.S.A.T (01)'!KA62","v":"❾"},{"$f":"'EOOTB - D.S.A.T (01)'!KB62","v":0},null,null,null,null,null,null,null,null,null,null,null,null,null,null,null,null,null,null,null,null,null,null,null,null,null,null,null,null,null,null,null,null,null,null,null,null,null,null,null,null,null,null,null,null,null,null,null,null,null,null,null,null,null,null,null,null,null,null,null,null,null,null,null,null,null,null,null,null,null,null,null,null,null,null,null,null,null,null,null,null,null,null,null,null,null,null,null,null,null,null,null,null,null,null,null,null,null,null,null,null,null,null,null,null,null,null,null,null,null,null,null,null,null,null,null,null,null,null,null,null,null,null,null,null,null,null,null,null,null,null,null,null,null,null,null,null,null,null,null,null,null,null,null,null,null,null,null,null,null,null,null,null,null,null,null,null,null,null,null,null,null,null,null,null,null,null,null,null,{"$f":"'EOOTB - D.S.A.T (01)'!KC62","v":"Digital @ Evaluation \nKindly, one single choice/answer per question/line is allowed!"},{"$f":"'EOOTB - D.S.A.T (01)'!KE62","v":0},{"$f":"'EOOTB - D.S.A.T (01)'!KF62","v":0},{"$f":"'EOOTB - D.S.A.T (01)'!KG62","v":0},{"$f":"'EOOTB - D.S.A.T (01)'!KH62","v":0},{"$f":"'EOOTB - D.S.A.T (01)'!KI62","v":0},{"$f":"'EOOTB - D.S.A.T (01)'!KJ62","v":0},{"$f":"'EOOTB - D.S.A.T (01)'!KK62","v":0},{"$f":"'EOOTB - D.S.A.T (01)'!KL62","v":0},{"$f":"'EOOTB - D.S.A.T (01)'!KM62","v":0},{"$f":"'EOOTB - D.S.A.T (01)'!KN62","v":""},{"$f":"'EOOTB - D.S.A.T (01)'!KO62","v":0},{"$f":"'EOOTB - D.S.A.T (01)'!KP62","v":0},{"$f":"'EOOTB - D.S.A.T (01)'!KQ62","v":0},{"$f":"'EOOTB - D.S.A.T (01)'!KR62","v":0},{"$f":"'EOOTB - D.S.A.T (01)'!KS62","v":0},{"$f":"'EOOTB - D.S.A.T (01)'!KT62","v":0}]
[null,null,null,null,null,null,null,null,null,null,null,null,null,null,null,null,null,{"$f":"'EOOTB - D.S.A.T (01)'!KA63","v":"➊"},{"$f":"'EOOTB - D.S.A.T (01)'!KB63","v":0},null,null,null,null,null,null,null,null,null,null,null,null,null,null,null,null,null,null,null,null,null,null,null,null,null,null,null,null,null,null,null,null,null,null,null,null,null,null,null,null,null,null,null,null,null,null,null,null,null,null,null,null,null,null,null,null,null,null,null,null,null,null,null,null,null,null,null,null,null,null,null,null,null,null,null,null,null,null,null,null,null,null,null,null,null,null,null,null,null,null,null,null,null,null,null,null,null,null,null,null,null,null,null,null,null,null,null,null,null,null,null,null,null,null,null,null,null,null,null,null,null,null,null,null,null,null,null,null,null,null,null,null,null,null,null,null,null,null,null,null,null,null,null,null,null,null,null,null,null,null,null,null,null,null,null,null,null,null,null,null,null,null,null,null,null,null,null,null,{"$f":"'EOOTB - D.S.A.T (01)'!KC63","v":"What is the level of your profecency to carry digital information?"},{"$f":"'EOOTB - D.S.A.T (01)'!KE63","v":0},{"$f":"'EOOTB - D.S.A.T (01)'!KF63","v":0},{"$f":"'EOOTB - D.S.A.T (01)'!KG63","v":0},{"$f":"'EOOTB - D.S.A.T (01)'!KH63","v":0},{"$f":"'EOOTB - D.S.A.T (01)'!KI63","v":0},{"$f":"'EOOTB - D.S.A.T (01)'!KJ63","v":0},{"$f":"GL63","v":0},{"$f":"'EOOTB - D.S.A.T (01)'!KL63","v":0},{"$f":"'EOOTB - D.S.A.T (01)'!KM63","v":0},{"$f":"'EOOTB - D.S.A.T (01)'!KN63","v":""},{"$f":"'EOOTB - D.S.A.T (01)'!KO63","v":1},{"$f":"'EOOTB - D.S.A.T (01)'!KP63","v":0},{"$f":"'EOOTB - D.S.A.T (01)'!KQ63","v":0},{"$f":"'EOOTB - D.S.A.T (01)'!KR63","v":0},{"$f":"'EOOTB - D.S.A.T (01)'!KS63","v":0},{"$f":"'EOOTB - D.S.A.T (01)'!KT63","v":0}]
[null,null,null,null,null,null,null,null,null,null,null,null,null,null,null,null,null,{"$f":"'EOOTB - D.S.A.T (01)'!KA64","v":"➋"},{"$f":"'EOOTB - D.S.A.T (01)'!KB64","v":0},null,null,null,null,null,null,null,null,null,null,null,null,null,null,null,null,null,null,null,null,null,null,null,null,null,null,null,null,null,null,null,null,null,null,null,null,null,null,null,null,null,null,null,null,null,null,null,null,null,null,null,null,null,null,null,null,null,null,null,null,null,null,null,null,null,null,null,null,null,null,null,null,null,null,null,null,null,null,null,null,null,null,null,null,null,null,null,null,null,null,null,null,null,null,null,null,null,null,null,null,null,null,null,null,null,null,null,null,null,null,null,null,null,null,null,null,null,null,null,null,null,null,null,null,null,null,null,null,null,null,null,null,null,null,null,null,null,null,null,null,null,null,null,null,null,null,null,null,null,null,null,null,null,null,null,null,null,null,null,null,null,null,null,null,null,null,null,null,{"$f":"'EOOTB - D.S.A.T (01)'!KC64","v":"What is the level of your profecency to carry digital communication?"},{"$f":"'EOOTB - D.S.A.T (01)'!KE64","v":0},{"$f":"'EOOTB - D.S.A.T (01)'!KF64","v":0},{"$f":"'EOOTB - D.S.A.T (01)'!KG64","v":0},{"$f":"'EOOTB - D.S.A.T (01)'!KH64","v":0},{"$f":"'EOOTB - D.S.A.T (01)'!KI64","v":0},{"$f":"'EOOTB - D.S.A.T (01)'!KJ64","v":0},{"$f":"GL64","v":0},{"$f":"'EOOTB - D.S.A.T (01)'!KL64","v":0},{"$f":"'EOOTB - D.S.A.T (01)'!KM64","v":0},{"$f":"'EOOTB - D.S.A.T (01)'!KN64","v":""},{"$f":"'EOOTB - D.S.A.T (01)'!KO64","v":2},{"$f":"'EOOTB - D.S.A.T (01)'!KP64","v":0},{"$f":"'EOOTB - D.S.A.T (01)'!KQ64","v":0},{"$f":"'EOOTB - D.S.A.T (01)'!KR64","v":0},{"$f":"'EOOTB - D.S.A.T (01)'!KS64","v":0},{"$f":"'EOOTB - D.S.A.T (01)'!KT64","v":0}]
[null,null,null,null,null,null,null,null,null,null,null,null,null,null,null,null,null,{"$f":"'EOOTB - D.S.A.T (01)'!KA65","v":"➌"},{"$f":"'EOOTB - D.S.A.T (01)'!KB65","v":0},null,null,null,null,null,null,null,null,null,null,null,null,null,null,null,null,null,null,null,null,null,null,null,null,null,null,null,null,null,null,null,null,null,null,null,null,null,null,null,null,null,null,null,null,null,null,null,null,null,null,null,null,null,null,null,null,null,null,null,null,null,null,null,null,null,null,null,null,null,null,null,null,null,null,null,null,null,null,null,null,null,null,null,null,null,null,null,null,null,null,null,null,null,null,null,null,null,null,null,null,null,null,null,null,null,null,null,null,null,null,null,null,null,null,null,null,null,null,null,null,null,null,null,null,null,null,null,null,null,null,null,null,null,null,null,null,null,null,null,null,null,null,null,null,null,null,null,null,null,null,null,null,null,null,null,null,null,null,null,null,null,null,null,null,null,null,null,null,{"$f":"'EOOTB - D.S.A.T (01)'!KC65","v":"What is the level of your profecency to create a digital content ?"},{"$f":"'EOOTB - D.S.A.T (01)'!KE65","v":0},{"$f":"'EOOTB - D.S.A.T (01)'!KF65","v":0},{"$f":"'EOOTB - D.S.A.T (01)'!KG65","v":0},{"$f":"'EOOTB - D.S.A.T (01)'!KH65","v":0},{"$f":"'EOOTB - D.S.A.T (01)'!KI65","v":0},{"$f":"'EOOTB - D.S.A.T (01)'!KJ65","v":0},0,{"$f":"'EOOTB - D.S.A.T (01)'!KL65","v":0},{"$f":"'EOOTB - D.S.A.T (01)'!KM65","v":0},{"$f":"'EOOTB - D.S.A.T (01)'!KN65","v":""},{"$f":"'EOOTB - D.S.A.T (01)'!KO65","v":3},{"$f":"'EOOTB - D.S.A.T (01)'!KP65","v":0},{"$f":"'EOOTB - D.S.A.T (01)'!KQ65","v":0},{"$f":"'EOOTB - D.S.A.T (01)'!KR65","v":0},{"$f":"'EOOTB - D.S.A.T (01)'!KS65","v":0},{"$f":"'EOOTB - D.S.A.T (01)'!KT65","v":0}]
[null,null,null,null,null,null,null,null,null,null,null,null,null,null,null,null,null,{"$f":"'EOOTB - D.S.A.T (01)'!KA66","v":"➍"},{"$f":"'EOOTB - D.S.A.T (01)'!KB66","v":0},null,null,null,null,null,null,null,null,null,null,null,null,null,null,null,null,null,null,null,null,null,null,null,null,null,null,null,null,null,null,null,null,null,null,null,null,null,null,null,null,null,null,null,null,null,null,null,null,null,null,null,null,null,null,null,null,null,null,null,null,null,null,null,null,null,null,null,null,null,null,null,null,null,null,null,null,null,null,null,null,null,null,null,null,null,null,null,null,null,null,null,null,null,null,null,null,null,null,null,null,null,null,null,null,null,null,null,null,null,null,null,null,null,null,null,null,null,null,null,null,null,null,null,null,null,null,null,null,null,null,null,null,null,null,null,null,null,null,null,null,null,null,null,null,null,null,null,null,null,null,null,null,null,null,null,null,null,null,null,null,null,null,null,null,null,null,null,null,{"$f":"'EOOTB - D.S.A.T (01)'!KC66","v":"What is the level of your profecency to carry safe digital actions?"},{"$f":"'EOOTB - D.S.A.T (01)'!KE66","v":0},{"$f":"'EOOTB - D.S.A.T (01)'!KF66","v":0},{"$f":"'EOOTB - D.S.A.T (01)'!KG66","v":0},{"$f":"'EOOTB - D.S.A.T (01)'!KH66","v":0},{"$f":"'EOOTB - D.S.A.T (01)'!KI66","v":0},{"$f":"'EOOTB - D.S.A.T (01)'!KJ66","v":0},0,{"$f":"'EOOTB - D.S.A.T (01)'!KL66","v":0},{"$f":"'EOOTB - D.S.A.T (01)'!KM66","v":0},{"$f":"'EOOTB - D.S.A.T (01)'!KN66","v":""},{"$f":"'EOOTB - D.S.A.T (01)'!KO66","v":4},{"$f":"'EOOTB - D.S.A.T (01)'!KP66","v":0},{"$f":"'EOOTB - D.S.A.T (01)'!KQ66","v":0},{"$f":"'EOOTB - D.S.A.T (01)'!KR66","v":0},{"$f":"'EOOTB - D.S.A.T (01)'!KS66","v":0},{"$f":"'EOOTB - D.S.A.T (01)'!KT66","v":0}]
[null,null,null,null,null,null,null,null,null,null,null,null,null,null,null,null,null,{"$f":"'EOOTB - D.S.A.T (01)'!KA67","v":"➎"},{"$f":"'EOOTB - D.S.A.T (01)'!KB67","v":0},null,null,null,null,null,null,null,null,null,null,null,null,null,null,null,null,null,null,null,null,null,null,null,null,null,null,null,null,null,null,null,null,null,null,null,null,null,null,null,null,null,null,null,null,null,null,null,null,null,null,null,null,null,null,null,null,null,null,null,null,null,null,null,null,null,null,null,null,null,null,null,null,null,null,null,null,null,null,null,null,null,null,null,null,null,null,null,null,null,null,null,null,null,null,null,null,null,null,null,null,null,null,null,null,null,null,null,null,null,null,null,null,null,null,null,null,null,null,null,null,null,null,null,null,null,null,null,null,null,null,null,null,null,null,null,null,null,null,null,null,null,null,null,null,null,null,null,null,null,null,null,null,null,null,null,null,null,null,null,null,null,null,null,null,null,null,null,null,{"$f":"'EOOTB - D.S.A.T (01)'!KC67","v":"What is the level of your profecency to solve digital problems?"},{"$f":"'EOOTB - D.S.A.T (01)'!KE67","v":0},{"$f":"'EOOTB - D.S.A.T (01)'!KF67","v":0},{"$f":"'EOOTB - D.S.A.T (01)'!KG67","v":0},{"$f":"'EOOTB - D.S.A.T (01)'!KH67","v":0},{"$f":"'EOOTB - D.S.A.T (01)'!KI67","v":0},{"$f":"'EOOTB - D.S.A.T (01)'!KJ67","v":0},0,{"$f":"'EOOTB - D.S.A.T (01)'!KL67","v":0},{"$f":"'EOOTB - D.S.A.T (01)'!KM67","v":0},{"$f":"'EOOTB - D.S.A.T (01)'!KN67","v":""},{"$f":"'EOOTB - D.S.A.T (01)'!KO67","v":5},{"$f":"'EOOTB - D.S.A.T (01)'!KP67","v":0},{"$f":"'EOOTB - D.S.A.T (01)'!KQ67","v":0},{"$f":"'EOOTB - D.S.A.T (01)'!KR67","v":0},{"$f":"'EOOTB - D.S.A.T (01)'!KS67","v":0},{"$f":"'EOOTB - D.S.A.T (01)'!KT67","v":0}]
[null,null,null,null,null,null,null,null,null,null,null,null,null,null,null,null,null,{"$f":"'EOOTB - D.S.A.T (01)'!KA68","v":0},{"$f":"'EOOTB - D.S.A.T (01)'!KB68","v":0},null,null,null,null,null,null,null,null,null,null,null,null,null,null,null,null,null,null,null,null,null,null,null,null,null,null,null,null,null,null,null,null,null,null,null,null,null,null,null,null,null,null,null,null,null,null,null,null,null,null,null,null,null,null,null,null,null,null,null,null,null,null,null,null,null,null,null,null,null,null,null,null,null,null,null,null,null,null,null,null,null,null,null,null,null,null,null,null,null,null,null,null,null,null,null,null,null,null,null,null,null,null,null,null,null,null,null,null,null,null,null,null,null,null,null,null,null,null,null,null,null,null,null,null,null,null,null,null,null,null,null,null,null,null,null,null,null,null,null,null,null,null,null,null,null,null,null,null,null,null,null,null,null,null,null,null,null,null,null,null,null,null,null,null,null,null,null,null,{"$f":"'EOOTB - D.S.A.T (01)'!KC68","v":0},{"$f":"'EOOTB - D.S.A.T (01)'!KE68","v":0},{"$f":"'EOOTB - D.S.A.T (01)'!KF68","v":0},{"$f":"'EOOTB - D.S.A.T (01)'!KG68","v":0},{"$f":"'EOOTB - D.S.A.T (01)'!KH68","v":0},{"$f":"'EOOTB - D.S.A.T (01)'!KI68","v":0},{"$f":"'EOOTB - D.S.A.T (01)'!KJ68","v":0},{"$f":"'EOOTB - D.S.A.T (01)'!KK68","v":0},{"$f":"'EOOTB - D.S.A.T (01)'!KL68","v":0},{"$f":"'EOOTB - D.S.A.T (01)'!KM68","v":0},{"$f":"'EOOTB - D.S.A.T (01)'!KN68","v":""},{"$f":"'EOOTB - D.S.A.T (01)'!KO68","v":0},{"$f":"'EOOTB - D.S.A.T (01)'!KP68","v":0},{"$f":"'EOOTB - D.S.A.T (01)'!KQ68","v":0},{"$f":"'EOOTB - D.S.A.T (01)'!KR68","v":0},{"$f":"'EOOTB - D.S.A.T (01)'!KS68","v":0},{"$f":"'EOOTB - D.S.A.T (01)'!KT68","v":0}]
[null,null,null,null,null,null,null,null,null,null,null,null,null,null,null,null,null,{"$f":"'EOOTB - D.S.A.T (01)'!KA69","v":"❿"},{"$f":"'EOOTB - D.S.A.T (01)'!KB69","v":0},null,null,null,null,null,null,null,null,null,null,null,null,null,null,null,null,null,null,null,null,null,null,null,null,null,null,null,null,null,null,null,null,null,null,null,null,null,null,null,null,null,null,null,null,null,null,null,null,null,null,null,null,null,null,null,null,null,null,null,null,null,null,null,null,null,null,null,null,null,null,null,null,null,null,null,null,null,null,null,null,null,null,null,null,null,null,null,null,null,null,null,null,null,null,null,null,null,null,null,null,null,null,null,null,null,null,null,null,null,null,null,null,null,null,null,null,null,null,null,null,null,null,null,null,null,null,null,null,null,null,null,null,null,null,null,null,null,null,null,null,null,null,null,null,null,null,null,null,null,null,null,null,null,null,null,null,null,null,null,null,null,null,null,null,null,null,null,null,{"$f":"'EOOTB - D.S.A.T (01)'!KC69","v":"Digital @ Information processing\nKindly, one single choice/answer per question/line is allowed!"},{"$f":"'EOOTB - D.S.A.T (01)'!KE69","v":0},{"$f":"'EOOTB - D.S.A.T (01)'!KF69","v":0},{"$f":"'EOOTB - D.S.A.T (01)'!KG69","v":0},{"$f":"'EOOTB - D.S.A.T (01)'!KH69","v":0},{"$f":"'EOOTB - D.S.A.T (01)'!KI69","v":0},{"$f":"'EOOTB - D.S.A.T (01)'!KJ69","v":0},{"$f":"'EOOTB - D.S.A.T (01)'!KK69","v":0},{"$f":"'EOOTB - D.S.A.T (01)'!KL69","v":0},{"$f":"'EOOTB - D.S.A.T (01)'!KM69","v":0},{"$f":"'EOOTB - D.S.A.T (01)'!KN69","v":""},{"$f":"'EOOTB - D.S.A.T (01)'!KO69","v":0},{"$f":"'EOOTB - D.S.A.T (01)'!KP69","v":0},{"$f":"'EOOTB - D.S.A.T (01)'!KQ69","v":0},{"$f":"'EOOTB - D.S.A.T (01)'!KR69","v":0},{"$f":"'EOOTB - D.S.A.T (01)'!KS69","v":0},{"$f":"'EOOTB - D.S.A.T (01)'!KT69","v":0}]
[null,null,null,null,null,null,null,null,null,null,null,null,null,null,null,null,null,{"$f":"'EOOTB - D.S.A.T (01)'!KA70","v":"➊"},{"$f":"'EOOTB - D.S.A.T (01)'!KB70","v":0},null,null,null,null,null,null,null,null,null,null,null,null,null,null,null,null,null,null,null,null,null,null,null,null,null,null,null,null,null,null,null,null,null,null,null,null,null,null,null,null,null,null,null,null,null,null,null,null,null,null,null,null,null,null,null,null,null,null,null,null,null,null,null,null,null,null,null,null,null,null,null,null,null,null,null,null,null,null,null,null,null,null,null,null,null,null,null,null,null,null,null,null,null,null,null,null,null,null,null,null,null,null,null,null,null,null,null,null,null,null,null,null,null,null,null,null,null,null,null,null,null,null,null,null,null,null,null,null,null,null,null,null,null,null,null,null,null,null,null,null,null,null,null,null,null,null,null,null,null,null,null,null,null,null,null,null,null,null,null,null,null,null,null,null,null,null,null,null,{"$f":"'EOOTB - D.S.A.T (01)'!KC70","v":"Are you familiar with MS Office for file creation, copy, paste, save, … (or any other word processing tool)?"},{"$f":"'EOOTB - D.S.A.T (01)'!KE70","v":0},{"$f":"'EOOTB - D.S.A.T (01)'!KF70","v":0},{"$f":"'EOOTB - D.S.A.T (01)'!KG70","v":0},{"$f":"'EOOTB - D.S.A.T (01)'!KH70","v":0},{"$f":"'EOOTB - D.S.A.T (01)'!KI70","v":0},{"$f":"'EOOTB - D.S.A.T (01)'!KJ70","v":0},{"$f":"GL70","v":0},{"$f":"'EOOTB - D.S.A.T (01)'!KL70","v":0},{"$f":"'EOOTB - D.S.A.T (01)'!KM70","v":0},{"$f":"'EOOTB - D.S.A.T (01)'!KN70","v":""},{"$f":"'EOOTB - D.S.A.T (01)'!KO70","v":1},{"$f":"'EOOTB - D.S.A.T (01)'!KP70","v":0},{"$f":"'EOOTB - D.S.A.T (01)'!KQ70","v":0},{"$f":"'EOOTB - D.S.A.T (01)'!KR70","v":0},{"$f":"'EOOTB - D.S.A.T (01)'!KS70","v":0},{"$f":"'EOOTB - D.S.A.T (01)'!KT70","v":0}]
[null,null,null,null,null,null,null,null,null,null,null,null,null,null,null,null,null,{"$f":"'EOOTB - D.S.A.T (01)'!KA71","v":"➋"},{"$f":"'EOOTB - D.S.A.T (01)'!KB71","v":0},null,null,null,null,null,null,null,null,null,null,null,null,null,null,null,null,null,null,null,null,null,null,null,null,null,null,null,null,null,null,null,null,null,null,null,null,null,null,null,null,null,null,null,null,null,null,null,null,null,null,null,null,null,null,null,null,null,null,null,null,null,null,null,null,null,null,null,null,null,null,null,null,null,null,null,null,null,null,null,null,null,null,null,null,null,null,null,null,null,null,null,null,null,null,null,null,null,null,null,null,null,null,null,null,null,null,null,null,null,null,null,null,null,null,null,null,null,null,null,null,null,null,null,null,null,null,null,null,null,null,null,null,null,null,null,null,null,null,null,null,null,null,null,null,null,null,null,null,null,null,null,null,null,null,null,null,null,null,null,null,null,null,null,null,null,null,null,null,{"$f":"'EOOTB - D.S.A.T (01)'!KC71","v":"Can you create a spreadsheet with formatting and formulas, or improve an existing spreadsheet?"},{"$f":"'EOOTB - D.S.A.T (01)'!KE71","v":0},{"$f":"'EOOTB - D.S.A.T (01)'!KF71","v":0},{"$f":"'EOOTB - D.S.A.T (01)'!KG71","v":0},{"$f":"'EOOTB - D.S.A.T (01)'!KH71","v":0},{"$f":"'EOOTB - D.S.A.T (01)'!KI71","v":0},{"$f":"'EOOTB - D.S.A.T (01)'!KJ71","v":0},{"$f":"GL71","v":0},{"$f":"'EOOTB - D.S.A.T (01)'!KL71","v":0},{"$f":"'EOOTB - D.S.A.T (01)'!KM71","v":0},{"$f":"'EOOTB - D.S.A.T (01)'!KN71","v":""},{"$f":"'EOOTB - D.S.A.T (01)'!KO71","v":2},{"$f":"'EOOTB - D.S.A.T (01)'!KP71","v":0},{"$f":"'EOOTB - D.S.A.T (01)'!KQ71","v":0},{"$f":"'EOOTB - D.S.A.T (01)'!KR71","v":0},{"$f":"'EOOTB - D.S.A.T (01)'!KS71","v":0},{"$f":"'EOOTB - D.S.A.T (01)'!KT71","v":0}]
[null,null,null,null,null,null,null,null,null,null,null,null,null,null,null,null,null,{"$f":"'EOOTB - D.S.A.T (01)'!KA72","v":"➌"},{"$f":"'EOOTB - D.S.A.T (01)'!KB72","v":0},null,null,null,null,null,null,null,null,null,null,null,null,null,null,null,null,null,null,null,null,null,null,null,null,null,null,null,null,null,null,null,null,null,null,null,null,null,null,null,null,null,null,null,null,null,null,null,null,null,null,null,null,null,null,null,null,null,null,null,null,null,null,null,null,null,null,null,null,null,null,null,null,null,null,null,null,null,null,null,null,null,null,null,null,null,null,null,null,null,null,null,null,null,null,null,null,null,null,null,null,null,null,null,null,null,null,null,null,null,null,null,null,null,null,null,null,null,null,null,null,null,null,null,null,null,null,null,null,null,null,null,null,null,null,null,null,null,null,null,null,null,null,null,null,null,null,null,null,null,null,null,null,null,null,null,null,null,null,null,null,null,null,null,null,null,null,null,null,{"$f":"'EOOTB - D.S.A.T (01)'!KC72","v":"Can you turn a word page into an effective presentation (PowerPoint/ Canva/ …)?"},{"$f":"'EOOTB - D.S.A.T (01)'!KE72","v":0},{"$f":"'EOOTB - D.S.A.T (01)'!KF72","v":0},{"$f":"'EOOTB - D.S.A.T (01)'!KG72","v":0},{"$f":"'EOOTB - D.S.A.T (01)'!KH72","v":0},{"$f":"'EOOTB - D.S.A.T (01)'!KI72","v":0},{"$f":"'EOOTB - D.S.A.T (01)'!KJ72","v":0},0,{"$f":"'EOOTB - D.S.A.T (01)'!KL72","v":0},{"$f":"'EOOTB - D.S.A.T (01)'!KM72","v":0},{"$f":"'EOOTB - D.S.A.T (01)'!KN72","v":""},{"$f":"'EOOTB - D.S.A.T (01)'!KO72","v":3},{"$f":"'EOOTB - D.S.A.T (01)'!KP72","v":0},{"$f":"'EOOTB - D.S.A.T (01)'!KQ72","v":0},{"$f":"'EOOTB - D.S.A.T (01)'!KR72","v":0},{"$f":"'EOOTB - D.S.A.T (01)'!KS72","v":0},{"$f":"'EOOTB - D.S.A.T (01)'!KT72","v":0}]
[null,null,null,null,null,null,null,null,null,null,null,null,null,null,null,null,null,{"$f":"'EOOTB - D.S.A.T (01)'!KA73","v":"➍"},{"$f":"'EOOTB - D.S.A.T (01)'!KB73","v":0},null,null,null,null,null,null,null,null,null,null,null,null,null,null,null,null,null,null,null,null,null,null,null,null,null,null,null,null,null,null,null,null,null,null,null,null,null,null,null,null,null,null,null,null,null,null,null,null,null,null,null,null,null,null,null,null,null,null,null,null,null,null,null,null,null,null,null,null,null,null,null,null,null,null,null,null,null,null,null,null,null,null,null,null,null,null,null,null,null,null,null,null,null,null,null,null,null,null,null,null,null,null,null,null,null,null,null,null,null,null,null,null,null,null,null,null,null,null,null,null,null,null,null,null,null,null,null,null,null,null,null,null,null,null,null,null,null,null,null,null,null,null,null,null,null,null,null,null,null,null,null,null,null,null,null,null,null,null,null,null,null,null,null,null,null,null,null,null,{"$f":"'EOOTB - D.S.A.T (01)'!KC73","v":"Can you protect your documents by restricting access to certain functions?"},{"$f":"'EOOTB - D.S.A.T (01)'!KE73","v":0},{"$f":"'EOOTB - D.S.A.T (01)'!KF73","v":0},{"$f":"'EOOTB - D.S.A.T (01)'!KG73","v":0},{"$f":"'EOOTB - D.S.A.T (01)'!KH73","v":0},{"$f":"'EOOTB - D.S.A.T (01)'!KI73","v":0},{"$f":"'EOOTB - D.S.A.T (01)'!KJ73","v":0},0,{"$f":"'EOOTB - D.S.A.T (01)'!KL73","v":0},{"$f":"'EOOTB - D.S.A.T (01)'!KM73","v":0},{"$f":"'EOOTB - D.S.A.T (01)'!KN73","v":""},{"$f":"'EOOTB - D.S.A.T (01)'!KO73","v":4},{"$f":"'EOOTB - D.S.A.T (01)'!KP73","v":0},{"$f":"'EOOTB - D.S.A.T (01)'!KQ73","v":0},{"$f":"'EOOTB - D.S.A.T (01)'!KR73","v":0},{"$f":"'EOOTB - D.S.A.T (01)'!KS73","v":0},{"$f":"'EOOTB - D.S.A.T (01)'!KT73","v":0}]
[null,null,null,null,null,null,null,null,null,null,null,null,null,null,null,null,null,{"$f":"'EOOTB - D.S.A.T (01)'!KA74","v":"➎"},{"$f":"'EOOTB - D.S.A.T (01)'!KB74","v":0},null,null,null,null,null,null,null,null,null,null,null,null,null,null,null,null,null,null,null,null,null,null,null,null,null,null,null,null,null,null,null,null,null,null,null,null,null,null,null,null,null,null,null,null,null,null,null,null,null,null,null,null,null,null,null,null,null,null,null,null,null,null,null,null,null,null,null,null,null,null,null,null,null,null,null,null,null,null,null,null,null,null,null,null,null,null,null,null,null,null,null,null,null,null,null,null,null,null,null,null,null,null,null,null,null,null,null,null,null,null,null,null,null,null,null,null,null,null,null,null,null,null,null,null,null,null,null,null,null,null,null,null,null,null,null,null,null,null,null,null,null,null,null,null,null,null,null,null,null,null,null,null,null,null,null,null,null,null,null,null,null,null,null,null,null,null,null,null,{"$f":"'EOOTB - D.S.A.T (01)'!KC74","v":"Can you make modifications/improvements to your documents while keeping full track of your changes?"},{"$f":"'EOOTB - D.S.A.T (01)'!KE74","v":0},{"$f":"'EOOTB - D.S.A.T (01)'!KF74","v":0},{"$f":"'EOOTB - D.S.A.T (01)'!KG74","v":0},{"$f":"'EOOTB - D.S.A.T (01)'!KH74","v":0},{"$f":"'EOOTB - D.S.A.T (01)'!KI74","v":0},{"$f":"'EOOTB - D.S.A.T (01)'!KJ74","v":0},0,{"$f":"'EOOTB - D.S.A.T (01)'!KL74","v":0},{"$f":"'EOOTB - D.S.A.T (01)'!KM74","v":0},{"$f":"'EOOTB - D.S.A.T (01)'!KN74","v":""},{"$f":"'EOOTB - D.S.A.T (01)'!KO74","v":5},{"$f":"'EOOTB - D.S.A.T (01)'!KP74","v":0},{"$f":"'EOOTB - D.S.A.T (01)'!KQ74","v":0},{"$f":"'EOOTB - D.S.A.T (01)'!KR74","v":0},{"$f":"'EOOTB - D.S.A.T (01)'!KS74","v":0},{"$f":"'EOOTB - D.S.A.T (01)'!KT74","v":0}]
[null,null,null,null,null,null,null,null,null,null,null,null,null,null,null,null,null,{"$f":"'EOOTB - D.S.A.T (01)'!KA75","v":0},{"$f":"'EOOTB - D.S.A.T (01)'!KB75","v":0},null,null,null,null,null,null,null,null,null,null,null,null,null,null,null,null,null,null,null,null,null,null,null,null,null,null,null,null,null,null,null,null,null,null,null,null,null,null,null,null,null,null,null,null,null,null,null,null,null,null,null,null,null,null,null,null,null,null,null,null,null,null,null,null,null,null,null,null,null,null,null,null,null,null,null,null,null,null,null,null,null,null,null,null,null,null,null,null,null,null,null,null,null,null,null,null,null,null,null,null,null,null,null,null,null,null,null,null,null,null,null,null,null,null,null,null,null,null,null,null,null,null,null,null,null,null,null,null,null,null,null,null,null,null,null,null,null,null,null,null,null,null,null,null,null,null,null,null,null,null,null,null,null,null,null,null,null,null,null,null,null,null,null,null,null,null,null,null,{"$f":"'EOOTB - D.S.A.T (01)'!KC75","v":0},{"$f":"'EOOTB - D.S.A.T (01)'!KE75","v":0},{"$f":"'EOOTB - D.S.A.T (01)'!KF75","v":0},{"$f":"'EOOTB - D.S.A.T (01)'!KG75","v":0},{"$f":"'EOOTB - D.S.A.T (01)'!KH75","v":0},{"$f":"'EOOTB - D.S.A.T (01)'!KI75","v":0},{"$f":"'EOOTB - D.S.A.T (01)'!KJ75","v":0},{"$f":"'EOOTB - D.S.A.T (01)'!KK75","v":0},{"$f":"'EOOTB - D.S.A.T (01)'!KL75","v":0},{"$f":"'EOOTB - D.S.A.T (01)'!KM75","v":0},{"$f":"'EOOTB - D.S.A.T (01)'!KN75","v":""},{"$f":"'EOOTB - D.S.A.T (01)'!KO75","v":0},{"$f":"'EOOTB - D.S.A.T (01)'!KP75","v":0},{"$f":"'EOOTB - D.S.A.T (01)'!KQ75","v":0},{"$f":"'EOOTB - D.S.A.T (01)'!KR75","v":0},{"$f":"'EOOTB - D.S.A.T (01)'!KS75","v":0},{"$f":"'EOOTB - D.S.A.T (01)'!KT75","v":0}]
[null,null,null,null,null,null,null,null,null,null,null,null,null,null,null,null,null,{"$f":"'EOOTB - D.S.A.T (01)'!KA76","v":"⓫"},{"$f":"'EOOTB - D.S.A.T (01)'!KB76","v":0},null,null,null,null,null,null,null,null,null,null,null,null,null,null,null,null,null,null,null,null,null,null,null,null,null,null,null,null,null,null,null,null,null,null,null,null,null,null,null,null,null,null,null,null,null,null,null,null,null,null,null,null,null,null,null,null,null,null,null,null,null,null,null,null,null,null,null,null,null,null,null,null,null,null,null,null,null,null,null,null,null,null,null,null,null,null,null,null,null,null,null,null,null,null,null,null,null,null,null,null,null,null,null,null,null,null,null,null,null,null,null,null,null,null,null,null,null,null,null,null,null,null,null,null,null,null,null,null,null,null,null,null,null,null,null,null,null,null,null,null,null,null,null,null,null,null,null,null,null,null,null,null,null,null,null,null,null,null,null,null,null,null,null,null,null,null,null,null,{"$f":"'EOOTB - D.S.A.T (01)'!KC76","v":"Digital @ Online Conference APPs\nKindly, multiple choices/answers per question/line are allowed!"},{"$f":"'EOOTB - D.S.A.T (01)'!KE76","v":"SKYPE"},{"$f":"'EOOTB - D.S.A.T (01)'!KF76","v":"TEAMS"},{"$f":"'EOOTB - D.S.A.T (01)'!KG76","v":"ZOOM"},{"$f":"'EOOTB - D.S.A.T (01)'!KH76","v":"GOOGLE\nMEET"},{"$f":"'EOOTB - D.S.A.T (01)'!KI76","v":"WEBEX"},{"$f":"'EOOTB - D.S.A.T (01)'!KJ76","v":0},{"$f":"'EOOTB - D.S.A.T (01)'!KK76","v":0},{"$f":"'EOOTB - D.S.A.T (01)'!KL76","v":0},{"$f":"'EOOTB - D.S.A.T (01)'!KM76","v":0},{"$f":"'EOOTB - D.S.A.T (01)'!KN76","v":""},{"$f":"'EOOTB - D.S.A.T (01)'!KO76","v":0},{"$f":"'EOOTB - D.S.A.T (01)'!KP76","v":0},{"$f":"'EOOTB - D.S.A.T (01)'!KQ76","v":0},{"$f":"'EOOTB - D.S.A.T (01)'!KR76","v":0},{"$f":"'EOOTB - D.S.A.T (01)'!KS76","v":0},{"$f":"'EOOTB - D.S.A.T (01)'!KT76","v":0}]
[null,null,null,null,null,null,null,null,null,null,null,null,null,null,null,null,null,{"$f":"'EOOTB - D.S.A.T (01)'!KA77","v":"➊"},{"$f":"'EOOTB - D.S.A.T (01)'!KB77","v":0},null,null,null,null,null,null,null,null,null,null,null,null,null,null,null,null,null,null,null,null,null,null,null,null,null,null,null,null,null,null,null,null,null,null,null,null,null,null,null,null,null,null,null,null,null,null,null,null,null,null,null,null,null,null,null,null,null,null,null,null,null,null,null,null,null,null,null,null,null,null,null,null,null,null,null,null,null,null,null,null,null,null,null,null,null,null,null,null,null,null,null,null,null,null,null,null,null,null,null,null,null,null,null,null,null,null,null,null,null,null,null,null,null,null,null,null,null,null,null,null,null,null,null,null,null,null,null,null,null,null,null,null,null,null,null,null,null,null,null,null,null,null,null,null,null,null,null,null,null,null,null,null,null,null,null,null,null,null,null,null,null,null,null,null,null,null,null,null,{"$f":"'EOOTB - D.S.A.T (01)'!KC77","v":"With one of the following online meeting applications are you familiar with?"},{"$f":"'EOOTB - D.S.A.T (01)'!KE77","v":0},{"$f":"'EOOTB - D.S.A.T (01)'!KF77","v":0},{"$f":"'EOOTB - D.S.A.T (01)'!KG77","v":0},{"$f":"'EOOTB - D.S.A.T (01)'!KH77","v":0},{"$f":"'EOOTB - D.S.A.T (01)'!KI77","v":0},{"$f":"'EOOTB - D.S.A.T (01)'!KJ77","v":0},{"$f":"COUNTIF(GG77:GK77,1)","v":0},{"$f":"'EOOTB - D.S.A.T (01)'!KL77","v":0},{"$f":"'EOOTB - D.S.A.T (01)'!KM77","v":0},{"$f":"'EOOTB - D.S.A.T (01)'!KN77","v":""},{"$f":"'EOOTB - D.S.A.T (01)'!KO77","v":1},{"$f":"IF(GG77=0,0,GG77+GG77/10)","v":0},{"$f":"IF(GH77=0,0,GH77+GH77/10)","v":0},{"$f":"IF(GI77=0,0,GI77+GI77/10)","v":0},{"$f":"IF(GJ77=0,0,GJ77+GJ77/10)","v":0},{"$f":"IF(GK77=0,0,GK77+GK77/10)","v":0}]
[null,null,null,null,null,null,null,null,null,null,null,null,null,null,null,null,null,{"$f":"'EOOTB - D.S.A.T (01)'!KA78","v":"➋"},{"$f":"'EOOTB - D.S.A.T (01)'!KB78","v":0},null,null,null,null,null,null,null,null,null,null,null,null,null,null,null,null,null,null,null,null,null,null,null,null,null,null,null,null,null,null,null,null,null,null,null,null,null,null,null,null,null,null,null,null,null,null,null,null,null,null,null,null,null,null,null,null,null,null,null,null,null,null,null,null,null,null,null,null,null,null,null,null,null,null,null,null,null,null,null,null,null,null,null,null,null,null,null,null,null,null,null,null,null,null,null,null,null,null,null,null,null,null,null,null,null,null,null,null,null,null,null,null,null,null,null,null,null,null,null,null,null,null,null,null,null,null,null,null,null,null,null,null,null,null,null,null,null,null,null,null,null,null,null,null,null,null,null,null,null,null,null,null,null,null,null,null,null,null,null,null,null,null,null,null,null,null,null,null,{"$f":"'EOOTB - D.S.A.T (01)'!KC78","v":"Which one of the following APPs do you intensively use in your school/profesional life?"},{"$f":"'EOOTB - D.S.A.T (01)'!KE78","v":0},{"$f":"'EOOTB - D.S.A.T (01)'!KF78","v":0},{"$f":"'EOOTB - D.S.A.T (01)'!KG78","v":0},{"$f":"'EOOTB - D.S.A.T (01)'!KH78","v":0},{"$f":"'EOOTB - D.S.A.T (01)'!KI78","v":0},{"$f":"'EOOTB - D.S.A.T (01)'!KJ78","v":0},{"$f":"COUNTIF(GG78:GK78,1)","v":0},{"$f":"'EOOTB - D.S.A.T (01)'!KL78","v":0},{"$f":"'EOOTB - D.S.A.T (01)'!KM78","v":0},{"$f":"'EOOTB - D.S.A.T (01)'!KN78","v":""},{"$f":"'EOOTB - D.S.A.T (01)'!KO78","v":2},{"$f":"IF(GG78=0,0,GG78+GG78/10)","v":0},0,0,0,0]
[null,null,null,null,null,null,null,null,null,null,null,null,null,null,null,null,null,{"$f":"'EOOTB - D.S.A.T (01)'!KA79","v":"➌"},{"$f":"'EOOTB - D.S.A.T (01)'!KB79","v":0},null,null,null,null,null,null,null,null,null,null,null,null,null,null,null,null,null,null,null,null,null,null,null,null,null,null,null,null,null,null,null,null,null,null,null,null,null,null,null,null,null,null,null,null,null,null,null,null,null,null,null,null,null,null,null,null,null,null,null,null,null,null,null,null,null,null,null,null,null,null,null,null,null,null,null,null,null,null,null,null,null,null,null,null,null,null,null,null,null,null,null,null,null,null,null,null,null,null,null,null,null,null,null,null,null,null,null,null,null,null,null,null,null,null,null,null,null,null,null,null,null,null,null,null,null,null,null,null,null,null,null,null,null,null,null,null,null,null,null,null,null,null,null,null,null,null,null,null,null,null,null,null,null,null,null,null,null,null,null,null,null,null,null,null,null,null,null,null,{"$f":"'EOOTB - D.S.A.T (01)'!KC79","v":"Which APPs you master to the point of sharing Screen, Files, Videos, ..."},{"$f":"'EOOTB - D.S.A.T (01)'!KE79","v":0},{"$f":"'EOOTB - D.S.A.T (01)'!KF79","v":0},{"$f":"'EOOTB - D.S.A.T (01)'!KG79","v":0},{"$f":"'EOOTB - D.S.A.T (01)'!KH79","v":0},{"$f":"'EOOTB - D.S.A.T (01)'!KI79","v":0},{"$f":"'EOOTB - D.S.A.T (01)'!KJ79","v":0},0,{"$f":"'EOOTB - D.S.A.T (01)'!KL79","v":0},{"$f":"'EOOTB - D.S.A.T (01)'!KM79","v":0},{"$f":"'EOOTB - D.S.A.T (01)'!KN79","v":""},{"$f":"'EOOTB - D.S.A.T (01)'!KO79","v":3},0,0,0,0,0]
[null,null,null,null,null,null,null,null,null,null,null,null,null,null,null,null,null,{"$f":"'EOOTB - D.S.A.T (01)'!KA80","v":"➍"},{"$f":"'EOOTB - D.S.A.T (01)'!KB80","v":0},null,null,null,null,null,null,null,null,null,null,null,null,null,null,null,null,null,null,null,null,null,null,null,null,null,null,null,null,null,null,null,null,null,null,null,null,null,null,null,null,null,null,null,null,null,null,null,null,null,null,null,null,null,null,null,null,null,null,null,null,null,null,null,null,null,null,null,null,null,null,null,null,null,null,null,null,null,null,null,null,null,null,null,null,null,null,null,null,null,null,null,null,null,null,null,null,null,null,null,null,null,null,null,null,null,null,null,null,null,null,null,null,null,null,null,null,null,null,null,null,null,null,null,null,null,null,null,null,null,null,null,null,null,null,null,null,null,null,null,null,null,null,null,null,null,null,null,null,null,null,null,null,null,null,null,null,null,null,null,null,null,null,null,null,null,null,null,null,{"$f":"'EOOTB - D.S.A.T (01)'!KC80","v":"Which tool are you able to contrôle settings for best security use?"},{"$f":"'EOOTB - D.S.A.T (01)'!KE80","v":0},{"$f":"'EOOTB - D.S.A.T (01)'!KF80","v":0},{"$f":"'EOOTB - D.S.A.T (01)'!KG80","v":0},{"$f":"'EOOTB - D.S.A.T (01)'!KH80","v":0},{"$f":"'EOOTB - D.S.A.T (01)'!KI80","v":0},{"$f":"'EOOTB - D.S.A.T (01)'!KJ80","v":0},0,{"$f":"'EOOTB - D.S.A.T (01)'!KL80","v":0},{"$f":"'EOOTB - D.S.A.T (01)'!KM80","v":0},{"$f":"'EOOTB - D.S.A.T (01)'!KN80","v":""},{"$f":"'EOOTB - D.S.A.T (01)'!KO80","v":4},0,0,0,0,0]
[null,null,null,null,null,null,null,null,null,null,null,null,null,null,null,null,null,{"$f":"'EOOTB - D.S.A.T (01)'!KA81","v":"➎"},{"$f":"'EOOTB - D.S.A.T (01)'!KB81","v":0},null,null,null,null,null,null,null,null,null,null,null,null,null,null,null,null,null,null,null,null,null,null,null,null,null,null,null,null,null,null,null,null,null,null,null,null,null,null,null,null,null,null,null,null,null,null,null,null,null,null,null,null,null,null,null,null,null,null,null,null,null,null,null,null,null,null,null,null,null,null,null,null,null,null,null,null,null,null,null,null,null,null,null,null,null,null,null,null,null,null,null,null,null,null,null,null,null,null,null,null,null,null,null,null,null,null,null,null,null,null,null,null,null,null,null,null,null,null,null,null,null,null,null,null,null,null,null,null,null,null,null,null,null,null,null,null,null,null,null,null,null,null,null,null,null,null,null,null,null,null,null,null,null,null,null,null,null,null,null,null,null,null,null,null,null,null,null,null,{"$f":"'EOOTB - D.S.A.T (01)'!KC81","v":"Which tool do you master to prevent any intrusion into the meeting and ensure total privacy of the exchanged data?"},{"$f":"'EOOTB - D.S.A.T (01)'!KE81","v":0},{"$f":"'EOOTB - D.S.A.T (01)'!KF81","v":0},{"$f":"'EOOTB - D.S.A.T (01)'!KG81","v":0},{"$f":"'EOOTB - D.S.A.T (01)'!KH81","v":0},{"$f":"'EOOTB - D.S.A.T (01)'!KI81","v":0},{"$f":"'EOOTB - D.S.A.T (01)'!KJ81","v":0},0,{"$f":"'EOOTB - D.S.A.T (01)'!KL81","v":0},{"$f":"'EOOTB - D.S.A.T (01)'!KM81","v":0},{"$f":"'EOOTB - D.S.A.T (01)'!KN81","v":""},{"$f":"'EOOTB - D.S.A.T (01)'!KO81","v":5},0,0,0,0,0]
[null,null,null,null,null,null,null,null,null,null,null,null,null,null,null,null,null,{"$f":"'EOOTB - D.S.A.T (01)'!KA82","v":0},{"$f":"'EOOTB - D.S.A.T (01)'!KB82","v":0},null,null,null,null,null,null,null,null,null,null,null,null,null,null,null,null,null,null,null,null,null,null,null,null,null,null,null,null,null,null,null,null,null,null,null,null,null,null,null,null,null,null,null,null,null,null,null,null,null,null,null,null,null,null,null,null,null,null,null,null,null,null,null,null,null,null,null,null,null,null,null,null,null,null,null,null,null,null,null,null,null,null,null,null,null,null,null,null,null,null,null,null,null,null,null,null,null,null,null,null,null,null,null,null,null,null,null,null,null,null,null,null,null,null,null,null,null,null,null,null,null,null,null,null,null,null,null,null,null,null,null,null,null,null,null,null,null,null,null,null,null,null,null,null,null,null,null,null,null,null,null,null,null,null,null,null,null,null,null,null,null,null,null,null,null,null,null,null,{"$f":"'EOOTB - D.S.A.T (01)'!KC82","v":0},{"$f":"'EOOTB - D.S.A.T (01)'!KE82","v":0},{"$f":"'EOOTB - D.S.A.T (01)'!KF82","v":0},{"$f":"'EOOTB - D.S.A.T (01)'!KG82","v":0},{"$f":"'EOOTB - D.S.A.T (01)'!KH82","v":0},{"$f":"'EOOTB - D.S.A.T (01)'!KI82","v":0},{"$f":"'EOOTB - D.S.A.T (01)'!KJ82","v":0},{"$f":"'EOOTB - D.S.A.T (01)'!KK82","v":0},{"$f":"'EOOTB - D.S.A.T (01)'!KL82","v":0},{"$f":"'EOOTB - D.S.A.T (01)'!KM82","v":0},{"$f":"'EOOTB - D.S.A.T (01)'!KN82","v":""},{"$f":"'EOOTB - D.S.A.T (01)'!KO82","v":0},{"$f":"'EOOTB - D.S.A.T (01)'!KP82","v":0},{"$f":"'EOOTB - D.S.A.T (01)'!KQ82","v":0},{"$f":"'EOOTB - D.S.A.T (01)'!KR82","v":0},{"$f":"'EOOTB - D.S.A.T (01)'!KS82","v":0},{"$f":"'EOOTB - D.S.A.T (01)'!KT82","v":0}]
[null,null,null,null,null,null,null,null,null,null,null,null,null,null,null,null,null,{"$f":"'EOOTB - D.S.A.T (01)'!KA83","v":"⓬"},{"$f":"'EOOTB - D.S.A.T (01)'!KB83","v":0},null,null,null,null,null,null,null,null,null,null,null,null,null,null,null,null,null,null,null,null,null,null,null,null,null,null,null,null,null,null,null,null,null,null,null,null,null,null,null,null,null,null,null,null,null,null,null,null,null,null,null,null,null,null,null,null,null,null,null,null,null,null,null,null,null,null,null,null,null,null,null,null,null,null,null,null,null,null,null,null,null,null,null,null,null,null,null,null,null,null,null,null,null,null,null,null,null,null,null,null,null,null,null,null,null,null,null,null,null,null,null,null,null,null,null,null,null,null,null,null,null,null,null,null,null,null,null,null,null,null,null,null,null,null,null,null,null,null,null,null,null,null,null,null,null,null,null,null,null,null,null,null,null,null,null,null,null,null,null,null,null,null,null,null,null,null,null,null,{"$f":"'EOOTB - D.S.A.T (01)'!KC83","v":"EOOTB - Digital Assessment Tool (D.A.T)\nKindly, one single choice/answer per question/line is allowed!"},{"$f":"'EOOTB - D.S.A.T (01)'!KE83","v":0},{"$f":"'EOOTB - D.S.A.T (01)'!KF83","v":0},{"$f":"'EOOTB - D.S.A.T (01)'!KG83","v":0},{"$f":"'EOOTB - D.S.A.T (01)'!KH83","v":0},{"$f":"'EOOTB - D.S.A.T (01)'!KI83","v":0},{"$f":"'EOOTB - D.S.A.T (01)'!KJ83","v":0},{"$f":"'EOOTB - D.S.A.T (01)'!KK83","v":0},{"$f":"'EOOTB - D.S.A.T (01)'!KL83","v":0},{"$f":"'EOOTB - D.S.A.T (01)'!KM83","v":"YES"},{"$f":"'EOOTB - D.S.A.T (01)'!KN83","v":""},{"$f":"'EOOTB - D.S.A.T (01)'!KO83","v":0},{"$f":"'EOOTB - D.S.A.T (01)'!KP83","v":0},{"$f":"'EOOTB - D.S.A.T (01)'!KQ83","v":0},{"$f":"'EOOTB - D.S.A.T (01)'!KR83","v":0},{"$f":"'EOOTB - D.S.A.T (01)'!KS83","v":0},{"$f":"'EOOTB - D.S.A.T (01)'!KT83","v":0}]
[null,null,null,null,null,null,null,null,null,null,null,null,null,null,null,null,null,{"$f":"'EOOTB - D.S.A.T (01)'!KA84","v":"➊"},{"$f":"'EOOTB - D.S.A.T (01)'!KB84","v":"🔝"},null,null,null,null,null,null,null,null,null,null,null,null,null,null,null,null,null,null,null,null,null,null,null,null,null,null,null,null,null,null,null,null,null,null,null,null,null,null,null,null,null,null,null,null,null,null,null,null,null,null,null,null,null,null,null,null,null,null,null,null,null,null,null,null,null,null,null,null,null,null,null,null,null,null,null,null,null,null,null,null,null,null,null,null,null,null,null,null,null,null,null,null,null,null,null,null,null,null,null,null,null,null,null,null,null,null,null,null,null,null,null,null,null,null,null,null,null,null,null,null,null,null,null,null,null,null,null,null,null,null,null,null,null,null,null,null,null,null,null,null,null,null,null,null,null,null,null,null,null,null,null,null,null,null,null,null,null,null,null,null,null,null,null,null,null,null,null,null,{"$f":"'EOOTB - D.S.A.T (01)'!KC84","v":"Did this D.A.T helped you define your digital\nWEEK & STRONG points?"},{"$f":"'EOOTB - D.S.A.T (01)'!KE84","v":0},{"$f":"'EOOTB - D.S.A.T (01)'!KF84","v":0},{"$f":"'EOOTB - D.S.A.T (01)'!KG84","v":0},{"$f":"'EOOTB - D.S.A.T (01)'!KH84","v":0},{"$f":"'EOOTB - D.S.A.T (01)'!KI84","v":0},{"$f":"'EOOTB - D.S.A.T (01)'!KJ84","v":0},{"$f":"'EOOTB - D.S.A.T (01)'!KK84","v":0},{"$f":"'EOOTB - D.S.A.T (01)'!KL84","v":0},{"$f":"'EOOTB - D.S.A.T (01)'!KM84","v":0},{"$f":"'EOOTB - D.S.A.T (01)'!KN84","v":""},{"$f":"'EOOTB - D.S.A.T (01)'!KO84","v":3},{"$f":"'EOOTB - D.S.A.T (01)'!KP84","v":0},{"$f":"'EOOTB - D.S.A.T (01)'!KQ84","v":0},{"$f":"IF(GL84=1,5,0)","v":0},{"$f":"'EOOTB - D.S.A.T (01)'!KS84","v":0},{"$f":"'EOOTB - D.S.A.T (01)'!KT84","v":0}]
[null,null,null,null,null,null,null,null,null,null,null,null,null,null,null,null,null,{"$f":"'EOOTB - D.S.A.T (01)'!KA85","v":"➋"},{"$f":"'EOOTB - D.S.A.T (01)'!KB85","v":"📃"},null,null,null,null,null,null,null,null,null,null,null,null,null,null,null,null,null,null,null,null,null,null,null,null,null,null,null,null,null,null,null,null,null,null,null,null,null,null,null,null,null,null,null,null,null,null,null,null,null,null,null,null,null,null,null,null,null,null,null,null,null,null,null,null,null,null,null,null,null,null,null,null,null,null,null,null,null,null,null,null,null,null,null,null,null,null,null,null,null,null,null,null,null,null,null,null,null,null,null,null,null,null,null,null,null,null,null,null,null,null,null,null,null,null,null,null,null,null,null,null,null,null,null,null,null,null,null,null,null,null,null,null,null,null,null,null,null,null,null,null,null,null,null,null,null,null,null,null,null,null,null,null,null,null,null,null,null,null,null,null,null,null,null,null,null,null,null,null,{"$f":"'EOOTB - D.S.A.T (01)'!KC85","v":"Did you intend to use EOOTB platform and its innovations\nin the next 6 months?"},{"$f":"'EOOTB - D.S.A.T (01)'!KE85","v":0},{"$f":"'EOOTB - D.S.A.T (01)'!KF85","v":0},{"$f":"'EOOTB - D.S.A.T (01)'!KG85","v":0},{"$f":"'EOOTB - D.S.A.T (01)'!KH85","v":0},{"$f":"'EOOTB - D.S.A.T (01)'!KI85","v":0},{"$f":"'EOOTB - D.S.A.T (01)'!KJ85","v":0},{"$f":"'EOOTB - D.S.A.T (01)'!KK85","v":0},{"$f":"'EOOTB - D.S.A.T (01)'!KL85","v":0},{"$f":"'EOOTB - D.S.A.T (01)'!KM85","v":0},{"$f":"'EOOTB - D.S.A.T (01)'!KN85","v":""},{"$f":"'EOOTB - D.S.A.T (01)'!KO85","v":5},{"$f":"'EOOTB - D.S.A.T (01)'!KP85","v":0},{"$f":"'EOOTB - D.S.A.T (01)'!KQ85","v":0},{"$f":"'EOOTB - D.S.A.T (01)'!KR85","v":0},{"$f":"'EOOTB - D.S.A.T (01)'!KS85","v":0},{"$f":"IF(GL85=1,5,0)","v":0}]
[null,null,null,null,null,null,null,null,null,null,null,null,null,null,null,null,null,null,null,null,null,null,null,null,null,null,null,null,null,null,null,null,null,null,null,null,null,null,null,null,null,null,null,null,null,null,null,null,null,null,null,null,null,null,null,null,null,null,null,null,null,null,null,null,null,null,null,null,null,null,null,null,null,null,null,null,null,null,null,null,null,null,null,null,null,null,null,null,null,null,null,null,null,null,null,null,null,null,null,null,null,null,null,null,null,null,null,null,null,null,null,null,null,null,null,null,null,null,null,null,null,null,null,null,null,null,null,null,null,null,null,null,null,null,null,null,null,null,null,null,null,null,null,null,null,null,null,null,null,null,null,null,null,null,null,null,null,null,null,null,null,null,null,null,null,null,null,null,null,null,null,null,null,null,null,null,null,null,null,null,null,null,null,null,null,null,null,null,null,null,null,null,null,null,null,null,"NO"]
[]
["Self-Assessment Digital Competencies",null,null,null,null,null,null,null,null,null,null,null,null,null,null,null,null,null,null,null,null,null,null,null,null,null,null,null,null,null,null,null,null,null,null,null,null,null,null,null,null,null,null,null,null,null,null,null,null,null,null,null,null,null,null,null,null,null,null,null,null,null,null,null,null,null,null,null,null,null,null,null,null,null,null,null,null,null,null,null,null,null,null,null,null,null,null,null,null,null,null,null,null,null,null,null,null,null,null,null,null,null,null,null,null,null,null,null,null,null,null,null,null,null,null,null,null,null,null,null,null,null,null,null,null,null,null,null,null,null,null,null,null,null,null,null,null,null,null,null,null,null,null,null,null,null,null,null,null,null,null,null,null,null,null,null,null,null,null,null,null,null,null,null,null,null,null,null,null,null,null,null,null,null,null,null,null,null,null,null,null,null,"Valeur indicateur",{"$f":"C105","v":0}]
[null,null,null,null,null,null,null,null,null,null,null,null,null,null,null,null,null,null,null,null,null,null,null,null,null,null,null,null,null,null,null,null,null,null,null,null,null,null,null,null,null,null,null,null,null,null,null,null,null,null,null,null,null,null,null,null,null,null,null,null,null,null,null,null,null,null,null,null,null,null,null,null,null,null,null,null,null,null,null,null,null,null,null,null,null,null,null,null,null,null,null,null,null,null,null,null,null,null,null,null,null,null,null,null,null,null,null,null,null,null,null,null,null,null,null,null,null,null,null,null,null,null,null,null,null,null,null,null,null,null,null,null,null,null,null,null,null,null,null,null,null,null,null,null,null,null,null,null,null,null,null,null,null,null,null,null,null,null,null,null,null,null,null,null,null,null,null,null,null,null,null,null,null,null,null,null,null,null,null,null,null,null,"Largeur indicateur",0.02]
[null,null,null,"Information",null,null,null,"",null,null,null,null,null,null,null,null,null,null,null,null,null,null,null,null,null,null,null,null,null,null,null,null,null,null,null,null,null,null,null,null,null,null,null,null,null,null,null,null,null,null,null,null,null,null,null,null,null,null,null,null,null,null,null,null,null,null,null,null,null,null,null,null,null,null,null,null,null,null,null,null,null,null,null,null,null,null,null,null,null,null,null,null,null,null,null,null,null,null,null,null,null,null,null,null,null,null,null,null,null,null,null,null,null,null,null,null,null,null,null,null,null,null,null,null,null,null,null,null,null,null,null,null,null,null,null,null,null,null,null,null,null,null,null,null,null,null,null,null,null,null,null,null,null,null,null,null,null,null,null,null,null,null,null,null,null,null,null,null,null,null,null,null,null,null,null,null,null,null,null,null,null,null,"Reste",{"$f":"200%-GB88+GB89","v":2.02}]
[]
[null,null,null,"Communication",null,null,null,"📣"]
[]
[null,null,null,"Content creation",null,null,null,""]
[]
[null,null,null,"Safety",null,null,null,""]
[]
[null,null,null,"Problem Solving",null,null,null,""]
[]
[]
[]
[]
[null,null,null,null,null,null,null,null,null,null,null,null,null,null,null,null,null,null,null,null,null,null,null,null,null,null,null,null,null,null,null,null,null,null,null,null,null,null,null,null,null,null,null,null,null,null,null,null,null,null,null,null,null,null,null,null,null,null,null,null,null,null,null,null,null,null,null,null,null,null,null,null,null,null,null,null,null,null,null,null,null,null,null,null,null,null,null,null,null,null,null,null,null,null,null,null,null,null,null,null,null,null,null,null,null,null,null,null,null,null,null,null,null,null,null,null,null,null,null,null,null,null,null,null,null,null,null,null,null,null,null,null,null,null,null,null,null,null,null,null,null,null,null,null,null,null,null,null,null,null,null,null,null,null,null,null,null,null,null,null,null,null,null,null,null,null,null,null,null,null,null,null,null,null,null,null,null,null,null,null,null,null,null,null,null,null,null,null,null,null,null,null,null,null,null,null,{"$f":"AVERAGE(HR1:HV1)","v":{"$error":"#DIV/0!"}}]
[]
[null,null,{"$f":"AVERAGE(GR3:GV3)","v":0}]
[]
[]
[]
[null,null,"AVERAGE"]
[]
[]
[]
[]
["     📣            ",null,null,null,null,null,null,null,"       📣                  "]
["             Information     Communication   Content Creation          Safety         Problem Solving",null,null,null,null,null,null,null,"      Information           Communication         Content Creation            Safety              Problem Solving"]
[]
[]
[]
[]
[]
[]
[]
[]
["   Information                Communication         Content Creation               Safety                Problem Solving"]
[]
["This document is protected by copyright under article L. 111-1 of the Intellectual Property Code (CPI/IPC), which stipulates that \"Mr Charles KRIM, President of the FAPEL\nFederation and author of this work of the mind, enjoys an exclusive intangible property right in this work, enforceable against all parties, solely by virtue of its creation\"."]
[]
[]
[]
[]
[]
[]
[]
[]
[]
[]
[]
[]
[]
[]
[]
[]
[]
[]
[]
[]
[]
[]
[]
[]
[]
[]
[]
[]
[]
[]
[]
[]
[]
[]
[]
[]
[]
[]
[]
[null,null,null,null,null,null,null,null,null,null,null,null,null,null,null,null,null,null,null,null,2]
[]
[]
[]
[]
[]
[]
[]
[]
[]
[]
[]
[]
[]
[]
[]
[]
[]
[]
[]
[]
[]
[]
[]
[]
[]
[]
[]
[]
[]
[]
[]
[]
[]
[]
[]
[]
[]
[]
[]
[]
[]
[]
[]
[]
[]
[]
[]
[]
[]
[]
[]
[]
[]
[]
[]
[]
[]
[]
[]
[]
[]
[]
[]
[]
[]
[]
[]
[]
[]
[]
[]
[]
[]
[]
[]
[]
[]
[]
[]
[]
[]
[]
[]
[]
[]
[]
[]
[]
[]
[]
[]
[]
[]
[]
[]
[]
[]
[]
[]
[]
[]
[]
[]
[]
[]
[]
[]
[]
[]
[]
[]
[]
[]
[]
[]
[]
[]
[]
[]
[]
[]
[]
[]
[]
[]
[]
[]
[]
[]
[]
[]
[]
[]
[]
[]
[]
[]
[]
[]
[]
[]
[]
[]
[]
[]
[]
[]
[]
[]
[]
[]
[]
[]
[]
[]
[]
[]
[]
[]
[]
[]
[]
[]
[]
[]
[]
[]
[]
[]
[]
[]
[]
[]
[]
[]
[]
[]
[]
[]
[]
[]
[]
[]
[]
[]
[]
[]
[]
[]
[]
[]
[]
[]
[]
[]
[]
[]
[]
[]
[]
[]
[]
[]
[]
[]
[]
[]
[]
[]
[]
[]
[]
[]
[]
[]
[]
[]
[]
[]
[]
[]
[]
[]
[]
[]
[]
[]
[]
[]
[]
[]
[]
[]
[]
[]
[]
[]
[]
[]
[]
[]
[]
[]
[]
[]
[]
[]
[]
[]
[]
[]
[]
[]
[]
[]
[]
[]
[]
[]
[]
[]
[]
[]
[]
[]
[]
[]
[]
[]
[]
[]
[]
[]
[]
[]
[]
[]
[]
[]
[]
[]
[]
[]
[]
[]
[]
[]
[]
[]
[]
[]
[]
[]
[]
[]
[]
[]
[]
[]
[]
[]
[]
[]
[]
[]
[]
[]
[]
[]
[]
[]
[]
[]
[]
[]
[]
[]
[]
[]
[]
[]
[]
[]
[]
[]
[]
[]
[]
[]
[]
[]
[]
[]
[]
[]
[]
[]
[]
[]
[]
[]
[]
[]
[]
[]
[]
[]
[]
[]
[]
[]
[]
[]
[]
[]
[]
[]
[]
[]
[]
[]
[]
[]
[]
[]
[]
[]
[]
[]
[]
[]
[]
[]
[]
[]
[]
[]
[]
[]
[]
[]
[]
[]
[]
[]
[]
[]
[]
[]
[]
[]
[]
[]
[]
[]
[]
[]
[]
[]
[]
[]
[]
[]
[]
[]
[]
[]
[]
[]
[]
[]
[]
[]
[]
[]
[]
[]
[]
[]
[]
[]
[]
[]
[]
[]
[]
[]
[]
[]
[]
[]
[]
[]
[]
[]
[]
[]
[]
[]
[]
[]
[]
[]
[]
[]
[]
[]
[]
[]
[]
[]
[]
[]
[]
[]
[]
[]
[]
[]
[]
[]
[]
[]
[]
[]
[]
[]
[]
[]
[]
[]
[]
[]
[]
[]
[]
[]
[]
[]
[]
[]
[]
[]
[]
[]
[]
[]
[]
[]
[]
[]
[]
[]
[]
[]
[]
[]
[]
[]
[]
[]
[]
[]
[]
[]
[]
[]
[]
[]
[]
[]
[]
[]
[]
[]
[]
[]
[]
[]
[]
[]
[]
[]
[]
[]
[]
[]
[]
[]
[]
[]
[]
[]
[]
[]
[]
[]
[]
[]
[]
[]
[]
[]
[]
[]
[]
[]
[]
[]
[]
[]
[]
[]
[]
[]
[]
[]
[]
[]
[]
[]
[]
[]
[]
[]
[]
[]
[]
[]
[]
[]
[]
[]
[]
[]
[]
[]
[]
[]
[]
[]
[]
[]
[]
[]
[]
[]
[]
[]
[]
[]
[]
[]
[]
[]
[]
[]
[]
[]
[]
[]
[]
[]
[]
[]
[]
[]
[]
[]
[]
[]
[]
[]
[]
[]
[]
[]
[]
[]
[]
[]
[]
[]
[]
[]
[]
[]
[]
[]
[]
[]
[]
[]
[]
[]
[]
[]
[]
[]
[]
[]
[]
[]
[]
[]
[]
[]
[]
[]
[]
[]
[]
[]
[]
[]
[]
[]
[]
[]
[]
[]
[]
[]
[]
[]
[]
[]
[]
[]
[]
[]
[]
[]
[]
[]
[]
[]
[]
[]
[]
[]
[]
[]
[]
[]
[]
[]
[]
[]
[]
[]
[]
[]
[]
[]
[]
[]
[]
[]
[]
[]
[]
[]
[]
[]
[]
[]
[]
[]
[]
[]
[]
[]
[]
[]
[]
[]
[]
[]
[]
[]
[]
[]
[]
[]
[]
[]
[]
[]
[]
[]
[]
[]
[]
[]
[]
[]
[]
[]
[]
[]
[]
[]
[]
[]
[]
[]
[]
[]
[]
[]
[]
[]
[]
[]
[]
[]
[]
[]
[]
[]
[]
[]
[]
[]
[]
[]
[]
[]
[]
[]
[]
[]
[]
[]
[]
[]
[]
[]
[]
[]
[]
[]
[]
[]
[]
[]
[]
[]
[]
[]
[]
[]
[]
[]
[]
[]
[]
[]
[]
[]
[]
[]
[]
[]
[]
[]
[]
[]
[]
[]
[]
[]
[]
[]
[]
[]
[]
[]
[]
[]
[]
[]
[]
[]
[]
[]
[]
[]
[]
[]
[]
[]
[]
[]
[]
[]
[]
[]
[]
[]
[]
[]
[]
[]
[]
[]
[]
[]
[]
[]
[]
[]
[]
[]
[]
[]
[]
[]
[]
[]
[]
[]
[]
[]
[]
[]
[]
[]
[]
[]
[]
[]
[]
[]
[]
[]
[]
[]
[]
[]
[]
[]
[]
[]
[]
[]
[]
[]
[]
[]
[]
[]
[]
[]
[]
[]
[]
[]
[]
[]
[]
[]
[]
[]
[]
[]
[]
[]
[]
[]
[]
[]
[]
[]
[]
[]
[]
[]
[]
[]
[]
[]
[]
[]
[]
[]
[]
[]
[]
[]
[]
[]
[]
[]
[]
[]
[]
[]
[]
[]
[]
[]
[]
[]
[]
[]
[]
[]
[]
[]
[]
[]
[]
[]
[]
[]
[]
[]
[]
[]
[]
[]
[]
[]
[]
[]
[]
[]
[]
[]
[]
[]
[]
[]
[]
[]
[]
[]
[]
[]
[]
[]
[]
[]
[]
[]
[]
[]
[]
[]
[]
[]
[]
[]
[]
[]
[]
[]
[]
[]
[]
[]
[]
[]
[]
[]
[]
[]
[]
[]
[]
[]
[]
[]
[]
[]
[]
[]
[]
[]
[]
[]
[]
[]
[]
[]
[]
[]
[]
[]
[]
[]
[]
[]
[]
[]
[]
[]
[]
[]
[]
[]
[]
[]
[]
[]
[]
[]
[]
[]
[]
[]
[]
[]
[]
[]
[]
[]
[]
[]
[]
[]
[]
[]
[]
[]
[]
[]
[]
[]
[]
[]
[]
[]
[]
[]
[]
[]
[]
[]
[]
[]
[]
[]
[]
[]
[]
[]
[]
[]
[]
[]
[]
[]
[]
[]
[]
[]
[]
[]
[]
[]
[]
[]
[]
[]
[]
[]
[]
[]
[]
[]
[]
[]
[]
[]
[]
[]
[]
[]
[]
[]
[]
[]
[]
[]
[]
[]
[]
[]
[]
[]
[]
[]
[]
[]
[]
[]
[]
[]
[]
[]
[]
[]
[]
[]
[]
[]
[]
[]
[]
[]
[]
[]
[]
[]
[]
[]
[]
[]
[]
[]
[]
[]
[]
[]
[]
[]
[]
[]
[]
[]
[]
[]
[]
[]
[]
[]
[]
[]
[]
[]
[]
[]
[]
[]
[]
[]
[]
[]
[]
[]
[]
[]
[]
[]
[]
[]
[]
[]
[]
[]
[]
[]
[]
[]
[]
[]
[]
[]
[]
[]
[]
[]
[]
[]
[]
[]
[]
[]
[]
[]
[]
[]
[]
[]
[]
[]
[]
[]
[]
[]
[]
[]
[]
[]
[]
[]
[]
[]
[]
[]
[]
[]
[]
[]
[]
[]
[]
[]
[]
[]
[]
[]
[]
[]
[]
[]
[]
[]
[]
[]
[]
[]
[]
[]
[]
[]
[]
[]
[]
[]
[]
[]
[]
[]
[]
[]
[]
[]
[]
[]
[]
[]
[]
[]
[]
[]
[]
[]
[]
[]
[]
[]
[]
[]
[]
[]
[]
[]
[]
[]
[]
[]
[]
[]
[]
[]
[]
[]
[]
[]
[]
[]
[]
[]
[]
[]
[]
[]
[]
[]
[]
[]
[]
[]
[]
[]
[]
[]
[]
[]
[]
[]
[]
[]
[]
[]
[]
[]
[]
[]
[]
[]
[]
[]
[]
[]
[]
[]
[]
[]
[]
[]
[]
[]
[]
[]
[]
[]
[]
[]
[]
[]
[]
[]
[]
[]
[]
[]
[]
[]
[]
[]
[]
[]
[]
[]
[]
[]
[]
[]
[]
[]
[]
[]
[]
[]
[]
[]
[]
[]
[]
[]
[]
[]
[]
[]
[]
[]
[]
[]
[]
[]
[]
[]
[]
[]
[]
[]
[]
[]
[]
[]
[]
[]
[]
[]
[]
[]
[]
[]
[]
[]
[]
[]
[]
[]
[]
[]
[]
[]
[]
[]
[]
[]
[]
[]
[]
[]
[]
[]
[]
[]
[]
[]
[]
[]
[]
[]
[]
[]
[]
[]
[]
[]
[]
[]
[]
[]
[]
[]
[]
[]
[]
[]
[]
[]
[]
[]
[]
[]
[]
[]
[]
[]
[]
[]
[]
[]
[]
[]
[]
[]
[]
[]
[]
[]
[]
[]
[]
[]
[]
[]
[]
[]
[]
[]
[]
[]
[]
[]
[]
[]
[]
[]
[]
[]
[]
[]
[]
[]
[]
[]
[]
[]
[]
[]
[]
[]
[]
[]
[]
[]
[]
[]
[]
[]
[]
[]
[]
[]
[]
[]
[]
[]
[]
[]
[]
[]
[]
[]
[]
[]
[]
[]
[]
[]
[]
[]
[]
[]
[]
[]
[]
[]
[]
[]
[]
[]
[]
[]
[]
[]
[]
[]
[]
[]
[]
[]
[]
[]
[]
[]
[]
[]
[]
[]
[]
[]
[]
[]
[]
[]
[]
[]
[]
[]
[]
[]
[]
[]
[]
[]
[]
[]
[]
[]
[]
[]
[]
[]
[]
[]
[]
[]
[]
[]
[]
[]
[]
[]
[]
[]
[]
[]
[]
[]
[]
[]
[]
[]
[]
[]
[]
[]
[]
[]
[]
[]
[]
[]
[]
[]
[]
[]
[]
[]
[]
[]
[]
[]
[]
[]
[]
[]
[]
[]
[]
[]
[]
[]
[]
[]
[]
[]
[]
[]
[]
[]
[]
[]
[]
[]
[]
[]
[]
[]
[]
[]
[]
[]
[]
[]
[]
[]
[]
[]
[]
[]
[]
[]
[]
[]
[]
[]
[]
[]
[]
[]
[]
[]
[]
[]
[]
[]
[]
[]
[]
[]
[]
[]
[]
[]
[]
[]
[]
[]
[]
[]
[]
[]
[]
[]
[]
[]
[]
[]
[]
[]
[]
[]
[]
[]
[]
[]
[]
[]
[]
[]
[]
[]
[]
[]
[]
[]
[]
[]
[]
[]
[]
[]
[]
[]
[]
[]
[]
[]
[]
[]
[]
[]
[]
[]
[]
[]
[]
[]
[]
[]
[]
[]
[]
[]
[]
[]
[]
[]
[]
[]
[]
[]
[]
[]
[]
[]
[]
[]
[]
[]
[]
[]
[]
[]
[]
[]
[]
[]
[]
[]
[]
[]
[]
[]
[]
[]
[]
[]
[]
[]
[]
[]
[]
[]
[]
[]
[]
[]
[]
[]
[]
[]
[]
[]
[]
[]
[]
[]
[]
[]
[]
[]
[]
[]
[]
[]
[]
[]
[]
[]
[]
[]
[]
[]
[]
[]
[]
[]
[]
[]
[]
[]
[]
[]
[]
[]
[]
[]
[]
[]
[]
[null,null,null,null,null,null,null,null,null,null,null,null,null,null,null,null,null,null,null,null,null,null,null,null,null,null,null,null,null,null,null,null,null,null,null,null,null,null,null,null,null,null,null,null,null,null,null,null,null,null,null,null,null,null,null,null,null,null,null,null,null,null,null,null,null,null,null,null,null,null,null,null,null,null,null,null,null,null,null,null,null,null,null,null,null,null,null,null,null,null,null,null,null,null,null,null,null,null,null,null,null,null,null,null,null,null,null,null,null,null,null,null,null,null,null,null,null,null,null,null,null,null,null,null,null,null,null,null,null,null,null,null,null,null,null,null,null,null,null,null,null,null,null,null,null,null,null,null,null,null,null,null,null,null,null,null,null,null,null,null,null,null,null,null,null,null,null,null,null,null,null,null,null,null,null,null,null,null,null,null,null,null,null,null,null,null,null,null,null,null,null,null,null,null,null,null,null,null,null,null,null,null,null,null,null,null,null,null,null,null,null,null,null,null,null,null,null,null,null,null,null,null,null,null,null,null,null,null,null,null,null,null,null,null,null,null,null,null,null,null,null,null,null,null,null,null,null,null,null,null,null,null,null,null,null,null,null,null,null,null,null,null,null,null,null,null,null,null,null,null,null,null,null,null,null," ."]
[null,null,null,null,null,null,null,null,null,null,null,null,null,null,null,null,null,null,null,null,null,null,null,null,null,null,null,null,null,null,null,null,null,null,null,null,null,null,null,null,null,null,null,null,null,null,null,null,null,null,null,null,null,null,null,null,null,null,null,null,null,null,null,null,null,null,null,null,null,null,null,null,null,null,null,null,null,null,null,null,null,null,null,null,null,null,null,null,null,null,null,null,null,null,null,null,null,null,null,null,null,null,null,null,null,null,null,null,null,null,null,null,null,null,null,null,null,null,null,null,null,null,null,null,null,null,null,null,null,null,null,null,null,null,null,null,null,null,null,null,null,null,null,null,null,null,null,null,null,null,null,null,null,null,null,null,null,null,null,null,null,null,null,null,null,null,null,null,null,null,null,null,null,null,null,null,null,null,null,null,null,null,null,null,null,null,null,null,null,null,null,null,null,null,null,null,null,null,null,null,null,null,null,null,null,null,null,null,null,null,null,null,null,null,null,null,null,null,null,null,null,null,null,null,null,null,null,null,null,null,null,null,null,null,null,null,null,null,null,null,null,null,null,null,null,null,null,null,null,null,null,null,null,null,null,null,null,null,null,null,null,null,null,null,null,null,null,null,null,null,null,null,null,null,null," ."]